Workbook

Sheet ACCUEIL
I4: SI TU VEUX QUE QUELQUECHOSE CHANGE, CHANGE QUELQUECHOSE
I8: LA PERSONNE QUI DEPLACE UNE MONTAGNE COMMENCE A DEPLACER DE PETITES PIERRES
I14: CHERCHEZ LE PROGRES PAS LA PERFECTION
I15: IMPOSSIBLE EST UNE OPINION
I17: LORSQUE VOUS AVEZ ENVIE D'ARRETER, SOUVENEZ VOUS POURQUOI VOUS AVEZ COMMENCE
I24: LA MOTIVATION VOUS SERT DE DEPART, L'HABITUDE VOUS FAIT CONTINUER
I29: LA SEULE PERSONNE A DEPASSER EST CELLE QUE TU ETAIS HIER

Sheet ECHAUFFEMENT
D2: ECHAUFFEMENT | K2: =VLOOKUP($B$3,DEBUTMU!$L$91:$AF$111,16,FALSE) -> NE PAS LACHER !
B3: S1
D4: =VLOOKUP($B$3,DEBUTMU!$L$91:$AJ$111,4,FALSE) -> CORDE A SAUTER | I4: =VLOOKUP($B$3,DEBUTMU!$L$91:$AJ$111,5,FALSE) -> 3'
D5: =VLOOKUP($B$3,DEBUTMU!$L$91:$AJ$111,6,FALSE) -> 3x45" min | I5: =VLOOKUP($B$3,DEBUTMU!$L$91:$AJ$111,7,FALSE) -> NE PAS S'ARRETER
D8: =VLOOKUP($B$3,DEBUTMU!$L$91:$AJ$111,8,FALSE) -> ARTICULATIONS | I8: =VLOOKUP($B$3,DEBUTMU!$L$91:$AJF$111,9,FALSE) -> 3'
D9: =VLOOKUP($B$3,DEBUTMU!$L$91:$AJ$111,10,FALSE) -> Cou - Epaules - Coudes - Poignets - Bassin - Genoux - Chevilles | I9: =VLOOKUP($B$3,DEBUTMU!$L$91:$AJ$111,11,FALSE) -> dU HAUT VERS LE BAS
D11: =VLOOKUP($B$3,DEBUTMU!$L$91:$AJ$111,12,FALSE) -> CROSSTRAINING | I11: =VLOOKUP($B$3,DEBUTMU!$L$91:$AJ$111,13,FALSE) -> 6'
D12: =VLOOKUP($B$3,DEBUTMU!$L$91:$AJ$111,14,FALSE) -> WOD 10x10 | I12: =VLOOKUP($B$3,DEBUTMU!$L$91:$AJ$111,15,FALSE) -> Valider chaque rép
D14: ETIREMENTS (Fin de séance) | I14: =VLOOKUP($B$3,DEBUTMU!$L$91:$AFJ$111,19,FALSE) -> 7" par étirement
D16: TRAPEZES | E16: DELTOIDE ANT | F16: DELTOIDE POST | G16: TRICEPS
D18: BICEPS | E18: PECTORAUX | F18: PECTORAUX | G18: GRAND DROIT
D20: OBLIQUES | E20: DORSAUX | F20: DORSAUX | G20: FESSIERS
D22: ADDUCTEURS | E22: ADDUCTEURS | F22: QUADRICEPS | G22: QUADRICEPS
D24: PSOAS | E24: ISCHIOS | F24: ISCHIOS | G24: MOLLETS
D26: RELAXATION | I26: =VLOOKUP($B$3,DEBUTMU!$L$91:$AJ$111,22,FALSE) -> 5'
D27: =VLOOKUP($B$3,DEBUTMU!$L$91:$AJ$111,23,FALSE) -> Couchez vous sur le dos, genoux fléchis, pieds posés à plat et bas dud dos collé au sol. Inspirez profondément par le nez en gonflant le ventre pendant 5 à 6 secondes. Expirez avec la bouche (trente secondes ou plus) en rentrant progressivement le ventre. soufflez au maximum pour chasser la totalité de l'air. pour cela vous devez rentrer le ventre le plus possible en conctractant vos abdominaux. | I27: =VLOOKUP($B$3,DEBUTMU!$L$91:$AJ$111,24,FALSE) -> Soyez détendu. Concentrez vous sur votre respiration

Sheet CTCROSSLAFAY
B2: CROSSFIT | I2: 10x10 | N2: =CONCATENATE(I2,1) -> 10x101
B3: 0 | C3: 0 | D3: ' | E3: =HLOOKUP($N$2,DEBUTMU!$AP$89:$GD$107,4,FALSE) -> 10 | J3: =HLOOKUP($N$2,DEBUTMU!$AP$89:$GD$107,5,FALSE) -> 10 | O3: =HLOOKUP($N$2,DEBUTMU!$AP$89:$GD$107,6,FALSE) -> 10
B4: =HLOOKUP($N$2,DEBUTMU!$AP$89:$GD$107,2,FALSE) -> AMRAP | E4: =HLOOKUP($I$2,DEBUTMU!$AP$90:$GD$107,3,FALSE) -> Relevé de genoux | J4: =HLOOKUP($I$2,DEBUTMU!$AP$90:$GD$107,4,FALSE) -> Squat (air) | O4: =HLOOKUP($I$2,DEBUTMU!$AP$90:$GD$107,5,FALSE) -> Sauts groupés
B5: 1
B9: =IF(B5=1,"TOUR","TOURS") -> TOUR
C12: =HLOOKUP($N$2,DEBUTMU!$AP$89:$GD$107,7,FALSE) -> 10 | H12: =HLOOKUP($N$2,DEBUTMU!$AP$89:$GD$107,8,FALSE) -> 10 | M12: =HLOOKUP($N$2,DEBUTMU!$AP$89:$GD$107,9,FALSE) -> 10 | R12: =HLOOKUP($N$2,DEBUTMU!$AP$89:$GD$107,10,FALSE) -> 10
C13: =HLOOKUP($I$2,DEBUTMU!$AP$90:$GD$107,6,FALSE) -> Burpees | H13: =HLOOKUP($I$2,DEBUTMU!$AP$90:$GD$107,7,FALSE) -> Genou vers coude | M13: =HLOOKUP($I$2,DEBUTMU!$AP$90:$GD$107,8,FALSE) -> Jump squat | R13: =HLOOKUP($I$2,DEBUTMU!$AP$90:$GD$107,9,FALSE) -> Pompes
A20: =HLOOKUP($N$2,DEBUTMU!$AP$89:$GD$107,11,FALSE) -> 10 | F20: =HLOOKUP($N$2,DEBUTMU!$AP$89:$GD$107,12,FALSE) -> 10 | K20: =HLOOKUP($N$2,DEBUTMU!$AP$89:$GD$107,13,FALSE) -> 10 | P20: =HLOOKUP($N$2,DEBUTMU!$AP$89:$GD$107,14,FALSE) -> 0
A21: =HLOOKUP($I$2,DEBUTMU!$AP$90:$GD$107,10,FALSE) -> Fentes sautées | F21: =HLOOKUP($I$2,DEBUTMU!$AP$90:$GD$107,11,FALSE) -> Mountain climbers | K21: =HLOOKUP($I$2,DEBUTMU!$AP$90:$GD$107,12,FALSE) -> Tractions | P21: =HLOOKUP($I$2,DEBUTMU!$AP$90:$GD$107,13,FALSE) -> 0
D29: =HLOOKUP($N$2,DEBUTMU!$AP$89:$GD$107,15,FALSE) -> 0 | I29: =HLOOKUP($N$2,DEBUTMU!$AP$89:$GD$107,16,FALSE) -> 0 | N29: =HLOOKUP($N$2,DEBUTMU!$AP$89:$GD$107,17,FALSE) -> 0 | S29: =HLOOKUP($N$2,DEBUTMU!$AP$89:$GD$107,18,FALSE) -> 0
D30: =HLOOKUP($I$2,DEBUTMU!$AP$90:$GD$107,14,FALSE) -> 0 | I30: =HLOOKUP($I$2,DEBUTMU!$AP$90:$GD$107,15,FALSE) -> 0 | N30: =HLOOKUP($I$2,DEBUTMU!$AP$90:$GD$107,16,FALSE) -> 0 | S30: =HLOOKUP($I$2,DEBUTMU!$AP$90:$GD$107,17,FALSE) -> 0

Sheet WODTABLANC
F3: Pti ZEUS | P3: =CONCATENATE(F3,1) -> Pti ZEUS1
C4: 0 | D4: 0 | E4: '
F5: =HLOOKUP($P$3,DEBUTMU!$AP$89:$GD$107,4,FALSE) -> 10 | H5: =HLOOKUP($F$3,DEBUTMU!$AP$90:$GD$107,3,FALSE) -> Wall ball
C6: =HLOOKUP($P$3,DEBUTMU!$AP$89:$GD$107,2,FALSE) -> AMRAP | F6: =HLOOKUP($P$3,DEBUTMU!$AP$89:$GD$107,5,FALSE) -> 10 | H6: =HLOOKUP($F$3,DEBUTMU!$AP$90:$GD$107,4,FALSE) -> Dead lift
C7: 2 | F7: =HLOOKUP($P$3,DEBUTMU!$AP$89:$GD$107,6,FALSE) -> 10 | H7: =HLOOKUP($F$3,DEBUTMU!$AP$90:$GD$107,5,FALSE) -> Jump Box
C8: =IF(C7=1,"TOUR","TOURS") -> TOURS | F8: =HLOOKUP($P$3,DEBUTMU!$AP$89:$GD$107,7,FALSE) -> 10 | H8: =HLOOKUP($F$3,DEBUTMU!$AP$90:$GD$107,6,FALSE) -> Push Press
F9: =HLOOKUP($P$3,DEBUTMU!$AP$89:$GD$107,8,FALSE) -> 10 | H9: =HLOOKUP($F$3,DEBUTMU!$AP$90:$GD$107,7,FALSE) -> Pompes
F10: =HLOOKUP($P$3,DEBUTMU!$AP$89:$GD$107,9,FALSE) -> 10 | H10: =HLOOKUP($F$3,DEBUTMU!$AP$90:$GD$107,8,FALSE) -> Squat (back)
F11: =HLOOKUP($P$3,DEBUTMU!$AP$89:$GD$107,10,FALSE) -> 0 | H11: =HLOOKUP($F$3,DEBUTMU!$AP$90:$GD$107,9,FALSE) -> 0
F12: =HLOOKUP($P$3,DEBUTMU!$AP$89:$GD$107,11,FALSE) -> 0 | H12: =HLOOKUP($F$3,DEBUTMU!$AP$90:$GD$107,10,FALSE) -> 0
F13: =HLOOKUP($P$3,DEBUTMU!$AP$89:$GD$107,12,FALSE) -> 0 | H13: =HLOOKUP($F$3,DEBUTMU!$AP$90:$GD$107,11,FALSE) -> 0
F14: =HLOOKUP($P$3,DEBUTMU!$AP$89:$GD$107,13,FALSE) -> 0 | H14: =HLOOKUP($F$3,DEBUTMU!$AP$90:$GD$107,12,FALSE) -> 0
F15: =HLOOKUP($P$3,DEBUTMU!$AP$89:$GD$107,14,FALSE) -> 0 | H15: =HLOOKUP($F$3,DEBUTMU!$AP$90:$GD$107,13,FALSE) -> 0
F16: =HLOOKUP($P$3,DEBUTMU!$AP$89:$GD$107,15,FALSE) -> 0 | H16: =HLOOKUP($F$3,DEBUTMU!$AP$90:$GD$107,14,FALSE) -> 0
F17: =HLOOKUP($P$3,DEBUTMU!$AP$89:$GD$107,16,FALSE) -> 0 | H17: =HLOOKUP($F$3,DEBUTMU!$AP$90:$GD$107,15,FALSE) -> 0
F18: =HLOOKUP($P$3,DEBUTMU!$AP$89:$GD$107,17,FALSE) -> 0 | H18: =HLOOKUP($F$3,DEBUTMU!$AP$90:$GD$107,16,FALSE) -> 0
F19: =HLOOKUP($P$3,DEBUTMU!$AP$89:$GD$107,18,FALSE) -> 0 | H19: =HLOOKUP($F$3,DEBUTMU!$AP$90:$GD$107,17,FALSE) -> 0

Sheet CROSSFITSUIVI
B1: Classe 1
B2: Amara
B4: Dates | D4: 28 | E4: Mars | G4: 29 | H4: Avril | J4: 30 | K4: Mai | M4: 31 | N4: Juin | P4: 32 | Q4: Juillet | S4: 33 | T4: Août | V4: 34 | W4: Septembre | Y4: 35 | Z4: Octobre | AB4: 36 | AC4: Novembre | AE4: 37 | AF4: Décembre | AH4: 38 | AI4: Janvier | AK4: 39 | AL4: Février
B5: WOD | D5: 10x10 | E5: =CONCATENATE(D$5,1) -> 10x101 | G5: Pti ZEUS | H5: =CONCATENATE(G$5,1) -> Pti ZEUS1 | K5: =CONCATENATE(J$5,1) -> 1 | N5: =CONCATENATE(M$5,1) -> 1 | Q5: =CONCATENATE(P$5,1) -> 1 | T5: =CONCATENATE(S$5,1) -> 1 | W5: =CONCATENATE(V$5,1) -> 1 | Z5: =CONCATENATE(Y$5,1) -> 1 | AC5: =CONCATENATE(AB$5,1) -> 1 | AF5: =CONCATENATE(AE$5,1) -> 1 | AI5: =CONCATENATE(AH$5,1) -> 1 | AL5: =CONCATENATE(AK$5,1) -> 1
D6: AFAP | E6: 6 | F6: TOURS | G6: AFAP | H6: 6 | I6: TOURS | J6: AFAP | K6: 6 | L6: TOURS | M6: AFAP | N6: 6 | O6: TOURS | P6: AFAP | Q6: 6 | R6: TOURS | S6: AFAP | T6: 6 | U6: TOURS | V6: AFAP | W6: 6 | X6: TOURS | Y6: AFAP | Z6: 6 | AA6: TOURS | AB6: AFAP | AC6: 6 | AD6: TOURS | AE6: AFAP | AF6: 6 | AG6: TOURS | AH6: AFAP | AI6: 6 | AJ6: TOURS | AK6: AFAP | AL6: 6 | AM6: TOURS
B7: Temps | D7: 0 | E7: 0 | G7: 0 | H7: 0 | J7: 0 | K7: 0 | M7: 0 | N7: 0 | P7: 0 | Q7: 0 | S7: 0 | T7: 0 | V7: 0 | W7: 0 | Y7: 0 | Z7: 0 | AB7: 0 | AC7: 0 | AE7: 0 | AF7: 0 | AH7: 0 | AI7: 0 | AK7: 0 | AL7: 0
B8: Exos/Réps | D8: Exos | E8: Réps | G8: Exos | H8: Réps | J8: Exos | K8: Réps | M8: Exos | N8: Réps | P8: Exos | Q8: Réps | S8: Exos | T8: Réps | V8: Exos | W8: Réps | Y8: Exos | Z8: Réps | AB8: Exos | AC8: Réps | AE8: Exos | AF8: Réps | AH8: Exos | AI8: Réps | AK8: Exos | AL8: Réps
B9: EXOS | D9: =IFERROR(HLOOKUP(D$5,DEBUTMU!$AP$90:$GD$107,3,FALSE),"") -> Relevé de genoux | E9: =HLOOKUP(E$5,DEBUTMU!$AP$89:$GD$107,4,FALSE) -> 10 | G9: =IFERROR(HLOOKUP(G$5,DEBUTMU!$AP$90:$GD$107,3,FALSE),"") -> Wall ball | H9: =HLOOKUP(H$5,DEBUTMU!$AP$89:$GD$107,4,FALSE) -> 10 | J9: =IFERROR(HLOOKUP(J$5,DEBUTMU!$AP$90:$GD$107,3,FALSE),"") ->  | K9: =HLOOKUP(K$5,DEBUTMU!$AP$89:$GD$107,4,FALSE) -> 0 | M9: =IFERROR(HLOOKUP(M$5,DEBUTMU!$AP$90:$GD$107,3,FALSE),"") ->  | N9: =HLOOKUP(N$5,DEBUTMU!$AP$89:$GD$107,4,FALSE) -> 0 | P9: =IFERROR(HLOOKUP(P$5,DEBUTMU!$AP$90:$GD$107,3,FALSE),"") ->  | Q9: =HLOOKUP(Q$5,DEBUTMU!$AP$89:$GD$107,4,FALSE) -> 0 | S9: =IFERROR(HLOOKUP(S$5,DEBUTMU!$AP$90:$GD$107,3,FALSE),"") ->  | T9: =HLOOKUP(T$5,DEBUTMU!$AP$89:$GD$107,4,FALSE) -> 0 | V9: =IFERROR(HLOOKUP(V$5,DEBUTMU!$AP$90:$GD$107,3,FALSE),"") ->  | W9: =HLOOKUP(W$5,DEBUTMU!$AP$89:$GD$107,4,FALSE) -> 0 | Y9: =IFERROR(HLOOKUP(Y$5,DEBUTMU!$AP$90:$GD$107,3,FALSE),"") ->  | Z9: =HLOOKUP(Z$5,DEBUTMU!$AP$89:$GD$107,4,FALSE) -> 0 | AB9: =IFERROR(HLOOKUP(AB$5,DEBUTMU!$AP$90:$GD$107,3,FALSE),"") ->  | AC9: =HLOOKUP(AC$5,DEBUTMU!$AP$89:$GD$107,4,FALSE) -> 0 | AE9: =IFERROR(HLOOKUP(AE$5,DEBUTMU!$AP$90:$GD$107,3,FALSE),"") ->  | AF9: =HLOOKUP(AF$5,DEBUTMU!$AP$89:$GD$107,4,FALSE) -> 0 | AH9: =IFERROR(HLOOKUP(AH$5,DEBUTMU!$AP$90:$GD$107,3,FALSE),"") ->  | AI9: =HLOOKUP(AI$5,DEBUTMU!$AP$89:$GD$107,4,FALSE) -> 0 | AK9: =IFERROR(HLOOKUP(AK$5,DEBUTMU!$AP$90:$GD$107,3,FALSE),"") ->  | AL9: =HLOOKUP(AL$5,DEBUTMU!$AP$89:$GD$107,4,FALSE) -> 0
D10: =IFERROR(HLOOKUP(D$5,DEBUTMU!$AP$90:$GD$107,4,FALSE),"") -> Squat (air) | E10: =HLOOKUP(E$5,DEBUTMU!$AP$89:$GD$107,5,FALSE) -> 10 | G10: =IFERROR(HLOOKUP(G$5,DEBUTMU!$AP$90:$GD$107,4,FALSE),"") -> Dead lift | H10: =HLOOKUP(H$5,DEBUTMU!$AP$89:$GD$107,5,FALSE) -> 10 | J10: =IFERROR(HLOOKUP(J$5,DEBUTMU!$AP$90:$GD$107,4,FALSE),"") ->  | K10: =HLOOKUP(K$5,DEBUTMU!$AP$89:$GD$107,5,FALSE) -> 0 | M10: =IFERROR(HLOOKUP(M$5,DEBUTMU!$AP$90:$GD$107,4,FALSE),"") ->  | N10: =HLOOKUP(N$5,DEBUTMU!$AP$89:$GD$107,5,FALSE) -> 0 | P10: =IFERROR(HLOOKUP(P$5,DEBUTMU!$AP$90:$GD$107,4,FALSE),"") ->  | Q10: =HLOOKUP(Q$5,DEBUTMU!$AP$89:$GD$107,5,FALSE) -> 0 | S10: =IFERROR(HLOOKUP(S$5,DEBUTMU!$AP$90:$GD$107,4,FALSE),"") ->  | T10: =HLOOKUP(T$5,DEBUTMU!$AP$89:$GD$107,5,FALSE) -> 0 | V10: =IFERROR(HLOOKUP(V$5,DEBUTMU!$AP$90:$GD$107,4,FALSE),"") ->  | W10: =HLOOKUP(W$5,DEBUTMU!$AP$89:$GD$107,5,FALSE) -> 0 | Y10: =IFERROR(HLOOKUP(Y$5,DEBUTMU!$AP$90:$GD$107,4,FALSE),"") ->  | Z10: =HLOOKUP(Z$5,DEBUTMU!$AP$89:$GD$107,5,FALSE) -> 0 | AB10: =IFERROR(HLOOKUP(AB$5,DEBUTMU!$AP$90:$GD$107,4,FALSE),"") ->  | AC10: =HLOOKUP(AC$5,DEBUTMU!$AP$89:$GD$107,5,FALSE) -> 0 | AE10: =IFERROR(HLOOKUP(AE$5,DEBUTMU!$AP$90:$GD$107,4,FALSE),"") ->  | AF10: =HLOOKUP(AF$5,DEBUTMU!$AP$89:$GD$107,5,FALSE) -> 0 | AH10: =IFERROR(HLOOKUP(AH$5,DEBUTMU!$AP$90:$GD$107,4,FALSE),"") ->  | AI10: =HLOOKUP(AI$5,DEBUTMU!$AP$89:$GD$107,5,FALSE) -> 0 | AK10: =IFERROR(HLOOKUP(AK$5,DEBUTMU!$AP$90:$GD$107,4,FALSE),"") ->  | AL10: =HLOOKUP(AL$5,DEBUTMU!$AP$89:$GD$107,5,FALSE) -> 0
D11: =IFERROR(HLOOKUP(D$5,DEBUTMU!$AP$90:$GD$107,5,FALSE),"") -> Sauts groupés | E11: =HLOOKUP(E$5,DEBUTMU!$AP$89:$GD$107,6,FALSE) -> 10 | G11: =IFERROR(HLOOKUP(G$5,DEBUTMU!$AP$90:$GD$107,5,FALSE),"") -> Jump Box | H11: =HLOOKUP(H$5,DEBUTMU!$AP$89:$GD$107,6,FALSE) -> 10 | J11: =IFERROR(HLOOKUP(J$5,DEBUTMU!$AP$90:$GD$107,5,FALSE),"") ->  | K11: =HLOOKUP(K$5,DEBUTMU!$AP$89:$GD$107,6,FALSE) -> 0 | M11: =IFERROR(HLOOKUP(M$5,DEBUTMU!$AP$90:$GD$107,5,FALSE),"") ->  | N11: =HLOOKUP(N$5,DEBUTMU!$AP$89:$GD$107,6,FALSE) -> 0 | P11: =IFERROR(HLOOKUP(P$5,DEBUTMU!$AP$90:$GD$107,5,FALSE),"") ->  | Q11: =HLOOKUP(Q$5,DEBUTMU!$AP$89:$GD$107,6,FALSE) -> 0 | S11: =IFERROR(HLOOKUP(S$5,DEBUTMU!$AP$90:$GD$107,5,FALSE),"") ->  | T11: =HLOOKUP(T$5,DEBUTMU!$AP$89:$GD$107,6,FALSE) -> 0 | V11: =IFERROR(HLOOKUP(V$5,DEBUTMU!$AP$90:$GD$107,5,FALSE),"") ->  | W11: =HLOOKUP(W$5,DEBUTMU!$AP$89:$GD$107,6,FALSE) -> 0 | Y11: =IFERROR(HLOOKUP(Y$5,DEBUTMU!$AP$90:$GD$107,5,FALSE),"") ->  | Z11: =HLOOKUP(Z$5,DEBUTMU!$AP$89:$GD$107,6,FALSE) -> 0 | AB11: =IFERROR(HLOOKUP(AB$5,DEBUTMU!$AP$90:$GD$107,5,FALSE),"") ->  | AC11: =HLOOKUP(AC$5,DEBUTMU!$AP$89:$GD$107,6,FALSE) -> 0 | AE11: =IFERROR(HLOOKUP(AE$5,DEBUTMU!$AP$90:$GD$107,5,FALSE),"") ->  | AF11: =HLOOKUP(AF$5,DEBUTMU!$AP$89:$GD$107,6,FALSE) -> 0 | AH11: =IFERROR(HLOOKUP(AH$5,DEBUTMU!$AP$90:$GD$107,5,FALSE),"") ->  | AI11: =HLOOKUP(AI$5,DEBUTMU!$AP$89:$GD$107,6,FALSE) -> 0 | AK11: =IFERROR(HLOOKUP(AK$5,DEBUTMU!$AP$90:$GD$107,5,FALSE),"") ->  | AL11: =HLOOKUP(AL$5,DEBUTMU!$AP$89:$GD$107,6,FALSE) -> 0
D12: =IFERROR(HLOOKUP(D$5,DEBUTMU!$AP$90:$GD$107,6,FALSE),"") -> Burpees | E12: =HLOOKUP(E$5,DEBUTMU!$AP$89:$GD$107,7,FALSE) -> 10 | G12: =IFERROR(HLOOKUP(G$5,DEBUTMU!$AP$90:$GD$107,6,FALSE),"") -> Push Press | H12: =HLOOKUP(H$5,DEBUTMU!$AP$89:$GD$107,7,FALSE) -> 10 | J12: =IFERROR(HLOOKUP(J$5,DEBUTMU!$AP$90:$GD$107,6,FALSE),"") ->  | K12: =HLOOKUP(K$5,DEBUTMU!$AP$89:$GD$107,7,FALSE) -> 0 | M12: =IFERROR(HLOOKUP(M$5,DEBUTMU!$AP$90:$GD$107,6,FALSE),"") ->  | N12: =HLOOKUP(N$5,DEBUTMU!$AP$89:$GD$107,7,FALSE) -> 0 | P12: =IFERROR(HLOOKUP(P$5,DEBUTMU!$AP$90:$GD$107,6,FALSE),"") ->  | Q12: =HLOOKUP(Q$5,DEBUTMU!$AP$89:$GD$107,7,FALSE) -> 0 | S12: =IFERROR(HLOOKUP(S$5,DEBUTMU!$AP$90:$GD$107,6,FALSE),"") ->  | T12: =HLOOKUP(T$5,DEBUTMU!$AP$89:$GD$107,7,FALSE) -> 0 | V12: =IFERROR(HLOOKUP(V$5,DEBUTMU!$AP$90:$GD$107,6,FALSE),"") ->  | W12: =HLOOKUP(W$5,DEBUTMU!$AP$89:$GD$107,7,FALSE) -> 0 | Y12: =IFERROR(HLOOKUP(Y$5,DEBUTMU!$AP$90:$GD$107,6,FALSE),"") ->  | Z12: =HLOOKUP(Z$5,DEBUTMU!$AP$89:$GD$107,7,FALSE) -> 0 | AB12: =IFERROR(HLOOKUP(AB$5,DEBUTMU!$AP$90:$GD$107,6,FALSE),"") ->  | AC12: =HLOOKUP(AC$5,DEBUTMU!$AP$89:$GD$107,7,FALSE) -> 0 | AE12: =IFERROR(HLOOKUP(AE$5,DEBUTMU!$AP$90:$GD$107,6,FALSE),"") ->  | AF12: =HLOOKUP(AF$5,DEBUTMU!$AP$89:$GD$107,7,FALSE) -> 0 | AH12: =IFERROR(HLOOKUP(AH$5,DEBUTMU!$AP$90:$GD$107,6,FALSE),"") ->  | AI12: =HLOOKUP(AI$5,DEBUTMU!$AP$89:$GD$107,7,FALSE) -> 0 | AK12: =IFERROR(HLOOKUP(AK$5,DEBUTMU!$AP$90:$GD$107,6,FALSE),"") ->  | AL12: =HLOOKUP(AL$5,DEBUTMU!$AP$89:$GD$107,7,FALSE) -> 0
D13: =IFERROR(HLOOKUP(D$5,DEBUTMU!$AP$90:$GD$107,7,FALSE),"") -> Genou vers coude | E13: =HLOOKUP(E$5,DEBUTMU!$AP$89:$GD$107,8,FALSE) -> 10 | G13: =IFERROR(HLOOKUP(G$5,DEBUTMU!$AP$90:$GD$107,7,FALSE),"") -> Pompes | H13: =HLOOKUP(H$5,DEBUTMU!$AP$89:$GD$107,8,FALSE) -> 10 | J13: =IFERROR(HLOOKUP(J$5,DEBUTMU!$AP$90:$GD$107,7,FALSE),"") ->  | K13: =HLOOKUP(K$5,DEBUTMU!$AP$89:$GD$107,8,FALSE) -> 0 | M13: =IFERROR(HLOOKUP(M$5,DEBUTMU!$AP$90:$GD$107,7,FALSE),"") ->  | N13: =HLOOKUP(N$5,DEBUTMU!$AP$89:$GD$107,8,FALSE) -> 0 | P13: =IFERROR(HLOOKUP(P$5,DEBUTMU!$AP$90:$GD$107,7,FALSE),"") ->  | Q13: =HLOOKUP(Q$5,DEBUTMU!$AP$89:$GD$107,8,FALSE) -> 0 | S13: =IFERROR(HLOOKUP(S$5,DEBUTMU!$AP$90:$GD$107,7,FALSE),"") ->  | T13: =HLOOKUP(T$5,DEBUTMU!$AP$89:$GD$107,8,FALSE) -> 0 | V13: =IFERROR(HLOOKUP(V$5,DEBUTMU!$AP$90:$GD$107,7,FALSE),"") ->  | W13: =HLOOKUP(W$5,DEBUTMU!$AP$89:$GD$107,8,FALSE) -> 0 | Y13: =IFERROR(HLOOKUP(Y$5,DEBUTMU!$AP$90:$GD$107,7,FALSE),"") ->  | Z13: =HLOOKUP(Z$5,DEBUTMU!$AP$89:$GD$107,8,FALSE) -> 0 | AB13: =IFERROR(HLOOKUP(AB$5,DEBUTMU!$AP$90:$GD$107,7,FALSE),"") ->  | AC13: =HLOOKUP(AC$5,DEBUTMU!$AP$89:$GD$107,8,FALSE) -> 0 | AE13: =IFERROR(HLOOKUP(AE$5,DEBUTMU!$AP$90:$GD$107,7,FALSE),"") ->  | AF13: =HLOOKUP(AF$5,DEBUTMU!$AP$89:$GD$107,8,FALSE) -> 0 | AH13: =IFERROR(HLOOKUP(AH$5,DEBUTMU!$AP$90:$GD$107,7,FALSE),"") ->  | AI13: =HLOOKUP(AI$5,DEBUTMU!$AP$89:$GD$107,8,FALSE) -> 0 | AK13: =IFERROR(HLOOKUP(AK$5,DEBUTMU!$AP$90:$GD$107,7,FALSE),"") ->  | AL13: =HLOOKUP(AL$5,DEBUTMU!$AP$89:$GD$107,8,FALSE) -> 0
D14: =IFERROR(HLOOKUP(D$5,DEBUTMU!$AP$90:$GD$107,8,FALSE),"") -> Jump squat | E14: =HLOOKUP(E$5,DEBUTMU!$AP$89:$GD$107,9,FALSE) -> 10 | G14: =IFERROR(HLOOKUP(G$5,DEBUTMU!$AP$90:$GD$107,8,FALSE),"") -> Squat (back) | H14: =HLOOKUP(H$5,DEBUTMU!$AP$89:$GD$107,9,FALSE) -> 10 | J14: =IFERROR(HLOOKUP(J$5,DEBUTMU!$AP$90:$GD$107,8,FALSE),"") ->  | K14: =HLOOKUP(K$5,DEBUTMU!$AP$89:$GD$107,9,FALSE) -> 0 | M14: =IFERROR(HLOOKUP(M$5,DEBUTMU!$AP$90:$GD$107,8,FALSE),"") ->  | N14: =HLOOKUP(N$5,DEBUTMU!$AP$89:$GD$107,9,FALSE) -> 0 | P14: =IFERROR(HLOOKUP(P$5,DEBUTMU!$AP$90:$GD$107,8,FALSE),"") ->  | Q14: =HLOOKUP(Q$5,DEBUTMU!$AP$89:$GD$107,9,FALSE) -> 0 | S14: =IFERROR(HLOOKUP(S$5,DEBUTMU!$AP$90:$GD$107,8,FALSE),"") ->  | T14: =HLOOKUP(T$5,DEBUTMU!$AP$89:$GD$107,9,FALSE) -> 0 | V14: =IFERROR(HLOOKUP(V$5,DEBUTMU!$AP$90:$GD$107,8,FALSE),"") ->  | W14: =HLOOKUP(W$5,DEBUTMU!$AP$89:$GD$107,9,FALSE) -> 0 | Y14: =IFERROR(HLOOKUP(Y$5,DEBUTMU!$AP$90:$GD$107,8,FALSE),"") ->  | Z14: =HLOOKUP(Z$5,DEBUTMU!$AP$89:$GD$107,9,FALSE) -> 0 | AB14: =IFERROR(HLOOKUP(AB$5,DEBUTMU!$AP$90:$GD$107,8,FALSE),"") ->  | AC14: =HLOOKUP(AC$5,DEBUTMU!$AP$89:$GD$107,9,FALSE) -> 0 | AE14: =IFERROR(HLOOKUP(AE$5,DEBUTMU!$AP$90:$GD$107,8,FALSE),"") ->  | AF14: =HLOOKUP(AF$5,DEBUTMU!$AP$89:$GD$107,9,FALSE) -> 0 | AH14: =IFERROR(HLOOKUP(AH$5,DEBUTMU!$AP$90:$GD$107,8,FALSE),"") ->  | AI14: =HLOOKUP(AI$5,DEBUTMU!$AP$89:$GD$107,9,FALSE) -> 0 | AK14: =IFERROR(HLOOKUP(AK$5,DEBUTMU!$AP$90:$GD$107,8,FALSE),"") ->  | AL14: =HLOOKUP(AL$5,DEBUTMU!$AP$89:$GD$107,9,FALSE) -> 0
D15: =IFERROR(HLOOKUP(D$5,DEBUTMU!$AP$90:$GD$107,9,FALSE),"") -> Pompes | E15: =HLOOKUP(E$5,DEBUTMU!$AP$89:$GD$107,10,FALSE) -> 10 | G15: =IFERROR(HLOOKUP(G$5,DEBUTMU!$AP$90:$GD$107,9,FALSE),"") -> 0 | H15: =HLOOKUP(H$5,DEBUTMU!$AP$89:$GD$107,10,FALSE) -> 0 | J15: =IFERROR(HLOOKUP(J$5,DEBUTMU!$AP$90:$GD$107,9,FALSE),"") ->  | K15: =HLOOKUP(K$5,DEBUTMU!$AP$89:$GD$107,10,FALSE) -> 0 | M15: =IFERROR(HLOOKUP(M$5,DEBUTMU!$AP$90:$GD$107,9,FALSE),"") ->  | N15: =HLOOKUP(N$5,DEBUTMU!$AP$89:$GD$107,10,FALSE) -> 0 | P15: =IFERROR(HLOOKUP(P$5,DEBUTMU!$AP$90:$GD$107,9,FALSE),"") ->  | Q15: =HLOOKUP(Q$5,DEBUTMU!$AP$89:$GD$107,10,FALSE) -> 0 | S15: =IFERROR(HLOOKUP(S$5,DEBUTMU!$AP$90:$GD$107,9,FALSE),"") ->  | T15: =HLOOKUP(T$5,DEBUTMU!$AP$89:$GD$107,10,FALSE) -> 0 | V15: =IFERROR(HLOOKUP(V$5,DEBUTMU!$AP$90:$GD$107,9,FALSE),"") ->  | W15: =HLOOKUP(W$5,DEBUTMU!$AP$89:$GD$107,10,FALSE) -> 0 | Y15: =IFERROR(HLOOKUP(Y$5,DEBUTMU!$AP$90:$GD$107,9,FALSE),"") ->  | Z15: =HLOOKUP(Z$5,DEBUTMU!$AP$89:$GD$107,10,FALSE) -> 0 | AB15: =IFERROR(HLOOKUP(AB$5,DEBUTMU!$AP$90:$GD$107,9,FALSE),"") ->  | AC15: =HLOOKUP(AC$5,DEBUTMU!$AP$89:$GD$107,10,FALSE) -> 0 | AE15: =IFERROR(HLOOKUP(AE$5,DEBUTMU!$AP$90:$GD$107,9,FALSE),"") ->  | AF15: =HLOOKUP(AF$5,DEBUTMU!$AP$89:$GD$107,10,FALSE) -> 0 | AH15: =IFERROR(HLOOKUP(AH$5,DEBUTMU!$AP$90:$GD$107,9,FALSE),"") ->  | AI15: =HLOOKUP(AI$5,DEBUTMU!$AP$89:$GD$107,10,FALSE) -> 0 | AK15: =IFERROR(HLOOKUP(AK$5,DEBUTMU!$AP$90:$GD$107,9,FALSE),"") ->  | AL15: =HLOOKUP(AL$5,DEBUTMU!$AP$89:$GD$107,10,FALSE) -> 0
D16: =IFERROR(HLOOKUP(D$5,DEBUTMU!$AP$90:$GD$107,10,FALSE),"") -> Fentes sautées | E16: =HLOOKUP(E$5,DEBUTMU!$AP$89:$GD$107,11,FALSE) -> 10 | G16: =IFERROR(HLOOKUP(G$5,DEBUTMU!$AP$90:$GD$107,10,FALSE),"") -> 0 | H16: =HLOOKUP(H$5,DEBUTMU!$AP$89:$GD$107,11,FALSE) -> 0 | J16: =IFERROR(HLOOKUP(J$5,DEBUTMU!$AP$90:$GD$107,10,FALSE),"") ->  | K16: =HLOOKUP(K$5,DEBUTMU!$AP$89:$GD$107,11,FALSE) -> 0 | M16: =IFERROR(HLOOKUP(M$5,DEBUTMU!$AP$90:$GD$107,10,FALSE),"") ->  | N16: =HLOOKUP(N$5,DEBUTMU!$AP$89:$GD$107,11,FALSE) -> 0 | P16: =IFERROR(HLOOKUP(P$5,DEBUTMU!$AP$90:$GD$107,10,FALSE),"") ->  | Q16: =HLOOKUP(Q$5,DEBUTMU!$AP$89:$GD$107,11,FALSE) -> 0 | S16: =IFERROR(HLOOKUP(S$5,DEBUTMU!$AP$90:$GD$107,10,FALSE),"") ->  | T16: =HLOOKUP(T$5,DEBUTMU!$AP$89:$GD$107,11,FALSE) -> 0 | V16: =IFERROR(HLOOKUP(V$5,DEBUTMU!$AP$90:$GD$107,10,FALSE),"") ->  | W16: =HLOOKUP(W$5,DEBUTMU!$AP$89:$GD$107,11,FALSE) -> 0 | Y16: =IFERROR(HLOOKUP(Y$5,DEBUTMU!$AP$90:$GD$107,10,FALSE),"") ->  | Z16: =HLOOKUP(Z$5,DEBUTMU!$AP$89:$GD$107,11,FALSE) -> 0 | AB16: =IFERROR(HLOOKUP(AB$5,DEBUTMU!$AP$90:$GD$107,10,FALSE),"") ->  | AC16: =HLOOKUP(AC$5,DEBUTMU!$AP$89:$GD$107,11,FALSE) -> 0 | AE16: =IFERROR(HLOOKUP(AE$5,DEBUTMU!$AP$90:$GD$107,10,FALSE),"") ->  | AF16: =HLOOKUP(AF$5,DEBUTMU!$AP$89:$GD$107,11,FALSE) -> 0 | AH16: =IFERROR(HLOOKUP(AH$5,DEBUTMU!$AP$90:$GD$107,10,FALSE),"") ->  | AI16: =HLOOKUP(AI$5,DEBUTMU!$AP$89:$GD$107,11,FALSE) -> 0 | AK16: =IFERROR(HLOOKUP(AK$5,DEBUTMU!$AP$90:$GD$107,10,FALSE),"") ->  | AL16: =HLOOKUP(AL$5,DEBUTMU!$AP$89:$GD$107,11,FALSE) -> 0
D17: =IFERROR(HLOOKUP(D$5,DEBUTMU!$AP$90:$GD$107,11,FALSE),"") -> Mountain climbers | E17: =HLOOKUP(E$5,DEBUTMU!$AP$89:$GD$107,12,FALSE) -> 10 | G17: =IFERROR(HLOOKUP(G$5,DEBUTMU!$AP$90:$GD$107,11,FALSE),"") -> 0 | H17: =HLOOKUP(H$5,DEBUTMU!$AP$89:$GD$107,12,FALSE) -> 0 | J17: =IFERROR(HLOOKUP(J$5,DEBUTMU!$AP$90:$GD$107,11,FALSE),"") ->  | K17: =HLOOKUP(K$5,DEBUTMU!$AP$89:$GD$107,12,FALSE) -> 0 | M17: =IFERROR(HLOOKUP(M$5,DEBUTMU!$AP$90:$GD$107,11,FALSE),"") ->  | N17: =HLOOKUP(N$5,DEBUTMU!$AP$89:$GD$107,12,FALSE) -> 0 | P17: =IFERROR(HLOOKUP(P$5,DEBUTMU!$AP$90:$GD$107,11,FALSE),"") ->  | Q17: =HLOOKUP(Q$5,DEBUTMU!$AP$89:$GD$107,12,FALSE) -> 0 | S17: =IFERROR(HLOOKUP(S$5,DEBUTMU!$AP$90:$GD$107,11,FALSE),"") ->  | T17: =HLOOKUP(T$5,DEBUTMU!$AP$89:$GD$107,12,FALSE) -> 0 | V17: =IFERROR(HLOOKUP(V$5,DEBUTMU!$AP$90:$GD$107,11,FALSE),"") ->  | W17: =HLOOKUP(W$5,DEBUTMU!$AP$89:$GD$107,12,FALSE) -> 0 | Y17: =IFERROR(HLOOKUP(Y$5,DEBUTMU!$AP$90:$GD$107,11,FALSE),"") ->  | Z17: =HLOOKUP(Z$5,DEBUTMU!$AP$89:$GD$107,12,FALSE) -> 0 | AB17: =IFERROR(HLOOKUP(AB$5,DEBUTMU!$AP$90:$GD$107,11,FALSE),"") ->  | AC17: =HLOOKUP(AC$5,DEBUTMU!$AP$89:$GD$107,12,FALSE) -> 0 | AE17: =IFERROR(HLOOKUP(AE$5,DEBUTMU!$AP$90:$GD$107,11,FALSE),"") ->  | AF17: =HLOOKUP(AF$5,DEBUTMU!$AP$89:$GD$107,12,FALSE) -> 0 | AH17: =IFERROR(HLOOKUP(AH$5,DEBUTMU!$AP$90:$GD$107,11,FALSE),"") ->  | AI17: =HLOOKUP(AI$5,DEBUTMU!$AP$89:$GD$107,12,FALSE) -> 0 | AK17: =IFERROR(HLOOKUP(AK$5,DEBUTMU!$AP$90:$GD$107,11,FALSE),"") ->  | AL17: =HLOOKUP(AL$5,DEBUTMU!$AP$89:$GD$107,12,FALSE) -> 0
D18: =IFERROR(HLOOKUP(D$5,DEBUTMU!$AP$90:$GD$107,12,FALSE),"") -> Tractions | E18: =HLOOKUP(E$5,DEBUTMU!$AP$89:$GD$107,13,FALSE) -> 10 | G18: =IFERROR(HLOOKUP(G$5,DEBUTMU!$AP$90:$GD$107,12,FALSE),"") -> 0 | H18: =HLOOKUP(H$5,DEBUTMU!$AP$89:$GD$107,13,FALSE) -> 0 | J18: =IFERROR(HLOOKUP(J$5,DEBUTMU!$AP$90:$GD$107,12,FALSE),"") ->  | K18: =HLOOKUP(K$5,DEBUTMU!$AP$89:$GD$107,13,FALSE) -> 0 | M18: =IFERROR(HLOOKUP(M$5,DEBUTMU!$AP$90:$GD$107,12,FALSE),"") ->  | N18: =HLOOKUP(N$5,DEBUTMU!$AP$89:$GD$107,13,FALSE) -> 0 | P18: =IFERROR(HLOOKUP(P$5,DEBUTMU!$AP$90:$GD$107,12,FALSE),"") ->  | Q18: =HLOOKUP(Q$5,DEBUTMU!$AP$89:$GD$107,13,FALSE) -> 0 | S18: =IFERROR(HLOOKUP(S$5,DEBUTMU!$AP$90:$GD$107,12,FALSE),"") ->  | T18: =HLOOKUP(T$5,DEBUTMU!$AP$89:$GD$107,13,FALSE) -> 0 | V18: =IFERROR(HLOOKUP(V$5,DEBUTMU!$AP$90:$GD$107,12,FALSE),"") ->  | W18: =HLOOKUP(W$5,DEBUTMU!$AP$89:$GD$107,13,FALSE) -> 0 | Y18: =IFERROR(HLOOKUP(Y$5,DEBUTMU!$AP$90:$GD$107,12,FALSE),"") ->  | Z18: =HLOOKUP(Z$5,DEBUTMU!$AP$89:$GD$107,13,FALSE) -> 0 | AB18: =IFERROR(HLOOKUP(AB$5,DEBUTMU!$AP$90:$GD$107,12,FALSE),"") ->  | AC18: =HLOOKUP(AC$5,DEBUTMU!$AP$89:$GD$107,13,FALSE) -> 0 | AE18: =IFERROR(HLOOKUP(AE$5,DEBUTMU!$AP$90:$GD$107,12,FALSE),"") ->  | AF18: =HLOOKUP(AF$5,DEBUTMU!$AP$89:$GD$107,13,FALSE) -> 0 | AH18: =IFERROR(HLOOKUP(AH$5,DEBUTMU!$AP$90:$GD$107,12,FALSE),"") ->  | AI18: =HLOOKUP(AI$5,DEBUTMU!$AP$89:$GD$107,13,FALSE) -> 0 | AK18: =IFERROR(HLOOKUP(AK$5,DEBUTMU!$AP$90:$GD$107,12,FALSE),"") ->  | AL18: =HLOOKUP(AL$5,DEBUTMU!$AP$89:$GD$107,13,FALSE) -> 0
D19: =IFERROR(HLOOKUP(D$5,DEBUTMU!$AP$90:$GD$107,13,FALSE),"") -> 0 | E19: =HLOOKUP(E$5,DEBUTMU!$AP$89:$GD$107,14,FALSE) -> 0 | G19: =IFERROR(HLOOKUP(G$5,DEBUTMU!$AP$90:$GD$107,13,FALSE),"") -> 0 | H19: =HLOOKUP(H$5,DEBUTMU!$AP$89:$GD$107,14,FALSE) -> 0 | J19: =IFERROR(HLOOKUP(J$5,DEBUTMU!$AP$90:$GD$107,13,FALSE),"") ->  | K19: =HLOOKUP(K$5,DEBUTMU!$AP$89:$GD$107,14,FALSE) -> 0 | M19: =IFERROR(HLOOKUP(M$5,DEBUTMU!$AP$90:$GD$107,13,FALSE),"") ->  | N19: =HLOOKUP(N$5,DEBUTMU!$AP$89:$GD$107,14,FALSE) -> 0 | P19: =IFERROR(HLOOKUP(P$5,DEBUTMU!$AP$90:$GD$107,13,FALSE),"") ->  | Q19: =HLOOKUP(Q$5,DEBUTMU!$AP$89:$GD$107,14,FALSE) -> 0 | S19: =IFERROR(HLOOKUP(S$5,DEBUTMU!$AP$90:$GD$107,13,FALSE),"") ->  | T19: =HLOOKUP(T$5,DEBUTMU!$AP$89:$GD$107,14,FALSE) -> 0 | V19: =IFERROR(HLOOKUP(V$5,DEBUTMU!$AP$90:$GD$107,13,FALSE),"") ->  | W19: =HLOOKUP(W$5,DEBUTMU!$AP$89:$GD$107,14,FALSE) -> 0 | Y19: =IFERROR(HLOOKUP(Y$5,DEBUTMU!$AP$90:$GD$107,13,FALSE),"") ->  | Z19: =HLOOKUP(Z$5,DEBUTMU!$AP$89:$GD$107,14,FALSE) -> 0 | AB19: =IFERROR(HLOOKUP(AB$5,DEBUTMU!$AP$90:$GD$107,13,FALSE),"") ->  | AC19: =HLOOKUP(AC$5,DEBUTMU!$AP$89:$GD$107,14,FALSE) -> 0 | AE19: =IFERROR(HLOOKUP(AE$5,DEBUTMU!$AP$90:$GD$107,13,FALSE),"") ->  | AF19: =HLOOKUP(AF$5,DEBUTMU!$AP$89:$GD$107,14,FALSE) -> 0 | AH19: =IFERROR(HLOOKUP(AH$5,DEBUTMU!$AP$90:$GD$107,13,FALSE),"") ->  | AI19: =HLOOKUP(AI$5,DEBUTMU!$AP$89:$GD$107,14,FALSE) -> 0 | AK19: =IFERROR(HLOOKUP(AK$5,DEBUTMU!$AP$90:$GD$107,13,FALSE),"") ->  | AL19: =HLOOKUP(AL$5,DEBUTMU!$AP$89:$GD$107,14,FALSE) -> 0
D20: =IFERROR(HLOOKUP(D$5,DEBUTMU!$AP$90:$GD$107,14,FALSE),"") -> 0 | E20: =HLOOKUP(E$5,DEBUTMU!$AP$89:$GD$107,15,FALSE) -> 0 | G20: =IFERROR(HLOOKUP(G$5,DEBUTMU!$AP$90:$GD$107,14,FALSE),"") -> 0 | H20: =HLOOKUP(H$5,DEBUTMU!$AP$89:$GD$107,15,FALSE) -> 0 | J20: =IFERROR(HLOOKUP(J$5,DEBUTMU!$AP$90:$GD$107,14,FALSE),"") ->  | K20: =HLOOKUP(K$5,DEBUTMU!$AP$89:$GD$107,15,FALSE) -> 0 | M20: =IFERROR(HLOOKUP(M$5,DEBUTMU!$AP$90:$GD$107,14,FALSE),"") ->  | N20: =HLOOKUP(N$5,DEBUTMU!$AP$89:$GD$107,15,FALSE) -> 0 | P20: =IFERROR(HLOOKUP(P$5,DEBUTMU!$AP$90:$GD$107,14,FALSE),"") ->  | Q20: =HLOOKUP(Q$5,DEBUTMU!$AP$89:$GD$107,15,FALSE) -> 0 | S20: =IFERROR(HLOOKUP(S$5,DEBUTMU!$AP$90:$GD$107,14,FALSE),"") ->  | T20: =HLOOKUP(T$5,DEBUTMU!$AP$89:$GD$107,15,FALSE) -> 0 | V20: =IFERROR(HLOOKUP(V$5,DEBUTMU!$AP$90:$GD$107,14,FALSE),"") ->  | W20: =HLOOKUP(W$5,DEBUTMU!$AP$89:$GD$107,15,FALSE) -> 0 | Y20: =IFERROR(HLOOKUP(Y$5,DEBUTMU!$AP$90:$GD$107,14,FALSE),"") ->  | Z20: =HLOOKUP(Z$5,DEBUTMU!$AP$89:$GD$107,15,FALSE) -> 0 | AB20: =IFERROR(HLOOKUP(AB$5,DEBUTMU!$AP$90:$GD$107,14,FALSE),"") ->  | AC20: =HLOOKUP(AC$5,DEBUTMU!$AP$89:$GD$107,15,FALSE) -> 0 | AE20: =IFERROR(HLOOKUP(AE$5,DEBUTMU!$AP$90:$GD$107,14,FALSE),"") ->  | AF20: =HLOOKUP(AF$5,DEBUTMU!$AP$89:$GD$107,15,FALSE) -> 0 | AH20: =IFERROR(HLOOKUP(AH$5,DEBUTMU!$AP$90:$GD$107,14,FALSE),"") ->  | AI20: =HLOOKUP(AI$5,DEBUTMU!$AP$89:$GD$107,15,FALSE) -> 0 | AK20: =IFERROR(HLOOKUP(AK$5,DEBUTMU!$AP$90:$GD$107,14,FALSE),"") ->  | AL20: =HLOOKUP(AL$5,DEBUTMU!$AP$89:$GD$107,15,FALSE) -> 0
D21: =IFERROR(HLOOKUP(D$5,DEBUTMU!$AP$90:$GD$107,15,FALSE),"") -> 0 | E21: =HLOOKUP(E$5,DEBUTMU!$AP$89:$GD$107,16,FALSE) -> 0 | G21: =IFERROR(HLOOKUP(G$5,DEBUTMU!$AP$90:$GD$107,15,FALSE),"") -> 0 | H21: =HLOOKUP(H$5,DEBUTMU!$AP$89:$GD$107,16,FALSE) -> 0 | J21: =IFERROR(HLOOKUP(J$5,DEBUTMU!$AP$90:$GD$107,15,FALSE),"") ->  | K21: =HLOOKUP(K$5,DEBUTMU!$AP$89:$GD$107,16,FALSE) -> 0 | M21: =IFERROR(HLOOKUP(M$5,DEBUTMU!$AP$90:$GD$107,15,FALSE),"") ->  | N21: =HLOOKUP(N$5,DEBUTMU!$AP$89:$GD$107,16,FALSE) -> 0 | P21: =IFERROR(HLOOKUP(P$5,DEBUTMU!$AP$90:$GD$107,15,FALSE),"") ->  | Q21: =HLOOKUP(Q$5,DEBUTMU!$AP$89:$GD$107,16,FALSE) -> 0 | S21: =IFERROR(HLOOKUP(S$5,DEBUTMU!$AP$90:$GD$107,15,FALSE),"") ->  | T21: =HLOOKUP(T$5,DEBUTMU!$AP$89:$GD$107,16,FALSE) -> 0 | V21: =IFERROR(HLOOKUP(V$5,DEBUTMU!$AP$90:$GD$107,15,FALSE),"") ->  | W21: =HLOOKUP(W$5,DEBUTMU!$AP$89:$GD$107,16,FALSE) -> 0 | Y21: =IFERROR(HLOOKUP(Y$5,DEBUTMU!$AP$90:$GD$107,15,FALSE),"") ->  | Z21: =HLOOKUP(Z$5,DEBUTMU!$AP$89:$GD$107,16,FALSE) -> 0 | AB21: =IFERROR(HLOOKUP(AB$5,DEBUTMU!$AP$90:$GD$107,15,FALSE),"") ->  | AC21: =HLOOKUP(AC$5,DEBUTMU!$AP$89:$GD$107,16,FALSE) -> 0 | AE21: =IFERROR(HLOOKUP(AE$5,DEBUTMU!$AP$90:$GD$107,15,FALSE),"") ->  | AF21: =HLOOKUP(AF$5,DEBUTMU!$AP$89:$GD$107,16,FALSE) -> 0 | AH21: =IFERROR(HLOOKUP(AH$5,DEBUTMU!$AP$90:$GD$107,15,FALSE),"") ->  | AI21: =HLOOKUP(AI$5,DEBUTMU!$AP$89:$GD$107,16,FALSE) -> 0 | AK21: =IFERROR(HLOOKUP(AK$5,DEBUTMU!$AP$90:$GD$107,15,FALSE),"") ->  | AL21: =HLOOKUP(AL$5,DEBUTMU!$AP$89:$GD$107,16,FALSE) -> 0
D22: =IFERROR(HLOOKUP(D$5,DEBUTMU!$AP$90:$GD$107,16,FALSE),"") -> 0 | E22: =HLOOKUP(E$5,DEBUTMU!$AP$89:$GD$107,17,FALSE) -> 0 | G22: =IFERROR(HLOOKUP(G$5,DEBUTMU!$AP$90:$GD$107,16,FALSE),"") -> 0 | H22: =HLOOKUP(H$5,DEBUTMU!$AP$89:$GD$107,17,FALSE) -> 0 | J22: =IFERROR(HLOOKUP(J$5,DEBUTMU!$AP$90:$GD$107,16,FALSE),"") ->  | K22: =HLOOKUP(K$5,DEBUTMU!$AP$89:$GD$107,17,FALSE) -> 0 | M22: =IFERROR(HLOOKUP(M$5,DEBUTMU!$AP$90:$GD$107,16,FALSE),"") ->  | N22: =HLOOKUP(N$5,DEBUTMU!$AP$89:$GD$107,17,FALSE) -> 0 | P22: =IFERROR(HLOOKUP(P$5,DEBUTMU!$AP$90:$GD$107,16,FALSE),"") ->  | Q22: =HLOOKUP(Q$5,DEBUTMU!$AP$89:$GD$107,17,FALSE) -> 0 | S22: =IFERROR(HLOOKUP(S$5,DEBUTMU!$AP$90:$GD$107,16,FALSE),"") ->  | T22: =HLOOKUP(T$5,DEBUTMU!$AP$89:$GD$107,17,FALSE) -> 0 | V22: =IFERROR(HLOOKUP(V$5,DEBUTMU!$AP$90:$GD$107,16,FALSE),"") ->  | W22: =HLOOKUP(W$5,DEBUTMU!$AP$89:$GD$107,17,FALSE) -> 0 | Y22: =IFERROR(HLOOKUP(Y$5,DEBUTMU!$AP$90:$GD$107,16,FALSE),"") ->  | Z22: =HLOOKUP(Z$5,DEBUTMU!$AP$89:$GD$107,17,FALSE) -> 0 | AB22: =IFERROR(HLOOKUP(AB$5,DEBUTMU!$AP$90:$GD$107,16,FALSE),"") ->  | AC22: =HLOOKUP(AC$5,DEBUTMU!$AP$89:$GD$107,17,FALSE) -> 0 | AE22: =IFERROR(HLOOKUP(AE$5,DEBUTMU!$AP$90:$GD$107,16,FALSE),"") ->  | AF22: =HLOOKUP(AF$5,DEBUTMU!$AP$89:$GD$107,17,FALSE) -> 0 | AH22: =IFERROR(HLOOKUP(AH$5,DEBUTMU!$AP$90:$GD$107,16,FALSE),"") ->  | AI22: =HLOOKUP(AI$5,DEBUTMU!$AP$89:$GD$107,17,FALSE) -> 0 | AK22: =IFERROR(HLOOKUP(AK$5,DEBUTMU!$AP$90:$GD$107,16,FALSE),"") ->  | AL22: =HLOOKUP(AL$5,DEBUTMU!$AP$89:$GD$107,17,FALSE) -> 0
D23: =IFERROR(HLOOKUP(D$5,DEBUTMU!$AP$90:$GD$107,17,FALSE),"") -> 0 | E23: =HLOOKUP(E$5,DEBUTMU!$AP$89:$GD$107,18,FALSE) -> 0 | G23: =IFERROR(HLOOKUP(G$5,DEBUTMU!$AP$90:$GD$107,17,FALSE),"") -> 0 | H23: =HLOOKUP(H$5,DEBUTMU!$AP$89:$GD$107,18,FALSE) -> 0 | J23: =IFERROR(HLOOKUP(J$5,DEBUTMU!$AP$90:$GD$107,17,FALSE),"") ->  | K23: =HLOOKUP(K$5,DEBUTMU!$AP$89:$GD$107,18,FALSE) -> 0 | M23: =IFERROR(HLOOKUP(M$5,DEBUTMU!$AP$90:$GD$107,17,FALSE),"") ->  | N23: =HLOOKUP(N$5,DEBUTMU!$AP$89:$GD$107,18,FALSE) -> 0 | P23: =IFERROR(HLOOKUP(P$5,DEBUTMU!$AP$90:$GD$107,17,FALSE),"") ->  | Q23: =HLOOKUP(Q$5,DEBUTMU!$AP$89:$GD$107,18,FALSE) -> 0 | S23: =IFERROR(HLOOKUP(S$5,DEBUTMU!$AP$90:$GD$107,17,FALSE),"") ->  | T23: =HLOOKUP(T$5,DEBUTMU!$AP$89:$GD$107,18,FALSE) -> 0 | V23: =IFERROR(HLOOKUP(V$5,DEBUTMU!$AP$90:$GD$107,17,FALSE),"") ->  | W23: =HLOOKUP(W$5,DEBUTMU!$AP$89:$GD$107,18,FALSE) -> 0 | Y23: =IFERROR(HLOOKUP(Y$5,DEBUTMU!$AP$90:$GD$107,17,FALSE),"") ->  | Z23: =HLOOKUP(Z$5,DEBUTMU!$AP$89:$GD$107,18,FALSE) -> 0 | AB23: =IFERROR(HLOOKUP(AB$5,DEBUTMU!$AP$90:$GD$107,17,FALSE),"") ->  | AC23: =HLOOKUP(AC$5,DEBUTMU!$AP$89:$GD$107,18,FALSE) -> 0 | AE23: =IFERROR(HLOOKUP(AE$5,DEBUTMU!$AP$90:$GD$107,17,FALSE),"") ->  | AF23: =HLOOKUP(AF$5,DEBUTMU!$AP$89:$GD$107,18,FALSE) -> 0 | AH23: =IFERROR(HLOOKUP(AH$5,DEBUTMU!$AP$90:$GD$107,17,FALSE),"") ->  | AI23: =HLOOKUP(AI$5,DEBUTMU!$AP$89:$GD$107,18,FALSE) -> 0 | AK23: =IFERROR(HLOOKUP(AK$5,DEBUTMU!$AP$90:$GD$107,17,FALSE),"") ->  | AL23: =HLOOKUP(AL$5,DEBUTMU!$AP$89:$GD$107,18,FALSE) -> 0
B24: TOTAL | D24: =CONCATENATE(SUMPRODUCT(N(ISTEXT(D9:D23)))," exos") -> 10 exos | E24: =CONCATENATE(E6*SUM(E9:E23)," Réps") -> 600 Réps | G24: =CONCATENATE(SUMPRODUCT(N(ISTEXT(G9:G23)))," exos") -> 6 exos | H24: =CONCATENATE(H6*SUM(H9:H23)," Réps") -> 360 Réps | J24: =CONCATENATE(SUMPRODUCT(N(ISTEXT(J9:J23)))," exos") -> 15 exos | K24: =CONCATENATE(K6*SUM(K9:K23)," Réps") -> 0 Réps | M24: =CONCATENATE(SUMPRODUCT(N(ISTEXT(M9:M23)))," exos") -> 15 exos | N24: =CONCATENATE(N6*SUM(N9:N23)," Réps") -> 0 Réps | P24: =CONCATENATE(SUMPRODUCT(N(ISTEXT(P9:P23)))," exos") -> 15 exos | Q24: =CONCATENATE(Q6*SUM(Q9:Q23)," Réps") -> 0 Réps | S24: =CONCATENATE(SUMPRODUCT(N(ISTEXT(S9:S23)))," exos") -> 15 exos | T24: =CONCATENATE(T6*SUM(T9:T23)," Réps") -> 0 Réps | V24: =CONCATENATE(SUMPRODUCT(N(ISTEXT(V9:V23)))," exos") -> 15 exos | W24: =CONCATENATE(W6*SUM(W9:W23)," Réps") -> 0 Réps | Y24: =CONCATENATE(SUMPRODUCT(N(ISTEXT(Y9:Y23)))," exos") -> 15 exos | Z24: =CONCATENATE(Z6*SUM(Z9:Z23)," Réps") -> 0 Réps | AB24: =CONCATENATE(SUMPRODUCT(N(ISTEXT(AB9:AB23)))," exos") -> 15 exos | AC24: =CONCATENATE(AC6*SUM(AC9:AC23)," Réps") -> 0 Réps | AE24: =CONCATENATE(SUMPRODUCT(N(ISTEXT(AE9:AE23)))," exos") -> 15 exos | AF24: =CONCATENATE(AF6*SUM(AF9:AF23)," Réps") -> 0 Réps | AH24: =CONCATENATE(SUMPRODUCT(N(ISTEXT(AH9:AH23)))," exos") -> 15 exos | AI24: =CONCATENATE(AI6*SUM(AI9:AI23)," Réps") -> 0 Réps | AK24: =CONCATENATE(SUMPRODUCT(N(ISTEXT(AK9:AK23)))," exos") -> 15 exos | AL24: =CONCATENATE(AL6*SUM(AL9:AL23)," Réps") -> 0 Réps

Sheet CROSSFITCLASSE
B1: Classe 1 | D1: 2019-05-04 | G1: 2019-05-04 | J1: 2019-05-04 | M1: 2019-05-04 | P1: 2019-05-04 | S1: 2019-05-04 | V1: 2019-05-04 | Y1: 2019-05-04 | AB1: 2019-05-04 | AE1: 2019-05-04 | AH1: 2019-05-04 | AK1: 2019-05-04
D2: WOD | E2: AFAP | F2: 6 | G2: WOD | H2: AMRAP | I2: 6 | J2: WOD | K2: AMRAP | L2: 1 | M2: WOD | N2: AMRAP | O2: 1 | P2: WOD | Q2: AMRAP | R2: 1 | S2: WOD | T2: AMRAP | U2: 1 | V2: WOD | W2: AMRAP | X2: 1 | Y2: WOD | Z2: AMRAP | AA2: 1 | AB2: WOD | AC2: AMRAP | AD2: 1 | AE2: WOD | AF2: AMRAP | AG2: 1 | AH2: WOD | AI2: AMRAP | AJ2: 1 | AK2: WOD | AL2: AMRAP | AM2: 1
D3: 10x10 | E3: Tours | F3: Temps | G3: Pti ZEUS | H3: Tours | I3: Temps | K3: Tours | L3: Temps | N3: Tours | O3: Temps | Q3: Tours | R3: Temps | T3: Tours | U3: Temps | W3: Tours | X3: Temps | Z3: Tours | AA3: Temps | AC3: Tours | AD3: Temps | AF3: Tours | AG3: Temps | AI3: Tours | AJ3: Temps | AL3: Tours | AM3: Temps
A4: 1 | B4: =OFFSET(INDEX(eleves,MATCH(A4,numeros,0),MATCH($B$1,classes,0)),0,1) -> Amira | D4: =IF($B4=0,"",D$3) -> 10x10 | E4: 3 | G4: =IF($B4=0,"",G$3) -> Pti ZEUS | J4: =IF($B4=0,"",J$3) -> 0 | M4: =IF($B4=0,"",M$3) -> 0 | P4: =IF($B4=0,"",P$3) -> 0 | S4: =IF($B4=0,"",S$3) -> 0 | V4: =IF($B4=0,"",V$3) -> 0 | Y4: =IF($B4=0,"",Y$3) -> 0 | AB4: =IF($B4=0,"",AB$3) -> 0 | AE4: =IF($B4=0,"",AE$3) -> 0 | AH4: =IF($B4=0,"",AH$3) -> 0 | AK4: =IF($B4=0,"",AK$3) -> 0
A5: 2 | B5: Estelle | D5: =IF($B5=0,"",D$3) -> 10x10 | E5: 4 | G5: Pti ZEUS | J5: 0 | M5: 0 | P5: 0 | S5: 0 | V5: 0 | Y5: 0 | AB5: 0 | AE5: 0 | AH5: 0 | AK5: 0
A6: 3 | B6: Gentjana | D6: 10x10 | E6: 3 | G6: Pti ZEUS | J6: 0 | M6: 0 | P6: 0 | S6: 0 | V6: 0 | Y6: 0 | AB6: 0 | AE6: 0 | AH6: 0 | AK6: 0
A7: 4 | B7: Kamylia | D7: 10x10 | G7: Pti ZEUS | J7: 0 | M7: 0 | P7: 0 | S7: 0 | V7: 0 | Y7: 0 | AB7: 0 | AE7: 0 | AH7: 0 | AK7: 0
A8: 5 | B8: Kathy | D8: 10x10 | G8: Pti ZEUS | J8: 0 | M8: 0 | P8: 0 | S8: 0 | V8: 0 | Y8: 0 | AB8: 0 | AE8: 0 | AH8: 0 | AK8: 0
A9: 6 | B9: Maïssa | D9: 10x10 | G9: Pti ZEUS | J9: 0 | M9: 0 | P9: 0 | S9: 0 | V9: 0 | Y9: 0 | AB9: 0 | AE9: 0 | AH9: 0 | AK9: 0
A10: 7 | B10: Maryka | D10: 10x10 | G10: Pti ZEUS | J10: 0 | M10: 0 | P10: 0 | S10: 0 | V10: 0 | Y10: 0 | AB10: 0 | AE10: 0 | AH10: 0 | AK10: 0
A11: 8 | B11: Mounir | D11: 10x10 | G11: Pti ZEUS | J11: 0 | M11: 0 | P11: 0 | S11: 0 | V11: 0 | Y11: 0 | AB11: 0 | AE11: 0 | AH11: 0 | AK11: 0
A12: 9 | B12: Mounir | D12: 10x10 | G12: Pti ZEUS | J12: 0 | M12: 0 | P12: 0 | S12: 0 | V12: 0 | Y12: 0 | AB12: 0 | AE12: 0 | AH12: 0 | AK12: 0
A13: 10 | B13: Munire | D13: 10x10 | G13: Pti ZEUS | J13: 0 | M13: 0 | P13: 0 | S13: 0 | V13: 0 | Y13: 0 | AB13: 0 | AE13: 0 | AH13: 0 | AK13: 0
A14: 11 | B14: Nesrin | D14: 10x10 | G14: Pti ZEUS | J14: 0 | M14: 0 | P14: 0 | S14: 0 | V14: 0 | Y14: 0 | AB14: 0 | AE14: 0 | AH14: 0 | AK14: 0
A15: 12 | B15: Nissrine | D15: 10x10 | G15: Pti ZEUS | J15: 0 | M15: 0 | P15: 0 | S15: 0 | V15: 0 | Y15: 0 | AB15: 0 | AE15: 0 | AH15: 0 | AK15: 0
A16: 13 | B16: Rith Assirie | D16: 10x10 | G16: Pti ZEUS | J16: 0 | M16: 0 | P16: 0 | S16: 0 | V16: 0 | Y16: 0 | AB16: 0 | AE16: 0 | AH16: 0 | AK16: 0
A17: 14 | B17: Ruheda Nefisse | D17: 10x10 | G17: Pti ZEUS | J17: 0 | M17: 0 | P17: 0 | S17: 0 | V17: 0 | Y17: 0 | AB17: 0 | AE17: 0 | AH17: 0 | AK17: 0
A18: 15 | B18: Sendes | D18: 10x10 | G18: Pti ZEUS | J18: 0 | M18: 0 | P18: 0 | S18: 0 | V18: 0 | Y18: 0 | AB18: 0 | AE18: 0 | AH18: 0 | AK18: 0
A19: 16 | B19: Shaïnez | D19: 10x10 | G19: Pti ZEUS | J19: 0 | M19: 0 | P19: 0 | S19: 0 | V19: 0 | Y19: 0 | AB19: 0 | AE19: 0 | AH19: 0 | AK19: 0
A20: 17 | B20: Sihem | D20: 10x10 | G20: =IF($B20=0,"",G$3) -> Pti ZEUS | J20: 0 | M20: 0 | P20: 0 | S20: 0 | V20: 0 | Y20: 0 | AB20: 0 | AE20: 0 | AH20: 0 | AK20: 0
A21: 18 | B21: Sueda | D21: 10x10 | G21: Pti ZEUS | J21: 0 | M21: 0 | P21: 0 | S21: 0 | V21: 0 | Y21: 0 | AB21: 0 | AE21: 0 | AH21: 0 | AK21: 0
A22: 19 | B22: Zamira | D22: 10x10 | G22: Pti ZEUS | J22: 0 | M22: 0 | P22: 0 | S22: 0 | V22: 0 | Y22: 0 | AB22: 0 | AE22: 0 | AH22: 0 | AK22: 0
A23: 20 | B23: Zoulfa | D23: 10x10 | G23: Pti ZEUS | J23: 0 | M23: 0 | P23: 0 | S23: 0 | V23: 0 | Y23: 0 | AB23: 0 | AE23: 0 | AH23: 0 | AK23: 0
A24: 21 | B24: Zumra | D24: 10x10 | G24: Pti ZEUS | J24: 0 | M24: 0 | P24: 0 | S24: 0 | V24: 0 | Y24: 0 | AB24: 0 | AE24: 0 | AH24: 0 | AK24: 0
A25: 22 | B25: 0
A26: 23 | B26: 0
A27: 24 | B27: 0
A28: 25 | B28: 0
A29: 26 | B29: 0
A30: 27 | B30: 0
A31: 28 | B31: 0
A32: 29 | B32: 0
A33: 30 | B33: 0
A34: 31 | B34: 0
A35: 32 | B35: 0
A36: 33 | B36: 0 | G36: =IF($B36=0,"",G$3) -> 
A37: 34 | B37: Amir | D37: 10x10 | G37: Pti ZEUS | J37: 0 | M37: 0 | P37: 0 | S37: 0 | V37: 0 | Y37: 0 | AB37: 0 | AE37: 0 | AH37: 0 | AK37: 0

Sheet CONSULTER PROGRAMME
B1: CONSULTER UN PROGRAMME CREE PAR LE PROF OU SOI -> | G1: Programme Prof | N1: Méthode d'entrainement
G2: S1-CT-TONIF COMPLET | K2: =VLOOKUP($G$2,DEBUTMU!$Z$6:$AC$45,2,FALSE) -> SERIE-CHARGE-S1-CT-TONIF COMPLET | L2: =VLOOKUP($G$2,DEBUTMU!$Z$6:$AC$45,3,FALSE) -> REPS-POURCENT-S1-CT-TONIF COMPLET | M2: =VLOOKUP($G$2,DEBUTMU!$Z$6:$AC$45,4,FALSE) -> RECUP-METH-S1-CT-TONIF COMPLET | N2: =IF($G$1=DEBUTMU!$Y$21,HLOOKUP($M$2,DEBUTMU!$AE$1:$DV$37,5,FALSE),HLOOKUP($M$2,DEBUTMU!$DV$1:$GP$37,5,FALSE)) -> CIRCUIT TRAINING
D4: Objectif séance | G4: Séries | I4: Réps | M4: Conseils d'entrainement
D5: =IF($G$1=DEBUTMU!$Y$21,HLOOKUP($G$2,DEBUTMU!$AE$1:$DV$37,4,FALSE),HLOOKUP($G$2,DEBUTMU!$DV$1:$GP$37,4,FALSE)) -> Circuit training Salle Haltéro | G5: =IF($G$1=DEBUTMU!$Y$21,HLOOKUP($K$2,DEBUTMU!$AE$1:$DV$37,4,FALSE),HLOOKUP($K$2,DEBUTMU!$DV$1:$GP$37,4,FALSE)) -> 4 | H5: x | I5: =IF($G$1=DEBUTMU!$Y$21,HLOOKUP($L$2,DEBUTMU!$AE$1:$DV$37,4,FALSE),HLOOKUP($L$2,DEBUTMU!$DV$1:$GP$37,4,FALSE)) -> 20 | M5: =VLOOKUP(G2,DEBUTMU!Z6:AD37,5,FALSE) -> Pour progresser il faut s'appliquer sur les exercices sinon on risque de se blesser. | P5: Durée estimée de la séance | U5: MUSCLES | V5: TONNAGE/MUSCLE | W5: EXO 1 | X5: EXO 2 | Y5: EXO 3 | Z5: EXO 4 | AA5: EXO 5 | AB5: EXO 6 | AC5: EXO 7 | AD5: EXO 8 | AE5: EXO 9 | AF5: EXO 10 | AG5: EXO 11 | AH5: EXO 12 | AI5: EXO 13 | AJ5: EXO 14 | AK5: EXO 15 | AL5: EXO 16
K6: Récup'/séries | U6: =DEBUTMU!X6 -> PECTORAUX | V6: =SUM(W6:AL6) -> 3200 | W6: =IFERROR(VLOOKUP(U6,$D$11:$I$11,4,FALSE)*VLOOKUP(U6,$D$11:$I$11,6,FALSE)*VLOOKUP(U6,$F$12:$I$12,4,FALSE),0) -> 0 | X6: =IFERROR(VLOOKUP(U6,$D$16:$I$16,4,FALSE)*VLOOKUP(U6,$D$16:$I$16,6,FALSE)*VLOOKUP(U6,$F$17:$I$17,4,FALSE),0) -> 0 | Y6: =IFERROR(VLOOKUP(U6,$D$21:$I$21,4,FALSE)*VLOOKUP(U6,$D$21:$I$21,6,FALSE)*VLOOKUP(U6,F22:I22,4,FALSE),0) -> 0 | Z6: =IFERROR(VLOOKUP(U6,$D$26:$I$26,4,FALSE)*VLOOKUP(U6,$D$26:$I$26,6,FALSE)*VLOOKUP(U6,$F$27:$I$27,4,FALSE),0) -> 0 | AA6: =IFERROR(VLOOKUP(U6,$D$31:$I$31,4,FALSE)*VLOOKUP(U6,$D$31:$I$31,6,FALSE)*VLOOKUP(U6,$F$32:$I$32,4,FALSE),0) -> 0 | AB6: =IFERROR(VLOOKUP(U6,$D$36:$I$36,4,FALSE)*VLOOKUP(U6,$D$36:$I$36,6,FALSE)*VLOOKUP(U6,$F$37:$I$37,4,FALSE),0) -> 0 | AC6: =IFERROR(VLOOKUP(U6,$D$41:$I$41,4,FALSE)*VLOOKUP(U6,$D$41:$I$41,6,FALSE)*VLOOKUP(U6,$F$42:$I$42,4,FALSE),0) -> 1600 | AD6: =IFERROR(VLOOKUP(U6,$D$46:$I$46,4,FALSE)*VLOOKUP(U6,$D$46:$I$46,6,FALSE)*VLOOKUP(U6,$F$47:$I$47,4,FALSE),0) -> 0 | AE6: =IFERROR(VLOOKUP(U6,$D$51:$I$51,4,FALSE)*VLOOKUP(U6,$D$51:$I$51,6,FALSE)*VLOOKUP(U6,$F$52:$I$52,4,FALSE),0) -> 0 | AF6: =IFERROR(VLOOKUP(U6,$D$56:$I$56,4,FALSE)*VLOOKUP(U6,$D$56:$I$56,6,FALSE)*VLOOKUP(U6,$F$57:$I$57,4,FALSE),0) -> 0 | AG6: =IFERROR(VLOOKUP(U6,$D$61:$I$61,4,FALSE)*VLOOKUP(U6,$D$61:$I$61,6,FALSE)*VLOOKUP(U6,$F$62:$I$62,4,FALSE),0) -> 0 | AH6: =IFERROR(VLOOKUP(U6,$D$66:$I$66,4,FALSE)*VLOOKUP(U6,$D$66:$I$66,6,FALSE)*VLOOKUP(U6,$F$67:$I$67,4,FALSE),0) -> 0 | AI6: =IFERROR(VLOOKUP(U6,$D$71:$I$71,4,FALSE)*VLOOKUP(U6,$D$71:$I$71,6,FALSE)*VLOOKUP(U6,$F$72:$I$72,4,FALSE),0) -> 0 | AJ6: =IFERROR(VLOOKUP(U6,$D$76:$I$76,4,FALSE)*VLOOKUP(U6,$D$76:$I$76,6,FALSE)*VLOOKUP(U6,$F$77:$I$77,4,FALSE),0) -> 0 | AK6: =IFERROR(VLOOKUP(U6,$D$81:$I$81,4,FALSE)*VLOOKUP(U6,$D$81:$I$81,6,FALSE)*VLOOKUP(U6,$F$82:$I$82,4,FALSE),0) -> 1600 | AL6: =IFERROR(VLOOKUP(U6,$D$86:$I$86,4,FALSE)*VLOOKUP(U6,$D$86:$I$86,6,FALSE)*VLOOKUP(U6,$F$87:$I$87,4,FALSE),0) -> 0
G7: Pourcentage Charge idéale | I7: =IF($G$1=DEBUTMU!$Y$21,HLOOKUP($K$2,DEBUTMU!$AE$1:$DV$37,5,FALSE),HLOOKUP($K$2,DEBUTMU!$DV$1:$GP$37,5,FALSE)) -> 60 | J7: % | K7: =IF($G$1=DEBUTMU!$Y$21,HLOOKUP($M$2,DEBUTMU!$AE$1:$DV$37,4,FALSE),HLOOKUP($M$2,DEBUTMU!$DV$1:$GP$37,4,FALSE)) -> 45 | L7: " | P7: =(L12+L17+L22+L27+L32+L37+L42+L47+L52+L57+L62+L67+L72+L77+L82+L87)+(L12+L17+L22+L27+L32+L37+L42+L47+L52+L57+L62+L67+L72+L77+L82+L87)*10/100 -> 01:26:32 | U7: =DEBUTMU!X7 -> GRAND DROIT | V7: =SUM(W7:AL7) -> 1600 | W7: =IFERROR(VLOOKUP(U7,$D$11:$I$11,4,FALSE)*VLOOKUP(U7,$D$11:$I$11,6,FALSE)*VLOOKUP(U7,$F$12:$I$12,4,FALSE),0) -> 800 | X7: =IFERROR(VLOOKUP(U7,$D$16:$I$16,4,FALSE)*VLOOKUP(U7,$D$16:$I$16,6,FALSE)*VLOOKUP(U7,$F$17:$I$17,4,FALSE),0) -> 0 | Y7: =IFERROR(VLOOKUP(U7,$D$21:$I$21,4,FALSE)*VLOOKUP(U7,$D$21:$I$21,6,FALSE)*VLOOKUP(U7,F23:I23,4,FALSE),0) -> 0 | Z7: =IFERROR(VLOOKUP(U7,$D$26:$I$26,4,FALSE)*VLOOKUP(U7,$D$26:$I$26,6,FALSE)*VLOOKUP(U7,$F$27:$I$27,4,FALSE),0) -> 0 | AA7: =IFERROR(VLOOKUP(U7,$D$31:$I$31,4,FALSE)*VLOOKUP(U7,$D$31:$I$31,6,FALSE)*VLOOKUP(U7,$F$32:$I$32,4,FALSE),0) -> 0 | AB7: =IFERROR(VLOOKUP(U7,$D$36:$I$36,4,FALSE)*VLOOKUP(U7,$D$36:$I$36,6,FALSE)*VLOOKUP(U7,$F$37:$I$37,4,FALSE),0) -> 0 | AC7: =IFERROR(VLOOKUP(U7,$D$41:$I$41,4,FALSE)*VLOOKUP(U7,$D$41:$I$41,6,FALSE)*VLOOKUP(U7,$F$42:$I$42,4,FALSE),0) -> 0 | AD7: =IFERROR(VLOOKUP(U7,$D$46:$I$46,4,FALSE)*VLOOKUP(U7,$D$46:$I$46,6,FALSE)*VLOOKUP(U7,$F$47:$I$47,4,FALSE),0) -> 0 | AE7: =IFERROR(VLOOKUP(U7,$D$51:$I$51,4,FALSE)*VLOOKUP(U7,$D$51:$I$51,6,FALSE)*VLOOKUP(U7,$F$52:$I$52,4,FALSE),0) -> 800 | AF7: =IFERROR(VLOOKUP(U7,$D$56:$I$56,4,FALSE)*VLOOKUP(U7,$D$56:$I$56,6,FALSE)*VLOOKUP(U7,$F$57:$I$57,4,FALSE),0) -> 0 | AG7: =IFERROR(VLOOKUP(U7,$D$61:$I$61,4,FALSE)*VLOOKUP(U7,$D$61:$I$61,6,FALSE)*VLOOKUP(U7,$F$62:$I$62,4,FALSE),0) -> 0 | AH7: =IFERROR(VLOOKUP(U7,$D$66:$I$66,4,FALSE)*VLOOKUP(U7,$D$66:$I$66,6,FALSE)*VLOOKUP(U7,$F$67:$I$67,4,FALSE),0) -> 0 | AI7: =IFERROR(VLOOKUP(U7,$D$71:$I$71,4,FALSE)*VLOOKUP(U7,$D$71:$I$71,6,FALSE)*VLOOKUP(U7,$F$72:$I$72,4,FALSE),0) -> 0 | AJ7: =IFERROR(VLOOKUP(U7,$D$76:$I$76,4,FALSE)*VLOOKUP(U7,$D$76:$I$76,6,FALSE)*VLOOKUP(U7,$F$77:$I$77,4,FALSE),0) -> 0 | AK7: =IFERROR(VLOOKUP(U7,$D$81:$I$81,4,FALSE)*VLOOKUP(U7,$D$81:$I$81,6,FALSE)*VLOOKUP(U7,$F$82:$I$82,4,FALSE),0) -> 0 | AL7: =IFERROR(VLOOKUP(U7,$D$86:$I$86,4,FALSE)*VLOOKUP(U7,$D$86:$I$86,6,FALSE)*VLOOKUP(U7,$F$87:$I$87,4,FALSE),0) -> 0
U8: =DEBUTMU!X8 -> OBLIQUES | V8: 0 | W8: 0 | X8: 0 | Y8: 0 | Z8: 0 | AA8: 0 | AB8: 0 | AC8: 0 | AD8: 0 | AE8: 0 | AF8: 0 | AG8: 0 | AH8: 0 | AI8: 0 | AJ8: 0 | AK8: 0 | AL8: 0
B9: =IF($G$1=DEBUTMU!$Y$21,HLOOKUP($M$2,DEBUTMU!$AE$1:$DV$37,7,FALSE),HLOOKUP($M$2,DEBUTMU!$DV$1:$GP$37,7,FALSE)) -> CIRCUIT TRAINING | U9: =DEBUTMU!X9 -> TRAPEZES | V9: 0 | W9: 0 | X9: 0 | Y9: 0 | Z9: 0 | AA9: 0 | AB9: 0 | AC9: 0 | AD9: 0 | AE9: 0 | AF9: 0 | AG9: 0 | AH9: 0 | AI9: 0 | AJ9: 0 | AK9: 0 | AL9: 0
B10: 1 | K10: Récup' | M10: =VLOOKUP(D12,EX!$B$6:$L$528,8,FALSE) -> 0 | U10: =DEBUTMU!X10 -> DORSAUX | V10: 3200 | W10: 0 | X10: 0 | Y10: 0 | Z10: 0 | AA10: 0 | AB10: 0 | AC10: 0 | AD10: 1600 | AE10: 0 | AF10: 0 | AG10: 0 | AH10: 0 | AI10: 0 | AJ10: 0 | AK10: 0 | AL10: 1600
D11: =IF($G$1=DEBUTMU!$Y$21,HLOOKUP($G$2,DEBUTMU!$AE$1:$DV$37,6,FALSE),HLOOKUP($G$2,DEBUTMU!$DV$1:$GP$37,6,FALSE)) -> GRAND DROIT | F11: =D12 -> Crunch machine | G11: =IF($G$1=DEBUTMU!$Y$21,HLOOKUP($K$2,DEBUTMU!$AE$1:$DV$37,6,FALSE),HLOOKUP($K$2,DEBUTMU!$DV$1:$GP$37,6,FALSE)) -> 4 | H11: x | I11: =IF($G$1=DEBUTMU!$Y$21,HLOOKUP($L$2,DEBUTMU!$AE$1:$DV$37,6,FALSE),HLOOKUP($L$2,DEBUTMU!$DV$1:$GP$37,6,FALSE)) -> 20 | J11: - | K11: =IF($G$1=DEBUTMU!$Y$21,HLOOKUP($M$2,DEBUTMU!$AE$1:$DV$37,6,FALSE),HLOOKUP($M$2,DEBUTMU!$DV$1:$GP$37,6,FALSE)) -> 45 | L11: " | U11: =DEBUTMU!X11 -> LOMBAIRES | V11: 1600 | W11: 0 | X11: 800 | Y11: 0 | Z11: 0 | AA11: 0 | AB11: 0 | AC11: 0 | AD11: 0 | AE11: 0 | AF11: 800 | AG11: 0 | AH11: 0 | AI11: 0 | AJ11: 0 | AK11: 0 | AL11: 0
D12: =IF($G$1=DEBUTMU!$Y$21,HLOOKUP($G$2,DEBUTMU!$AE$1:$DV$37,7,FALSE),HLOOKUP($G$2,DEBUTMU!$DV$1:$GP$37,7,FALSE)) -> Crunch machine | F12: =D11 -> GRAND DROIT | G12: Charge idéale | I12: =IF($G$1=DEBUTMU!$Y$21,HLOOKUP($L$2,DEBUTMU!$AE$1:$DV$37,7,FALSE),HLOOKUP($L$2,DEBUTMU!$DV$1:$GP$37,7,FALSE)) -> 10 | J12: Kg | K12: =100*I12/(VLOOKUP(I11,DEBUTMU!$O$39:$P$68,2,FALSE)) -> 18.51851852 | L12: =TIME(,,(G11*I11*2)+(K11*(G11-1))) -> 00:04:55 | U12: =DEBUTMU!X12 -> DELTOIDES | V12: 0 | W12: 0 | X12: 0 | Y12: 0 | Z12: 0 | AA12: 0 | AB12: 0 | AC12: 0 | AD12: 0 | AE12: 0 | AF12: 0 | AG12: 0 | AH12: 0 | AI12: 0 | AJ12: 0 | AK12: 0 | AL12: 0
U13: =DEBUTMU!X13 -> BICEPS | V13: 800 | W13: 0 | X13: 0 | Y13: 0 | Z13: 0 | AA13: 0 | AB13: 0 | AC13: 0 | AD13: 0 | AE13: 0 | AF13: 0 | AG13: 800 | AH13: 0 | AI13: 0 | AJ13: 0 | AK13: 0 | AL13: 0
B14: =IF($G$1=DEBUTMU!$Y$21,HLOOKUP($M$2,DEBUTMU!$AE$1:$DV$37,9,FALSE),HLOOKUP($M$2,DEBUTMU!$DV$1:$GP$37,9,FALSE)) -> CIRCUIT TRAINING | U14: =DEBUTMU!X14 -> TRICEPS | V14: 1600 | W14: 0 | X14: 0 | Y14: 0 | Z14: 800 | AA14: 0 | AB14: 0 | AC14: 0 | AD14: 0 | AE14: 0 | AF14: 0 | AG14: 0 | AH14: 800 | AI14: 0 | AJ14: 0 | AK14: 0 | AL14: 0
B15: 2 | K15: Récup' | M15: =VLOOKUP(D17,EX!$B$6:$L$528,8,FALSE) -> 0 | U15: =DEBUTMU!X15 -> QUADRICEPS | V15: 6400 | W15: 0 | X15: 0 | Y15: 0 | Z15: 0 | AA15: 3200 | AB15: 0 | AC15: 0 | AD15: 0 | AE15: 0 | AF15: 0 | AG15: 0 | AH15: 0 | AI15: 3200 | AJ15: 0 | AK15: 0 | AL15: 0
D16: =IF($G$1=DEBUTMU!$Y$21,HLOOKUP($G$2,DEBUTMU!$AE$1:$DV$37,8,FALSE),HLOOKUP($G$2,DEBUTMU!$DV$1:$GP$37,8,FALSE)) -> LOMBAIRES | F16: =D17 -> Extension Relevé de buste | G16: =IF($G$1=DEBUTMU!$Y$21,HLOOKUP($K$2,DEBUTMU!$AE$1:$DV$37,8,FALSE),HLOOKUP($K$2,DEBUTMU!$DV$1:$GP$37,8,FALSE)) -> 4 | H16: x | I16: =IF($G$1=DEBUTMU!$Y$21,HLOOKUP($L$2,DEBUTMU!$AE$1:$DV$37,8,FALSE),HLOOKUP($L$2,DEBUTMU!$DV$1:$GP$37,8,FALSE)) -> 20 | J16: - | K16: =IF($G$1=DEBUTMU!$Y$21,HLOOKUP($M$2,DEBUTMU!$AE$1:$DV$37,8,FALSE),HLOOKUP($M$2,DEBUTMU!$DV$1:$GP$37,8,FALSE)) -> 45 | L16: " | U16: =DEBUTMU!X16 -> ISCHIOS | V16: 3200 | W16: 0 | X16: 0 | Y16: 0 | Z16: 0 | AA16: 0 | AB16: 1600 | AC16: 0 | AD16: 0 | AE16: 0 | AF16: 0 | AG16: 0 | AH16: 0 | AI16: 0 | AJ16: 1600 | AK16: 0 | AL16: 0
D17: =IF($G$1=DEBUTMU!$Y$21,HLOOKUP($G$2,DEBUTMU!$AE$1:$DV$37,9,FALSE),HLOOKUP($G$2,DEBUTMU!$DV$1:$GP$37,9,FALSE)) -> Extension Relevé de buste | F17: =D16 -> LOMBAIRES | G17: Charge idéale | I17: =IF($G$1=DEBUTMU!$Y$21,HLOOKUP($L$2,DEBUTMU!$AE$1:$DV$37,9,FALSE),HLOOKUP($L$2,DEBUTMU!$DV$1:$GP$37,9,FALSE)) -> 10 | J17: Kg | K17: =100*I17/(VLOOKUP(I16,DEBUTMU!$O$39:$P$68,2,FALSE)) -> 18.51851852 | L17: =TIME(,,(G16*I16*2)+(K16*(G16-1))) -> 00:04:55 | U17: =DEBUTMU!X17 -> MOLLETS | V17: 0 | W17: 0 | X17: 0 | Y17: 0 | Z17: 0 | AA17: 0 | AB17: 0 | AC17: 0 | AD17: 0 | AE17: 0 | AF17: 0 | AG17: 0 | AH17: 0 | AI17: 0 | AJ17: 0 | AK17: 0 | AL17: 0
U18: =DEBUTMU!X18 -> AVANT-BRAS | V18: 0 | W18: 0 | X18: 0 | Y18: 0 | Z18: 0 | AA18: 0 | AB18: 0 | AC18: 0 | AD18: 0 | AE18: 0 | AF18: 0 | AG18: 0 | AH18: 0 | AI18: 0 | AJ18: 0 | AK18: 0 | AL18: 0
B19: =IF($G$1=DEBUTMU!$Y$21,HLOOKUP($M$2,DEBUTMU!$AE$1:$DV$37,11,FALSE),HLOOKUP($M$2,DEBUTMU!$DV$1:$GP$37,11,FALSE)) -> CIRCUIT TRAINING | U19: =DEBUTMU!X19 -> FESSIERS | V19: 0 | W19: 0 | X19: 0 | Y19: 0 | Z19: 0 | AA19: 0 | AB19: 0 | AC19: 0 | AD19: 0 | AE19: 0 | AF19: 0 | AG19: 0 | AH19: 0 | AI19: 0 | AJ19: 0 | AK19: 0 | AL19: 0
B20: 3 | K20: Récup' | M20: =VLOOKUP(D22,EX!$B$6:$L$528,8,FALSE) -> Tirez lentement la barre vers le haut, jusqu'au niveau des épaules, puis revenez à la position de départ progressivement en contrôlant le retour. | W20: 0 | X20: 0 | Y20: 0 | Z20: 0 | AA20: 0 | AB20: 0 | AC20: 0 | AD20: 0 | AE20: 0 | AF20: 0 | AG20: 0 | AH20: 0 | AI20: 0 | AJ20: 0 | AK20: 0 | AL20: 0
D21: =IF($G$1=DEBUTMU!$Y$21,HLOOKUP($G$2,DEBUTMU!$AE$1:$DV$37,10,FALSE),HLOOKUP($G$2,DEBUTMU!$DV$1:$GP$37,10,FALSE)) -> BICEPS | F21: =D22 -> Curl poulie basse Supination | G21: =IF($G$1=DEBUTMU!$Y$21,HLOOKUP($K$2,DEBUTMU!$AE$1:$DV$37,10,FALSE),HLOOKUP($K$2,DEBUTMU!$DV$1:$GP$37,10,FALSE)) -> 4 | H21: x | I21: =IF($G$1=DEBUTMU!$Y$21,HLOOKUP($L$2,DEBUTMU!$AE$1:$DV$37,10,FALSE),HLOOKUP($L$2,DEBUTMU!$DV$1:$GP$37,10,FALSE)) -> 20 | J21: - | K21: =IF($G$1=DEBUTMU!$Y$21,HLOOKUP($M$2,DEBUTMU!$AE$1:$DV$37,10,FALSE),HLOOKUP($M$2,DEBUTMU!$DV$1:$GP$37,10,FALSE)) -> 45 | L21: " | U21: TONNAGE TOTAL | V21: =SUM(V6:V19) -> 21600 | Y21: haut | Z21: 0
D22: =IF($G$1=DEBUTMU!$Y$21,HLOOKUP($G$2,DEBUTMU!$AE$1:$DV$37,11,FALSE),HLOOKUP($G$2,DEBUTMU!$DV$1:$GP$37,11,FALSE)) -> Curl poulie basse Supination | F22: =D21 -> BICEPS | G22: Charge idéale | I22: =IF($G$1=DEBUTMU!$Y$21,HLOOKUP($L$2,DEBUTMU!$AE$1:$DV$37,11,FALSE),HLOOKUP($L$2,DEBUTMU!$DV$1:$GP$37,11,FALSE)) -> 10 | J22: Kg | K22: =100*I22/(VLOOKUP(I21,DEBUTMU!$O$39:$P$68,2,FALSE)) -> 18.51851852 | L22: =TIME(,,(G21*I21*2)+(K21*(G21-1))) -> 00:04:55 | Y22: bas | Z22: 0
Y23: gauche | Z23: 0
B24: =IF($G$1=DEBUTMU!$Y$21,HLOOKUP($M$2,DEBUTMU!$AE$1:$DV$37,13,FALSE),HLOOKUP($M$2,DEBUTMU!$DV$1:$GP$37,13,FALSE)) -> CIRCUIT TRAINING | Y24: droite | Z24: 0
B25: 4 | K25: Récup' | M25: =VLOOKUP(D27,EX!$B$6:$L$528,8,FALSE) -> Tendez complètement les bras vers le bas jusqu’à l’extension complète, les bras restant collés contre le buste puis revenez à la position de départ progressivement en contrôlant le retour.
D26: =IF($G$1=DEBUTMU!$Y$21,HLOOKUP($G$2,DEBUTMU!$AE$1:$DV$37,12,FALSE),HLOOKUP($G$2,DEBUTMU!$DV$1:$GP$37,12,FALSE)) -> TRICEPS | F26: =D27 -> Tirage poulie haute | G26: =IF($G$1=DEBUTMU!$Y$21,HLOOKUP($K$2,DEBUTMU!$AE$1:$DV$37,12,FALSE),HLOOKUP($K$2,DEBUTMU!$DV$1:$GP$37,12,FALSE)) -> 4 | H26: x | I26: =IF($G$1=DEBUTMU!$Y$21,HLOOKUP($L$2,DEBUTMU!$AE$1:$DV$37,12,FALSE),HLOOKUP($L$2,DEBUTMU!$DV$1:$GP$37,12,FALSE)) -> 20 | J26: - | K26: =IF($G$1=DEBUTMU!$Y$21,HLOOKUP($M$2,DEBUTMU!$AE$1:$DV$37,12,FALSE),HLOOKUP($M$2,DEBUTMU!$DV$1:$GP$37,12,FALSE)) -> 45 | L26: "
D27: =IF($G$1=DEBUTMU!$Y$21,HLOOKUP($G$2,DEBUTMU!$AE$1:$DV$37,13,FALSE),HLOOKUP($G$2,DEBUTMU!$DV$1:$GP$37,13,FALSE)) -> Tirage poulie haute | F27: =D26 -> TRICEPS | G27: Charge idéale | I27: =IF($G$1=DEBUTMU!$Y$21,HLOOKUP($L$2,DEBUTMU!$AE$1:$DV$37,13,FALSE),HLOOKUP($L$2,DEBUTMU!$DV$1:$GP$37,13,FALSE)) -> 10 | J27: Kg | K27: =100*I27/(VLOOKUP(I26,DEBUTMU!$O$39:$P$68,2,FALSE)) -> 18.51851852 | L27: =TIME(,,(G26*I26*2)+(K26*(G26-1))) -> 00:04:55
B29: =IF($G$1=DEBUTMU!$Y$21,HLOOKUP($M$2,DEBUTMU!$AE$1:$DV$37,15,FALSE),HLOOKUP($M$2,DEBUTMU!$DV$1:$GP$37,15,FALSE)) -> CIRCUIT TRAINING
B30: 5 | K30: Récup' | M30: =VLOOKUP(D32,EX!$B$6:$L$528,8,FALSE) -> Tendre lentement les jambes jusqu’à l’extension complète Freiner la charge pendant la descente. Puis revenez à la position de départ
D31: =IF($G$1=DEBUTMU!$Y$21,HLOOKUP($G$2,DEBUTMU!$AE$1:$DV$37,14,FALSE),HLOOKUP($G$2,DEBUTMU!$DV$1:$GP$37,14,FALSE)) -> QUADRICEPS | F31: =D32 -> Presse | G31: =IF($G$1=DEBUTMU!$Y$21,HLOOKUP($K$2,DEBUTMU!$AE$1:$DV$37,14,FALSE),HLOOKUP($K$2,DEBUTMU!$DV$1:$GP$37,14,FALSE)) -> 4 | H31: x | I31: =IF($G$1=DEBUTMU!$Y$21,HLOOKUP($L$2,DEBUTMU!$AE$1:$DV$37,14,FALSE),HLOOKUP($L$2,DEBUTMU!$DV$1:$GP$37,14,FALSE)) -> 20 | J31: - | K31: =IF($G$1=DEBUTMU!$Y$21,HLOOKUP($M$2,DEBUTMU!$AE$1:$DV$37,14,FALSE),HLOOKUP($M$2,DEBUTMU!$DV$1:$GP$37,14,FALSE)) -> 45 | L31: "
D32: =IF($G$1=DEBUTMU!$Y$21,HLOOKUP($G$2,DEBUTMU!$AE$1:$DV$37,15,FALSE),HLOOKUP($G$2,DEBUTMU!$DV$1:$GP$37,15,FALSE)) -> Presse | F32: =D31 -> QUADRICEPS | G32: Charge idéale | I32: =IF($G$1=DEBUTMU!$Y$21,HLOOKUP($L$2,DEBUTMU!$AE$1:$DV$37,15,FALSE),HLOOKUP($L$2,DEBUTMU!$DV$1:$GP$37,15,FALSE)) -> 40 | J32: Kg | K32: =100*I32/(VLOOKUP(I31,DEBUTMU!$O$39:$P$68,2,FALSE)) -> 74.07407407 | L32: =TIME(,,(G31*I31*2)+(K31*(G31-1))) -> 00:04:55
B34: =IF($G$1=DEBUTMU!$Y$21,HLOOKUP($M$2,DEBUTMU!$AE$1:$DV$37,17,FALSE),HLOOKUP($M$2,DEBUTMU!$DV$1:$GP$37,17,FALSE)) -> CIRCUIT TRAINING
B35: 6 | K35: Récup' | M35: =VLOOKUP(D37,EX!$B$6:$L$528,8,FALSE) -> 0
D36: =IF($G$1=DEBUTMU!$Y$21,HLOOKUP($G$2,DEBUTMU!$AE$1:$DV$37,16,FALSE),HLOOKUP($G$2,DEBUTMU!$DV$1:$GP$37,16,FALSE)) -> ISCHIOS | F36: =D37 -> Leg curl | G36: =IF($G$1=DEBUTMU!$Y$21,HLOOKUP($K$2,DEBUTMU!$AE$1:$DV$37,16,FALSE),HLOOKUP($K$2,DEBUTMU!$DV$1:$GP$37,16,FALSE)) -> 4 | H36: x | I36: =IF($G$1=DEBUTMU!$Y$21,HLOOKUP($L$2,DEBUTMU!$AE$1:$DV$37,16,FALSE),HLOOKUP($L$2,DEBUTMU!$DV$1:$GP$37,16,FALSE)) -> 20 | J36: - | K36: =IF($G$1=DEBUTMU!$Y$21,HLOOKUP($M$2,DEBUTMU!$AE$1:$DV$37,16,FALSE),HLOOKUP($M$2,DEBUTMU!$DV$1:$GP$37,16,FALSE)) -> 45 | L36: "
D37: =IF($G$1=DEBUTMU!$Y$21,HLOOKUP($G$2,DEBUTMU!$AE$1:$DV$37,17,FALSE),HLOOKUP($G$2,DEBUTMU!$DV$1:$GP$37,17,FALSE)) -> Leg curl | F37: =D36 -> ISCHIOS | G37: Charge idéale | I37: =IF($G$1=DEBUTMU!$Y$21,HLOOKUP($L$2,DEBUTMU!$AE$1:$DV$37,17,FALSE),HLOOKUP($L$2,DEBUTMU!$DV$1:$GP$37,17,FALSE)) -> 20 | J37: Kg | K37: =100*I37/(VLOOKUP(I36,DEBUTMU!$O$39:$P$68,2,FALSE)) -> 37.03703704 | L37: =TIME(,,(G36*I36*2)+(K36*(G36-1))) -> 00:04:55
B39: =IF($G$1=DEBUTMU!$Y$21,HLOOKUP($M$2,DEBUTMU!$AE$1:$DV$37,19,FALSE),HLOOKUP($M$2,DEBUTMU!$DV$1:$GP$37,19,FALSE)) -> CIRCUIT TRAINING
B40: 7 | K40: Récup' | M40: =VLOOKUP(D42,EX!$B$6:$L$528,8,FALSE) -> Tendez les bras au-dessus des épaules. Pliez les bras et laissez redescendre progressivement la barre jusqu'à toucher la poitrine Remontez lentement la barre
D41: =IF($G$1=DEBUTMU!$Y$21,HLOOKUP($G$2,DEBUTMU!$AE$1:$DV$37,18,FALSE),HLOOKUP($G$2,DEBUTMU!$DV$1:$GP$37,18,FALSE)) -> PECTORAUX | F41: =D42 -> Développé couché barre | G41: =IF($G$1=DEBUTMU!$Y$21,HLOOKUP($K$2,DEBUTMU!$AE$1:$DV$37,18,FALSE),HLOOKUP($K$2,DEBUTMU!$DV$1:$GP$37,18,FALSE)) -> 4 | H41: x | I41: =IF($G$1=DEBUTMU!$Y$21,HLOOKUP($L$2,DEBUTMU!$AE$1:$DV$37,18,FALSE),HLOOKUP($L$2,DEBUTMU!$DV$1:$GP$37,18,FALSE)) -> 20 | J41: - | K41: =IF($G$1=DEBUTMU!$Y$21,HLOOKUP($M$2,DEBUTMU!$AE$1:$DV$37,18,FALSE),HLOOKUP($M$2,DEBUTMU!$DV$1:$GP$37,18,FALSE)) -> 45 | L41: "
D42: =IF($G$1=DEBUTMU!$Y$21,HLOOKUP($G$2,DEBUTMU!$AE$1:$DV$37,19,FALSE),HLOOKUP($G$2,DEBUTMU!$DV$1:$GP$37,19,FALSE)) -> Développé couché barre | F42: =D41 -> PECTORAUX | G42: Charge idéale | I42: =IF($G$1=DEBUTMU!$Y$21,HLOOKUP($L$2,DEBUTMU!$AE$1:$DV$37,19,FALSE),HLOOKUP($L$2,DEBUTMU!$DV$1:$GP$37,19,FALSE)) -> 20 | J42: Kg | K42: =100*I42/(VLOOKUP(I41,DEBUTMU!$O$39:$P$68,2,FALSE)) -> 37.03703704 | L42: =TIME(,,(G41*I41*2)+(K41*(G41-1))) -> 00:04:55
B44: =IF($G$1=DEBUTMU!$Y$21,HLOOKUP($M$2,DEBUTMU!$AE$1:$DV$37,21,FALSE),HLOOKUP($M$2,DEBUTMU!$DV$1:$GP$37,21,FALSE)) -> CIRCUIT TRAINING
B45: 8 | K45: Récup' | M45: =VLOOKUP(D47,EX!$B$6:$L$528,8,FALSE) -> 0
D46: =IF($G$1=DEBUTMU!$Y$21,HLOOKUP($G$2,DEBUTMU!$AE$1:$DV$37,20,FALSE),HLOOKUP($G$2,DEBUTMU!$DV$1:$GP$37,20,FALSE)) -> DORSAUX | F46: =D47 -> Tirage poitrine | G46: =IF($G$1=DEBUTMU!$Y$21,HLOOKUP($K$2,DEBUTMU!$AE$1:$DV$37,20,FALSE),HLOOKUP($K$2,DEBUTMU!$DV$1:$GP$37,20,FALSE)) -> 4 | H46: x | I46: =IF($G$1=DEBUTMU!$Y$21,HLOOKUP($L$2,DEBUTMU!$AE$1:$DV$37,20,FALSE),HLOOKUP($L$2,DEBUTMU!$DV$1:$GP$37,20,FALSE)) -> 20 | J46: - | K46: =IF($G$1=DEBUTMU!$Y$21,HLOOKUP($M$2,DEBUTMU!$AE$1:$DV$37,20,FALSE),HLOOKUP($M$2,DEBUTMU!$DV$1:$GP$37,20,FALSE)) -> 45 | L46: "
D47: =IF($G$1=DEBUTMU!$Y$21,HLOOKUP($G$2,DEBUTMU!$AE$1:$DV$37,21,FALSE),HLOOKUP($G$2,DEBUTMU!$DV$1:$GP$37,21,FALSE)) -> Tirage poitrine | F47: =D46 -> DORSAUX | G47: Charge idéale | I47: =IF($G$1=DEBUTMU!$Y$21,HLOOKUP($L$2,DEBUTMU!$AE$1:$DV$37,21,FALSE),HLOOKUP($L$2,DEBUTMU!$DV$1:$GP$37,21,FALSE)) -> 20 | J47: Kg | K47: =100*I47/(VLOOKUP(I46,DEBUTMU!$O$39:$P$68,2,FALSE)) -> 37.03703704 | L47: =TIME(,,(G46*I46*2)+(K46*(G46-1))) -> 00:04:55
B49: =IF($G$1=DEBUTMU!$Y$21,HLOOKUP($M$2,DEBUTMU!$AE$1:$DV$37,23,FALSE),HLOOKUP($M$2,DEBUTMU!$DV$1:$GP$37,23,FALSE)) -> CIRCUIT TRAINING
B50: 9 | K50: Récup' | M50: =VLOOKUP(D52,EX!$B$6:$L$528,8,FALSE) -> 0
D51: =IF($G$1=DEBUTMU!$Y$21,HLOOKUP($G$2,DEBUTMU!$AE$1:$DV$37,22,FALSE),HLOOKUP($G$2,DEBUTMU!$DV$1:$GP$37,22,FALSE)) -> GRAND DROIT | F51: =D52 -> Crunch machine | G51: =IF($G$1=DEBUTMU!$Y$21,HLOOKUP($K$2,DEBUTMU!$AE$1:$DV$37,22,FALSE),HLOOKUP($K$2,DEBUTMU!$DV$1:$GP$37,22,FALSE)) -> 4 | H51: x | I51: =IF($G$1=DEBUTMU!$Y$21,HLOOKUP($L$2,DEBUTMU!$AE$1:$DV$37,22,FALSE),HLOOKUP($L$2,DEBUTMU!$DV$1:$GP$37,22,FALSE)) -> 20 | J51: - | K51: =IF($G$1=DEBUTMU!$Y$21,HLOOKUP($M$2,DEBUTMU!$AE$1:$DV$37,22,FALSE),HLOOKUP($M$2,DEBUTMU!$DV$1:$GP$37,22,FALSE)) -> 45 | L51: "
D52: =IF($G$1=DEBUTMU!$Y$21,HLOOKUP($G$2,DEBUTMU!$AE$1:$DV$37,23,FALSE),HLOOKUP($G$2,DEBUTMU!$DV$1:$GP$37,23,FALSE)) -> Crunch machine | F52: =D51 -> GRAND DROIT | G52: Charge idéale | I52: =IF($G$1=DEBUTMU!$Y$21,HLOOKUP($L$2,DEBUTMU!$AE$1:$DV$37,23,FALSE),HLOOKUP($L$2,DEBUTMU!$DV$1:$GP$37,23,FALSE)) -> 10 | J52: Kg | K52: =100*I52/(VLOOKUP(I51,DEBUTMU!$O$39:$P$68,2,FALSE)) -> 18.51851852 | L52: =TIME(,,(G51*I51*2)+(K51*(G51-1))) -> 00:04:55
B54: =IF($G$1=DEBUTMU!$Y$21,HLOOKUP($M$2,DEBUTMU!$AE$1:$DV$37,25,FALSE),HLOOKUP($M$2,DEBUTMU!$DV$1:$GP$37,25,FALSE)) -> CIRCUIT TRAINING
B55: 10 | K55: Récup' | M55: =VLOOKUP(D57,EX!$B$6:$L$528,8,FALSE) -> 0
D56: =IF($G$1=DEBUTMU!$Y$21,HLOOKUP($G$2,DEBUTMU!$AE$1:$DV$37,24,FALSE),HLOOKUP($G$2,DEBUTMU!$DV$1:$GP$37,24,FALSE)) -> LOMBAIRES | F56: =D57 -> Extension Relevé de buste | G56: =IF($G$1=DEBUTMU!$Y$21,HLOOKUP($K$2,DEBUTMU!$AE$1:$DV$37,24,FALSE),HLOOKUP($K$2,DEBUTMU!$DV$1:$GP$37,24,FALSE)) -> 4 | H56: x | I56: =IF($G$1=DEBUTMU!$Y$21,HLOOKUP($L$2,DEBUTMU!$AE$1:$DV$37,24,FALSE),HLOOKUP($L$2,DEBUTMU!$DV$1:$GP$37,24,FALSE)) -> 20 | J56: - | K56: =IF($G$1=DEBUTMU!$Y$21,HLOOKUP($M$2,DEBUTMU!$AE$1:$DV$37,24,FALSE),HLOOKUP($M$2,DEBUTMU!$DV$1:$GP$37,24,FALSE)) -> 45 | L56: "
D57: =IF($G$1=DEBUTMU!$Y$21,HLOOKUP($G$2,DEBUTMU!$AE$1:$DV$37,25,FALSE),HLOOKUP($G$2,DEBUTMU!$DV$1:$GP$37,25,FALSE)) -> Extension Relevé de buste | F57: =D56 -> LOMBAIRES | G57: Charge idéale | I57: =IF($G$1=DEBUTMU!$Y$21,HLOOKUP($L$2,DEBUTMU!$AE$1:$DV$37,25,FALSE),HLOOKUP($L$2,DEBUTMU!$DV$1:$GP$37,25,FALSE)) -> 10 | J57: Kg | K57: =100*I57/(VLOOKUP(I56,DEBUTMU!$O$39:$P$68,2,FALSE)) -> 18.51851852 | L57: =TIME(,,(G56*I56*2)+(K56*(G56-1))) -> 00:04:55
B59: =IF($G$1=DEBUTMU!$Y$21,HLOOKUP($M$2,DEBUTMU!$AE$1:$DV$37,27,FALSE),HLOOKUP($M$2,DEBUTMU!$DV$1:$GP$37,27,FALSE)) -> CIRCUIT TRAINING
B60: 11 | K60: Récup' | M60: =VLOOKUP(D62,EX!$B$6:$L$528,8,FALSE) -> Tirez lentement la barre vers le haut, jusqu'au niveau des épaules, puis revenez à la position de départ progressivement en contrôlant le retour.
D61: =IF($G$1=DEBUTMU!$Y$21,HLOOKUP($G$2,DEBUTMU!$AE$1:$DV$37,26,FALSE),HLOOKUP($G$2,DEBUTMU!$DV$1:$GP$37,26,FALSE)) -> BICEPS | F61: =D62 -> Curl poulie basse Supination | G61: =IF($G$1=DEBUTMU!$Y$21,HLOOKUP($K$2,DEBUTMU!$AE$1:$DV$37,26,FALSE),HLOOKUP($K$2,DEBUTMU!$DV$1:$GP$37,26,FALSE)) -> 4 | H61: x | I61: =IF($G$1=DEBUTMU!$Y$21,HLOOKUP($L$2,DEBUTMU!$AE$1:$DV$37,26,FALSE),HLOOKUP($L$2,DEBUTMU!$DV$1:$GP$37,26,FALSE)) -> 20 | J61: - | K61: =IF($G$1=DEBUTMU!$Y$21,HLOOKUP($M$2,DEBUTMU!$AE$1:$DV$37,26,FALSE),HLOOKUP($M$2,DEBUTMU!$DV$1:$GP$37,26,FALSE)) -> 45 | L61: "
D62: =IF($G$1=DEBUTMU!$Y$21,HLOOKUP($G$2,DEBUTMU!$AE$1:$DV$37,27,FALSE),HLOOKUP($G$2,DEBUTMU!$DV$1:$GP$37,27,FALSE)) -> Curl poulie basse Supination | F62: =D61 -> BICEPS | G62: Charge idéale | I62: =IF($G$1=DEBUTMU!$Y$21,HLOOKUP($L$2,DEBUTMU!$AE$1:$DV$37,27,FALSE),HLOOKUP($L$2,DEBUTMU!$DV$1:$GP$37,27,FALSE)) -> 10 | J62: Kg | K62: =100*I62/(VLOOKUP(I61,DEBUTMU!$O$39:$P$68,2,FALSE)) -> 18.51851852 | L62: =TIME(,,(G61*I61*2)+(K61*(G61-1))) -> 00:04:55
B64: =IF($G$1=DEBUTMU!$Y$21,HLOOKUP($M$2,DEBUTMU!$AE$1:$DV$37,29,FALSE),HLOOKUP($M$2,DEBUTMU!$DV$1:$GP$37,29,FALSE)) -> CIRCUIT TRAINING
B65: 12 | K65: Récup' | M65: =VLOOKUP(D67,EX!$B$6:$L$528,8,FALSE) -> Tendez complètement les bras vers le bas jusqu’à l’extension complète, les bras restant collés contre le buste puis revenez à la position de départ progressivement en contrôlant le retour.
D66: =IF($G$1=DEBUTMU!$Y$21,HLOOKUP($G$2,DEBUTMU!$AE$1:$DV$37,28,FALSE),HLOOKUP($G$2,DEBUTMU!$DV$1:$GP$37,28,FALSE)) -> TRICEPS | F66: =D67 -> Tirage poulie haute | G66: =IF($G$1=DEBUTMU!$Y$21,HLOOKUP($K$2,DEBUTMU!$AE$1:$DV$37,28,FALSE),HLOOKUP($K$2,DEBUTMU!$DV$1:$GP$37,28,FALSE)) -> 4 | H66: x | I66: =IF($G$1=DEBUTMU!$Y$21,HLOOKUP($L$2,DEBUTMU!$AE$1:$DV$37,28,FALSE),HLOOKUP($L$2,DEBUTMU!$DV$1:$GP$37,28,FALSE)) -> 20 | J66: - | K66: =IF($G$1=DEBUTMU!$Y$21,HLOOKUP($M$2,DEBUTMU!$AE$1:$DV$37,28,FALSE),HLOOKUP($M$2,DEBUTMU!$DV$1:$GP$37,28,FALSE)) -> 45 | L66: "
D67: =IF($G$1=DEBUTMU!$Y$21,HLOOKUP($G$2,DEBUTMU!$AE$1:$DV$37,29,FALSE),HLOOKUP($G$2,DEBUTMU!$DV$1:$GP$37,29,FALSE)) -> Tirage poulie haute | F67: =D66 -> TRICEPS | G67: Charge idéale | I67: =IF($G$1=DEBUTMU!$Y$21,HLOOKUP($L$2,DEBUTMU!$AE$1:$DV$37,29,FALSE),HLOOKUP($L$2,DEBUTMU!$DV$1:$GP$37,29,FALSE)) -> 10 | J67: Kg | K67: =100*I67/(VLOOKUP(I66,DEBUTMU!$O$39:$P$68,2,FALSE)) -> 18.51851852 | L67: =TIME(,,(G66*I66*2)+(K66*(G66-1))) -> 00:04:55
B69: =IF($G$1=DEBUTMU!$Y$21,HLOOKUP($M$2,DEBUTMU!$AE$1:$DV$37,31,FALSE),HLOOKUP($M$2,DEBUTMU!$DV$1:$GP$37,31,FALSE)) -> CIRCUIT TRAINING
B70: 13 | K70: Récup' | M70: =VLOOKUP(D72,EX!$B$6:$L$528,8,FALSE) -> Tendre lentement les jambes jusqu’à l’extension complète Freiner la charge pendant la descente. Puis revenez à la position de départ
D71: =IF($G$1=DEBUTMU!$Y$21,HLOOKUP($G$2,DEBUTMU!$AE$1:$DV$37,30,FALSE),HLOOKUP($G$2,DEBUTMU!$DV$1:$GP$37,30,FALSE)) -> QUADRICEPS | F71: =D72 -> Presse | G71: =IF($G$1=DEBUTMU!$Y$21,HLOOKUP($K$2,DEBUTMU!$AE$1:$DV$37,30,FALSE),HLOOKUP($K$2,DEBUTMU!$DV$1:$GP$37,30,FALSE)) -> 4 | H71: x | I71: =IF($G$1=DEBUTMU!$Y$21,HLOOKUP($L$2,DEBUTMU!$AE$1:$DV$37,30,FALSE),HLOOKUP($L$2,DEBUTMU!$DV$1:$GP$37,30,FALSE)) -> 20 | J71: - | K71: =IF($G$1=DEBUTMU!$Y$21,HLOOKUP($M$2,DEBUTMU!$AE$1:$DV$37,30,FALSE),HLOOKUP($M$2,DEBUTMU!$DV$1:$GP$37,30,FALSE)) -> 45 | L71: "
D72: =IF($G$1=DEBUTMU!$Y$21,HLOOKUP($G$2,DEBUTMU!$AE$1:$DV$37,31,FALSE),HLOOKUP($G$2,DEBUTMU!$DV$1:$GP$37,31,FALSE)) -> Presse | F72: =D71 -> QUADRICEPS | G72: Charge idéale | I72: =IF($G$1=DEBUTMU!$Y$21,HLOOKUP($L$2,DEBUTMU!$AE$1:$DV$37,31,FALSE),HLOOKUP($L$2,DEBUTMU!$DV$1:$GP$37,31,FALSE)) -> 40 | J72: Kg | K72: =100*I72/(VLOOKUP(I71,DEBUTMU!$O$39:$P$68,2,FALSE)) -> 74.07407407 | L72: =TIME(,,(G71*I71*2)+(K71*(G71-1))) -> 00:04:55
B74: =IF($G$1=DEBUTMU!$Y$21,HLOOKUP($M$2,DEBUTMU!$AE$1:$DV$37,33,FALSE),HLOOKUP($M$2,DEBUTMU!$DV$1:$GP$37,33,FALSE)) -> CIRCUIT TRAINING
B75: 14 | K75: Récup' | M75: =VLOOKUP(D77,EX!$B$6:$L$528,8,FALSE) -> 0
D76: =IF($G$1=DEBUTMU!$Y$21,HLOOKUP($G$2,DEBUTMU!$AE$1:$DV$37,32,FALSE),HLOOKUP($G$2,DEBUTMU!$DV$1:$GP$37,32,FALSE)) -> ISCHIOS | F76: =D77 -> Leg curl | G76: =IF($G$1=DEBUTMU!$Y$21,HLOOKUP($K$2,DEBUTMU!$AE$1:$DV$37,32,FALSE),HLOOKUP($K$2,DEBUTMU!$DV$1:$GP$37,32,FALSE)) -> 4 | H76: x | I76: =IF($G$1=DEBUTMU!$Y$21,HLOOKUP($L$2,DEBUTMU!$AE$1:$DV$37,32,FALSE),HLOOKUP($L$2,DEBUTMU!$DV$1:$GP$37,32,FALSE)) -> 20 | J76: - | K76: =IF($G$1=DEBUTMU!$Y$21,HLOOKUP($M$2,DEBUTMU!$AE$1:$DV$37,32,FALSE),HLOOKUP($M$2,DEBUTMU!$DV$1:$GP$37,32,FALSE)) -> 45 | L76: "
D77: =IF($G$1=DEBUTMU!$Y$21,HLOOKUP($G$2,DEBUTMU!$AE$1:$DV$37,33,FALSE),HLOOKUP($G$2,DEBUTMU!$DV$1:$GP$37,33,FALSE)) -> Leg curl | F77: =D76 -> ISCHIOS | G77: Charge idéale | I77: =IF($G$1=DEBUTMU!$Y$21,HLOOKUP($L$2,DEBUTMU!$AE$1:$DV$37,33,FALSE),HLOOKUP($L$2,DEBUTMU!$DV$1:$GP$37,33,FALSE)) -> 20 | J77: Kg | K77: =100*I77/(VLOOKUP(I76,DEBUTMU!$O$39:$P$68,2,FALSE)) -> 37.03703704 | L77: =TIME(,,(G76*I76*2)+(K76*(G76-1))) -> 00:04:55
B79: =IF($G$1=DEBUTMU!$Y$21,HLOOKUP($M$2,DEBUTMU!$AE$1:$DV$37,35,FALSE),HLOOKUP($M$2,DEBUTMU!$DV$1:$GP$37,35,FALSE)) -> CIRCUIT TRAINING
B80: 15 | K80: Récup' | M80: =VLOOKUP(D82,EX!$B$6:$L$528,8,FALSE) -> Tendez les bras au-dessus des épaules. Pliez les bras et laissez redescendre progressivement la barre jusqu'à toucher la poitrine Remontez lentement la barre
D81: =IF($G$1=DEBUTMU!$Y$21,HLOOKUP($G$2,DEBUTMU!$AE$1:$DV$37,34,FALSE),HLOOKUP($G$2,DEBUTMU!$DV$1:$GP$37,34,FALSE)) -> PECTORAUX | F81: =D82 -> Développé couché barre | G81: =IF($G$1=DEBUTMU!$Y$21,HLOOKUP($K$2,DEBUTMU!$AE$1:$DV$37,34,FALSE),HLOOKUP($K$2,DEBUTMU!$DV$1:$GP$37,34,FALSE)) -> 4 | H81: x | I81: =IF($G$1=DEBUTMU!$Y$21,HLOOKUP($L$2,DEBUTMU!$AE$1:$DV$37,34,FALSE),HLOOKUP($L$2,DEBUTMU!$DV$1:$GP$37,34,FALSE)) -> 20 | J81: - | K81: =IF($G$1=DEBUTMU!$Y$21,HLOOKUP($M$2,DEBUTMU!$AE$1:$DV$37,34,FALSE),HLOOKUP($M$2,DEBUTMU!$DV$1:$GP$37,34,FALSE)) -> 45 | L81: "
D82: =IF($G$1=DEBUTMU!$Y$21,HLOOKUP($G$2,DEBUTMU!$AE$1:$DV$37,35,FALSE),HLOOKUP($G$2,DEBUTMU!$DV$1:$GP$37,35,FALSE)) -> Développé couché barre | F82: =D81 -> PECTORAUX | G82: Charge idéale | I82: =IF($G$1=DEBUTMU!$Y$21,HLOOKUP($L$2,DEBUTMU!$AE$1:$DV$37,35,FALSE),HLOOKUP($L$2,DEBUTMU!$DV$1:$GP$37,35,FALSE)) -> 20 | J82: Kg | K82: =100*I82/(VLOOKUP(I81,DEBUTMU!$O$39:$P$68,2,FALSE)) -> 37.03703704 | L82: =TIME(,,(G81*I81*2)+(K81*(G81-1))) -> 00:04:55
B84: =IF($G$1=DEBUTMU!$Y$21,HLOOKUP($M$2,DEBUTMU!$AE$1:$DV$37,37,FALSE),HLOOKUP($M$2,DEBUTMU!$DV$1:$GP$37,37,FALSE)) -> CIRCUIT TRAINING
B85: 16 | K85: Récup' | M85: =VLOOKUP(D87,EX!$B$6:$L$528,8,FALSE) -> 0
D86: =IF($G$1=DEBUTMU!$Y$21,HLOOKUP($G$2,DEBUTMU!$AE$1:$DV$37,36,FALSE),HLOOKUP($G$2,DEBUTMU!$DV$1:$GP$37,36,FALSE)) -> DORSAUX | F86: =D87 -> Tirage poitrine | G86: =IF($G$1=DEBUTMU!$Y$21,HLOOKUP($K$2,DEBUTMU!$AE$1:$DV$37,36,FALSE),HLOOKUP($K$2,DEBUTMU!$DV$1:$GP$37,36,FALSE)) -> 4 | H86: x | I86: =IF($G$1=DEBUTMU!$Y$21,HLOOKUP($L$2,DEBUTMU!$AE$1:$DV$37,36,FALSE),HLOOKUP($L$2,DEBUTMU!$DV$1:$GP$37,36,FALSE)) -> 20 | J86: - | K86: =IF($G$1=DEBUTMU!$Y$21,HLOOKUP($M$2,DEBUTMU!$AE$1:$DV$37,36,FALSE),HLOOKUP($M$2,DEBUTMU!$DV$1:$GP$37,36,FALSE)) -> 45 | L86: "
D87: =IF($G$1=DEBUTMU!$Y$21,HLOOKUP($G$2,DEBUTMU!$AE$1:$DV$37,37,FALSE),HLOOKUP($G$2,DEBUTMU!$DV$1:$GP$37,37,FALSE)) -> Tirage poitrine | F87: =D86 -> DORSAUX | G87: Charge idéale | I87: =IF($G$1=DEBUTMU!$Y$21,HLOOKUP($L$2,DEBUTMU!$AE$1:$DV$37,37,FALSE),HLOOKUP($L$2,DEBUTMU!$DV$1:$GP$37,37,FALSE)) -> 20 | J87: Kg | K87: =100*I87/(VLOOKUP(I86,DEBUTMU!$O$39:$P$68,2,FALSE)) -> 37.03703704 | L87: =TIME(,,(G86*I86*2)+(K86*(G86-1))) -> 00:04:55
G91: Tonnage | I91: =V21 -> 21600 | J91: Kg

Sheet PERMIS MUSCU
B1: TELEC
B2: Classe 1 | H2: Petits rappels | L2: =VLOOKUP($G$2,DEBUTMU!$Z$6:$AC$37,2,FALSE) ->  | N2: Petits rappels | R2: =VLOOKUP($G$2,DEBUTMU!$Z$6:$AC$37,2,FALSE) ->  | X2: Petits rappels | AB2: =VLOOKUP($G$2,DEBUTMU!$Z$6:$AC$37,2,FALSE) ->  | AD2: Petits rappels | AH2: =VLOOKUP($G$2,DEBUTMU!$Z$6:$AC$37,2,FALSE) ->  | AJ2: Petits rappels | AN2: =VLOOKUP($G$2,DEBUTMU!$Z$6:$AC$37,2,FALSE) ->  | AP2: Petits rappels | AT2: =VLOOKUP($G$2,DEBUTMU!$Z$6:$AC$37,2,FALSE) ->  | AV2: Petits rappels | AZ2: =VLOOKUP($G$2,DEBUTMU!$Z$6:$AC$37,2,FALSE) ->  | BB2: Petits rappels | BF2: =VLOOKUP($G$2,DEBUTMU!$Z$6:$AC$37,2,FALSE) ->  | BH2: Petits rappels | BL2: =VLOOKUP($G$2,DEBUTMU!$Z$6:$AC$37,2,FALSE) ->  | BN2: Petits rappels | BR2: =VLOOKUP($G$2,DEBUTMU!$Z$6:$AC$37,2,FALSE) ->  | BT2: Petits rappels | BX2: =VLOOKUP($G$2,DEBUTMU!$Z$6:$AC$37,2,FALSE) ->  | BZ2: Petits rappels | CD2: =VLOOKUP($G$2,DEBUTMU!$Z$6:$AC$37,2,FALSE) ->  | CF2: Petits rappels | CJ2: =VLOOKUP($G$2,DEBUTMU!$Z$6:$AC$37,2,FALSE) ->  | CL2: Petits rappels | CP2: =VLOOKUP($G$2,DEBUTMU!$Z$6:$AC$37,2,FALSE) ->  | CR2: Petits rappels | CV2: =VLOOKUP($G$2,DEBUTMU!$Z$6:$AC$37,2,FALSE) ->  | CX2: Petits rappels | DB2: =VLOOKUP($G$2,DEBUTMU!$Z$6:$AC$37,2,FALSE) ->  | DD2: Petits rappels | DH2: =VLOOKUP($G$2,DEBUTMU!$Z$6:$AC$37,2,FALSE) ->  | DJ2: Petits rappels | DN2: =VLOOKUP($G$2,DEBUTMU!$Z$6:$AC$37,2,FALSE) ->  | DP2: Petits rappels | DT2: =VLOOKUP($G$2,DEBUTMU!$Z$6:$AC$37,2,FALSE) ->  | DV2: Petits rappels | DZ2: =VLOOKUP($G$2,DEBUTMU!$Z$6:$AC$37,2,FALSE) ->  | EB2: Petits rappels | EF2: =VLOOKUP($G$2,DEBUTMU!$Z$6:$AC$37,2,FALSE) ->  | EH2: Petits rappels | EL2: =VLOOKUP($G$2,DEBUTMU!$Z$6:$AC$37,2,FALSE) ->  | EN2: Petits rappels | ER2: =VLOOKUP($G$2,DEBUTMU!$Z$6:$AC$37,2,FALSE) ->  | ET2: Petits rappels | EX2: =VLOOKUP($G$2,DEBUTMU!$Z$6:$AC$37,2,FALSE) ->  | EZ2: Petits rappels | FD2: =VLOOKUP($G$2,DEBUTMU!$Z$6:$AC$37,2,FALSE) ->  | FF2: Petits rappels | FJ2: =VLOOKUP($G$2,DEBUTMU!$Z$6:$AC$37,2,FALSE) ->  | FL2: Petits rappels | FP2: =VLOOKUP($G$2,DEBUTMU!$Z$6:$AC$37,2,FALSE) ->  | FR2: Petits rappels | FV2: =VLOOKUP($G$2,DEBUTMU!$Z$6:$AC$37,2,FALSE) ->  | FX2: Petits rappels | GB2: =VLOOKUP($G$2,DEBUTMU!$Z$6:$AC$37,2,FALSE) ->  | GD2: Petits rappels | GH2: =VLOOKUP($G$2,DEBUTMU!$Z$6:$AC$37,2,FALSE) -> 
H4: 1 | N4: 2 | X4: 3 | AD4: 4 | AJ4: 5 | AP4: 6 | AV4: 7 | BB4: 8 | BH4: 9 | BN4: 10 | BT4: 11 | BZ4: 12 | CF4: 13 | CL4: 14 | CR4: 15 | CX4: 16 | DD4: 17 | DJ4: 18 | DP4: 19 | DV4: 20 | EB4: 21 | EH4: 22 | EN4: 23 | ET4: 24 | EZ4: 25 | FF4: 26 | FL4: 27 | FR4: 28 | FX4: 29 | GD4: 30
H5: =OFFSET(INDEX(eleves,MATCH(H4,numeros,0),MATCH($B$2,classes,0)),0,1) -> Amira | N5: =OFFSET(INDEX(eleves,MATCH(N4,numeros,0),MATCH($B$2,classes,0)),0,1) -> Estelle | V5: MUSCLES | X5: =OFFSET(INDEX(eleves,MATCH(X4,numeros,0),MATCH($B$2,classes,0)),0,1) -> Gentjana | AD5: =OFFSET(INDEX(eleves,MATCH(AD4,numeros,0),MATCH($B$2,classes,0)),0,1) -> Kamylia | AJ5: =OFFSET(INDEX(eleves,MATCH(AJ4,numeros,0),MATCH($B$2,classes,0)),0,1) -> Kathy | AP5: =OFFSET(INDEX(eleves,MATCH(AP4,numeros,0),MATCH($B$2,classes,0)),0,1) -> Maïssa | AV5: =OFFSET(INDEX(eleves,MATCH(AV4,numeros,0),MATCH($B$2,classes,0)),0,1) -> Maryka | BB5: =OFFSET(INDEX(eleves,MATCH(BB4,numeros,0),MATCH($B$2,classes,0)),0,1) -> Mounir | BH5: =OFFSET(INDEX(eleves,MATCH(BH4,numeros,0),MATCH($B$2,classes,0)),0,1) -> Mounir | BN5: =OFFSET(INDEX(eleves,MATCH(BN4,numeros,0),MATCH($B$2,classes,0)),0,1) -> Munire | BT5: =OFFSET(INDEX(eleves,MATCH(BT4,numeros,0),MATCH($B$2,classes,0)),0,1) -> Nesrin | BZ5: =OFFSET(INDEX(eleves,MATCH(BZ4,numeros,0),MATCH($B$2,classes,0)),0,1) -> Nissrine | CF5: =OFFSET(INDEX(eleves,MATCH(CF4,numeros,0),MATCH($B$2,classes,0)),0,1) -> Rith Assirie | CL5: =OFFSET(INDEX(eleves,MATCH(CL4,numeros,0),MATCH($B$2,classes,0)),0,1) -> Ruheda Nefisse | CR5: =OFFSET(INDEX(eleves,MATCH(CR4,numeros,0),MATCH($B$2,classes,0)),0,1) -> Sendes | CX5: =OFFSET(INDEX(eleves,MATCH(CX4,numeros,0),MATCH($B$2,classes,0)),0,1) -> Shaïnez | DD5: =OFFSET(INDEX(eleves,MATCH(DD4,numeros,0),MATCH($B$2,classes,0)),0,1) -> Sihem | DJ5: =OFFSET(INDEX(eleves,MATCH(DJ4,numeros,0),MATCH($B$2,classes,0)),0,1) -> Sueda | DP5: =OFFSET(INDEX(eleves,MATCH(DP4,numeros,0),MATCH($B$2,classes,0)),0,1) -> Zamira | DV5: =OFFSET(INDEX(eleves,MATCH(DV4,numeros,0),MATCH($B$2,classes,0)),0,1) -> Zoulfa | EB5: =OFFSET(INDEX(eleves,MATCH(EB4,numeros,0),MATCH($B$2,classes,0)),0,1) -> Zumra | EH5: =OFFSET(INDEX(eleves,MATCH(EH4,numeros,0),MATCH($B$2,classes,0)),0,1) -> 0 | EN5: =OFFSET(INDEX(eleves,MATCH(EN4,numeros,0),MATCH($B$2,classes,0)),0,1) -> 0 | ET5: =OFFSET(INDEX(eleves,MATCH(ET4,numeros,0),MATCH($B$2,classes,0)),0,1) -> 0 | EZ5: =OFFSET(INDEX(eleves,MATCH(EZ4,numeros,0),MATCH($B$2,classes,0)),0,1) -> 0 | FF5: =OFFSET(INDEX(eleves,MATCH(FF4,numeros,0),MATCH($B$2,classes,0)),0,1) -> 0 | FL5: =OFFSET(INDEX(eleves,MATCH(FL4,numeros,0),MATCH($B$2,classes,0)),0,1) -> 0 | FR5: =OFFSET(INDEX(eleves,MATCH(FR4,numeros,0),MATCH($B$2,classes,0)),0,1) -> 0 | FX5: =OFFSET(INDEX(eleves,MATCH(FX4,numeros,0),MATCH($B$2,classes,0)),0,1) -> 0 | GD5: =OFFSET(INDEX(eleves,MATCH(GD4,numeros,0),MATCH($B$2,classes,0)),0,1) -> 0
H6: =DEBUTMU!$N$175 -> En cours | I6: =DEBUTMU!$N$174 -> Maitrisé | K6: Objectif | N6: =DEBUTMU!$N$175 -> En cours | O6: =DEBUTMU!$N$174 -> Maitrisé | Q6: Objectif | V6: =DEBUTMU!X6 -> PECTORAUX | X6: =DEBUTMU!$N$175 -> En cours | Y6: =DEBUTMU!$N$174 -> Maitrisé | AA6: Objectif | AD6: =DEBUTMU!$N$175 -> En cours | AE6: =DEBUTMU!$N$174 -> Maitrisé | AG6: Objectif | AJ6: =DEBUTMU!$N$175 -> En cours | AK6: =DEBUTMU!$N$174 -> Maitrisé | AM6: Objectif | AP6: =DEBUTMU!$N$175 -> En cours | AQ6: =DEBUTMU!$N$174 -> Maitrisé | AS6: Objectif | AV6: =DEBUTMU!$N$175 -> En cours | AW6: =DEBUTMU!$N$174 -> Maitrisé | AY6: Objectif | BB6: =DEBUTMU!$N$175 -> En cours | BC6: =DEBUTMU!$N$174 -> Maitrisé | BE6: Objectif | BH6: =DEBUTMU!$N$175 -> En cours | BI6: =DEBUTMU!$N$174 -> Maitrisé | BK6: Objectif | BN6: =DEBUTMU!$N$175 -> En cours | BO6: =DEBUTMU!$N$174 -> Maitrisé | BQ6: Objectif | BT6: =DEBUTMU!$N$175 -> En cours | BU6: =DEBUTMU!$N$174 -> Maitrisé | BW6: Objectif | BZ6: =DEBUTMU!$N$175 -> En cours | CA6: =DEBUTMU!$N$174 -> Maitrisé | CC6: Objectif | CF6: =DEBUTMU!$N$175 -> En cours | CG6: =DEBUTMU!$N$174 -> Maitrisé | CI6: Objectif | CL6: =DEBUTMU!$N$175 -> En cours | CM6: =DEBUTMU!$N$174 -> Maitrisé | CO6: Objectif | CR6: =DEBUTMU!$N$175 -> En cours | CS6: =DEBUTMU!$N$174 -> Maitrisé | CU6: Objectif | CX6: =DEBUTMU!$N$175 -> En cours | CY6: =DEBUTMU!$N$174 -> Maitrisé | DA6: Objectif | DD6: =DEBUTMU!$N$175 -> En cours | DE6: =DEBUTMU!$N$174 -> Maitrisé | DG6: Objectif | DJ6: =DEBUTMU!$N$175 -> En cours | DK6: =DEBUTMU!$N$174 -> Maitrisé | DM6: Objectif | DP6: =DEBUTMU!$N$175 -> En cours | DQ6: =DEBUTMU!$N$174 -> Maitrisé | DS6: Objectif | DV6: =DEBUTMU!$N$175 -> En cours | DW6: =DEBUTMU!$N$174 -> Maitrisé | DY6: Objectif | EB6: =DEBUTMU!$N$175 -> En cours | EC6: =DEBUTMU!$N$174 -> Maitrisé | EE6: Objectif | EH6: =DEBUTMU!$N$175 -> En cours | EI6: =DEBUTMU!$N$174 -> Maitrisé | EK6: Objectif | EN6: =DEBUTMU!$N$175 -> En cours | EO6: =DEBUTMU!$N$174 -> Maitrisé | EQ6: Objectif | ET6: =DEBUTMU!$N$175 -> En cours | EU6: =DEBUTMU!$N$174 -> Maitrisé | EW6: Objectif | EZ6: =DEBUTMU!$N$175 -> En cours | FA6: =DEBUTMU!$N$174 -> Maitrisé | FC6: Objectif | FF6: =DEBUTMU!$N$175 -> En cours | FG6: =DEBUTMU!$N$174 -> Maitrisé | FI6: Objectif | FL6: =DEBUTMU!$N$175 -> En cours | FM6: =DEBUTMU!$N$174 -> Maitrisé | FO6: Objectif | FR6: =DEBUTMU!$N$175 -> En cours | FS6: =DEBUTMU!$N$174 -> Maitrisé | FU6: Objectif | FX6: =DEBUTMU!$N$175 -> En cours | FY6: =DEBUTMU!$N$174 -> Maitrisé | GA6: Objectif | GD6: =DEBUTMU!$N$175 -> En cours | GE6: =DEBUTMU!$N$174 -> Maitrisé | GG6: Objectif
D7: S1-CT-TONIF COMPLET | H7: =COUNTIF(G11:L110,H6) -> 1 | I7: =COUNTIF(G11:L110,I6) -> 0 | K7: ENDURANCE FORCE | N7: =COUNTIF(M11:R110,N6) -> 0 | O7: =COUNTIF(M11:R110,O6) -> 0 | Q7: ENDURANCE FORCE | X7: =COUNTIF(W11:AB110,X6) -> 0 | Y7: =COUNTIF(W11:AB110,Y6) -> 0 | AA7: ENDURANCE FORCE | AD7: =COUNTIF(AC11:AH110,AD6) -> 0 | AE7: =COUNTIF(AC11:AH110,AE6) -> 0 | AG7: ENDURANCE FORCE | AJ7: =COUNTIF(AI11:AN110,AJ6) -> 0 | AK7: =COUNTIF(AI11:AN110,AK6) -> 0 | AM7: ENDURANCE FORCE | AP7: =COUNTIF(AO11:AT110,AP6) -> 0 | AQ7: =COUNTIF(AO11:AT110,AQ6) -> 0 | AS7: ENDURANCE FORCE | AV7: =COUNTIF(AU11:AZ110,AV6) -> 0 | AW7: =COUNTIF(AU11:AZ110,AW6) -> 0 | AY7: ENDURANCE FORCE | BB7: =COUNTIF(BA11:BF110,BB6) -> 0 | BC7: =COUNTIF(BA11:BF110,BC6) -> 0 | BE7: ENDURANCE FORCE | BH7: =COUNTIF(BG11:BL110,BH6) -> 0 | BI7: =COUNTIF(BG11:BL110,BI6) -> 0 | BK7: ENDURANCE FORCE | BN7: =COUNTIF(BM11:BR110,BN6) -> 0 | BO7: =COUNTIF(BM11:BR110,BO6) -> 0 | BQ7: ENDURANCE FORCE | BT7: =COUNTIF(BS11:BX110,BT6) -> 0 | BU7: =COUNTIF(BS11:BX110,BU6) -> 0 | BW7: ENDURANCE FORCE | BZ7: =COUNTIF(BY11:CD110,BZ6) -> 0 | CA7: =COUNTIF(BY11:CD110,CA6) -> 0 | CC7: ENDURANCE FORCE | CF7: =COUNTIF(CE11:CJ110,CF6) -> 0 | CG7: =COUNTIF(CE11:CJ110,CG6) -> 0 | CI7: ENDURANCE FORCE | CL7: =COUNTIF(CK11:CP110,CL6) -> 0 | CM7: =COUNTIF(CK11:CP110,CM6) -> 0 | CO7: ENDURANCE FORCE | CR7: =COUNTIF(CQ11:CV110,CR6) -> 0 | CS7: =COUNTIF(CQ11:CV110,CS6) -> 0 | CU7: ENDURANCE FORCE | CX7: =COUNTIF(CW11:DB110,CX6) -> 0 | CY7: =COUNTIF(CW11:DB110,CY6) -> 0 | DA7: ENDURANCE FORCE | DD7: =COUNTIF(DC11:DH110,DD6) -> 0 | DE7: =COUNTIF(DC11:DH110,DE6) -> 0 | DG7: ENDURANCE FORCE | DJ7: =COUNTIF(DI11:DN110,DJ6) -> 0 | DK7: =COUNTIF(DI11:DN110,DK6) -> 0 | DM7: ENDURANCE FORCE | DP7: =COUNTIF(DO11:DT110,DP6) -> 0 | DQ7: =COUNTIF(DO11:DT110,DQ6) -> 0 | DS7: ENDURANCE FORCE | DV7: =COUNTIF(DU11:DZ110,DV6) -> 0 | DW7: =COUNTIF(DU11:DZ110,DW6) -> 0 | DY7: ENDURANCE FORCE | EB7: =COUNTIF(EA11:EF110,EB6) -> 0 | EC7: =COUNTIF(EA11:EF110,EC6) -> 0 | EE7: ENDURANCE FORCE | EH7: =COUNTIF(EG11:EL110,EH6) -> 0 | EI7: =COUNTIF(EG11:EL110,EI6) -> 0 | EK7: ENDURANCE FORCE | EN7: =COUNTIF(EM11:ER110,EN6) -> 0 | EO7: =COUNTIF(EM11:ER110,EO6) -> 0 | EQ7: ENDURANCE FORCE | ET7: =COUNTIF(ES11:EX110,ET6) -> 0 | EU7: =COUNTIF(ES11:EX110,EU6) -> 0 | EW7: ENDURANCE FORCE | EZ7: =COUNTIF(EY11:FD110,EZ6) -> 0 | FA7: =COUNTIF(EY11:FD110,FA6) -> 0 | FC7: ENDURANCE FORCE | FF7: =COUNTIF(FE11:FJ110,FF6) -> 0 | FG7: =COUNTIF(FE11:FJ110,FG6) -> 0 | FI7: ENDURANCE FORCE | FL7: =COUNTIF(FK11:FP110,FL6) -> 0 | FM7: =COUNTIF(FK11:FP110,FM6) -> 0 | FO7: ENDURANCE FORCE | FR7: =COUNTIF(FQ11:FV110,FR6) -> 0 | FS7: =COUNTIF(FQ11:FV110,FS6) -> 0 | FU7: ENDURANCE FORCE | FX7: =COUNTIF(FW11:GB110,FX6) -> 0 | FY7: =COUNTIF(FW11:GB110,FY6) -> 0 | GA7: ENDURANCE FORCE | GD7: =COUNTIF(GC11:GH110,GD6) -> 0 | GE7: =COUNTIF(GC11:GH110,GE6) -> 0 | GG7: ENDURANCE FORCE
D9: PLAN DE SALLE | H9: Points permis | I9: 20 | J9: Aide | K9: 20 | N9: Points permis | O9: 20 | P9: Aide | Q9: 20 | V9: =DEBUTMU!X7 -> GRAND DROIT | X9: Points permis | Y9: 20 | Z9: Aide | AA9: 20 | AD9: Points permis | AE9: 20 | AF9: Aide | AG9: 20 | AJ9: Points permis | AK9: 20 | AL9: Aide | AM9: 20 | AP9: Points permis | AQ9: 20 | AR9: Aide | AS9: 20 | AV9: Points permis | AW9: 20 | AX9: Aide | AY9: 20 | BB9: Points permis | BC9: 20 | BD9: Aide | BE9: 20 | BH9: Points permis | BI9: 20 | BJ9: Aide | BK9: 20 | BN9: Points permis | BO9: 20 | BP9: Aide | BQ9: 20 | BT9: Points permis | BU9: 20 | BV9: Aide | BW9: 20 | BZ9: Points permis | CA9: 20 | CB9: Aide | CC9: 20 | CF9: Points permis | CG9: 20 | CH9: Aide | CI9: 20 | CL9: Points permis | CM9: 20 | CN9: Aide | CO9: 20 | CR9: Points permis | CS9: 20 | CT9: Aide | CU9: 20 | CX9: Points permis | CY9: 20 | CZ9: Aide | DA9: 20 | DD9: Points permis | DE9: 20 | DF9: Aide | DG9: 20 | DJ9: Points permis | DK9: 20 | DL9: Aide | DM9: 20 | DP9: Points permis | DQ9: 20 | DR9: Aide | DS9: 20 | DV9: Points permis | DW9: 20 | DX9: Aide | DY9: 20 | EB9: Points permis | EC9: 20 | ED9: Aide | EE9: 20 | EH9: Points permis | EI9: 20 | EJ9: Aide | EK9: 20 | EN9: Points permis | EO9: 20 | EP9: Aide | EQ9: 20 | ET9: Points permis | EU9: 20 | EV9: Aide | EW9: 20 | EZ9: Points permis | FA9: 20 | FB9: Aide | FC9: 20 | FF9: Points permis | FG9: 20 | FH9: Aide | FI9: 20 | FL9: Points permis | FM9: 20 | FN9: Aide | FO9: 20 | FR9: Points permis | FS9: 20 | FT9: Aide | FU9: 20 | FX9: Points permis | FY9: 20 | FZ9: Aide | GA9: 20 | GD9: Points permis | GE9: 20 | GF9: Aide | GG9: 20
V10: =DEBUTMU!X8 -> OBLIQUES
V11: =DEBUTMU!X9 -> TRAPEZES
B12: 1 | V12: =DEBUTMU!X10 -> DORSAUX
D13: PECTORAUX | F13: =D14 -> Développé couché barre | H13: En cours | J13: Max | L13: Kg | P13: Max | R13: Kg | V13: =DEBUTMU!X11 -> LOMBAIRES | Z13: Max | AB13: Kg | AF13: Max | AH13: Kg | AL13: Max | AN13: Kg | AR13: Max | AT13: Kg | AX13: Max | AZ13: Kg | BD13: Max | BF13: Kg | BJ13: Max | BL13: Kg | BP13: Max | BR13: Kg | BV13: Max | BX13: Kg | CB13: Max | CD13: Kg | CH13: Max | CJ13: Kg | CN13: Max | CP13: Kg | CT13: Max | CV13: Kg | CZ13: Max | DB13: Kg | DF13: Max | DH13: Kg | DL13: Max | DN13: Kg | DR13: Max | DT13: Kg | DX13: Max | DZ13: Kg | ED13: Max | EF13: Kg | EJ13: Max | EL13: Kg | EP13: Max | ER13: Kg | EV13: Max | EX13: Kg | FB13: Max | FD13: Kg | FH13: Max | FJ13: Kg | FN13: Max | FP13: Kg | FT13: Max | FV13: Kg | FZ13: Max | GB13: Kg | GF13: Max | GH13: Kg
D14: Développé couché barre | F14: =D13 -> PECTORAUX | K14: commentaires | V14: =DEBUTMU!X12 -> DELTOIDES
V15: =DEBUTMU!X13 -> BICEPS
V16: =DEBUTMU!X14 -> TRICEPS
B17: 2 | V17: =DEBUTMU!X15 -> QUADRICEPS
D18: DORSAUX | F18: =D19 -> Tirage nuque poulie | J18: Max | L18: Kg | P18: Max | R18: Kg | V18: =DEBUTMU!X16 -> ISCHIOS | Z18: Max | AB18: Kg | AF18: Max | AH18: Kg | AL18: Max | AN18: Kg | AR18: Max | AT18: Kg | AX18: Max | AZ18: Kg | BD18: Max | BF18: Kg | BJ18: Max | BL18: Kg | BP18: Max | BR18: Kg | BV18: Max | BX18: Kg | CB18: Max | CD18: Kg | CH18: Max | CJ18: Kg | CN18: Max | CP18: Kg | CT18: Max | CV18: Kg | CZ18: Max | DB18: Kg | DF18: Max | DH18: Kg | DL18: Max | DN18: Kg | DR18: Max | DT18: Kg | DX18: Max | DZ18: Kg | ED18: Max | EF18: Kg | EJ18: Max | EL18: Kg | EP18: Max | ER18: Kg | EV18: Max | EX18: Kg | FB18: Max | FD18: Kg | FH18: Max | FJ18: Kg | FN18: Max | FP18: Kg | FT18: Max | FV18: Kg | FZ18: Max | GB18: Kg | GF18: Max | GH18: Kg
D19: Tirage nuque poulie | F19: =D18 -> DORSAUX | V19: =DEBUTMU!X17 -> MOLLETS
V20: =DEBUTMU!X18 -> AVANT-BRAS
V21: =DEBUTMU!X19 -> FESSIERS
B22: 3
D23: GRAND DROIT | F23: =D24 -> Crunch machine | J23: Max | L23: Kg | P23: Max | R23: Kg | Z23: Max | AB23: Kg | AF23: Max | AH23: Kg | AL23: Max | AN23: Kg | AR23: Max | AT23: Kg | AX23: Max | AZ23: Kg | BD23: Max | BF23: Kg | BJ23: Max | BL23: Kg | BP23: Max | BR23: Kg | BV23: Max | BX23: Kg | CB23: Max | CD23: Kg | CH23: Max | CJ23: Kg | CN23: Max | CP23: Kg | CT23: Max | CV23: Kg | CZ23: Max | DB23: Kg | DF23: Max | DH23: Kg | DL23: Max | DN23: Kg | DR23: Max | DT23: Kg | DX23: Max | DZ23: Kg | ED23: Max | EF23: Kg | EJ23: Max | EL23: Kg | EP23: Max | ER23: Kg | EV23: Max | EX23: Kg | FB23: Max | FD23: Kg | FH23: Max | FJ23: Kg | FN23: Max | FP23: Kg | FT23: Max | FV23: Kg | FZ23: Max | GB23: Kg | GF23: Max | GH23: Kg
D24: Crunch machine | F24: =D23 -> GRAND DROIT
B27: 4
D28: ISCHIOS | F28: =D29 -> Leg curl allongé ventre | J28: Max | L28: Kg | P28: Max | R28: Kg | Z28: Max | AB28: Kg | AF28: Max | AH28: Kg | AL28: Max | AN28: Kg | AR28: Max | AT28: Kg | AX28: Max | AZ28: Kg | BD28: Max | BF28: Kg | BJ28: Max | BL28: Kg | BP28: Max | BR28: Kg | BV28: Max | BX28: Kg | CB28: Max | CD28: Kg | CH28: Max | CJ28: Kg | CN28: Max | CP28: Kg | CT28: Max | CV28: Kg | CZ28: Max | DB28: Kg | DF28: Max | DH28: Kg | DL28: Max | DN28: Kg | DR28: Max | DT28: Kg | DX28: Max | DZ28: Kg | ED28: Max | EF28: Kg | EJ28: Max | EL28: Kg | EP28: Max | ER28: Kg | EV28: Max | EX28: Kg | FB28: Max | FD28: Kg | FH28: Max | FJ28: Kg | FN28: Max | FP28: Kg | FT28: Max | FV28: Kg | FZ28: Max | GB28: Kg | GF28: Max | GH28: Kg
D29: Leg curl allongé ventre | F29: =D28 -> ISCHIOS
B32: 5
D33: QUADRICEPS | F33: =D34 -> Presse | J33: Max | L33: Kg | P33: Max | R33: Kg | Z33: Max | AB33: Kg | AF33: Max | AH33: Kg | AL33: Max | AN33: Kg | AR33: Max | AT33: Kg | AX33: Max | AZ33: Kg | BD33: Max | BF33: Kg | BJ33: Max | BL33: Kg | BP33: Max | BR33: Kg | BV33: Max | BX33: Kg | CB33: Max | CD33: Kg | CH33: Max | CJ33: Kg | CN33: Max | CP33: Kg | CT33: Max | CV33: Kg | CZ33: Max | DB33: Kg | DF33: Max | DH33: Kg | DL33: Max | DN33: Kg | DR33: Max | DT33: Kg | DX33: Max | DZ33: Kg | ED33: Max | EF33: Kg | EJ33: Max | EL33: Kg | EP33: Max | ER33: Kg | EV33: Max | EX33: Kg | FB33: Max | FD33: Kg | FH33: Max | FJ33: Kg | FN33: Max | FP33: Kg | FT33: Max | FV33: Kg | FZ33: Max | GB33: Kg | GF33: Max | GH33: Kg
D34: Presse | F34: =D33 -> QUADRICEPS
B37: 6
D38: DORSAUX | F38: =D39 -> Tirage poitrine | J38: Max | L38: Kg | P38: Max | R38: Kg | Z38: Max | AB38: Kg | AF38: Max | AH38: Kg | AL38: Max | AN38: Kg | AR38: Max | AT38: Kg | AX38: Max | AZ38: Kg | BD38: Max | BF38: Kg | BJ38: Max | BL38: Kg | BP38: Max | BR38: Kg | BV38: Max | BX38: Kg | CB38: Max | CD38: Kg | CH38: Max | CJ38: Kg | CN38: Max | CP38: Kg | CT38: Max | CV38: Kg | CZ38: Max | DB38: Kg | DF38: Max | DH38: Kg | DL38: Max | DN38: Kg | DR38: Max | DT38: Kg | DX38: Max | DZ38: Kg | ED38: Max | EF38: Kg | EJ38: Max | EL38: Kg | EP38: Max | ER38: Kg | EV38: Max | EX38: Kg | FB38: Max | FD38: Kg | FH38: Max | FJ38: Kg | FN38: Max | FP38: Kg | FT38: Max | FV38: Kg | FZ38: Max | GB38: Kg | GF38: Max | GH38: Kg
D39: Tirage poitrine | F39: =D38 -> DORSAUX
B42: 7
D43: QUADRICEPS | F43: =D44 -> Leg extension | J43: Max | L43: Kg | P43: Max | R43: Kg | Z43: Max | AB43: Kg | AF43: Max | AH43: Kg | AL43: Max | AN43: Kg | AR43: Max | AT43: Kg | AX43: Max | AZ43: Kg | BD43: Max | BF43: Kg | BJ43: Max | BL43: Kg | BP43: Max | BR43: Kg | BV43: Max | BX43: Kg | CB43: Max | CD43: Kg | CH43: Max | CJ43: Kg | CN43: Max | CP43: Kg | CT43: Max | CV43: Kg | CZ43: Max | DB43: Kg | DF43: Max | DH43: Kg | DL43: Max | DN43: Kg | DR43: Max | DT43: Kg | DX43: Max | DZ43: Kg | ED43: Max | EF43: Kg | EJ43: Max | EL43: Kg | EP43: Max | ER43: Kg | EV43: Max | EX43: Kg | FB43: Max | FD43: Kg | FH43: Max | FJ43: Kg | FN43: Max | FP43: Kg | FT43: Max | FV43: Kg | FZ43: Max | GB43: Kg | GF43: Max | GH43: Kg
D44: Leg extension | F44: =D43 -> QUADRICEPS
B47: 8
D48: BICEPS | F48: =D49 -> Curl poulie basse Supination | J48: Max | L48: Kg | P48: Max | R48: Kg | Z48: Max | AB48: Kg | AF48: Max | AH48: Kg | AL48: Max | AN48: Kg | AR48: Max | AT48: Kg | AX48: Max | AZ48: Kg | BD48: Max | BF48: Kg | BJ48: Max | BL48: Kg | BP48: Max | BR48: Kg | BV48: Max | BX48: Kg | CB48: Max | CD48: Kg | CH48: Max | CJ48: Kg | CN48: Max | CP48: Kg | CT48: Max | CV48: Kg | CZ48: Max | DB48: Kg | DF48: Max | DH48: Kg | DL48: Max | DN48: Kg | DR48: Max | DT48: Kg | DX48: Max | DZ48: Kg | ED48: Max | EF48: Kg | EJ48: Max | EL48: Kg | EP48: Max | ER48: Kg | EV48: Max | EX48: Kg | FB48: Max | FD48: Kg | FH48: Max | FJ48: Kg | FN48: Max | FP48: Kg | FT48: Max | FV48: Kg | FZ48: Max | GB48: Kg | GF48: Max | GH48: Kg
D49: Curl poulie basse Supination | F49: =D48 -> BICEPS
B52: 9
D53: TRICEPS | F53: =D54 -> Tirage poulie haute | J53: Max | L53: Kg | P53: Max | R53: Kg | Z53: Max | AB53: Kg | AF53: Max | AH53: Kg | AL53: Max | AN53: Kg | AR53: Max | AT53: Kg | AX53: Max | AZ53: Kg | BD53: Max | BF53: Kg | BJ53: Max | BL53: Kg | BP53: Max | BR53: Kg | BV53: Max | BX53: Kg | CB53: Max | CD53: Kg | CH53: Max | CJ53: Kg | CN53: Max | CP53: Kg | CT53: Max | CV53: Kg | CZ53: Max | DB53: Kg | DF53: Max | DH53: Kg | DL53: Max | DN53: Kg | DR53: Max | DT53: Kg | DX53: Max | DZ53: Kg | ED53: Max | EF53: Kg | EJ53: Max | EL53: Kg | EP53: Max | ER53: Kg | EV53: Max | EX53: Kg | FB53: Max | FD53: Kg | FH53: Max | FJ53: Kg | FN53: Max | FP53: Kg | FT53: Max | FV53: Kg | FZ53: Max | GB53: Kg | GF53: Max | GH53: Kg
D54: Tirage poulie haute | F54: =D53 -> TRICEPS
B57: 10
D58: LOMBAIRES | F58: =D59 -> Extension Relevé de buste | J58: Max | L58: Kg | P58: Max | R58: Kg | Z58: Max | AB58: Kg | AF58: Max | AH58: Kg | AL58: Max | AN58: Kg | AR58: Max | AT58: Kg | AX58: Max | AZ58: Kg | BD58: Max | BF58: Kg | BJ58: Max | BL58: Kg | BP58: Max | BR58: Kg | BV58: Max | BX58: Kg | CB58: Max | CD58: Kg | CH58: Max | CJ58: Kg | CN58: Max | CP58: Kg | CT58: Max | CV58: Kg | CZ58: Max | DB58: Kg | DF58: Max | DH58: Kg | DL58: Max | DN58: Kg | DR58: Max | DT58: Kg | DX58: Max | DZ58: Kg | ED58: Max | EF58: Kg | EJ58: Max | EL58: Kg | EP58: Max | ER58: Kg | EV58: Max | EX58: Kg | FB58: Max | FD58: Kg | FH58: Max | FJ58: Kg | FN58: Max | FP58: Kg | FT58: Max | FV58: Kg | FZ58: Max | GB58: Kg | GF58: Max | GH58: Kg
D59: Extension Relevé de buste | F59: =D58 -> LOMBAIRES
B62: 11
F63: =D64 -> 0 | J63: Max | L63: Kg | P63: Max | R63: Kg | Z63: Max | AB63: Kg | AF63: Max | AH63: Kg | AL63: Max | AN63: Kg | AR63: Max | AT63: Kg | AX63: Max | AZ63: Kg | BD63: Max | BF63: Kg | BJ63: Max | BL63: Kg | BP63: Max | BR63: Kg | BV63: Max | BX63: Kg | CB63: Max | CD63: Kg | CH63: Max | CJ63: Kg | CN63: Max | CP63: Kg | CT63: Max | CV63: Kg | CZ63: Max | DB63: Kg | DF63: Max | DH63: Kg | DL63: Max | DN63: Kg | DR63: Max | DT63: Kg | DX63: Max | DZ63: Kg | ED63: Max | EF63: Kg | EJ63: Max | EL63: Kg | EP63: Max | ER63: Kg | EV63: Max | EX63: Kg | FB63: Max | FD63: Kg | FH63: Max | FJ63: Kg | FN63: Max | FP63: Kg | FT63: Max | FV63: Kg | FZ63: Max | GB63: Kg | GF63: Max | GH63: Kg
F64: =D63 -> 0
B67: 12
F68: =D69 -> 0 | J68: Max | L68: Kg | P68: Max | R68: Kg | Z68: Max | AB68: Kg | AF68: Max | AH68: Kg | AL68: Max | AN68: Kg | AR68: Max | AT68: Kg | AX68: Max | AZ68: Kg | BD68: Max | BF68: Kg | BJ68: Max | BL68: Kg | BP68: Max | BR68: Kg | BV68: Max | BX68: Kg | CB68: Max | CD68: Kg | CH68: Max | CJ68: Kg | CN68: Max | CP68: Kg | CT68: Max | CV68: Kg | CZ68: Max | DB68: Kg | DF68: Max | DH68: Kg | DL68: Max | DN68: Kg | DR68: Max | DT68: Kg | DX68: Max | DZ68: Kg | ED68: Max | EF68: Kg | EJ68: Max | EL68: Kg | EP68: Max | ER68: Kg | EV68: Max | EX68: Kg | FB68: Max | FD68: Kg | FH68: Max | FJ68: Kg | FN68: Max | FP68: Kg | FT68: Max | FV68: Kg | FZ68: Max | GB68: Kg | GF68: Max | GH68: Kg
F69: =D68 -> 0
B72: 13
F73: =D74 -> 0 | J73: Max | L73: Kg | P73: Max | R73: Kg | Z73: Max | AB73: Kg | AF73: Max | AH73: Kg | AL73: Max | AN73: Kg | AR73: Max | AT73: Kg | AX73: Max | AZ73: Kg | BD73: Max | BF73: Kg | BJ73: Max | BL73: Kg | BP73: Max | BR73: Kg | BV73: Max | BX73: Kg | CB73: Max | CD73: Kg | CH73: Max | CJ73: Kg | CN73: Max | CP73: Kg | CT73: Max | CV73: Kg | CZ73: Max | DB73: Kg | DF73: Max | DH73: Kg | DL73: Max | DN73: Kg | DR73: Max | DT73: Kg | DX73: Max | DZ73: Kg | ED73: Max | EF73: Kg | EJ73: Max | EL73: Kg | EP73: Max | ER73: Kg | EV73: Max | EX73: Kg | FB73: Max | FD73: Kg | FH73: Max | FJ73: Kg | FN73: Max | FP73: Kg | FT73: Max | FV73: Kg | FZ73: Max | GB73: Kg | GF73: Max | GH73: Kg
F74: =D73 -> 0
B77: 14
F78: =D79 -> 0 | J78: Max | L78: Kg | P78: Max | R78: Kg | Z78: Max | AB78: Kg | AF78: Max | AH78: Kg | AL78: Max | AN78: Kg | AR78: Max | AT78: Kg | AX78: Max | AZ78: Kg | BD78: Max | BF78: Kg | BJ78: Max | BL78: Kg | BP78: Max | BR78: Kg | BV78: Max | BX78: Kg | CB78: Max | CD78: Kg | CH78: Max | CJ78: Kg | CN78: Max | CP78: Kg | CT78: Max | CV78: Kg | CZ78: Max | DB78: Kg | DF78: Max | DH78: Kg | DL78: Max | DN78: Kg | DR78: Max | DT78: Kg | DX78: Max | DZ78: Kg | ED78: Max | EF78: Kg | EJ78: Max | EL78: Kg | EP78: Max | ER78: Kg | EV78: Max | EX78: Kg | FB78: Max | FD78: Kg | FH78: Max | FJ78: Kg | FN78: Max | FP78: Kg | FT78: Max | FV78: Kg | FZ78: Max | GB78: Kg | GF78: Max | GH78: Kg
F79: =D78 -> 0
B82: 15
F83: =D84 -> 0 | J83: Max | L83: Kg | P83: Max | R83: Kg | Z83: Max | AB83: Kg | AF83: Max | AH83: Kg | AL83: Max | AN83: Kg | AR83: Max | AT83: Kg | AX83: Max | AZ83: Kg | BD83: Max | BF83: Kg | BJ83: Max | BL83: Kg | BP83: Max | BR83: Kg | BV83: Max | BX83: Kg | CB83: Max | CD83: Kg | CH83: Max | CJ83: Kg | CN83: Max | CP83: Kg | CT83: Max | CV83: Kg | CZ83: Max | DB83: Kg | DF83: Max | DH83: Kg | DL83: Max | DN83: Kg | DR83: Max | DT83: Kg | DX83: Max | DZ83: Kg | ED83: Max | EF83: Kg | EJ83: Max | EL83: Kg | EP83: Max | ER83: Kg | EV83: Max | EX83: Kg | FB83: Max | FD83: Kg | FH83: Max | FJ83: Kg | FN83: Max | FP83: Kg | FT83: Max | FV83: Kg | FZ83: Max | GB83: Kg | GF83: Max | GH83: Kg
F84: =D83 -> 0
B87: 16
F88: =D89 -> 0 | J88: Max | L88: Kg | P88: Max | R88: Kg | Z88: Max | AB88: Kg | AF88: Max | AH88: Kg | AL88: Max | AN88: Kg | AR88: Max | AT88: Kg | AX88: Max | AZ88: Kg | BD88: Max | BF88: Kg | BJ88: Max | BL88: Kg | BP88: Max | BR88: Kg | BV88: Max | BX88: Kg | CB88: Max | CD88: Kg | CH88: Max | CJ88: Kg | CN88: Max | CP88: Kg | CT88: Max | CV88: Kg | CZ88: Max | DB88: Kg | DF88: Max | DH88: Kg | DL88: Max | DN88: Kg | DR88: Max | DT88: Kg | DX88: Max | DZ88: Kg | ED88: Max | EF88: Kg | EJ88: Max | EL88: Kg | EP88: Max | ER88: Kg | EV88: Max | EX88: Kg | FB88: Max | FD88: Kg | FH88: Max | FJ88: Kg | FN88: Max | FP88: Kg | FT88: Max | FV88: Kg | FZ88: Max | GB88: Kg | GF88: Max | GH88: Kg
F89: =D88 -> 0
B92: 17
F93: =D94 -> 0 | J93: Max | L93: Kg | P93: Max | R93: Kg | Z93: Max | AB93: Kg | AF93: Max | AH93: Kg | AL93: Max | AN93: Kg | AR93: Max | AT93: Kg | AX93: Max | AZ93: Kg | BD93: Max | BF93: Kg | BJ93: Max | BL93: Kg | BP93: Max | BR93: Kg | BV93: Max | BX93: Kg | CB93: Max | CD93: Kg | CH93: Max | CJ93: Kg | CN93: Max | CP93: Kg | CT93: Max | CV93: Kg | CZ93: Max | DB93: Kg | DF93: Max | DH93: Kg | DL93: Max | DN93: Kg | DR93: Max | DT93: Kg | DX93: Max | DZ93: Kg | ED93: Max | EF93: Kg | EJ93: Max | EL93: Kg | EP93: Max | ER93: Kg | EV93: Max | EX93: Kg | FB93: Max | FD93: Kg | FH93: Max | FJ93: Kg | FN93: Max | FP93: Kg | FT93: Max | FV93: Kg | FZ93: Max | GB93: Kg | GF93: Max | GH93: Kg
F94: =D93 -> 0
B97: 18
F98: =D99 -> 0 | J98: Max | L98: Kg | P98: Max | R98: Kg | Z98: Max | AB98: Kg | AF98: Max | AH98: Kg | AL98: Max | AN98: Kg | AR98: Max | AT98: Kg | AX98: Max | AZ98: Kg | BD98: Max | BF98: Kg | BJ98: Max | BL98: Kg | BP98: Max | BR98: Kg | BV98: Max | BX98: Kg | CB98: Max | CD98: Kg | CH98: Max | CJ98: Kg | CN98: Max | CP98: Kg | CT98: Max | CV98: Kg | CZ98: Max | DB98: Kg | DF98: Max | DH98: Kg | DL98: Max | DN98: Kg | DR98: Max | DT98: Kg | DX98: Max | DZ98: Kg | ED98: Max | EF98: Kg | EJ98: Max | EL98: Kg | EP98: Max | ER98: Kg | EV98: Max | EX98: Kg | FB98: Max | FD98: Kg | FH98: Max | FJ98: Kg | FN98: Max | FP98: Kg | FT98: Max | FV98: Kg | FZ98: Max | GB98: Kg | GF98: Max | GH98: Kg
F99: =D98 -> 0
B102: 19
F103: =D104 -> 0 | J103: Max | L103: Kg | P103: Max | R103: Kg | Z103: Max | AB103: Kg | AF103: Max | AH103: Kg | AL103: Max | AN103: Kg | AR103: Max | AT103: Kg | AX103: Max | AZ103: Kg | BD103: Max | BF103: Kg | BJ103: Max | BL103: Kg | BP103: Max | BR103: Kg | BV103: Max | BX103: Kg | CB103: Max | CD103: Kg | CH103: Max | CJ103: Kg | CN103: Max | CP103: Kg | CT103: Max | CV103: Kg | CZ103: Max | DB103: Kg | DF103: Max | DH103: Kg | DL103: Max | DN103: Kg | DR103: Max | DT103: Kg | DX103: Max | DZ103: Kg | ED103: Max | EF103: Kg | EJ103: Max | EL103: Kg | EP103: Max | ER103: Kg | EV103: Max | EX103: Kg | FB103: Max | FD103: Kg | FH103: Max | FJ103: Kg | FN103: Max | FP103: Kg | FT103: Max | FV103: Kg | FZ103: Max | GB103: Kg | GF103: Max | GH103: Kg
F104: =D103 -> 0
B107: 20
F108: =D109 -> 0 | J108: Max | L108: Kg | P108: Max | R108: Kg | Z108: Max | AB108: Kg | AF108: Max | AH108: Kg | AL108: Max | AN108: Kg | AR108: Max | AT108: Kg | AX108: Max | AZ108: Kg | BD108: Max | BF108: Kg | BJ108: Max | BL108: Kg | BP108: Max | BR108: Kg | BV108: Max | BX108: Kg | CB108: Max | CD108: Kg | CH108: Max | CJ108: Kg | CN108: Max | CP108: Kg | CT108: Max | CV108: Kg | CZ108: Max | DB108: Kg | DF108: Max | DH108: Kg | DL108: Max | DN108: Kg | DR108: Max | DT108: Kg | DX108: Max | DZ108: Kg | ED108: Max | EF108: Kg | EJ108: Max | EL108: Kg | EP108: Max | ER108: Kg | EV108: Max | EX108: Kg | FB108: Max | FD108: Kg | FH108: Max | FJ108: Kg | FN108: Max | FP108: Kg | FT108: Max | FV108: Kg | FZ108: Max | GB108: Kg | GF108: Max | GH108: Kg
F109: =D108 -> 0
B112: Conception | G112: S1 | I112: S6 | M112: S1 | O112: S6 | W112: S1 | Y112: S6 | AC112: S1 | AE112: S6 | AI112: S1 | AK112: S6 | AO112: S1 | AQ112: S6 | AU112: S1 | AW112: S6 | BA112: S1 | BC112: S6 | BG112: S1 | BI112: S6 | BM112: S1 | BO112: S6 | BS112: S1 | BU112: S6 | BY112: S1 | CA112: S6 | CE112: S1 | CG112: S6 | CK112: S1 | CM112: S6 | CQ112: S1 | CS112: S6 | CW112: S1 | CY112: S6 | DC112: S1 | DE112: S6 | DI112: S1 | DK112: S6 | DO112: S1 | DQ112: S6 | DU112: S1 | DW112: S6 | EA112: S1 | EC112: S6 | EG112: S1 | EI112: S6 | EM112: S1 | EO112: S6 | ES112: S1 | EU112: S6 | EY112: S1 | FA112: S6 | FE112: S1 | FG112: S6 | FK112: S1 | FM112: S6 | FQ112: S1 | FS112: S6 | FW112: S1 | FY112: S6 | GC112: S1 | GE112: S6
G113: S2 | I113: S7 | M113: S2 | O113: S7 | W113: S2 | Y113: S7 | AC113: S2 | AE113: S7 | AI113: S2 | AK113: S7 | AO113: S2 | AQ113: S7 | AU113: S2 | AW113: S7 | BA113: S2 | BC113: S7 | BG113: S2 | BI113: S7 | BM113: S2 | BO113: S7 | BS113: S2 | BU113: S7 | BY113: S2 | CA113: S7 | CE113: S2 | CG113: S7 | CK113: S2 | CM113: S7 | CQ113: S2 | CS113: S7 | CW113: S2 | CY113: S7 | DC113: S2 | DE113: S7 | DI113: S2 | DK113: S7 | DO113: S2 | DQ113: S7 | DU113: S2 | DW113: S7 | EA113: S2 | EC113: S7 | EG113: S2 | EI113: S7 | EM113: S2 | EO113: S7 | ES113: S2 | EU113: S7 | EY113: S2 | FA113: S7 | FE113: S2 | FG113: S7 | FK113: S2 | FM113: S7 | FQ113: S2 | FS113: S7 | FW113: S2 | FY113: S7 | GC113: S2 | GE113: S7
G114: S3 | I114: S8 | M114: S3 | O114: S8 | W114: S3 | Y114: S8 | AC114: S3 | AE114: S8 | AI114: S3 | AK114: S8 | AO114: S3 | AQ114: S8 | AU114: S3 | AW114: S8 | BA114: S3 | BC114: S8 | BG114: S3 | BI114: S8 | BM114: S3 | BO114: S8 | BS114: S3 | BU114: S8 | BY114: S3 | CA114: S8 | CE114: S3 | CG114: S8 | CK114: S3 | CM114: S8 | CQ114: S3 | CS114: S8 | CW114: S3 | CY114: S8 | DC114: S3 | DE114: S8 | DI114: S3 | DK114: S8 | DO114: S3 | DQ114: S8 | DU114: S3 | DW114: S8 | EA114: S3 | EC114: S8 | EG114: S3 | EI114: S8 | EM114: S3 | EO114: S8 | ES114: S3 | EU114: S8 | EY114: S3 | FA114: S8 | FE114: S3 | FG114: S8 | FK114: S3 | FM114: S8 | FQ114: S3 | FS114: S8 | FW114: S3 | FY114: S8 | GC114: S3 | GE114: S8
G115: S4 | I115: S9 | M115: S4 | O115: S9 | W115: S4 | Y115: S9 | AC115: S4 | AE115: S9 | AI115: S4 | AK115: S9 | AO115: S4 | AQ115: S9 | AU115: S4 | AW115: S9 | BA115: S4 | BC115: S9 | BG115: S4 | BI115: S9 | BM115: S4 | BO115: S9 | BS115: S4 | BU115: S9 | BY115: S4 | CA115: S9 | CE115: S4 | CG115: S9 | CK115: S4 | CM115: S9 | CQ115: S4 | CS115: S9 | CW115: S4 | CY115: S9 | DC115: S4 | DE115: S9 | DI115: S4 | DK115: S9 | DO115: S4 | DQ115: S9 | DU115: S4 | DW115: S9 | EA115: S4 | EC115: S9 | EG115: S4 | EI115: S9 | EM115: S4 | EO115: S9 | ES115: S4 | EU115: S9 | EY115: S4 | FA115: S9 | FE115: S4 | FG115: S9 | FK115: S4 | FM115: S9 | FQ115: S4 | FS115: S9 | FW115: S4 | FY115: S9 | GC115: S4 | GE115: S9
G116: S5 | I116: S10 | M116: S5 | O116: S10 | W116: S5 | Y116: S10 | AC116: S5 | AE116: S10 | AI116: S5 | AK116: S10 | AO116: S5 | AQ116: S10 | AU116: S5 | AW116: S10 | BA116: S5 | BC116: S10 | BG116: S5 | BI116: S10 | BM116: S5 | BO116: S10 | BS116: S5 | BU116: S10 | BY116: S5 | CA116: S10 | CE116: S5 | CG116: S10 | CK116: S5 | CM116: S10 | CQ116: S5 | CS116: S10 | CW116: S5 | CY116: S10 | DC116: S5 | DE116: S10 | DI116: S5 | DK116: S10 | DO116: S5 | DQ116: S10 | DU116: S5 | DW116: S10 | EA116: S5 | EC116: S10 | EG116: S5 | EI116: S10 | EM116: S5 | EO116: S10 | ES116: S5 | EU116: S10 | EY116: S5 | FA116: S10 | FE116: S5 | FG116: S10 | FK116: S5 | FM116: S10 | FQ116: S5 | FS116: S10 | FW116: S5 | FY116: S10 | GC116: S5 | GE116: S10
B119: Echauffement | G119: S1 | I119: S6 | M119: S1 | O119: S6 | W119: S1 | Y119: S6 | AC119: S1 | AE119: S6 | AI119: S1 | AK119: S6 | AO119: S1 | AQ119: S6 | AU119: S1 | AW119: S6 | BA119: S1 | BC119: S6 | BG119: S1 | BI119: S6 | BM119: S1 | BO119: S6 | BS119: S1 | BU119: S6 | BY119: S1 | CA119: S6 | CE119: S1 | CG119: S6 | CK119: S1 | CM119: S6 | CQ119: S1 | CS119: S6 | CW119: S1 | CY119: S6 | DC119: S1 | DE119: S6 | DI119: S1 | DK119: S6 | DO119: S1 | DQ119: S6 | DU119: S1 | DW119: S6 | EA119: S1 | EC119: S6 | EG119: S1 | EI119: S6 | EM119: S1 | EO119: S6 | ES119: S1 | EU119: S6 | EY119: S1 | FA119: S6 | FE119: S1 | FG119: S6 | FK119: S1 | FM119: S6 | FQ119: S1 | FS119: S6 | FW119: S1 | FY119: S6 | GC119: S1 | GE119: S6
G120: S2 | I120: S7 | M120: S2 | O120: S7 | W120: S2 | Y120: S7 | AC120: S2 | AE120: S7 | AI120: S2 | AK120: S7 | AO120: S2 | AQ120: S7 | AU120: S2 | AW120: S7 | BA120: S2 | BC120: S7 | BG120: S2 | BI120: S7 | BM120: S2 | BO120: S7 | BS120: S2 | BU120: S7 | BY120: S2 | CA120: S7 | CE120: S2 | CG120: S7 | CK120: S2 | CM120: S7 | CQ120: S2 | CS120: S7 | CW120: S2 | CY120: S7 | DC120: S2 | DE120: S7 | DI120: S2 | DK120: S7 | DO120: S2 | DQ120: S7 | DU120: S2 | DW120: S7 | EA120: S2 | EC120: S7 | EG120: S2 | EI120: S7 | EM120: S2 | EO120: S7 | ES120: S2 | EU120: S7 | EY120: S2 | FA120: S7 | FE120: S2 | FG120: S7 | FK120: S2 | FM120: S7 | FQ120: S2 | FS120: S7 | FW120: S2 | FY120: S7 | GC120: S2 | GE120: S7
G121: S3 | I121: S8 | M121: S3 | O121: S8 | W121: S3 | Y121: S8 | AC121: S3 | AE121: S8 | AI121: S3 | AK121: S8 | AO121: S3 | AQ121: S8 | AU121: S3 | AW121: S8 | BA121: S3 | BC121: S8 | BG121: S3 | BI121: S8 | BM121: S3 | BO121: S8 | BS121: S3 | BU121: S8 | BY121: S3 | CA121: S8 | CE121: S3 | CG121: S8 | CK121: S3 | CM121: S8 | CQ121: S3 | CS121: S8 | CW121: S3 | CY121: S8 | DC121: S3 | DE121: S8 | DI121: S3 | DK121: S8 | DO121: S3 | DQ121: S8 | DU121: S3 | DW121: S8 | EA121: S3 | EC121: S8 | EG121: S3 | EI121: S8 | EM121: S3 | EO121: S8 | ES121: S3 | EU121: S8 | EY121: S3 | FA121: S8 | FE121: S3 | FG121: S8 | FK121: S3 | FM121: S8 | FQ121: S3 | FS121: S8 | FW121: S3 | FY121: S8 | GC121: S3 | GE121: S8
G122: S4 | I122: S9 | M122: S4 | O122: S9 | W122: S4 | Y122: S9 | AC122: S4 | AE122: S9 | AI122: S4 | AK122: S9 | AO122: S4 | AQ122: S9 | AU122: S4 | AW122: S9 | BA122: S4 | BC122: S9 | BG122: S4 | BI122: S9 | BM122: S4 | BO122: S9 | BS122: S4 | BU122: S9 | BY122: S4 | CA122: S9 | CE122: S4 | CG122: S9 | CK122: S4 | CM122: S9 | CQ122: S4 | CS122: S9 | CW122: S4 | CY122: S9 | DC122: S4 | DE122: S9 | DI122: S4 | DK122: S9 | DO122: S4 | DQ122: S9 | DU122: S4 | DW122: S9 | EA122: S4 | EC122: S9 | EG122: S4 | EI122: S9 | EM122: S4 | EO122: S9 | ES122: S4 | EU122: S9 | EY122: S4 | FA122: S9 | FE122: S4 | FG122: S9 | FK122: S4 | FM122: S9 | FQ122: S4 | FS122: S9 | FW122: S4 | FY122: S9 | GC122: S4 | GE122: S9
G123: S5 | I123: S10 | M123: S5 | O123: S10 | W123: S5 | Y123: S10 | AC123: S5 | AE123: S10 | AI123: S5 | AK123: S10 | AO123: S5 | AQ123: S10 | AU123: S5 | AW123: S10 | BA123: S5 | BC123: S10 | BG123: S5 | BI123: S10 | BM123: S5 | BO123: S10 | BS123: S5 | BU123: S10 | BY123: S5 | CA123: S10 | CE123: S5 | CG123: S10 | CK123: S5 | CM123: S10 | CQ123: S5 | CS123: S10 | CW123: S5 | CY123: S10 | DC123: S5 | DE123: S10 | DI123: S5 | DK123: S10 | DO123: S5 | DQ123: S10 | DU123: S5 | DW123: S10 | EA123: S5 | EC123: S10 | EG123: S5 | EI123: S10 | EM123: S5 | EO123: S10 | ES123: S5 | EU123: S10 | EY123: S5 | FA123: S10 | FE123: S5 | FG123: S10 | FK123: S5 | FM123: S10 | FQ123: S5 | FS123: S10 | FW123: S5 | FY123: S10 | GC123: S5 | GE123: S10
B126: Analyse | G126: S1 | I126: S6 | M126: S1 | O126: S6 | W126: S1 | Y126: S6 | AC126: S1 | AE126: S6 | AI126: S1 | AK126: S6 | AO126: S1 | AQ126: S6 | AU126: S1 | AW126: S6 | BA126: S1 | BC126: S6 | BG126: S1 | BI126: S6 | BM126: S1 | BO126: S6 | BS126: S1 | BU126: S6 | BY126: S1 | CA126: S6 | CE126: S1 | CG126: S6 | CK126: S1 | CM126: S6 | CQ126: S1 | CS126: S6 | CW126: S1 | CY126: S6 | DC126: S1 | DE126: S6 | DI126: S1 | DK126: S6 | DO126: S1 | DQ126: S6 | DU126: S1 | DW126: S6 | EA126: S1 | EC126: S6 | EG126: S1 | EI126: S6 | EM126: S1 | EO126: S6 | ES126: S1 | EU126: S6 | EY126: S1 | FA126: S6 | FE126: S1 | FG126: S6 | FK126: S1 | FM126: S6 | FQ126: S1 | FS126: S6 | FW126: S1 | FY126: S6 | GC126: S1 | GE126: S6
G127: S2 | I127: S7 | M127: S2 | O127: S7 | W127: S2 | Y127: S7 | AC127: S2 | AE127: S7 | AI127: S2 | AK127: S7 | AO127: S2 | AQ127: S7 | AU127: S2 | AW127: S7 | BA127: S2 | BC127: S7 | BG127: S2 | BI127: S7 | BM127: S2 | BO127: S7 | BS127: S2 | BU127: S7 | BY127: S2 | CA127: S7 | CE127: S2 | CG127: S7 | CK127: S2 | CM127: S7 | CQ127: S2 | CS127: S7 | CW127: S2 | CY127: S7 | DC127: S2 | DE127: S7 | DI127: S2 | DK127: S7 | DO127: S2 | DQ127: S7 | DU127: S2 | DW127: S7 | EA127: S2 | EC127: S7 | EG127: S2 | EI127: S7 | EM127: S2 | EO127: S7 | ES127: S2 | EU127: S7 | EY127: S2 | FA127: S7 | FE127: S2 | FG127: S7 | FK127: S2 | FM127: S7 | FQ127: S2 | FS127: S7 | FW127: S2 | FY127: S7 | GC127: S2 | GE127: S7
G128: S3 | I128: S8 | M128: S3 | O128: S8 | W128: S3 | Y128: S8 | AC128: S3 | AE128: S8 | AI128: S3 | AK128: S8 | AO128: S3 | AQ128: S8 | AU128: S3 | AW128: S8 | BA128: S3 | BC128: S8 | BG128: S3 | BI128: S8 | BM128: S3 | BO128: S8 | BS128: S3 | BU128: S8 | BY128: S3 | CA128: S8 | CE128: S3 | CG128: S8 | CK128: S3 | CM128: S8 | CQ128: S3 | CS128: S8 | CW128: S3 | CY128: S8 | DC128: S3 | DE128: S8 | DI128: S3 | DK128: S8 | DO128: S3 | DQ128: S8 | DU128: S3 | DW128: S8 | EA128: S3 | EC128: S8 | EG128: S3 | EI128: S8 | EM128: S3 | EO128: S8 | ES128: S3 | EU128: S8 | EY128: S3 | FA128: S8 | FE128: S3 | FG128: S8 | FK128: S3 | FM128: S8 | FQ128: S3 | FS128: S8 | FW128: S3 | FY128: S8 | GC128: S3 | GE128: S8
G129: S4 | I129: S9 | M129: S4 | O129: S9 | W129: S4 | Y129: S9 | AC129: S4 | AE129: S9 | AI129: S4 | AK129: S9 | AO129: S4 | AQ129: S9 | AU129: S4 | AW129: S9 | BA129: S4 | BC129: S9 | BG129: S4 | BI129: S9 | BM129: S4 | BO129: S9 | BS129: S4 | BU129: S9 | BY129: S4 | CA129: S9 | CE129: S4 | CG129: S9 | CK129: S4 | CM129: S9 | CQ129: S4 | CS129: S9 | CW129: S4 | CY129: S9 | DC129: S4 | DE129: S9 | DI129: S4 | DK129: S9 | DO129: S4 | DQ129: S9 | DU129: S4 | DW129: S9 | EA129: S4 | EC129: S9 | EG129: S4 | EI129: S9 | EM129: S4 | EO129: S9 | ES129: S4 | EU129: S9 | EY129: S4 | FA129: S9 | FE129: S4 | FG129: S9 | FK129: S4 | FM129: S9 | FQ129: S4 | FS129: S9 | FW129: S4 | FY129: S9 | GC129: S4 | GE129: S9
G130: S5 | I130: S10 | M130: S5 | O130: S10 | W130: S5 | Y130: S10 | AC130: S5 | AE130: S10 | AI130: S5 | AK130: S10 | AO130: S5 | AQ130: S10 | AU130: S5 | AW130: S10 | BA130: S5 | BC130: S10 | BG130: S5 | BI130: S10 | BM130: S5 | BO130: S10 | BS130: S5 | BU130: S10 | BY130: S5 | CA130: S10 | CE130: S5 | CG130: S10 | CK130: S5 | CM130: S10 | CQ130: S5 | CS130: S10 | CW130: S5 | CY130: S10 | DC130: S5 | DE130: S10 | DI130: S5 | DK130: S10 | DO130: S5 | DQ130: S10 | DU130: S5 | DW130: S10 | EA130: S5 | EC130: S10 | EG130: S5 | EI130: S10 | EM130: S5 | EO130: S10 | ES130: S5 | EU130: S10 | EY130: S5 | FA130: S10 | FE130: S5 | FG130: S10 | FK130: S5 | FM130: S10 | FQ130: S5 | FS130: S10 | FW130: S5 | FY130: S10 | GC130: S5 | GE130: S10
B132: NOTE CYCLE
H133: 3 | I133: Appréciations

Sheet CODE DE LA SALLE
B2: CE QU'IL NE FAUT PAS FAIRE | H2: POINTS PERDUS
B3: UTILISATION DE LA SALLE
B4: S'asseoir sur les machines sans les utiliser | H4: -1
B5: Laisser trainer le matériel utilisé | H5: -1
B6: Dégrader le matériel | H6: -4
B7: Sortir de la salle sans autorisation | H7: -1
B9: ENGAGEMENT
B11: Bacler son échauffement | H11: -2
B12: Farniente | H12: -1
B14: REALISATION
B15: Mettre une charge trop élevée sans autorisation du prof | H15: -1
B16: Mettre son dos en danger | H16: -4
B17: Dégrader régulièrement son mouvement malgré les consignes | H17: -2
B20: ATTITUDES
B21: Déconcentrer un camarade en train de réaliser un exercice | H21: -2
B22: Etre inattentif en tant que pareur sur un atelier difficile | H22: -2
B23: Gêner volontairement la réalisation d'un camarade | H23: -4
B25: Vulgarités | H25: -1

Sheet SECURITE
B2: SECURITE EN MUSCULATION
B4: JE ME PRESERVE EN PRESERVANT LE MATERIEL
C5: Je vérifie le matériel avant de l'utiliser (stop disque, qualité du cable,…)
C6: Je range le matériel après utilisation
C7: Je décharge la barre en alternant les extrémités ou à 2 en même temps
C8: Je pose les disques au sol délicatement
B10: JE PRESERVE MON INTEGRITE PHYSIQUE
C11: Je choisis des charges adaptées : TROP LOURD = DANGER
C12: Je m'entraine vétu pour éviter de glisser sur les machines
C13: Je m'échauffe correctement
C14: Je demande au professeur si j'ai un doute sur un exercice
C15: Je travaille de manière équilibrée
B17: JE PRESERVE MON DOS
C18: Quand je porte des charges je plie les genoux
C20: Je ne cambre pas le dos quand je suis aux machines (monter les jambes poiur coller le dos)
B22: JE PRESERVE MES ARTICULATIONS
C23: J'arrête le mouvement avant le blocage articulaire
B25: JE PRESERVE L'INTEGRITE DE MES CAMARADES
C26: Je reste proche de mon partenaire et me tiens prêt à intervenir si nécessaire
C28: Je le corrige pour améliorer la réalisaton de son mouvement
B30: LES GRANDS PRINCIPES
C31: Placement : respecter strictement le placement indiqué pour chaque atelier
C32: Respiration : placer l'expiration = souffler en fin d’effort dans la plupart des exercices (pas de blocage respiratoire) SAUF dans certains exercices de certains tirages lors de l’ouverture de la cage thoracique lors.ou en continu dans les exercices d’abdominaux,
C33: Amplitude : bien finir le mouvement , du début à la fin , sans toutefois aller en « butée » articulaire (surtout lors des extensions).
C34: Vitesse : contrôler la vitesse d’exécution : pas trop vite, pas de « temps de ressort », et adapter la vitesse au mobile choisi.
C35: Charge : doit être progressive et bien adaptée aux particularités individuelles.
C36: Récupération : On se muscle en dormant ! 8 heures par nuit (et sieste) C’est pendant le sommeil profond que le corps sécrète le plus l’hormone de croissance. Cette hormone est indispensable à la réparation et au développement des muscles.

Sheet AFC-CYCLE
E1: PROJET DE CYCLE
C2: CYCLE DE DECOUVERTE | E2: Prévoir, réaliser et réguler des séquences de musculation en toute sécurité (pour soi et pour les autres) grâce à la connaissances de différents paramètres (méthodes, SRIR, ..), à la maitrise des critères de réalisation de chaque exercice et à l'analyse des effets de la pratique sur soi.
B3: ATTENDUS | E3: S1 | F3: S2 | G3: S3 | H3: S4 | I3: S5 | J3: S6 | K3: S7 | L3: S8 | M3: CCF | N3: RATTRAPAGE
B4: A1 | C4: Construire une séance cohérente au regard du thème d'entrainement personnalisé gérant les paramètres SRIR | E4: La séance et les paramètres sont gérés par le prof. Seules les réps sont modulables entre 15 et 25. | G4: L'élève choisit les ateliers parmis ceux présentés lors des séances précédentes pour construire ses mini CT-AA | H4: L'élève choisit ses Biset en réalisant pour chaque GM un exo déjà vu et un exo petit mat ou pdc | I4: Choisir des exercices préférentiels pour connaître son max.Augmentation progressive de la charge grâce aux Infos / tableau de conversion. | J4: Echanges avec le professeur pour préciser son projet et mieux comprendre les différents paramètres adaptés à mon objectif | K4: Echanges avec le professeur pour préciser son projet et mieux comprendre les différents paramètres adaptés à mon objectif | L4: Construction complètement autonome avec valdiation du prof | M4: La tablette est surpprimée au profit d'une feuille blanche (ou d'un tableau simple)
B5: A2 | C5: S'échauffer en autonomie | E5: L'échauffement est réalisé par le prof : séquences de corde à sauter, articulations, CrossT du prof | G5: Echauffement géré par un élève du groupe avec adaptation possibles des exos du CrossT | H5: Echauffement géré par un élève du groupe avec adaptation possibles des exos du CrossT | I5: Echauffement autonome par binôme si envie | J5: Echauffement adapté au thème d'entrainement | M5: Les signes d'un échuaffement efficace sont ils visibles : transpiration ,essoufflement, rougeurs,…?
B6: A3 | C6: Agir en sécurité | E6: Les code de la salle est présenté aux élèves ainsi que les consignes de sécurité essentielles. Charges légères | F6: Les élèves rappellent en début d'heure les consignes essentielles. Charges légères | G6: Les élèves autorisés peuvent commencer à moduler un peu les charges | H6: Réaliser 2 séries d'échauffement sans charge sur les ateliers. | I6: Réaliser 2 séries d'échauffement sans charge sur les ateliers. | J6: Possibilité de récupérer des points sur son permis (ou d'en perdre davantage) | M6: La sécurité active et passive est elle assurée ?
B7: A4 | C7: Maitriser les exercices réalisés (postures, mouvements, respiration, vitesse d'exécution, …) | E7: Les démonstrations sont réalisées par un élève en suivant les consignes du prof tous ensemble. Une fiche sur chaque atelier / tablette | F7: Les élèves doivent prendre connaissance de la fiche atelier avant de réaliser l'exercice. Demander au prof en cas de doute | G7: Les exerices choisis font l'objet d'un questionnement avant de les réaliser | H7: Les élèves doivent consulter les fiches du 2nd exo choisi et/ou interroger l'enseignant sur la bonne réalisation | I7: La réalisation des exercices doit être maitrisée pour pouvoir augmenter les charges (permis muscu) / avis du prof | J7: Les exercices choisis sont maitrisés. Un exercice nouveau / séance est proposé (comprend les cirtères /fiches) | M7: L'élève est il capable de réaliser un nouvel exercice en ocnsultant la fiche atelier ou en demandant l'aide de l'enseignant ?
B8: A5 | C8: Corriger et aider un partenaire | E8: Les coach doivent corriger la posture du dos essentiellement | F8: ainsi que la posture | G8: et la réalisation précise | H8: on insiste sur la respiration pour avoir plus de force : charge un peu plus lourde. Parade active | I8: La parade doit être active | J8: Le camarade doit corrigé systématiquement son camarade si celui-ci ne réalise pas correctement un exercice. La parade doit être activte | M8: L'élève connaît il oralement les critères de réalisation et sait-il les observer chez un camarade ?
B9: A6 | C9: Récupérer de sa séance : étirements, relaxation | E9: Les étirements et la relaxation sont gérés par le prof | F9: Les étirements et la relaxation sont gérés par le prof mais aidés des élèves | G9: Les étirements sont gérés par les élèves. La relaxation prise en charge par le prof | H9: Fin de séance gérée en autonomie | I9: Fin de séance gérée en autonomie | M9: Les étirements sont ils réalisés efficacement. La relxation a t'elle un effet positif sur le retour au calme ?
B10: A7 | C10: Réaliser un bilan de sa séance (ressentis, liens, …) | E10: Le bilan est global sur la séance en utilisant les mots inscrits dans la tablette | F10: Le bilan est est réalisé par paire d'exercices en utilisant les mots inscrits dans la tablette | G10: Le bilan est réalisé par trio d'exos. Avec précisions sur les charges choisies | H10: Bilan complet et précisé par paire d'exos. Perspectives séances prochaines | J10: Bilan et régulation tout au long de la séance et en fin de séance. Perspectives plus précises (SRIR) | M10: Le bilan est il explicite ? Analyse t'il les ressentis pour réguler ?
C11: THEME D'ENTRAINEMENT | E11: TONIFICATION | F11: TONIFICATION | G11: TONIFICATION | H11: VOLUME | I11: PUISSANCE | J11: PREMIER PAS VERS LE PROJET | K11: AFFINEMENT DU PROJET | L11: DETERMINATION DU PROJET | M11: Les différences entre les différents thèmes d'entrainement sont elles perçues et comprises ?
E12: Par 2 : 1 élève n°1- 1 élève n°2 | F12: Par 2 : 1 élève n°1- 1 élève n°2 | G12: Par 2 : 1 élève n°1- 1 élève n°2 | H12: Par 2 : 1 élève n°1- 1 élève n°2 | I12: Par 2 | M12: Le binôme est il soudé ?
C13: Méthodes proposées | E13: Circuit training | F13: Agoniste-Antagoniste | G13: Mini Circuit training Agoniste-Antagoniste | H13: Biset | I13: Pyramidal | J13: D'autres méthodes sont envisagées si nécessaire | M13: Les méthodes sont elles maitrisées ?
C14: Type de travail | E14: 8 exercices - 30" travail n°1 - 10" rotation-30" travail n°2-2 séries 15 à 25 réps/exercice | F14: 8 exercices - 20 réps Agoniste enchainé avec 20 réps antagoniste- 1' récup'. Alterner avec son binôme | G14: Construire 3 mini CT-AA. 4 séries : Enchainer 20 réps A-20 réps Anta-20 réps exo abdos- 30" de pause. Alterner avec son binôme | H14: 3 à 4 groupes musculaires. Enchainer 2 exercices sans pause - 2x20 réps - 4 séries - 1'30 réps | I14: 2 à 3 exercices. Réaliser une pyramide montante de 6 séries. 2 séries de chauffe (20 réps légères) + 4 séries avec augmentation progressive de la charge et baisse du nb de réps : 15 - 12- 8 - 5 | J14: 40 ' de travail efficace | M14: L'engagement est il suffisant ?
C15: Charge des machines | E15: Légère | F15: Moyenne | G15: Moyenne | H15: Moyenne + | I15: Lourde | J15: Adaptée au projet | M15: Les charges sont elles adaptées ?

Sheet S1
B1: 1META | C1: Séance | E1: 1 | G1: Programme Prof | N1: Méthode d'entrainement
B2: Abdel Nour | D2: 28 | E2: Décembre | G2: S1-CT-TONIF COMPLET | K2: =VLOOKUP($G$2,DEBUTMU!$Z$6:$AC$37,2,FALSE) -> SERIE-CHARGE-S1-CT-TONIF COMPLET | L2: =VLOOKUP($G$2,DEBUTMU!$Z$6:$AC$37,3,FALSE) -> REPS-POURCENT-S1-CT-TONIF COMPLET | M2: =VLOOKUP($G$2,DEBUTMU!$Z$6:$AC$37,4,FALSE) -> RECUP-METH-S1-CT-TONIF COMPLET | N2: =IF($G$1=DEBUTMU!$Y$21,HLOOKUP($M$2,DEBUTMU!$AE$1:$DV$37,5,FALSE),HLOOKUP($M$2,DEBUTMU!$EB$1:$GP$37,5,FALSE)) -> CIRCUIT TRAINING
D4: Objectif séance | G4: Séries | I4: Réps | M4: Conseils d'entrainement
D5: =IF($G$1=DEBUTMU!$Y$21,HLOOKUP($G$2,DEBUTMU!$AE$1:$DV$37,4,FALSE),HLOOKUP($G$2,DEBUTMU!$EB$1:$GP$37,4,FALSE)) -> Circuit training Salle Haltéro | G5: =IF($G$1=DEBUTMU!$Y$21,HLOOKUP($K$2,DEBUTMU!$AE$1:$DV$37,4,FALSE),HLOOKUP($K$2,DEBUTMU!$EB$1:$GP$37,4,FALSE)) -> 4 | H5: x | I5: =IF($G$1=DEBUTMU!$Y$21,HLOOKUP($L$2,DEBUTMU!$AE$1:$DV$37,4,FALSE),HLOOKUP($L$2,DEBUTMU!$EB$1:$GP$37,4,FALSE)) -> 20 | M5: =VLOOKUP(G2,DEBUTMU!Z6:AD37,5,FALSE) -> Pour progresser il faut s'appliquer sur les exercices sinon on risque de se blesser. | P5: Durée estimée de la séance | U5: MUSCLES | V5: TONNAGE/MUSCLE | W5: EXO 1 | X5: EXO 2 | Y5: EXO 3 | Z5: EXO 4 | AA5: EXO 5 | AB5: EXO 6 | AC5: EXO 7 | AD5: EXO 8 | AE5: EXO 9 | AF5: EXO 10 | AG5: EXO 11 | AH5: EXO 12 | AI5: EXO 13 | AJ5: EXO 14 | AK5: EXO 15 | AL5: EXO 16
K6: Récup'/séries | U6: =DEBUTMU!X6 -> PECTORAUX | V6: =SUM(W6:AL6) -> 3200 | W6: =IFERROR(VLOOKUP(U6,$D$11:$I$11,4,FALSE)*VLOOKUP(U6,$D$11:$I$11,6,FALSE)*VLOOKUP(U6,$F$12:$I$12,4,FALSE),0) -> 0 | X6: =IFERROR(VLOOKUP(U6,$D$16:$I$16,4,FALSE)*VLOOKUP(U6,$D$16:$I$16,6,FALSE)*VLOOKUP(U6,$F$17:$I$17,4,FALSE),0) -> 0 | Y6: =IFERROR(VLOOKUP(U6,$D$21:$I$21,4,FALSE)*VLOOKUP(U6,$D$21:$I$21,6,FALSE)*VLOOKUP(U6,F22:I22,4,FALSE),0) -> 0 | Z6: =IFERROR(VLOOKUP(U6,$D$26:$I$26,4,FALSE)*VLOOKUP(U6,$D$26:$I$26,6,FALSE)*VLOOKUP(U6,$F$27:$I$27,4,FALSE),0) -> 0 | AA6: =IFERROR(VLOOKUP(U6,$D$31:$I$31,4,FALSE)*VLOOKUP(U6,$D$31:$I$31,6,FALSE)*VLOOKUP(U6,$F$32:$I$32,4,FALSE),0) -> 0 | AB6: =IFERROR(VLOOKUP(U6,$D$36:$I$36,4,FALSE)*VLOOKUP(U6,$D$36:$I$36,6,FALSE)*VLOOKUP(U6,$F$37:$I$37,4,FALSE),0) -> 0 | AC6: =IFERROR(VLOOKUP(U6,$D$41:$I$41,4,FALSE)*VLOOKUP(U6,$D$41:$I$41,6,FALSE)*VLOOKUP(U6,$F$42:$I$42,4,FALSE),0) -> 1600 | AD6: =IFERROR(VLOOKUP(U6,$D$46:$I$46,4,FALSE)*VLOOKUP(U6,$D$46:$I$46,6,FALSE)*VLOOKUP(U6,$F$47:$I$47,4,FALSE),0) -> 0 | AE6: =IFERROR(VLOOKUP(U6,$D$51:$I$51,4,FALSE)*VLOOKUP(U6,$D$51:$I$51,6,FALSE)*VLOOKUP(U6,$F$52:$I$52,4,FALSE),0) -> 0 | AF6: =IFERROR(VLOOKUP(U6,$D$56:$I$56,4,FALSE)*VLOOKUP(U6,$D$56:$I$56,6,FALSE)*VLOOKUP(U6,$F$57:$I$57,4,FALSE),0) -> 0 | AG6: =IFERROR(VLOOKUP(U6,$D$61:$I$61,4,FALSE)*VLOOKUP(U6,$D$61:$I$61,6,FALSE)*VLOOKUP(U6,$F$62:$I$62,4,FALSE),0) -> 0 | AH6: =IFERROR(VLOOKUP(U6,$D$66:$I$66,4,FALSE)*VLOOKUP(U6,$D$66:$I$66,6,FALSE)*VLOOKUP(U6,$F$67:$I$67,4,FALSE),0) -> 0 | AI6: =IFERROR(VLOOKUP(U6,$D$71:$I$71,4,FALSE)*VLOOKUP(U6,$D$71:$I$71,6,FALSE)*VLOOKUP(U6,$F$72:$I$72,4,FALSE),0) -> 0 | AJ6: =IFERROR(VLOOKUP(U6,$D$76:$I$76,4,FALSE)*VLOOKUP(U6,$D$76:$I$76,6,FALSE)*VLOOKUP(U6,$F$77:$I$77,4,FALSE),0) -> 0 | AK6: =IFERROR(VLOOKUP(U6,$D$81:$I$81,4,FALSE)*VLOOKUP(U6,$D$81:$I$81,6,FALSE)*VLOOKUP(U6,$F$82:$I$82,4,FALSE),0) -> 1600 | AL6: =IFERROR(VLOOKUP(U6,$D$86:$I$86,4,FALSE)*VLOOKUP(U6,$D$86:$I$86,6,FALSE)*VLOOKUP(U6,$F$87:$I$87,4,FALSE),0) -> 0
G7: Pourcentage Charge idéale | I7: =IF($G$1=DEBUTMU!$Y$21,HLOOKUP($K$2,DEBUTMU!$AE$1:$DV$37,5,FALSE),HLOOKUP($K$2,DEBUTMU!$EB$1:$GP$37,5,FALSE)) -> 60 | J7: % | K7: =IF($G$1=DEBUTMU!$Y$21,HLOOKUP($M$2,DEBUTMU!$AE$1:$DV$37,4,FALSE),HLOOKUP($M$2,DEBUTMU!$EB$1:$GP$37,4,FALSE)) -> 45 | L7: " | P7: =(L12+L17+L22+L27+L32+L37+L42+L47+L52+L57+L62+L67+L72+L77+L82+L87)+(L12+L17+L22+L27+L32+L37+L42+L47+L52+L57+L62+L67+L72+L77+L82+L87)*10/100 -> 01:26:32 | U7: =DEBUTMU!X7 -> GRAND DROIT | V7: =SUM(W7:AL7) -> 1600 | W7: =IFERROR(VLOOKUP(U7,$D$11:$I$11,4,FALSE)*VLOOKUP(U7,$D$11:$I$11,6,FALSE)*VLOOKUP(U7,$F$12:$I$12,4,FALSE),0) -> 800 | X7: =IFERROR(VLOOKUP(U7,$D$16:$I$16,4,FALSE)*VLOOKUP(U7,$D$16:$I$16,6,FALSE)*VLOOKUP(U7,$F$17:$I$17,4,FALSE),0) -> 0 | Y7: =IFERROR(VLOOKUP(U7,$D$21:$I$21,4,FALSE)*VLOOKUP(U7,$D$21:$I$21,6,FALSE)*VLOOKUP(U7,F23:I23,4,FALSE),0) -> 0 | Z7: =IFERROR(VLOOKUP(U7,$D$26:$I$26,4,FALSE)*VLOOKUP(U7,$D$26:$I$26,6,FALSE)*VLOOKUP(U7,$F$27:$I$27,4,FALSE),0) -> 0 | AA7: =IFERROR(VLOOKUP(U7,$D$31:$I$31,4,FALSE)*VLOOKUP(U7,$D$31:$I$31,6,FALSE)*VLOOKUP(U7,$F$32:$I$32,4,FALSE),0) -> 0 | AB7: =IFERROR(VLOOKUP(U7,$D$36:$I$36,4,FALSE)*VLOOKUP(U7,$D$36:$I$36,6,FALSE)*VLOOKUP(U7,$F$37:$I$37,4,FALSE),0) -> 0 | AC7: =IFERROR(VLOOKUP(U7,$D$41:$I$41,4,FALSE)*VLOOKUP(U7,$D$41:$I$41,6,FALSE)*VLOOKUP(U7,$F$42:$I$42,4,FALSE),0) -> 0 | AD7: =IFERROR(VLOOKUP(U7,$D$46:$I$46,4,FALSE)*VLOOKUP(U7,$D$46:$I$46,6,FALSE)*VLOOKUP(U7,$F$47:$I$47,4,FALSE),0) -> 0 | AE7: =IFERROR(VLOOKUP(U7,$D$51:$I$51,4,FALSE)*VLOOKUP(U7,$D$51:$I$51,6,FALSE)*VLOOKUP(U7,$F$52:$I$52,4,FALSE),0) -> 800 | AF7: =IFERROR(VLOOKUP(U7,$D$56:$I$56,4,FALSE)*VLOOKUP(U7,$D$56:$I$56,6,FALSE)*VLOOKUP(U7,$F$57:$I$57,4,FALSE),0) -> 0 | AG7: =IFERROR(VLOOKUP(U7,$D$61:$I$61,4,FALSE)*VLOOKUP(U7,$D$61:$I$61,6,FALSE)*VLOOKUP(U7,$F$62:$I$62,4,FALSE),0) -> 0 | AH7: =IFERROR(VLOOKUP(U7,$D$66:$I$66,4,FALSE)*VLOOKUP(U7,$D$66:$I$66,6,FALSE)*VLOOKUP(U7,$F$67:$I$67,4,FALSE),0) -> 0 | AI7: =IFERROR(VLOOKUP(U7,$D$71:$I$71,4,FALSE)*VLOOKUP(U7,$D$71:$I$71,6,FALSE)*VLOOKUP(U7,$F$72:$I$72,4,FALSE),0) -> 0 | AJ7: =IFERROR(VLOOKUP(U7,$D$76:$I$76,4,FALSE)*VLOOKUP(U7,$D$76:$I$76,6,FALSE)*VLOOKUP(U7,$F$77:$I$77,4,FALSE),0) -> 0 | AK7: =IFERROR(VLOOKUP(U7,$D$81:$I$81,4,FALSE)*VLOOKUP(U7,$D$81:$I$81,6,FALSE)*VLOOKUP(U7,$F$82:$I$82,4,FALSE),0) -> 0 | AL7: =IFERROR(VLOOKUP(U7,$D$86:$I$86,4,FALSE)*VLOOKUP(U7,$D$86:$I$86,6,FALSE)*VLOOKUP(U7,$F$87:$I$87,4,FALSE),0) -> 0
U8: =DEBUTMU!X8 -> OBLIQUES | V8: 0 | W8: 0 | X8: 0 | Y8: 0 | Z8: 0 | AA8: 0 | AB8: 0 | AC8: 0 | AD8: 0 | AE8: 0 | AF8: 0 | AG8: 0 | AH8: 0 | AI8: 0 | AJ8: 0 | AK8: 0 | AL8: 0
B9: =IF($G$1=DEBUTMU!$Y$21,HLOOKUP($M$2,DEBUTMU!$AE$1:$DV$37,7,FALSE),HLOOKUP($M$2,DEBUTMU!$EB$1:$GP$37,7,FALSE)) -> CIRCUIT TRAINING | U9: =DEBUTMU!X9 -> TRAPEZES | V9: 0 | W9: 0 | X9: 0 | Y9: 0 | Z9: 0 | AA9: 0 | AB9: 0 | AC9: 0 | AD9: 0 | AE9: 0 | AF9: 0 | AG9: 0 | AH9: 0 | AI9: 0 | AJ9: 0 | AK9: 0 | AL9: 0
B10: 1 | K10: Récup' | M10: =VLOOKUP(D12,EX!$B$6:$L$528,8,FALSE) -> 0 | U10: =DEBUTMU!X10 -> DORSAUX | V10: 3200 | W10: 0 | X10: 0 | Y10: 0 | Z10: 0 | AA10: 0 | AB10: 0 | AC10: 0 | AD10: 1600 | AE10: 0 | AF10: 0 | AG10: 0 | AH10: 0 | AI10: 0 | AJ10: 0 | AK10: 0 | AL10: 1600
D11: =IF($G$1=DEBUTMU!$Y$21,HLOOKUP($G$2,DEBUTMU!$AE$1:$DV$37,6,FALSE),HLOOKUP($G$2,DEBUTMU!$EB$1:$GP$37,6,FALSE)) -> GRAND DROIT | F11: =D12 -> Crunch machine | G11: =IF($G$1=DEBUTMU!$Y$21,HLOOKUP($K$2,DEBUTMU!$AE$1:$DV$37,6,FALSE),HLOOKUP($K$2,DEBUTMU!$EB$1:$GP$37,6,FALSE)) -> 4 | H11: x | I11: =IF($G$1=DEBUTMU!$Y$21,HLOOKUP($L$2,DEBUTMU!$AE$1:$DV$37,6,FALSE),HLOOKUP($L$2,DEBUTMU!$EB$1:$GP$37,6,FALSE)) -> 20 | J11: - | K11: =IF($G$1=DEBUTMU!$Y$21,HLOOKUP($M$2,DEBUTMU!$AE$1:$DV$37,6,FALSE),HLOOKUP($M$2,DEBUTMU!$EB$1:$GP$37,6,FALSE)) -> 45 | L11: " | Q11: Ressenti | U11: =DEBUTMU!X11 -> LOMBAIRES | V11: 1600 | W11: 0 | X11: 800 | Y11: 0 | Z11: 0 | AA11: 0 | AB11: 0 | AC11: 0 | AD11: 0 | AE11: 0 | AF11: 800 | AG11: 0 | AH11: 0 | AI11: 0 | AJ11: 0 | AK11: 0 | AL11: 0
D12: =IF($G$1=DEBUTMU!$Y$21,HLOOKUP($G$2,DEBUTMU!$AE$1:$DV$37,7,FALSE),HLOOKUP($G$2,DEBUTMU!$EB$1:$GP$37,7,FALSE)) -> Crunch machine | F12: =D11 -> GRAND DROIT | G12: Charge idéale | I12: =IF($G$1=DEBUTMU!$Y$21,HLOOKUP($L$2,DEBUTMU!$AE$1:$DV$37,7,FALSE),HLOOKUP($L$2,DEBUTMU!$EB$1:$GP$37,7,FALSE)) -> 10 | J12: Kg | K12: =100*I12/(VLOOKUP(I11,DEBUTMU!$O$39:$P$68,2,FALSE)) -> 18.51851852 | L12: =TIME(,,(G11*I11*2)+(K11*(G11-1))) -> 00:04:55 | U12: =DEBUTMU!X12 -> DELTOIDES | V12: 0 | W12: 0 | X12: 0 | Y12: 0 | Z12: 0 | AA12: 0 | AB12: 0 | AC12: 0 | AD12: 0 | AE12: 0 | AF12: 0 | AG12: 0 | AH12: 0 | AI12: 0 | AJ12: 0 | AK12: 0 | AL12: 0
U13: =DEBUTMU!X13 -> BICEPS | V13: 800 | W13: 0 | X13: 0 | Y13: 0 | Z13: 0 | AA13: 0 | AB13: 0 | AC13: 0 | AD13: 0 | AE13: 0 | AF13: 0 | AG13: 800 | AH13: 0 | AI13: 0 | AJ13: 0 | AK13: 0 | AL13: 0
B14: =IF($G$1=DEBUTMU!$Y$21,HLOOKUP($M$2,DEBUTMU!$AE$1:$DV$37,9,FALSE),HLOOKUP($M$2,DEBUTMU!$EB$1:$GP$37,9,FALSE)) -> CIRCUIT TRAINING | U14: =DEBUTMU!X14 -> TRICEPS | V14: 1600 | W14: 0 | X14: 0 | Y14: 0 | Z14: 800 | AA14: 0 | AB14: 0 | AC14: 0 | AD14: 0 | AE14: 0 | AF14: 0 | AG14: 0 | AH14: 800 | AI14: 0 | AJ14: 0 | AK14: 0 | AL14: 0
B15: 2 | K15: Récup' | M15: =VLOOKUP(D17,EX!$B$6:$L$528,8,FALSE) -> 0 | U15: =DEBUTMU!X15 -> QUADRICEPS | V15: 6400 | W15: 0 | X15: 0 | Y15: 0 | Z15: 0 | AA15: 3200 | AB15: 0 | AC15: 0 | AD15: 0 | AE15: 0 | AF15: 0 | AG15: 0 | AH15: 0 | AI15: 3200 | AJ15: 0 | AK15: 0 | AL15: 0
D16: =IF($G$1=DEBUTMU!$Y$21,HLOOKUP($G$2,DEBUTMU!$AE$1:$DV$37,8,FALSE),HLOOKUP($G$2,DEBUTMU!$EB$1:$GP$37,8,FALSE)) -> LOMBAIRES | F16: =D17 -> Extension Relevé de buste | G16: =IF($G$1=DEBUTMU!$Y$21,HLOOKUP($K$2,DEBUTMU!$AE$1:$DV$37,8,FALSE),HLOOKUP($K$2,DEBUTMU!$EB$1:$GP$37,8,FALSE)) -> 4 | H16: x | I16: =IF($G$1=DEBUTMU!$Y$21,HLOOKUP($L$2,DEBUTMU!$AE$1:$DV$37,8,FALSE),HLOOKUP($L$2,DEBUTMU!$EB$1:$GP$37,8,FALSE)) -> 20 | J16: - | K16: =IF($G$1=DEBUTMU!$Y$21,HLOOKUP($M$2,DEBUTMU!$AE$1:$DV$37,8,FALSE),HLOOKUP($M$2,DEBUTMU!$EB$1:$GP$37,8,FALSE)) -> 45 | L16: " | U16: =DEBUTMU!X16 -> ISCHIOS | V16: 3200 | W16: 0 | X16: 0 | Y16: 0 | Z16: 0 | AA16: 0 | AB16: 1600 | AC16: 0 | AD16: 0 | AE16: 0 | AF16: 0 | AG16: 0 | AH16: 0 | AI16: 0 | AJ16: 1600 | AK16: 0 | AL16: 0
D17: =IF($G$1=DEBUTMU!$Y$21,HLOOKUP($G$2,DEBUTMU!$AE$1:$DV$37,9,FALSE),HLOOKUP($G$2,DEBUTMU!$EB$1:$GP$37,9,FALSE)) -> Extension Relevé de buste | F17: =D16 -> LOMBAIRES | G17: Charge idéale | I17: =IF($G$1=DEBUTMU!$Y$21,HLOOKUP($L$2,DEBUTMU!$AE$1:$DV$37,9,FALSE),HLOOKUP($L$2,DEBUTMU!$EB$1:$GP$37,9,FALSE)) -> 10 | J17: Kg | K17: =100*I17/(VLOOKUP(I16,DEBUTMU!$O$39:$P$68,2,FALSE)) -> 18.51851852 | L17: =TIME(,,(G16*I16*2)+(K16*(G16-1))) -> 00:04:55 | U17: =DEBUTMU!X17 -> MOLLETS | V17: 0 | W17: 0 | X17: 0 | Y17: 0 | Z17: 0 | AA17: 0 | AB17: 0 | AC17: 0 | AD17: 0 | AE17: 0 | AF17: 0 | AG17: 0 | AH17: 0 | AI17: 0 | AJ17: 0 | AK17: 0 | AL17: 0
U18: =DEBUTMU!X18 -> AVANT-BRAS | V18: 0 | W18: 0 | X18: 0 | Y18: 0 | Z18: 0 | AA18: 0 | AB18: 0 | AC18: 0 | AD18: 0 | AE18: 0 | AF18: 0 | AG18: 0 | AH18: 0 | AI18: 0 | AJ18: 0 | AK18: 0 | AL18: 0
B19: =IF($G$1=DEBUTMU!$Y$21,HLOOKUP($M$2,DEBUTMU!$AE$1:$DV$37,11,FALSE),HLOOKUP($M$2,DEBUTMU!$EB$1:$GP$37,11,FALSE)) -> CIRCUIT TRAINING | U19: =DEBUTMU!X19 -> FESSIERS | V19: 0 | W19: 0 | X19: 0 | Y19: 0 | Z19: 0 | AA19: 0 | AB19: 0 | AC19: 0 | AD19: 0 | AE19: 0 | AF19: 0 | AG19: 0 | AH19: 0 | AI19: 0 | AJ19: 0 | AK19: 0 | AL19: 0
B20: 3 | K20: Récup' | M20: =VLOOKUP(D22,EX!$B$6:$L$528,8,FALSE) -> Tirez lentement la barre vers le haut, jusqu'au niveau des épaules, puis revenez à la position de départ progressivement en contrôlant le retour. | W20: 0 | X20: 0 | Y20: 0 | Z20: 0 | AA20: 0 | AB20: 0 | AC20: 0 | AD20: 0 | AE20: 0 | AF20: 0 | AG20: 0 | AH20: 0 | AI20: 0 | AJ20: 0 | AK20: 0 | AL20: 0
D21: =IF($G$1=DEBUTMU!$Y$21,HLOOKUP($G$2,DEBUTMU!$AE$1:$DV$37,10,FALSE),HLOOKUP($G$2,DEBUTMU!$EB$1:$GP$37,10,FALSE)) -> BICEPS | F21: =D22 -> Curl poulie basse Supination | G21: =IF($G$1=DEBUTMU!$Y$21,HLOOKUP($K$2,DEBUTMU!$AE$1:$DV$37,10,FALSE),HLOOKUP($K$2,DEBUTMU!$EB$1:$GP$37,10,FALSE)) -> 4 | H21: x | I21: =IF($G$1=DEBUTMU!$Y$21,HLOOKUP($L$2,DEBUTMU!$AE$1:$DV$37,10,FALSE),HLOOKUP($L$2,DEBUTMU!$EB$1:$GP$37,10,FALSE)) -> 20 | J21: - | K21: =IF($G$1=DEBUTMU!$Y$21,HLOOKUP($M$2,DEBUTMU!$AE$1:$DV$37,10,FALSE),HLOOKUP($M$2,DEBUTMU!$EB$1:$GP$37,10,FALSE)) -> 45 | L21: " | U21: TONNAGE TOTAL | V21: =SUM(V6:V19) -> 21600 | Y21: haut | Z21: 0
D22: =IF($G$1=DEBUTMU!$Y$21,HLOOKUP($G$2,DEBUTMU!$AE$1:$DV$37,11,FALSE),HLOOKUP($G$2,DEBUTMU!$EB$1:$GP$37,11,FALSE)) -> Curl poulie basse Supination | F22: =D21 -> BICEPS | G22: Charge idéale | I22: =IF($G$1=DEBUTMU!$Y$21,HLOOKUP($L$2,DEBUTMU!$AE$1:$DV$37,11,FALSE),HLOOKUP($L$2,DEBUTMU!$EB$1:$GP$37,11,FALSE)) -> 10 | J22: Kg | K22: =100*I22/(VLOOKUP(I21,DEBUTMU!$O$39:$P$68,2,FALSE)) -> 18.51851852 | L22: =TIME(,,(G21*I21*2)+(K21*(G21-1))) -> 00:04:55 | Y22: bas | Z22: 0
Y23: gauche | Z23: 0
B24: =IF($G$1=DEBUTMU!$Y$21,HLOOKUP($M$2,DEBUTMU!$AE$1:$DV$37,13,FALSE),HLOOKUP($M$2,DEBUTMU!$EB$1:$GP$37,13,FALSE)) -> CIRCUIT TRAINING | Y24: droite | Z24: 0
B25: 4 | K25: Récup' | M25: =VLOOKUP(D27,EX!$B$6:$L$528,8,FALSE) -> Tendez complètement les bras vers le bas jusqu’à l’extension complète, les bras restant collés contre le buste puis revenez à la position de départ progressivement en contrôlant le retour.
D26: =IF($G$1=DEBUTMU!$Y$21,HLOOKUP($G$2,DEBUTMU!$AE$1:$DV$37,12,FALSE),HLOOKUP($G$2,DEBUTMU!$EB$1:$GP$37,12,FALSE)) -> TRICEPS | F26: =D27 -> Tirage poulie haute | G26: =IF($G$1=DEBUTMU!$Y$21,HLOOKUP($K$2,DEBUTMU!$AE$1:$DV$37,12,FALSE),HLOOKUP($K$2,DEBUTMU!$EB$1:$GP$37,12,FALSE)) -> 4 | H26: x | I26: =IF($G$1=DEBUTMU!$Y$21,HLOOKUP($L$2,DEBUTMU!$AE$1:$DV$37,12,FALSE),HLOOKUP($L$2,DEBUTMU!$EB$1:$GP$37,12,FALSE)) -> 20 | J26: - | K26: =IF($G$1=DEBUTMU!$Y$21,HLOOKUP($M$2,DEBUTMU!$AE$1:$DV$37,12,FALSE),HLOOKUP($M$2,DEBUTMU!$EB$1:$GP$37,12,FALSE)) -> 45 | L26: "
D27: =IF($G$1=DEBUTMU!$Y$21,HLOOKUP($G$2,DEBUTMU!$AE$1:$DV$37,13,FALSE),HLOOKUP($G$2,DEBUTMU!$EB$1:$GP$37,13,FALSE)) -> Tirage poulie haute | F27: =D26 -> TRICEPS | G27: Charge idéale | I27: =IF($G$1=DEBUTMU!$Y$21,HLOOKUP($L$2,DEBUTMU!$AE$1:$DV$37,13,FALSE),HLOOKUP($L$2,DEBUTMU!$EB$1:$GP$37,13,FALSE)) -> 10 | J27: Kg | K27: =100*I27/(VLOOKUP(I26,DEBUTMU!$O$39:$P$68,2,FALSE)) -> 18.51851852 | L27: =TIME(,,(G26*I26*2)+(K26*(G26-1))) -> 00:04:55
B29: =IF($G$1=DEBUTMU!$Y$21,HLOOKUP($M$2,DEBUTMU!$AE$1:$DV$37,15,FALSE),HLOOKUP($M$2,DEBUTMU!$EB$1:$GP$37,15,FALSE)) -> CIRCUIT TRAINING
B30: 5 | K30: Récup' | M30: =VLOOKUP(D32,EX!$B$6:$L$528,8,FALSE) -> Tendre lentement les jambes jusqu’à l’extension complète Freiner la charge pendant la descente. Puis revenez à la position de départ
D31: =IF($G$1=DEBUTMU!$Y$21,HLOOKUP($G$2,DEBUTMU!$AE$1:$DV$37,14,FALSE),HLOOKUP($G$2,DEBUTMU!$EB$1:$GP$37,14,FALSE)) -> QUADRICEPS | F31: =D32 -> Presse | G31: =IF($G$1=DEBUTMU!$Y$21,HLOOKUP($K$2,DEBUTMU!$AE$1:$DV$37,14,FALSE),HLOOKUP($K$2,DEBUTMU!$EB$1:$GP$37,14,FALSE)) -> 4 | H31: x | I31: =IF($G$1=DEBUTMU!$Y$21,HLOOKUP($L$2,DEBUTMU!$AE$1:$DV$37,14,FALSE),HLOOKUP($L$2,DEBUTMU!$EB$1:$GP$37,14,FALSE)) -> 20 | J31: - | K31: =IF($G$1=DEBUTMU!$Y$21,HLOOKUP($M$2,DEBUTMU!$AE$1:$DV$37,14,FALSE),HLOOKUP($M$2,DEBUTMU!$EB$1:$GP$37,14,FALSE)) -> 45 | L31: "
D32: =IF($G$1=DEBUTMU!$Y$21,HLOOKUP($G$2,DEBUTMU!$AE$1:$DV$37,15,FALSE),HLOOKUP($G$2,DEBUTMU!$EB$1:$GP$37,15,FALSE)) -> Presse | F32: =D31 -> QUADRICEPS | G32: Charge idéale | I32: =IF($G$1=DEBUTMU!$Y$21,HLOOKUP($L$2,DEBUTMU!$AE$1:$DV$37,15,FALSE),HLOOKUP($L$2,DEBUTMU!$EB$1:$GP$37,15,FALSE)) -> 40 | J32: Kg | K32: =100*I32/(VLOOKUP(I31,DEBUTMU!$O$39:$P$68,2,FALSE)) -> 74.07407407 | L32: =TIME(,,(G31*I31*2)+(K31*(G31-1))) -> 00:04:55
B34: =IF($G$1=DEBUTMU!$Y$21,HLOOKUP($M$2,DEBUTMU!$AE$1:$DV$37,17,FALSE),HLOOKUP($M$2,DEBUTMU!$EB$1:$GP$37,17,FALSE)) -> CIRCUIT TRAINING
B35: 6 | K35: Récup' | M35: =VLOOKUP(D37,EX!$B$6:$L$528,8,FALSE) -> 0
D36: =IF($G$1=DEBUTMU!$Y$21,HLOOKUP($G$2,DEBUTMU!$AE$1:$DV$37,16,FALSE),HLOOKUP($G$2,DEBUTMU!$EB$1:$GP$37,16,FALSE)) -> ISCHIOS | F36: =D37 -> Leg curl | G36: =IF($G$1=DEBUTMU!$Y$21,HLOOKUP($K$2,DEBUTMU!$AE$1:$DV$37,16,FALSE),HLOOKUP($K$2,DEBUTMU!$EB$1:$GP$37,16,FALSE)) -> 4 | H36: x | I36: =IF($G$1=DEBUTMU!$Y$21,HLOOKUP($L$2,DEBUTMU!$AE$1:$DV$37,16,FALSE),HLOOKUP($L$2,DEBUTMU!$EB$1:$GP$37,16,FALSE)) -> 20 | J36: - | K36: =IF($G$1=DEBUTMU!$Y$21,HLOOKUP($M$2,DEBUTMU!$AE$1:$DV$37,16,FALSE),HLOOKUP($M$2,DEBUTMU!$EB$1:$GP$37,16,FALSE)) -> 45 | L36: "
D37: =IF($G$1=DEBUTMU!$Y$21,HLOOKUP($G$2,DEBUTMU!$AE$1:$DV$37,17,FALSE),HLOOKUP($G$2,DEBUTMU!$EB$1:$GP$37,17,FALSE)) -> Leg curl | F37: =D36 -> ISCHIOS | G37: Charge idéale | I37: =IF($G$1=DEBUTMU!$Y$21,HLOOKUP($L$2,DEBUTMU!$AE$1:$DV$37,17,FALSE),HLOOKUP($L$2,DEBUTMU!$EB$1:$GP$37,17,FALSE)) -> 20 | J37: Kg | K37: =100*I37/(VLOOKUP(I36,DEBUTMU!$O$39:$P$68,2,FALSE)) -> 37.03703704 | L37: =TIME(,,(G36*I36*2)+(K36*(G36-1))) -> 00:04:55
B39: =IF($G$1=DEBUTMU!$Y$21,HLOOKUP($M$2,DEBUTMU!$AE$1:$DV$37,19,FALSE),HLOOKUP($M$2,DEBUTMU!$EB$1:$GP$37,19,FALSE)) -> CIRCUIT TRAINING
B40: 7 | K40: Récup' | M40: =VLOOKUP(D42,EX!$B$6:$L$528,8,FALSE) -> Tendez les bras au-dessus des épaules. Pliez les bras et laissez redescendre progressivement la barre jusqu'à toucher la poitrine Remontez lentement la barre
D41: =IF($G$1=DEBUTMU!$Y$21,HLOOKUP($G$2,DEBUTMU!$AE$1:$DV$37,18,FALSE),HLOOKUP($G$2,DEBUTMU!$EB$1:$GP$37,18,FALSE)) -> PECTORAUX | F41: =D42 -> Développé couché barre | G41: =IF($G$1=DEBUTMU!$Y$21,HLOOKUP($K$2,DEBUTMU!$AE$1:$DV$37,18,FALSE),HLOOKUP($K$2,DEBUTMU!$EB$1:$GP$37,18,FALSE)) -> 4 | H41: x | I41: =IF($G$1=DEBUTMU!$Y$21,HLOOKUP($L$2,DEBUTMU!$AE$1:$DV$37,18,FALSE),HLOOKUP($L$2,DEBUTMU!$EB$1:$GP$37,18,FALSE)) -> 20 | J41: - | K41: =IF($G$1=DEBUTMU!$Y$21,HLOOKUP($M$2,DEBUTMU!$AE$1:$DV$37,18,FALSE),HLOOKUP($M$2,DEBUTMU!$EB$1:$GP$37,18,FALSE)) -> 45 | L41: "
D42: =IF($G$1=DEBUTMU!$Y$21,HLOOKUP($G$2,DEBUTMU!$AE$1:$DV$37,19,FALSE),HLOOKUP($G$2,DEBUTMU!$EB$1:$GP$37,19,FALSE)) -> Développé couché barre | F42: =D41 -> PECTORAUX | G42: Charge idéale | I42: =IF($G$1=DEBUTMU!$Y$21,HLOOKUP($L$2,DEBUTMU!$AE$1:$DV$37,19,FALSE),HLOOKUP($L$2,DEBUTMU!$EB$1:$GP$37,19,FALSE)) -> 20 | J42: Kg | K42: =100*I42/(VLOOKUP(I41,DEBUTMU!$O$39:$P$68,2,FALSE)) -> 37.03703704 | L42: =TIME(,,(G41*I41*2)+(K41*(G41-1))) -> 00:04:55
B44: =IF($G$1=DEBUTMU!$Y$21,HLOOKUP($M$2,DEBUTMU!$AE$1:$DV$37,21,FALSE),HLOOKUP($M$2,DEBUTMU!$EB$1:$GP$37,21,FALSE)) -> CIRCUIT TRAINING
B45: 8 | K45: Récup' | M45: =VLOOKUP(D47,EX!$B$6:$L$528,8,FALSE) -> 0
D46: =IF($G$1=DEBUTMU!$Y$21,HLOOKUP($G$2,DEBUTMU!$AE$1:$DV$37,20,FALSE),HLOOKUP($G$2,DEBUTMU!$EB$1:$GP$37,20,FALSE)) -> DORSAUX | F46: =D47 -> Tirage poitrine | G46: =IF($G$1=DEBUTMU!$Y$21,HLOOKUP($K$2,DEBUTMU!$AE$1:$DV$37,20,FALSE),HLOOKUP($K$2,DEBUTMU!$EB$1:$GP$37,20,FALSE)) -> 4 | H46: x | I46: =IF($G$1=DEBUTMU!$Y$21,HLOOKUP($L$2,DEBUTMU!$AE$1:$DV$37,20,FALSE),HLOOKUP($L$2,DEBUTMU!$EB$1:$GP$37,20,FALSE)) -> 20 | J46: - | K46: =IF($G$1=DEBUTMU!$Y$21,HLOOKUP($M$2,DEBUTMU!$AE$1:$DV$37,20,FALSE),HLOOKUP($M$2,DEBUTMU!$EB$1:$GP$37,20,FALSE)) -> 45 | L46: "
D47: =IF($G$1=DEBUTMU!$Y$21,HLOOKUP($G$2,DEBUTMU!$AE$1:$DV$37,21,FALSE),HLOOKUP($G$2,DEBUTMU!$EB$1:$GP$37,21,FALSE)) -> Tirage poitrine | F47: =D46 -> DORSAUX | G47: Charge idéale | I47: =IF($G$1=DEBUTMU!$Y$21,HLOOKUP($L$2,DEBUTMU!$AE$1:$DV$37,21,FALSE),HLOOKUP($L$2,DEBUTMU!$EB$1:$GP$37,21,FALSE)) -> 20 | J47: Kg | K47: =100*I47/(VLOOKUP(I46,DEBUTMU!$O$39:$P$68,2,FALSE)) -> 37.03703704 | L47: =TIME(,,(G46*I46*2)+(K46*(G46-1))) -> 00:04:55
B49: =IF($G$1=DEBUTMU!$Y$21,HLOOKUP($M$2,DEBUTMU!$AE$1:$DV$37,23,FALSE),HLOOKUP($M$2,DEBUTMU!$EB$1:$GP$37,23,FALSE)) -> CIRCUIT TRAINING
B50: 9 | K50: Récup' | M50: =VLOOKUP(D52,EX!$B$6:$L$528,8,FALSE) -> 0
D51: =IF($G$1=DEBUTMU!$Y$21,HLOOKUP($G$2,DEBUTMU!$AE$1:$DV$37,22,FALSE),HLOOKUP($G$2,DEBUTMU!$EB$1:$GP$37,22,FALSE)) -> GRAND DROIT | F51: =D52 -> Crunch machine | G51: =IF($G$1=DEBUTMU!$Y$21,HLOOKUP($K$2,DEBUTMU!$AE$1:$DV$37,22,FALSE),HLOOKUP($K$2,DEBUTMU!$EB$1:$GP$37,22,FALSE)) -> 4 | H51: x | I51: =IF($G$1=DEBUTMU!$Y$21,HLOOKUP($L$2,DEBUTMU!$AE$1:$DV$37,22,FALSE),HLOOKUP($L$2,DEBUTMU!$EB$1:$GP$37,22,FALSE)) -> 20 | J51: - | K51: =IF($G$1=DEBUTMU!$Y$21,HLOOKUP($M$2,DEBUTMU!$AE$1:$DV$37,22,FALSE),HLOOKUP($M$2,DEBUTMU!$EB$1:$GP$37,22,FALSE)) -> 45 | L51: "
D52: =IF($G$1=DEBUTMU!$Y$21,HLOOKUP($G$2,DEBUTMU!$AE$1:$DV$37,23,FALSE),HLOOKUP($G$2,DEBUTMU!$EB$1:$GP$37,23,FALSE)) -> Crunch machine | F52: =D51 -> GRAND DROIT | G52: Charge idéale | I52: =IF($G$1=DEBUTMU!$Y$21,HLOOKUP($L$2,DEBUTMU!$AE$1:$DV$37,23,FALSE),HLOOKUP($L$2,DEBUTMU!$EB$1:$GP$37,23,FALSE)) -> 10 | J52: Kg | K52: =100*I52/(VLOOKUP(I51,DEBUTMU!$O$39:$P$68,2,FALSE)) -> 18.51851852 | L52: =TIME(,,(G51*I51*2)+(K51*(G51-1))) -> 00:04:55
B54: =IF($G$1=DEBUTMU!$Y$21,HLOOKUP($M$2,DEBUTMU!$AE$1:$DV$37,25,FALSE),HLOOKUP($M$2,DEBUTMU!$EB$1:$GP$37,25,FALSE)) -> CIRCUIT TRAINING
B55: 10 | K55: Récup' | M55: =VLOOKUP(D57,EX!$B$6:$L$528,8,FALSE) -> 0
D56: =IF($G$1=DEBUTMU!$Y$21,HLOOKUP($G$2,DEBUTMU!$AE$1:$DV$37,24,FALSE),HLOOKUP($G$2,DEBUTMU!$EB$1:$GP$37,24,FALSE)) -> LOMBAIRES | F56: =D57 -> Extension Relevé de buste | G56: =IF($G$1=DEBUTMU!$Y$21,HLOOKUP($K$2,DEBUTMU!$AE$1:$DV$37,24,FALSE),HLOOKUP($K$2,DEBUTMU!$EB$1:$GP$37,24,FALSE)) -> 4 | H56: x | I56: =IF($G$1=DEBUTMU!$Y$21,HLOOKUP($L$2,DEBUTMU!$AE$1:$DV$37,24,FALSE),HLOOKUP($L$2,DEBUTMU!$EB$1:$GP$37,24,FALSE)) -> 20 | J56: - | K56: =IF($G$1=DEBUTMU!$Y$21,HLOOKUP($M$2,DEBUTMU!$AE$1:$DV$37,24,FALSE),HLOOKUP($M$2,DEBUTMU!$EB$1:$GP$37,24,FALSE)) -> 45 | L56: "
D57: =IF($G$1=DEBUTMU!$Y$21,HLOOKUP($G$2,DEBUTMU!$AE$1:$DV$37,25,FALSE),HLOOKUP($G$2,DEBUTMU!$EB$1:$GP$37,25,FALSE)) -> Extension Relevé de buste | F57: =D56 -> LOMBAIRES | G57: Charge idéale | I57: =IF($G$1=DEBUTMU!$Y$21,HLOOKUP($L$2,DEBUTMU!$AE$1:$DV$37,25,FALSE),HLOOKUP($L$2,DEBUTMU!$EB$1:$GP$37,25,FALSE)) -> 10 | J57: Kg | K57: =100*I57/(VLOOKUP(I56,DEBUTMU!$O$39:$P$68,2,FALSE)) -> 18.51851852 | L57: =TIME(,,(G56*I56*2)+(K56*(G56-1))) -> 00:04:55
B59: =IF($G$1=DEBUTMU!$Y$21,HLOOKUP($M$2,DEBUTMU!$AE$1:$DV$37,27,FALSE),HLOOKUP($M$2,DEBUTMU!$EB$1:$GP$37,27,FALSE)) -> CIRCUIT TRAINING
B60: 11 | K60: Récup' | M60: =VLOOKUP(D62,EX!$B$6:$L$528,8,FALSE) -> Tirez lentement la barre vers le haut, jusqu'au niveau des épaules, puis revenez à la position de départ progressivement en contrôlant le retour.
D61: =IF($G$1=DEBUTMU!$Y$21,HLOOKUP($G$2,DEBUTMU!$AE$1:$DV$37,26,FALSE),HLOOKUP($G$2,DEBUTMU!$EB$1:$GP$37,26,FALSE)) -> BICEPS | F61: =D62 -> Curl poulie basse Supination | G61: =IF($G$1=DEBUTMU!$Y$21,HLOOKUP($K$2,DEBUTMU!$AE$1:$DV$37,26,FALSE),HLOOKUP($K$2,DEBUTMU!$EB$1:$GP$37,26,FALSE)) -> 4 | H61: x | I61: =IF($G$1=DEBUTMU!$Y$21,HLOOKUP($L$2,DEBUTMU!$AE$1:$DV$37,26,FALSE),HLOOKUP($L$2,DEBUTMU!$EB$1:$GP$37,26,FALSE)) -> 20 | J61: - | K61: =IF($G$1=DEBUTMU!$Y$21,HLOOKUP($M$2,DEBUTMU!$AE$1:$DV$37,26,FALSE),HLOOKUP($M$2,DEBUTMU!$EB$1:$GP$37,26,FALSE)) -> 45 | L61: "
D62: =IF($G$1=DEBUTMU!$Y$21,HLOOKUP($G$2,DEBUTMU!$AE$1:$DV$37,27,FALSE),HLOOKUP($G$2,DEBUTMU!$EB$1:$GP$37,27,FALSE)) -> Curl poulie basse Supination | F62: =D61 -> BICEPS | G62: Charge idéale | I62: =IF($G$1=DEBUTMU!$Y$21,HLOOKUP($L$2,DEBUTMU!$AE$1:$DV$37,27,FALSE),HLOOKUP($L$2,DEBUTMU!$EB$1:$GP$37,27,FALSE)) -> 10 | J62: Kg | K62: =100*I62/(VLOOKUP(I61,DEBUTMU!$O$39:$P$68,2,FALSE)) -> 18.51851852 | L62: =TIME(,,(G61*I61*2)+(K61*(G61-1))) -> 00:04:55
B64: =IF($G$1=DEBUTMU!$Y$21,HLOOKUP($M$2,DEBUTMU!$AE$1:$DV$37,29,FALSE),HLOOKUP($M$2,DEBUTMU!$EB$1:$GP$37,29,FALSE)) -> CIRCUIT TRAINING
B65: 12 | K65: Récup' | M65: =VLOOKUP(D67,EX!$B$6:$L$528,8,FALSE) -> Tendez complètement les bras vers le bas jusqu’à l’extension complète, les bras restant collés contre le buste puis revenez à la position de départ progressivement en contrôlant le retour.
D66: =IF($G$1=DEBUTMU!$Y$21,HLOOKUP($G$2,DEBUTMU!$AE$1:$DV$37,28,FALSE),HLOOKUP($G$2,DEBUTMU!$EB$1:$GP$37,28,FALSE)) -> TRICEPS | F66: =D67 -> Tirage poulie haute | G66: =IF($G$1=DEBUTMU!$Y$21,HLOOKUP($K$2,DEBUTMU!$AE$1:$DV$37,28,FALSE),HLOOKUP($K$2,DEBUTMU!$EB$1:$GP$37,28,FALSE)) -> 4 | H66: x | I66: =IF($G$1=DEBUTMU!$Y$21,HLOOKUP($L$2,DEBUTMU!$AE$1:$DV$37,28,FALSE),HLOOKUP($L$2,DEBUTMU!$EB$1:$GP$37,28,FALSE)) -> 20 | J66: - | K66: =IF($G$1=DEBUTMU!$Y$21,HLOOKUP($M$2,DEBUTMU!$AE$1:$DV$37,28,FALSE),HLOOKUP($M$2,DEBUTMU!$EB$1:$GP$37,28,FALSE)) -> 45 | L66: "
D67: =IF($G$1=DEBUTMU!$Y$21,HLOOKUP($G$2,DEBUTMU!$AE$1:$DV$37,29,FALSE),HLOOKUP($G$2,DEBUTMU!$EB$1:$GP$37,29,FALSE)) -> Tirage poulie haute | F67: =D66 -> TRICEPS | G67: Charge idéale | I67: =IF($G$1=DEBUTMU!$Y$21,HLOOKUP($L$2,DEBUTMU!$AE$1:$DV$37,29,FALSE),HLOOKUP($L$2,DEBUTMU!$EB$1:$GP$37,29,FALSE)) -> 10 | J67: Kg | K67: =100*I67/(VLOOKUP(I66,DEBUTMU!$O$39:$P$68,2,FALSE)) -> 18.51851852 | L67: =TIME(,,(G66*I66*2)+(K66*(G66-1))) -> 00:04:55
B69: =IF($G$1=DEBUTMU!$Y$21,HLOOKUP($M$2,DEBUTMU!$AE$1:$DV$37,31,FALSE),HLOOKUP($M$2,DEBUTMU!$EB$1:$GP$37,31,FALSE)) -> CIRCUIT TRAINING
B70: 13 | K70: Récup' | M70: =VLOOKUP(D72,EX!$B$6:$L$528,8,FALSE) -> Tendre lentement les jambes jusqu’à l’extension complète Freiner la charge pendant la descente. Puis revenez à la position de départ
D71: =IF($G$1=DEBUTMU!$Y$21,HLOOKUP($G$2,DEBUTMU!$AE$1:$DV$37,30,FALSE),HLOOKUP($G$2,DEBUTMU!$EB$1:$GP$37,30,FALSE)) -> QUADRICEPS | F71: =D72 -> Presse | G71: =IF($G$1=DEBUTMU!$Y$21,HLOOKUP($K$2,DEBUTMU!$AE$1:$DV$37,30,FALSE),HLOOKUP($K$2,DEBUTMU!$EB$1:$GP$37,30,FALSE)) -> 4 | H71: x | I71: =IF($G$1=DEBUTMU!$Y$21,HLOOKUP($L$2,DEBUTMU!$AE$1:$DV$37,30,FALSE),HLOOKUP($L$2,DEBUTMU!$EB$1:$GP$37,30,FALSE)) -> 20 | J71: - | K71: =IF($G$1=DEBUTMU!$Y$21,HLOOKUP($M$2,DEBUTMU!$AE$1:$DV$37,30,FALSE),HLOOKUP($M$2,DEBUTMU!$EB$1:$GP$37,30,FALSE)) -> 45 | L71: "
D72: =IF($G$1=DEBUTMU!$Y$21,HLOOKUP($G$2,DEBUTMU!$AE$1:$DV$37,31,FALSE),HLOOKUP($G$2,DEBUTMU!$EB$1:$GP$37,31,FALSE)) -> Presse | F72: =D71 -> QUADRICEPS | G72: Charge idéale | I72: =IF($G$1=DEBUTMU!$Y$21,HLOOKUP($L$2,DEBUTMU!$AE$1:$DV$37,31,FALSE),HLOOKUP($L$2,DEBUTMU!$EB$1:$GP$37,31,FALSE)) -> 40 | J72: Kg | K72: =100*I72/(VLOOKUP(I71,DEBUTMU!$O$39:$P$68,2,FALSE)) -> 74.07407407 | L72: =TIME(,,(G71*I71*2)+(K71*(G71-1))) -> 00:04:55
B74: =IF($G$1=DEBUTMU!$Y$21,HLOOKUP($M$2,DEBUTMU!$AE$1:$DV$37,33,FALSE),HLOOKUP($M$2,DEBUTMU!$EB$1:$GP$37,33,FALSE)) -> CIRCUIT TRAINING
B75: 14 | K75: Récup' | M75: =VLOOKUP(D77,EX!$B$6:$L$528,8,FALSE) -> 0
D76: =IF($G$1=DEBUTMU!$Y$21,HLOOKUP($G$2,DEBUTMU!$AE$1:$DV$37,32,FALSE),HLOOKUP($G$2,DEBUTMU!$EB$1:$GP$37,32,FALSE)) -> ISCHIOS | F76: =D77 -> Leg curl | G76: =IF($G$1=DEBUTMU!$Y$21,HLOOKUP($K$2,DEBUTMU!$AE$1:$DV$37,32,FALSE),HLOOKUP($K$2,DEBUTMU!$EB$1:$GP$37,32,FALSE)) -> 4 | H76: x | I76: =IF($G$1=DEBUTMU!$Y$21,HLOOKUP($L$2,DEBUTMU!$AE$1:$DV$37,32,FALSE),HLOOKUP($L$2,DEBUTMU!$EB$1:$GP$37,32,FALSE)) -> 20 | J76: - | K76: =IF($G$1=DEBUTMU!$Y$21,HLOOKUP($M$2,DEBUTMU!$AE$1:$DV$37,32,FALSE),HLOOKUP($M$2,DEBUTMU!$EB$1:$GP$37,32,FALSE)) -> 45 | L76: "
D77: =IF($G$1=DEBUTMU!$Y$21,HLOOKUP($G$2,DEBUTMU!$AE$1:$DV$37,33,FALSE),HLOOKUP($G$2,DEBUTMU!$EB$1:$GP$37,33,FALSE)) -> Leg curl | F77: =D76 -> ISCHIOS | G77: Charge idéale | I77: =IF($G$1=DEBUTMU!$Y$21,HLOOKUP($L$2,DEBUTMU!$AE$1:$DV$37,33,FALSE),HLOOKUP($L$2,DEBUTMU!$EB$1:$GP$37,33,FALSE)) -> 20 | J77: Kg | K77: =100*I77/(VLOOKUP(I76,DEBUTMU!$O$39:$P$68,2,FALSE)) -> 37.03703704 | L77: =TIME(,,(G76*I76*2)+(K76*(G76-1))) -> 00:04:55
B79: =IF($G$1=DEBUTMU!$Y$21,HLOOKUP($M$2,DEBUTMU!$AE$1:$DV$37,35,FALSE),HLOOKUP($M$2,DEBUTMU!$EB$1:$GP$37,35,FALSE)) -> CIRCUIT TRAINING
B80: 15 | K80: Récup' | M80: =VLOOKUP(D82,EX!$B$6:$L$528,8,FALSE) -> Tendez les bras au-dessus des épaules. Pliez les bras et laissez redescendre progressivement la barre jusqu'à toucher la poitrine Remontez lentement la barre
D81: =IF($G$1=DEBUTMU!$Y$21,HLOOKUP($G$2,DEBUTMU!$AE$1:$DV$37,34,FALSE),HLOOKUP($G$2,DEBUTMU!$EB$1:$GP$37,34,FALSE)) -> PECTORAUX | F81: =D82 -> Développé couché barre | G81: =IF($G$1=DEBUTMU!$Y$21,HLOOKUP($K$2,DEBUTMU!$AE$1:$DV$37,34,FALSE),HLOOKUP($K$2,DEBUTMU!$EB$1:$GP$37,34,FALSE)) -> 4 | H81: x | I81: =IF($G$1=DEBUTMU!$Y$21,HLOOKUP($L$2,DEBUTMU!$AE$1:$DV$37,34,FALSE),HLOOKUP($L$2,DEBUTMU!$EB$1:$GP$37,34,FALSE)) -> 20 | J81: - | K81: =IF($G$1=DEBUTMU!$Y$21,HLOOKUP($M$2,DEBUTMU!$AE$1:$DV$37,34,FALSE),HLOOKUP($M$2,DEBUTMU!$EB$1:$GP$37,34,FALSE)) -> 45 | L81: "
D82: =IF($G$1=DEBUTMU!$Y$21,HLOOKUP($G$2,DEBUTMU!$AE$1:$DV$37,35,FALSE),HLOOKUP($G$2,DEBUTMU!$EB$1:$GP$37,35,FALSE)) -> Développé couché barre | F82: =D81 -> PECTORAUX | G82: Charge idéale | I82: =IF($G$1=DEBUTMU!$Y$21,HLOOKUP($L$2,DEBUTMU!$AE$1:$DV$37,35,FALSE),HLOOKUP($L$2,DEBUTMU!$EB$1:$GP$37,35,FALSE)) -> 20 | J82: Kg | K82: =100*I82/(VLOOKUP(I81,DEBUTMU!$O$39:$P$68,2,FALSE)) -> 37.03703704 | L82: =TIME(,,(G81*I81*2)+(K81*(G81-1))) -> 00:04:55
B84: =IF($G$1=DEBUTMU!$Y$21,HLOOKUP($M$2,DEBUTMU!$AE$1:$DV$37,37,FALSE),HLOOKUP($M$2,DEBUTMU!$EB$1:$GP$37,37,FALSE)) -> CIRCUIT TRAINING
B85: 16 | K85: Récup' | M85: =VLOOKUP(D87,EX!$B$6:$L$528,8,FALSE) -> 0
D86: =IF($G$1=DEBUTMU!$Y$21,HLOOKUP($G$2,DEBUTMU!$AE$1:$DV$37,36,FALSE),HLOOKUP($G$2,DEBUTMU!$EB$1:$GP$37,36,FALSE)) -> DORSAUX | F86: =D87 -> Tirage poitrine | G86: =IF($G$1=DEBUTMU!$Y$21,HLOOKUP($K$2,DEBUTMU!$AE$1:$DV$37,36,FALSE),HLOOKUP($K$2,DEBUTMU!$EB$1:$GP$37,36,FALSE)) -> 4 | H86: x | I86: =IF($G$1=DEBUTMU!$Y$21,HLOOKUP($L$2,DEBUTMU!$AE$1:$DV$37,36,FALSE),HLOOKUP($L$2,DEBUTMU!$EB$1:$GP$37,36,FALSE)) -> 20 | J86: - | K86: =IF($G$1=DEBUTMU!$Y$21,HLOOKUP($M$2,DEBUTMU!$AE$1:$DV$37,36,FALSE),HLOOKUP($M$2,DEBUTMU!$EB$1:$GP$37,36,FALSE)) -> 45 | L86: "
D87: =IF($G$1=DEBUTMU!$Y$21,HLOOKUP($G$2,DEBUTMU!$AE$1:$DV$37,37,FALSE),HLOOKUP($G$2,DEBUTMU!$EB$1:$GP$37,37,FALSE)) -> Tirage poitrine | F87: =D86 -> DORSAUX | G87: Charge idéale | I87: =IF($G$1=DEBUTMU!$Y$21,HLOOKUP($L$2,DEBUTMU!$AE$1:$DV$37,37,FALSE),HLOOKUP($L$2,DEBUTMU!$EB$1:$GP$37,37,FALSE)) -> 20 | J87: Kg | K87: =100*I87/(VLOOKUP(I86,DEBUTMU!$O$39:$P$68,2,FALSE)) -> 37.03703704 | L87: =TIME(,,(G86*I86*2)+(K86*(G86-1))) -> 00:04:55
G91: Tonnage | I91: =V21 -> 21600 | J91: Kg

Sheet S2
B1: ='S1'!B1 -> 1META | C1: Séance | E1: 2 | G1: Programme Prof | N1: Méthode d'entrainement
B2: ='S1'!B2 -> Abdel Nour | D2: 4 | E2: Avril | G2: S2-CT.AA- | K2: =VLOOKUP($G$2,DEBUTMU!$Z$6:$AC$37,2,FALSE) -> SERIE-CHARGE-S2-CT.AA- | L2: =VLOOKUP($G$2,DEBUTMU!$Z$6:$AC$37,3,FALSE) -> REPS-POURCENT-S2-CT.AA- | M2: =VLOOKUP($G$2,DEBUTMU!$Z$6:$AC$37,4,FALSE) -> RECUP-METH-S2-CT.AA- | N2: =IF($G$1=DEBUTMU!$Y$21,HLOOKUP($M$2,DEBUTMU!$AE$1:$DV$37,5,FALSE),HLOOKUP($M$2,DEBUTMU!$EH$1:$GV$37,5,FALSE)) -> AGONISTE-ANTAGONISTE
D4: Objectif séance | G4: Séries | I4: Réps | M4: Conseils d'entrainement
D5: =IF($G$1=DEBUTMU!$Y$21,HLOOKUP($G$2,DEBUTMU!$AE$1:$DV$37,4,FALSE),HLOOKUP($G$2,DEBUTMU!$EH$1:$GV$37,4,FALSE)) -> Agoniste Antagoniste pr se muscler équilibré | G5: =IF($G$1=DEBUTMU!$Y$21,HLOOKUP($K$2,DEBUTMU!$AE$1:$DV$37,4,FALSE),HLOOKUP($K$2,DEBUTMU!$EH$1:$GV$37,4,FALSE)) -> 4 | H5: x | I5: =IF($G$1=DEBUTMU!$Y$21,HLOOKUP($L$2,DEBUTMU!$AE$1:$DV$37,4,FALSE),HLOOKUP($L$2,DEBUTMU!$EH$1:$GV$37,4,FALSE)) -> 20 | M5: =VLOOKUP(G2,DEBUTMU!Z6:AD37,5,FALSE) -> Enchainer A-A sans pause | P5: Durée estimée de la séance | U5: MUSCLES | V5: TONNAGE/MUSCLE | W5: EXO 1 | X5: EXO 2 | Y5: EXO 3 | Z5: EXO 4 | AA5: EXO 5 | AB5: EXO 6 | AC5: EXO 7 | AD5: EXO 8 | AE5: EXO 9 | AF5: EXO 10 | AG5: EXO 11 | AH5: EXO 12 | AI5: EXO 13 | AJ5: EXO 14 | AK5: EXO 15 | AL5: EXO 16
K6: Récup'/séries | U6: =DEBUTMU!X6 -> PECTORAUX | V6: =SUM(W6:AL6) -> 3200 | W6: =IFERROR(VLOOKUP(U6,$D$11:$I$11,4,FALSE)*VLOOKUP(U6,$D$11:$I$11,6,FALSE)*VLOOKUP(U6,$F$12:$I$12,4,FALSE),0) -> 1600 | X6: =IFERROR(VLOOKUP(U6,$D$16:$I$16,4,FALSE)*VLOOKUP(U6,$D$16:$I$16,6,FALSE)*VLOOKUP(U6,$F$17:$I$17,4,FALSE),0) -> 0 | Y6: =IFERROR(VLOOKUP(U6,$D$21:$I$21,4,FALSE)*VLOOKUP(U6,$D$21:$I$21,6,FALSE)*VLOOKUP(U6,F22:I22,4,FALSE),0) -> 0 | Z6: =IFERROR(VLOOKUP(U6,$D$26:$I$26,4,FALSE)*VLOOKUP(U6,$D$26:$I$26,6,FALSE)*VLOOKUP(U6,$F$27:$I$27,4,FALSE),0) -> 0 | AA6: =IFERROR(VLOOKUP(U6,$D$31:$I$31,4,FALSE)*VLOOKUP(U6,$D$31:$I$31,6,FALSE)*VLOOKUP(U6,$F$32:$I$32,4,FALSE),0) -> 0 | AB6: =IFERROR(VLOOKUP(U6,$D$36:$I$36,4,FALSE)*VLOOKUP(U6,$D$36:$I$36,6,FALSE)*VLOOKUP(U6,$F$37:$I$37,4,FALSE),0) -> 0 | AC6: =IFERROR(VLOOKUP(U6,$D$41:$I$41,4,FALSE)*VLOOKUP(U6,$D$41:$I$41,6,FALSE)*VLOOKUP(U6,$F$42:$I$42,4,FALSE),0) -> 0 | AD6: =IFERROR(VLOOKUP(U6,$D$46:$I$46,4,FALSE)*VLOOKUP(U6,$D$46:$I$46,6,FALSE)*VLOOKUP(U6,$F$47:$I$47,4,FALSE),0) -> 0 | AE6: =IFERROR(VLOOKUP(U6,$D$51:$I$51,4,FALSE)*VLOOKUP(U6,$D$51:$I$51,6,FALSE)*VLOOKUP(U6,$F$52:$I$52,4,FALSE),0) -> 1600 | AF6: =IFERROR(VLOOKUP(U6,$D$56:$I$56,4,FALSE)*VLOOKUP(U6,$D$56:$I$56,6,FALSE)*VLOOKUP(U6,$F$57:$I$57,4,FALSE),0) -> 0 | AG6: =IFERROR(VLOOKUP(U6,$D$61:$I$61,4,FALSE)*VLOOKUP(U6,$D$61:$I$61,6,FALSE)*VLOOKUP(U6,$F$62:$I$62,4,FALSE),0) -> 0 | AH6: =IFERROR(VLOOKUP(U6,$D$66:$I$66,4,FALSE)*VLOOKUP(U6,$D$66:$I$66,6,FALSE)*VLOOKUP(U6,$F$67:$I$67,4,FALSE),0) -> 0 | AI6: =IFERROR(VLOOKUP(U6,$D$71:$I$71,4,FALSE)*VLOOKUP(U6,$D$71:$I$71,6,FALSE)*VLOOKUP(U6,$F$72:$I$72,4,FALSE),0) -> 0 | AJ6: =IFERROR(VLOOKUP(U6,$D$76:$I$76,4,FALSE)*VLOOKUP(U6,$D$76:$I$76,6,FALSE)*VLOOKUP(U6,$F$77:$I$77,4,FALSE),0) -> 0 | AK6: =IFERROR(VLOOKUP(U6,$D$81:$I$81,4,FALSE)*VLOOKUP(U6,$D$81:$I$81,6,FALSE)*VLOOKUP(U6,$F$82:$I$82,4,FALSE),0) -> 0 | AL6: =IFERROR(VLOOKUP(U6,$D$86:$I$86,4,FALSE)*VLOOKUP(U6,$D$86:$I$86,6,FALSE)*VLOOKUP(U6,$F$87:$I$87,4,FALSE),0) -> 0
G7: Pourcentage Charge idéale | I7: =IF($G$1=DEBUTMU!$Y$21,HLOOKUP($K$2,DEBUTMU!$AE$1:$DV$37,5,FALSE),HLOOKUP($K$2,DEBUTMU!$EH$1:$GV$37,5,FALSE)) -> 60 | J7: % | K7: =IF($G$1=DEBUTMU!$Y$21,HLOOKUP($M$2,DEBUTMU!$AE$1:$DV$37,4,FALSE),HLOOKUP($M$2,DEBUTMU!$EH$1:$GV$37,4,FALSE)) -> 60 | L7: " | P7: =(L12+L17+L22+L27+L32+L37+L42+L47+L52+L57+L62+L67+L72+L77+L82+L87)+(L12+L17+L22+L27+L32+L37+L42+L47+L52+L57+L62+L67+L72+L77+L82+L87)*10/100 -> 01:39:44 | U7: =DEBUTMU!X7 -> GRAND DROIT | V7: =SUM(W7:AL7) -> 800 | W7: =IFERROR(VLOOKUP(U7,$D$11:$I$11,4,FALSE)*VLOOKUP(U7,$D$11:$I$11,6,FALSE)*VLOOKUP(U7,$F$12:$I$12,4,FALSE),0) -> 0 | X7: =IFERROR(VLOOKUP(U7,$D$16:$I$16,4,FALSE)*VLOOKUP(U7,$D$16:$I$16,6,FALSE)*VLOOKUP(U7,$F$17:$I$17,4,FALSE),0) -> 0 | Y7: =IFERROR(VLOOKUP(U7,$D$21:$I$21,4,FALSE)*VLOOKUP(U7,$D$21:$I$21,6,FALSE)*VLOOKUP(U7,F23:I23,4,FALSE),0) -> 0 | Z7: =IFERROR(VLOOKUP(U7,$D$26:$I$26,4,FALSE)*VLOOKUP(U7,$D$26:$I$26,6,FALSE)*VLOOKUP(U7,$F$27:$I$27,4,FALSE),0) -> 0 | AA7: =IFERROR(VLOOKUP(U7,$D$31:$I$31,4,FALSE)*VLOOKUP(U7,$D$31:$I$31,6,FALSE)*VLOOKUP(U7,$F$32:$I$32,4,FALSE),0) -> 0 | AB7: =IFERROR(VLOOKUP(U7,$D$36:$I$36,4,FALSE)*VLOOKUP(U7,$D$36:$I$36,6,FALSE)*VLOOKUP(U7,$F$37:$I$37,4,FALSE),0) -> 0 | AC7: =IFERROR(VLOOKUP(U7,$D$41:$I$41,4,FALSE)*VLOOKUP(U7,$D$41:$I$41,6,FALSE)*VLOOKUP(U7,$F$42:$I$42,4,FALSE),0) -> 0 | AD7: =IFERROR(VLOOKUP(U7,$D$46:$I$46,4,FALSE)*VLOOKUP(U7,$D$46:$I$46,6,FALSE)*VLOOKUP(U7,$F$47:$I$47,4,FALSE),0) -> 0 | AE7: =IFERROR(VLOOKUP(U7,$D$51:$I$51,4,FALSE)*VLOOKUP(U7,$D$51:$I$51,6,FALSE)*VLOOKUP(U7,$F$52:$I$52,4,FALSE),0) -> 0 | AF7: =IFERROR(VLOOKUP(U7,$D$56:$I$56,4,FALSE)*VLOOKUP(U7,$D$56:$I$56,6,FALSE)*VLOOKUP(U7,$F$57:$I$57,4,FALSE),0) -> 0 | AG7: =IFERROR(VLOOKUP(U7,$D$61:$I$61,4,FALSE)*VLOOKUP(U7,$D$61:$I$61,6,FALSE)*VLOOKUP(U7,$F$62:$I$62,4,FALSE),0) -> 800 | AH7: =IFERROR(VLOOKUP(U7,$D$66:$I$66,4,FALSE)*VLOOKUP(U7,$D$66:$I$66,6,FALSE)*VLOOKUP(U7,$F$67:$I$67,4,FALSE),0) -> 0 | AI7: =IFERROR(VLOOKUP(U7,$D$71:$I$71,4,FALSE)*VLOOKUP(U7,$D$71:$I$71,6,FALSE)*VLOOKUP(U7,$F$72:$I$72,4,FALSE),0) -> 0 | AJ7: =IFERROR(VLOOKUP(U7,$D$76:$I$76,4,FALSE)*VLOOKUP(U7,$D$76:$I$76,6,FALSE)*VLOOKUP(U7,$F$77:$I$77,4,FALSE),0) -> 0 | AK7: =IFERROR(VLOOKUP(U7,$D$81:$I$81,4,FALSE)*VLOOKUP(U7,$D$81:$I$81,6,FALSE)*VLOOKUP(U7,$F$82:$I$82,4,FALSE),0) -> 0 | AL7: =IFERROR(VLOOKUP(U7,$D$86:$I$86,4,FALSE)*VLOOKUP(U7,$D$86:$I$86,6,FALSE)*VLOOKUP(U7,$F$87:$I$87,4,FALSE),0) -> 0
U8: =DEBUTMU!X8 -> OBLIQUES | V8: 0 | W8: 0 | X8: 0 | Y8: 0 | Z8: 0 | AA8: 0 | AB8: 0 | AC8: 0 | AD8: 0 | AE8: 0 | AF8: 0 | AG8: 0 | AH8: 0 | AI8: 0 | AJ8: 0 | AK8: 0 | AL8: 0
B9: =IF($G$1=DEBUTMU!$Y$21,HLOOKUP($M$2,DEBUTMU!$AE$1:$DV$37,7,FALSE),HLOOKUP($M$2,DEBUTMU!$EH$1:$GV$37,7,FALSE)) -> AGONISTE-ANTAGONISTE | U9: =DEBUTMU!X9 -> TRAPEZES | V9: 0 | W9: 0 | X9: 0 | Y9: 0 | Z9: 0 | AA9: 0 | AB9: 0 | AC9: 0 | AD9: 0 | AE9: 0 | AF9: 0 | AG9: 0 | AH9: 0 | AI9: 0 | AJ9: 0 | AK9: 0 | AL9: 0
K10: Récup' | M10: =VLOOKUP(D12,EX!$B$6:$L$528,8,FALSE) -> Tendez les bras au-dessus des épaules. Pliez les bras et laissez redescendre progressivement la barre jusqu'à toucher la poitrine Remontez lentement la barre | U10: =DEBUTMU!X10 -> DORSAUX | V10: 3200 | W10: 0 | X10: 1600 | Y10: 0 | Z10: 0 | AA10: 0 | AB10: 0 | AC10: 0 | AD10: 0 | AE10: 0 | AF10: 1600 | AG10: 0 | AH10: 0 | AI10: 0 | AJ10: 0 | AK10: 0 | AL10: 0
A11: 1 | D11: =IF($G$1=DEBUTMU!$Y$21,HLOOKUP($G$2,DEBUTMU!$AE$1:$DV$37,6,FALSE),HLOOKUP($G$2,DEBUTMU!$EH$1:$GV$37,6,FALSE)) -> PECTORAUX | F11: =D12 -> Développé couché barre | G11: =IF($G$1=DEBUTMU!$Y$21,HLOOKUP($K$2,DEBUTMU!$AE$1:$DV$37,6,FALSE),HLOOKUP($K$2,DEBUTMU!$EH$1:$GV$37,6,FALSE)) -> 4 | H11: x | I11: =IF($G$1=DEBUTMU!$Y$21,HLOOKUP($L$2,DEBUTMU!$AE$1:$DV$37,6,FALSE),HLOOKUP($L$2,DEBUTMU!$EH$1:$GV$37,6,FALSE)) -> 20 | J11: - | K11: =IF($G$1=DEBUTMU!$Y$21,HLOOKUP($M$2,DEBUTMU!$AE$1:$DV$37,6,FALSE),HLOOKUP($M$2,DEBUTMU!$EH$1:$GV$37,6,FALSE)) -> 60 | L11: " | Q11: bilan | U11: =DEBUTMU!X11 -> LOMBAIRES | V11: 1600 | W11: 0 | X11: 0 | Y11: 0 | Z11: 800 | AA11: 0 | AB11: 0 | AC11: 0 | AD11: 0 | AE11: 0 | AF11: 0 | AG11: 0 | AH11: 800 | AI11: 0 | AJ11: 0 | AK11: 0 | AL11: 0
D12: =IF($G$1=DEBUTMU!$Y$21,HLOOKUP($G$2,DEBUTMU!$AE$1:$DV$37,7,FALSE),HLOOKUP($G$2,DEBUTMU!$EH$1:$GV$37,7,FALSE)) -> Développé couché barre | F12: =D11 -> PECTORAUX | G12: Charge idéale | I12: =IF($G$1=DEBUTMU!$Y$21,HLOOKUP($L$2,DEBUTMU!$AE$1:$DV$37,7,FALSE),HLOOKUP($L$2,DEBUTMU!$EH$1:$GV$37,7,FALSE)) -> 20 | J12: Kg | K12: =100*I12/(VLOOKUP(I11,DEBUTMU!$O$39:$P$68,2,FALSE)) -> 37.03703704 | L12: =TIME(,,(G11*I11*2)+(K11*(G11-1))) -> 00:05:40 | U12: =DEBUTMU!X12 -> DELTOIDES | V12: 0 | W12: 0 | X12: 0 | Y12: 0 | Z12: 0 | AA12: 0 | AB12: 0 | AC12: 0 | AD12: 0 | AE12: 0 | AF12: 0 | AG12: 0 | AH12: 0 | AI12: 0 | AJ12: 0 | AK12: 0 | AL12: 0
U13: =DEBUTMU!X13 -> BICEPS | V13: 1600 | W13: 0 | X13: 0 | Y13: 0 | Z13: 0 | AA13: 800 | AB13: 0 | AC13: 0 | AD13: 0 | AE13: 0 | AF13: 0 | AG13: 0 | AH13: 0 | AI13: 800 | AJ13: 0 | AK13: 0 | AL13: 0
B14: =IF($G$1=DEBUTMU!$Y$21,HLOOKUP($M$2,DEBUTMU!$AE$1:$DV$37,9,FALSE),HLOOKUP($M$2,DEBUTMU!$EH$1:$GV$37,9,FALSE)) -> AGONISTE-ANTAGONISTE | U14: =DEBUTMU!X14 -> TRICEPS | V14: 1600 | W14: 0 | X14: 0 | Y14: 0 | Z14: 0 | AA14: 0 | AB14: 800 | AC14: 0 | AD14: 0 | AE14: 0 | AF14: 0 | AG14: 0 | AH14: 0 | AI14: 0 | AJ14: 800 | AK14: 0 | AL14: 0
K15: Récup' | M15: =VLOOKUP(D17,EX!$B$6:$L$528,8,FALSE) -> 0 | U15: =DEBUTMU!X15 -> QUADRICEPS | V15: 1600 | W15: 0 | X15: 0 | Y15: 0 | Z15: 0 | AA15: 0 | AB15: 0 | AC15: 800 | AD15: 0 | AE15: 0 | AF15: 0 | AG15: 0 | AH15: 0 | AI15: 0 | AJ15: 0 | AK15: 800 | AL15: 0
A16: 2 | D16: =IF($G$1=DEBUTMU!$Y$21,HLOOKUP($G$2,DEBUTMU!$AE$1:$DV$37,8,FALSE),HLOOKUP($G$2,DEBUTMU!$EH$1:$GV$37,8,FALSE)) -> DORSAUX | F16: =D17 -> Barre T | G16: =IF($G$1=DEBUTMU!$Y$21,HLOOKUP($K$2,DEBUTMU!$AE$1:$DV$37,8,FALSE),HLOOKUP($K$2,DEBUTMU!$EH$1:$GV$37,8,FALSE)) -> 4 | H16: x | I16: =IF($G$1=DEBUTMU!$Y$21,HLOOKUP($L$2,DEBUTMU!$AE$1:$DV$37,8,FALSE),HLOOKUP($L$2,DEBUTMU!$EH$1:$GV$37,8,FALSE)) -> 20 | J16: - | K16: =IF($G$1=DEBUTMU!$Y$21,HLOOKUP($M$2,DEBUTMU!$AE$1:$DV$37,8,FALSE),HLOOKUP($M$2,DEBUTMU!$EH$1:$GV$37,8,FALSE)) -> 60 | L16: " | U16: =DEBUTMU!X16 -> ISCHIOS | V16: 1600 | W16: 0 | X16: 0 | Y16: 0 | Z16: 0 | AA16: 0 | AB16: 0 | AC16: 0 | AD16: 800 | AE16: 0 | AF16: 0 | AG16: 0 | AH16: 0 | AI16: 0 | AJ16: 0 | AK16: 0 | AL16: 800
D17: =IF($G$1=DEBUTMU!$Y$21,HLOOKUP($G$2,DEBUTMU!$AE$1:$DV$37,9,FALSE),HLOOKUP($G$2,DEBUTMU!$EH$1:$GV$37,9,FALSE)) -> Barre T | F17: =D16 -> DORSAUX | G17: Charge idéale | I17: =IF($G$1=DEBUTMU!$Y$21,HLOOKUP($L$2,DEBUTMU!$AE$1:$DV$37,9,FALSE),HLOOKUP($L$2,DEBUTMU!$EH$1:$GV$37,9,FALSE)) -> 20 | J17: Kg | K17: =100*I17/(VLOOKUP(I16,DEBUTMU!$O$39:$P$68,2,FALSE)) -> 37.03703704 | L17: =TIME(,,(G16*I16*2)+(K16*(G16-1))) -> 00:05:40 | U17: =DEBUTMU!X17 -> MOLLETS | V17: 0 | W17: 0 | X17: 0 | Y17: 0 | Z17: 0 | AA17: 0 | AB17: 0 | AC17: 0 | AD17: 0 | AE17: 0 | AF17: 0 | AG17: 0 | AH17: 0 | AI17: 0 | AJ17: 0 | AK17: 0 | AL17: 0
U18: =DEBUTMU!X18 -> AVANT-BRAS | V18: 0 | W18: 0 | X18: 0 | Y18: 0 | Z18: 0 | AA18: 0 | AB18: 0 | AC18: 0 | AD18: 0 | AE18: 0 | AF18: 0 | AG18: 0 | AH18: 0 | AI18: 0 | AJ18: 0 | AK18: 0 | AL18: 0
B19: =IF($G$1=DEBUTMU!$Y$21,HLOOKUP($M$2,DEBUTMU!$AE$1:$DV$37,11,FALSE),HLOOKUP($M$2,DEBUTMU!$EH$1:$GV$37,11,FALSE)) -> AGONISTE-ANTAGONISTE | U19: =DEBUTMU!X19 -> FESSIERS | V19: 0 | W19: 0 | X19: 0 | Y19: 0 | Z19: 0 | AA19: 0 | AB19: 0 | AC19: 0 | AD19: 0 | AE19: 0 | AF19: 0 | AG19: 0 | AH19: 0 | AI19: 0 | AJ19: 0 | AK19: 0 | AL19: 0
K20: Récup' | M20: =VLOOKUP(D22,EX!$B$6:$L$528,8,FALSE) -> 0 | W20: 0 | X20: 0 | Y20: 0 | Z20: 0 | AA20: 0 | AB20: 0 | AC20: 0 | AD20: 0 | AE20: 0 | AF20: 0 | AG20: 0 | AH20: 0 | AI20: 0 | AJ20: 0 | AK20: 0 | AL20: 0
A21: 3 | D21: =IF($G$1=DEBUTMU!$Y$21,HLOOKUP($G$2,DEBUTMU!$AE$1:$DV$37,10,FALSE),HLOOKUP($G$2,DEBUTMU!$EH$1:$GV$37,10,FALSE)) -> GRAND DROIT | F21: =D22 -> Crunch machine | G21: =IF($G$1=DEBUTMU!$Y$21,HLOOKUP($K$2,DEBUTMU!$AE$1:$DV$37,10,FALSE),HLOOKUP($K$2,DEBUTMU!$EH$1:$GV$37,10,FALSE)) -> 4 | H21: x | I21: =IF($G$1=DEBUTMU!$Y$21,HLOOKUP($L$2,DEBUTMU!$AE$1:$DV$37,10,FALSE),HLOOKUP($L$2,DEBUTMU!$EH$1:$GV$37,10,FALSE)) -> 20 | J21: - | K21: =IF($G$1=DEBUTMU!$Y$21,HLOOKUP($M$2,DEBUTMU!$AE$1:$DV$37,10,FALSE),HLOOKUP($M$2,DEBUTMU!$EH$1:$GV$37,10,FALSE)) -> 60 | L21: " | U21: TONNAGE TOTAL | V21: =SUM(V6:V19) -> 15200 | Y21: haut | Z21: 0
D22: =IF($G$1=DEBUTMU!$Y$21,HLOOKUP($G$2,DEBUTMU!$AE$1:$DV$37,11,FALSE),HLOOKUP($G$2,DEBUTMU!$EH$1:$GV$37,11,FALSE)) -> Crunch machine | F22: =D21 -> GRAND DROIT | G22: Charge idéale | I22: =IF($G$1=DEBUTMU!$Y$21,HLOOKUP($L$2,DEBUTMU!$AE$1:$DV$37,11,FALSE),HLOOKUP($L$2,DEBUTMU!$EH$1:$GV$37,11,FALSE)) -> 10 | J22: Kg | K22: =100*I22/(VLOOKUP(I21,DEBUTMU!$O$39:$P$68,2,FALSE)) -> 18.51851852 | L22: =TIME(,,(G21*I21*2)+(K21*(G21-1))) -> 00:05:40 | Y22: bas | Z22: 0
Y23: gauche | Z23: 0
B24: =IF($G$1=DEBUTMU!$Y$21,HLOOKUP($M$2,DEBUTMU!$AE$1:$DV$37,13,FALSE),HLOOKUP($M$2,DEBUTMU!$EH$1:$GV$37,13,FALSE)) -> AGONISTE-ANTAGONISTE | Y24: droite | Z24: 0
K25: Récup' | M25: =VLOOKUP(D27,EX!$B$6:$L$528,8,FALSE) -> 0
A26: 4 | D26: =IF($G$1=DEBUTMU!$Y$21,HLOOKUP($G$2,DEBUTMU!$AE$1:$DV$37,12,FALSE),HLOOKUP($G$2,DEBUTMU!$EH$1:$GV$37,12,FALSE)) -> LOMBAIRES | F26: =D27 -> Extension Relevé de buste | G26: =IF($G$1=DEBUTMU!$Y$21,HLOOKUP($K$2,DEBUTMU!$AE$1:$DV$37,12,FALSE),HLOOKUP($K$2,DEBUTMU!$EH$1:$GV$37,12,FALSE)) -> 4 | H26: x | I26: =IF($G$1=DEBUTMU!$Y$21,HLOOKUP($L$2,DEBUTMU!$AE$1:$DV$37,12,FALSE),HLOOKUP($L$2,DEBUTMU!$EH$1:$GV$37,12,FALSE)) -> 20 | J26: - | K26: =IF($G$1=DEBUTMU!$Y$21,HLOOKUP($M$2,DEBUTMU!$AE$1:$DV$37,12,FALSE),HLOOKUP($M$2,DEBUTMU!$EH$1:$GV$37,12,FALSE)) -> 60 | L26: "
D27: =IF($G$1=DEBUTMU!$Y$21,HLOOKUP($G$2,DEBUTMU!$AE$1:$DV$37,13,FALSE),HLOOKUP($G$2,DEBUTMU!$EH$1:$GV$37,13,FALSE)) -> Extension Relevé de buste | F27: =D26 -> LOMBAIRES | G27: Charge idéale | I27: =IF($G$1=DEBUTMU!$Y$21,HLOOKUP($L$2,DEBUTMU!$AE$1:$DV$37,13,FALSE),HLOOKUP($L$2,DEBUTMU!$EH$1:$GV$37,13,FALSE)) -> 10 | J27: Kg | K27: =100*I27/(VLOOKUP(I26,DEBUTMU!$O$39:$P$68,2,FALSE)) -> 18.51851852 | L27: =TIME(,,(G26*I26*2)+(K26*(G26-1))) -> 00:05:40
B29: =IF($G$1=DEBUTMU!$Y$21,HLOOKUP($M$2,DEBUTMU!$AE$1:$DV$37,15,FALSE),HLOOKUP($M$2,DEBUTMU!$EH$1:$GV$37,15,FALSE)) -> AGONISTE-ANTAGONISTE
K30: Récup' | M30: =VLOOKUP(D32,EX!$B$6:$L$528,8,FALSE) -> 0
A31: 5 | D31: =IF($G$1=DEBUTMU!$Y$21,HLOOKUP($G$2,DEBUTMU!$AE$1:$DV$37,14,FALSE),HLOOKUP($G$2,DEBUTMU!$EH$1:$GV$37,14,FALSE)) -> BICEPS | F31: =D32 -> Curl concentré poulie basse | G31: =IF($G$1=DEBUTMU!$Y$21,HLOOKUP($K$2,DEBUTMU!$AE$1:$DV$37,14,FALSE),HLOOKUP($K$2,DEBUTMU!$EH$1:$GV$37,14,FALSE)) -> 4 | H31: x | I31: =IF($G$1=DEBUTMU!$Y$21,HLOOKUP($L$2,DEBUTMU!$AE$1:$DV$37,14,FALSE),HLOOKUP($L$2,DEBUTMU!$EH$1:$GV$37,14,FALSE)) -> 20 | J31: - | K31: =IF($G$1=DEBUTMU!$Y$21,HLOOKUP($M$2,DEBUTMU!$AE$1:$DV$37,14,FALSE),HLOOKUP($M$2,DEBUTMU!$EH$1:$GV$37,14,FALSE)) -> 60 | L31: "
D32: =IF($G$1=DEBUTMU!$Y$21,HLOOKUP($G$2,DEBUTMU!$AE$1:$DV$37,15,FALSE),HLOOKUP($G$2,DEBUTMU!$EH$1:$GV$37,15,FALSE)) -> Curl concentré poulie basse | F32: =D31 -> BICEPS | G32: Charge idéale | I32: =IF($G$1=DEBUTMU!$Y$21,HLOOKUP($L$2,DEBUTMU!$AE$1:$DV$37,15,FALSE),HLOOKUP($L$2,DEBUTMU!$EH$1:$GV$37,15,FALSE)) -> 10 | J32: Kg | K32: =100*I32/(VLOOKUP(I31,DEBUTMU!$O$39:$P$68,2,FALSE)) -> 18.51851852 | L32: =TIME(,,(G31*I31*2)+(K31*(G31-1))) -> 00:05:40
B34: =IF($G$1=DEBUTMU!$Y$21,HLOOKUP($M$2,DEBUTMU!$AE$1:$DV$37,17,FALSE),HLOOKUP($M$2,DEBUTMU!$EH$1:$GV$37,17,FALSE)) -> AGONISTE-ANTAGONISTE
K35: Récup' | M35: =VLOOKUP(D37,EX!$B$6:$L$528,8,FALSE) -> Tendez complètement les bras vers le bas jusqu’à l’extension complète, les bras restant collés contre le buste puis revenez à la position de départ progressivement en contrôlant le retour.
A36: 6 | D36: =IF($G$1=DEBUTMU!$Y$21,HLOOKUP($G$2,DEBUTMU!$AE$1:$DV$37,16,FALSE),HLOOKUP($G$2,DEBUTMU!$EH$1:$GV$37,16,FALSE)) -> TRICEPS | F36: =D37 -> Tirage poulie haute | G36: =IF($G$1=DEBUTMU!$Y$21,HLOOKUP($K$2,DEBUTMU!$AE$1:$DV$37,16,FALSE),HLOOKUP($K$2,DEBUTMU!$EH$1:$GV$37,16,FALSE)) -> 4 | H36: x | I36: =IF($G$1=DEBUTMU!$Y$21,HLOOKUP($L$2,DEBUTMU!$AE$1:$DV$37,16,FALSE),HLOOKUP($L$2,DEBUTMU!$EH$1:$GV$37,16,FALSE)) -> 20 | J36: - | K36: =IF($G$1=DEBUTMU!$Y$21,HLOOKUP($M$2,DEBUTMU!$AE$1:$DV$37,16,FALSE),HLOOKUP($M$2,DEBUTMU!$EH$1:$GV$37,16,FALSE)) -> 60 | L36: "
D37: =IF($G$1=DEBUTMU!$Y$21,HLOOKUP($G$2,DEBUTMU!$AE$1:$DV$37,17,FALSE),HLOOKUP($G$2,DEBUTMU!$EH$1:$GV$37,17,FALSE)) -> Tirage poulie haute | F37: =D36 -> TRICEPS | G37: Charge idéale | I37: =IF($G$1=DEBUTMU!$Y$21,HLOOKUP($L$2,DEBUTMU!$AE$1:$DV$37,17,FALSE),HLOOKUP($L$2,DEBUTMU!$EH$1:$GV$37,17,FALSE)) -> 10 | J37: Kg | K37: =100*I37/(VLOOKUP(I36,DEBUTMU!$O$39:$P$68,2,FALSE)) -> 18.51851852 | L37: =TIME(,,(G36*I36*2)+(K36*(G36-1))) -> 00:05:40
B39: =IF($G$1=DEBUTMU!$Y$21,HLOOKUP($M$2,DEBUTMU!$AE$1:$DV$37,19,FALSE),HLOOKUP($M$2,DEBUTMU!$EH$1:$GV$37,19,FALSE)) -> AGONISTE-ANTAGONISTE
K40: Récup' | M40: =VLOOKUP(D42,EX!$B$6:$L$528,8,FALSE) -> 0
A41: 7 | D41: =IF($G$1=DEBUTMU!$Y$21,HLOOKUP($G$2,DEBUTMU!$AE$1:$DV$37,18,FALSE),HLOOKUP($G$2,DEBUTMU!$EH$1:$GV$37,18,FALSE)) -> QUADRICEPS | F41: =D42 -> Leg extension | G41: =IF($G$1=DEBUTMU!$Y$21,HLOOKUP($K$2,DEBUTMU!$AE$1:$DV$37,18,FALSE),HLOOKUP($K$2,DEBUTMU!$EH$1:$GV$37,18,FALSE)) -> 4 | H41: x | I41: =IF($G$1=DEBUTMU!$Y$21,HLOOKUP($L$2,DEBUTMU!$AE$1:$DV$37,18,FALSE),HLOOKUP($L$2,DEBUTMU!$EH$1:$GV$37,18,FALSE)) -> 20 | J41: - | K41: =IF($G$1=DEBUTMU!$Y$21,HLOOKUP($M$2,DEBUTMU!$AE$1:$DV$37,18,FALSE),HLOOKUP($M$2,DEBUTMU!$EH$1:$GV$37,18,FALSE)) -> 60 | L41: "
D42: =IF($G$1=DEBUTMU!$Y$21,HLOOKUP($G$2,DEBUTMU!$AE$1:$DV$37,19,FALSE),HLOOKUP($G$2,DEBUTMU!$EH$1:$GV$37,19,FALSE)) -> Leg extension | F42: =D41 -> QUADRICEPS | G42: Charge idéale | I42: =IF($G$1=DEBUTMU!$Y$21,HLOOKUP($L$2,DEBUTMU!$AE$1:$DV$37,19,FALSE),HLOOKUP($L$2,DEBUTMU!$EH$1:$GV$37,19,FALSE)) -> 10 | J42: Kg | K42: =100*I42/(VLOOKUP(I41,DEBUTMU!$O$39:$P$68,2,FALSE)) -> 18.51851852 | L42: =TIME(,,(G41*I41*2)+(K41*(G41-1))) -> 00:05:40
B44: =IF($G$1=DEBUTMU!$Y$21,HLOOKUP($M$2,DEBUTMU!$AE$1:$DV$37,21,FALSE),HLOOKUP($M$2,DEBUTMU!$EH$1:$GV$37,21,FALSE)) -> AGONISTE-ANTAGONISTE
K45: Récup' | M45: =VLOOKUP(D47,EX!$B$6:$L$528,8,FALSE) -> 0
A46: 8 | D46: =IF($G$1=DEBUTMU!$Y$21,HLOOKUP($G$2,DEBUTMU!$AE$1:$DV$37,20,FALSE),HLOOKUP($G$2,DEBUTMU!$EH$1:$GV$37,20,FALSE)) -> ISCHIOS | F46: =D47 -> Leg curl allongé ventre | G46: =IF($G$1=DEBUTMU!$Y$21,HLOOKUP($K$2,DEBUTMU!$AE$1:$DV$37,20,FALSE),HLOOKUP($K$2,DEBUTMU!$EH$1:$GV$37,20,FALSE)) -> 4 | H46: x | I46: =IF($G$1=DEBUTMU!$Y$21,HLOOKUP($L$2,DEBUTMU!$AE$1:$DV$37,20,FALSE),HLOOKUP($L$2,DEBUTMU!$EH$1:$GV$37,20,FALSE)) -> 20 | J46: - | K46: =IF($G$1=DEBUTMU!$Y$21,HLOOKUP($M$2,DEBUTMU!$AE$1:$DV$37,20,FALSE),HLOOKUP($M$2,DEBUTMU!$EH$1:$GV$37,20,FALSE)) -> 60 | L46: "
D47: =IF($G$1=DEBUTMU!$Y$21,HLOOKUP($G$2,DEBUTMU!$AE$1:$DV$37,21,FALSE),HLOOKUP($G$2,DEBUTMU!$EH$1:$GV$37,21,FALSE)) -> Leg curl allongé ventre | F47: =D46 -> ISCHIOS | G47: Charge idéale | I47: =IF($G$1=DEBUTMU!$Y$21,HLOOKUP($L$2,DEBUTMU!$AE$1:$DV$37,21,FALSE),HLOOKUP($L$2,DEBUTMU!$EH$1:$GV$37,21,FALSE)) -> 10 | J47: Kg | K47: =100*I47/(VLOOKUP(I46,DEBUTMU!$O$39:$P$68,2,FALSE)) -> 18.51851852 | L47: =TIME(,,(G46*I46*2)+(K46*(G46-1))) -> 00:05:40
B49: =IF($G$1=DEBUTMU!$Y$21,HLOOKUP($M$2,DEBUTMU!$AE$1:$DV$37,23,FALSE),HLOOKUP($M$2,DEBUTMU!$EH$1:$GV$37,23,FALSE)) -> AGONISTE-ANTAGONISTE
K50: Récup' | M50: =VLOOKUP(D52,EX!$B$6:$L$528,8,FALSE) -> Tendez les bras au-dessus des épaules. Pliez les bras et laissez redescendre progressivement la barre jusqu'à toucher la poitrine Remontez lentement la barre
A51: 9 | D51: =IF($G$1=DEBUTMU!$Y$21,HLOOKUP($G$2,DEBUTMU!$AE$1:$DV$37,22,FALSE),HLOOKUP($G$2,DEBUTMU!$EH$1:$GV$37,22,FALSE)) -> PECTORAUX | F51: =D52 -> Développé couché barre | G51: =IF($G$1=DEBUTMU!$Y$21,HLOOKUP($K$2,DEBUTMU!$AE$1:$DV$37,22,FALSE),HLOOKUP($K$2,DEBUTMU!$EH$1:$GV$37,22,FALSE)) -> 4 | H51: x | I51: =IF($G$1=DEBUTMU!$Y$21,HLOOKUP($L$2,DEBUTMU!$AE$1:$DV$37,22,FALSE),HLOOKUP($L$2,DEBUTMU!$EH$1:$GV$37,22,FALSE)) -> 20 | J51: - | K51: =IF($G$1=DEBUTMU!$Y$21,HLOOKUP($M$2,DEBUTMU!$AE$1:$DV$37,22,FALSE),HLOOKUP($M$2,DEBUTMU!$EH$1:$GV$37,22,FALSE)) -> 60 | L51: "
D52: =IF($G$1=DEBUTMU!$Y$21,HLOOKUP($G$2,DEBUTMU!$AE$1:$DV$37,23,FALSE),HLOOKUP($G$2,DEBUTMU!$EH$1:$GV$37,23,FALSE)) -> Développé couché barre | F52: =D51 -> PECTORAUX | G52: Charge idéale | I52: =IF($G$1=DEBUTMU!$Y$21,HLOOKUP($L$2,DEBUTMU!$AE$1:$DV$37,23,FALSE),HLOOKUP($L$2,DEBUTMU!$EH$1:$GV$37,23,FALSE)) -> 20 | J52: Kg | K52: =100*I52/(VLOOKUP(I51,DEBUTMU!$O$39:$P$68,2,FALSE)) -> 37.03703704 | L52: =TIME(,,(G51*I51*2)+(K51*(G51-1))) -> 00:05:40
B54: =IF($G$1=DEBUTMU!$Y$21,HLOOKUP($M$2,DEBUTMU!$AE$1:$DV$37,25,FALSE),HLOOKUP($M$2,DEBUTMU!$EH$1:$GV$37,25,FALSE)) -> AGONISTE-ANTAGONISTE
K55: Récup' | M55: =VLOOKUP(D57,EX!$B$6:$L$528,8,FALSE) -> 0
A56: 10 | D56: =IF($G$1=DEBUTMU!$Y$21,HLOOKUP($G$2,DEBUTMU!$AE$1:$DV$37,24,FALSE),HLOOKUP($G$2,DEBUTMU!$EH$1:$GV$37,24,FALSE)) -> DORSAUX | F56: =D57 -> Barre T | G56: =IF($G$1=DEBUTMU!$Y$21,HLOOKUP($K$2,DEBUTMU!$AE$1:$DV$37,24,FALSE),HLOOKUP($K$2,DEBUTMU!$EH$1:$GV$37,24,FALSE)) -> 4 | H56: x | I56: =IF($G$1=DEBUTMU!$Y$21,HLOOKUP($L$2,DEBUTMU!$AE$1:$DV$37,24,FALSE),HLOOKUP($L$2,DEBUTMU!$EH$1:$GV$37,24,FALSE)) -> 20 | J56: - | K56: =IF($G$1=DEBUTMU!$Y$21,HLOOKUP($M$2,DEBUTMU!$AE$1:$DV$37,24,FALSE),HLOOKUP($M$2,DEBUTMU!$EH$1:$GV$37,24,FALSE)) -> 60 | L56: "
D57: =IF($G$1=DEBUTMU!$Y$21,HLOOKUP($G$2,DEBUTMU!$AE$1:$DV$37,25,FALSE),HLOOKUP($G$2,DEBUTMU!$EH$1:$GV$37,25,FALSE)) -> Barre T | F57: =D56 -> DORSAUX | G57: Charge idéale | I57: =IF($G$1=DEBUTMU!$Y$21,HLOOKUP($L$2,DEBUTMU!$AE$1:$DV$37,25,FALSE),HLOOKUP($L$2,DEBUTMU!$EH$1:$GV$37,25,FALSE)) -> 20 | J57: Kg | K57: =100*I57/(VLOOKUP(I56,DEBUTMU!$O$39:$P$68,2,FALSE)) -> 37.03703704 | L57: =TIME(,,(G56*I56*2)+(K56*(G56-1))) -> 00:05:40
B59: =IF($G$1=DEBUTMU!$Y$21,HLOOKUP($M$2,DEBUTMU!$AE$1:$DV$37,27,FALSE),HLOOKUP($M$2,DEBUTMU!$EH$1:$GV$37,27,FALSE)) -> AGONISTE-ANTAGONISTE
K60: Récup' | M60: =VLOOKUP(D62,EX!$B$6:$L$528,8,FALSE) -> 0
A61: 11 | D61: =IF($G$1=DEBUTMU!$Y$21,HLOOKUP($G$2,DEBUTMU!$AE$1:$DV$37,26,FALSE),HLOOKUP($G$2,DEBUTMU!$EH$1:$GV$37,26,FALSE)) -> GRAND DROIT | F61: =D62 -> Crunch machine | G61: =IF($G$1=DEBUTMU!$Y$21,HLOOKUP($K$2,DEBUTMU!$AE$1:$DV$37,26,FALSE),HLOOKUP($K$2,DEBUTMU!$EH$1:$GV$37,26,FALSE)) -> 4 | H61: x | I61: =IF($G$1=DEBUTMU!$Y$21,HLOOKUP($L$2,DEBUTMU!$AE$1:$DV$37,26,FALSE),HLOOKUP($L$2,DEBUTMU!$EH$1:$GV$37,26,FALSE)) -> 20 | J61: - | K61: =IF($G$1=DEBUTMU!$Y$21,HLOOKUP($M$2,DEBUTMU!$AE$1:$DV$37,26,FALSE),HLOOKUP($M$2,DEBUTMU!$EH$1:$GV$37,26,FALSE)) -> 60 | L61: "
D62: =IF($G$1=DEBUTMU!$Y$21,HLOOKUP($G$2,DEBUTMU!$AE$1:$DV$37,27,FALSE),HLOOKUP($G$2,DEBUTMU!$EH$1:$GV$37,27,FALSE)) -> Crunch machine | F62: =D61 -> GRAND DROIT | G62: Charge idéale | I62: =IF($G$1=DEBUTMU!$Y$21,HLOOKUP($L$2,DEBUTMU!$AE$1:$DV$37,27,FALSE),HLOOKUP($L$2,DEBUTMU!$EH$1:$GV$37,27,FALSE)) -> 10 | J62: Kg | K62: =100*I62/(VLOOKUP(I61,DEBUTMU!$O$39:$P$68,2,FALSE)) -> 18.51851852 | L62: =TIME(,,(G61*I61*2)+(K61*(G61-1))) -> 00:05:40
B64: =IF($G$1=DEBUTMU!$Y$21,HLOOKUP($M$2,DEBUTMU!$AE$1:$DV$37,29,FALSE),HLOOKUP($M$2,DEBUTMU!$EH$1:$GV$37,29,FALSE)) -> AGONISTE-ANTAGONISTE
K65: Récup' | M65: =VLOOKUP(D67,EX!$B$6:$L$528,8,FALSE) -> 0
A66: 12 | D66: =IF($G$1=DEBUTMU!$Y$21,HLOOKUP($G$2,DEBUTMU!$AE$1:$DV$37,28,FALSE),HLOOKUP($G$2,DEBUTMU!$EH$1:$GV$37,28,FALSE)) -> LOMBAIRES | F66: =D67 -> Extension Relevé de buste | G66: =IF($G$1=DEBUTMU!$Y$21,HLOOKUP($K$2,DEBUTMU!$AE$1:$DV$37,28,FALSE),HLOOKUP($K$2,DEBUTMU!$EH$1:$GV$37,28,FALSE)) -> 4 | H66: x | I66: =IF($G$1=DEBUTMU!$Y$21,HLOOKUP($L$2,DEBUTMU!$AE$1:$DV$37,28,FALSE),HLOOKUP($L$2,DEBUTMU!$EH$1:$GV$37,28,FALSE)) -> 20 | J66: - | K66: =IF($G$1=DEBUTMU!$Y$21,HLOOKUP($M$2,DEBUTMU!$AE$1:$DV$37,28,FALSE),HLOOKUP($M$2,DEBUTMU!$EH$1:$GV$37,28,FALSE)) -> 60 | L66: "
D67: =IF($G$1=DEBUTMU!$Y$21,HLOOKUP($G$2,DEBUTMU!$AE$1:$DV$37,29,FALSE),HLOOKUP($G$2,DEBUTMU!$EH$1:$GV$37,29,FALSE)) -> Extension Relevé de buste | F67: =D66 -> LOMBAIRES | G67: Charge idéale | I67: =IF($G$1=DEBUTMU!$Y$21,HLOOKUP($L$2,DEBUTMU!$AE$1:$DV$37,29,FALSE),HLOOKUP($L$2,DEBUTMU!$EH$1:$GV$37,29,FALSE)) -> 10 | J67: Kg | K67: =100*I67/(VLOOKUP(I66,DEBUTMU!$O$39:$P$68,2,FALSE)) -> 18.51851852 | L67: =TIME(,,(G66*I66*2)+(K66*(G66-1))) -> 00:05:40
B69: =IF($G$1=DEBUTMU!$Y$21,HLOOKUP($M$2,DEBUTMU!$AE$1:$DV$37,31,FALSE),HLOOKUP($M$2,DEBUTMU!$EH$1:$GV$37,31,FALSE)) -> AGONISTE-ANTAGONISTE
K70: Récup' | M70: =VLOOKUP(D72,EX!$B$6:$L$528,8,FALSE) -> 0
A71: 13 | D71: =IF($G$1=DEBUTMU!$Y$21,HLOOKUP($G$2,DEBUTMU!$AE$1:$DV$37,30,FALSE),HLOOKUP($G$2,DEBUTMU!$EH$1:$GV$37,30,FALSE)) -> BICEPS | F71: =D72 -> Curl concentré poulie basse | G71: =IF($G$1=DEBUTMU!$Y$21,HLOOKUP($K$2,DEBUTMU!$AE$1:$DV$37,30,FALSE),HLOOKUP($K$2,DEBUTMU!$EH$1:$GV$37,30,FALSE)) -> 4 | H71: x | I71: =IF($G$1=DEBUTMU!$Y$21,HLOOKUP($L$2,DEBUTMU!$AE$1:$DV$37,30,FALSE),HLOOKUP($L$2,DEBUTMU!$EH$1:$GV$37,30,FALSE)) -> 20 | J71: - | K71: =IF($G$1=DEBUTMU!$Y$21,HLOOKUP($M$2,DEBUTMU!$AE$1:$DV$37,30,FALSE),HLOOKUP($M$2,DEBUTMU!$EH$1:$GV$37,30,FALSE)) -> 60 | L71: "
D72: =IF($G$1=DEBUTMU!$Y$21,HLOOKUP($G$2,DEBUTMU!$AE$1:$DV$37,31,FALSE),HLOOKUP($G$2,DEBUTMU!$EH$1:$GV$37,31,FALSE)) -> Curl concentré poulie basse | F72: =D71 -> BICEPS | G72: Charge idéale | I72: =IF($G$1=DEBUTMU!$Y$21,HLOOKUP($L$2,DEBUTMU!$AE$1:$DV$37,31,FALSE),HLOOKUP($L$2,DEBUTMU!$EH$1:$GV$37,31,FALSE)) -> 10 | J72: Kg | K72: =100*I72/(VLOOKUP(I71,DEBUTMU!$O$39:$P$68,2,FALSE)) -> 18.51851852 | L72: =TIME(,,(G71*I71*2)+(K71*(G71-1))) -> 00:05:40
B74: =IF($G$1=DEBUTMU!$Y$21,HLOOKUP($M$2,DEBUTMU!$AE$1:$DV$37,33,FALSE),HLOOKUP($M$2,DEBUTMU!$EH$1:$GV$37,33,FALSE)) -> AGONISTE-ANTAGONISTE
K75: Récup' | M75: =VLOOKUP(D77,EX!$B$6:$L$528,8,FALSE) -> Tendez complètement les bras vers le bas jusqu’à l’extension complète, les bras restant collés contre le buste puis revenez à la position de départ progressivement en contrôlant le retour.
A76: 14 | D76: =IF($G$1=DEBUTMU!$Y$21,HLOOKUP($G$2,DEBUTMU!$AE$1:$DV$37,32,FALSE),HLOOKUP($G$2,DEBUTMU!$EH$1:$GV$37,32,FALSE)) -> TRICEPS | F76: =D77 -> Tirage poulie haute | G76: =IF($G$1=DEBUTMU!$Y$21,HLOOKUP($K$2,DEBUTMU!$AE$1:$DV$37,32,FALSE),HLOOKUP($K$2,DEBUTMU!$EH$1:$GV$37,32,FALSE)) -> 4 | H76: x | I76: =IF($G$1=DEBUTMU!$Y$21,HLOOKUP($L$2,DEBUTMU!$AE$1:$DV$37,32,FALSE),HLOOKUP($L$2,DEBUTMU!$EH$1:$GV$37,32,FALSE)) -> 20 | J76: - | K76: =IF($G$1=DEBUTMU!$Y$21,HLOOKUP($M$2,DEBUTMU!$AE$1:$DV$37,32,FALSE),HLOOKUP($M$2,DEBUTMU!$EH$1:$GV$37,32,FALSE)) -> 60 | L76: "
D77: =IF($G$1=DEBUTMU!$Y$21,HLOOKUP($G$2,DEBUTMU!$AE$1:$DV$37,33,FALSE),HLOOKUP($G$2,DEBUTMU!$EH$1:$GV$37,33,FALSE)) -> Tirage poulie haute | F77: =D76 -> TRICEPS | G77: Charge idéale | I77: =IF($G$1=DEBUTMU!$Y$21,HLOOKUP($L$2,DEBUTMU!$AE$1:$DV$37,33,FALSE),HLOOKUP($L$2,DEBUTMU!$EH$1:$GV$37,33,FALSE)) -> 10 | J77: Kg | K77: =100*I77/(VLOOKUP(I76,DEBUTMU!$O$39:$P$68,2,FALSE)) -> 18.51851852 | L77: =TIME(,,(G76*I76*2)+(K76*(G76-1))) -> 00:05:40
B79: =IF($G$1=DEBUTMU!$Y$21,HLOOKUP($M$2,DEBUTMU!$AE$1:$DV$37,35,FALSE),HLOOKUP($M$2,DEBUTMU!$EH$1:$GV$37,35,FALSE)) -> AGONISTE-ANTAGONISTE
K80: Récup' | M80: =VLOOKUP(D82,EX!$B$6:$L$528,8,FALSE) -> 0
A81: 15 | D81: =IF($G$1=DEBUTMU!$Y$21,HLOOKUP($G$2,DEBUTMU!$AE$1:$DV$37,34,FALSE),HLOOKUP($G$2,DEBUTMU!$EH$1:$GV$37,34,FALSE)) -> QUADRICEPS | F81: =D82 -> Leg extension | G81: =IF($G$1=DEBUTMU!$Y$21,HLOOKUP($K$2,DEBUTMU!$AE$1:$DV$37,34,FALSE),HLOOKUP($K$2,DEBUTMU!$EH$1:$GV$37,34,FALSE)) -> 4 | H81: x | I81: =IF($G$1=DEBUTMU!$Y$21,HLOOKUP($L$2,DEBUTMU!$AE$1:$DV$37,34,FALSE),HLOOKUP($L$2,DEBUTMU!$EH$1:$GV$37,34,FALSE)) -> 20 | J81: - | K81: =IF($G$1=DEBUTMU!$Y$21,HLOOKUP($M$2,DEBUTMU!$AE$1:$DV$37,34,FALSE),HLOOKUP($M$2,DEBUTMU!$EH$1:$GV$37,34,FALSE)) -> 60 | L81: "
D82: =IF($G$1=DEBUTMU!$Y$21,HLOOKUP($G$2,DEBUTMU!$AE$1:$DV$37,35,FALSE),HLOOKUP($G$2,DEBUTMU!$EH$1:$GV$37,35,FALSE)) -> Leg extension | F82: =D81 -> QUADRICEPS | G82: Charge idéale | I82: =IF($G$1=DEBUTMU!$Y$21,HLOOKUP($L$2,DEBUTMU!$AE$1:$DV$37,35,FALSE),HLOOKUP($L$2,DEBUTMU!$EH$1:$GV$37,35,FALSE)) -> 10 | J82: Kg | K82: =100*I82/(VLOOKUP(I81,DEBUTMU!$O$39:$P$68,2,FALSE)) -> 18.51851852 | L82: =TIME(,,(G81*I81*2)+(K81*(G81-1))) -> 00:05:40
B84: =IF($G$1=DEBUTMU!$Y$21,HLOOKUP($M$2,DEBUTMU!$AE$1:$DV$37,37,FALSE),HLOOKUP($M$2,DEBUTMU!$EH$1:$GV$37,37,FALSE)) -> AGONISTE-ANTAGONISTE
K85: Récup' | M85: =VLOOKUP(D87,EX!$B$6:$L$528,8,FALSE) -> 0
A86: 16 | D86: =IF($G$1=DEBUTMU!$Y$21,HLOOKUP($G$2,DEBUTMU!$AE$1:$DV$37,36,FALSE),HLOOKUP($G$2,DEBUTMU!$EH$1:$GV$37,36,FALSE)) -> ISCHIOS | F86: =D87 -> Leg curl allongé ventre | G86: =IF($G$1=DEBUTMU!$Y$21,HLOOKUP($K$2,DEBUTMU!$AE$1:$DV$37,36,FALSE),HLOOKUP($K$2,DEBUTMU!$EH$1:$GV$37,36,FALSE)) -> 4 | H86: x | I86: =IF($G$1=DEBUTMU!$Y$21,HLOOKUP($L$2,DEBUTMU!$AE$1:$DV$37,36,FALSE),HLOOKUP($L$2,DEBUTMU!$EH$1:$GV$37,36,FALSE)) -> 20 | J86: - | K86: =IF($G$1=DEBUTMU!$Y$21,HLOOKUP($M$2,DEBUTMU!$AE$1:$DV$37,36,FALSE),HLOOKUP($M$2,DEBUTMU!$EH$1:$GV$37,36,FALSE)) -> 60 | L86: "
D87: =IF($G$1=DEBUTMU!$Y$21,HLOOKUP($G$2,DEBUTMU!$AE$1:$DV$37,37,FALSE),HLOOKUP($G$2,DEBUTMU!$EH$1:$GV$37,37,FALSE)) -> Leg curl allongé ventre | F87: =D86 -> ISCHIOS | G87: Charge idéale | I87: =IF($G$1=DEBUTMU!$Y$21,HLOOKUP($L$2,DEBUTMU!$AE$1:$DV$37,37,FALSE),HLOOKUP($L$2,DEBUTMU!$EH$1:$GV$37,37,FALSE)) -> 10 | J87: Kg | K87: =100*I87/(VLOOKUP(I86,DEBUTMU!$O$39:$P$68,2,FALSE)) -> 18.51851852 | L87: =TIME(,,(G86*I86*2)+(K86*(G86-1))) -> 00:05:40
G91: Tonnage | I91: =V21 -> 15200 | J91: Kg

Sheet S3
B1: ='S1'!B1 -> 1META | C1: Séance | E1: 3 | G1: Programme Prof | N1: Méthode d'entrainement
B2: ='S1'!B2 -> Abdel Nour | D2: 12 | E2: Avril | G2: S3-mini CT.AA | K2: =VLOOKUP($G$2,DEBUTMU!$Z$6:$AC$37,2,FALSE) -> SERIE-CHARGE-S3-mini CT.AA | L2: =VLOOKUP($G$2,DEBUTMU!$Z$6:$AC$37,3,FALSE) -> REPS-POURCENT-S3-mini CT.AA | M2: =VLOOKUP($G$2,DEBUTMU!$Z$6:$AC$37,4,FALSE) -> RECUP-METH-S3-mini CT.AA | N2: =IF($G$1=DEBUTMU!$Y$21,HLOOKUP($M$2,DEBUTMU!$AE$1:$DV$37,5,FALSE),HLOOKUP($M$2,DEBUTMU!$EN$1:$HB$37,5,FALSE)) -> CIRCUIT TRAINING
D4: Objectif séance | G4: Séries | I4: Réps | M4: Conseils d'entrainement
D5: =IF($G$1=DEBUTMU!$Y$21,HLOOKUP($G$2,DEBUTMU!$AE$1:$DV$37,4,FALSE),HLOOKUP($G$2,DEBUTMU!$EN$1:$HB$37,4,FALSE)) -> Réaliser des circuits training de 3 exos en A-A + abdos | G5: =IF($G$1=DEBUTMU!$Y$21,HLOOKUP($K$2,DEBUTMU!$AE$1:$DV$37,4,FALSE),HLOOKUP($K$2,DEBUTMU!$EN$1:$HB$37,4,FALSE)) -> 4 | H5: x | I5: =IF($G$1=DEBUTMU!$Y$21,HLOOKUP($L$2,DEBUTMU!$AE$1:$DV$37,4,FALSE),HLOOKUP($L$2,DEBUTMU!$EN$1:$HB$37,4,FALSE)) -> 20 | M5: =VLOOKUP(G2,DEBUTMU!Z6:AD37,5,FALSE) -> Enchianer les exos sans pause avec charges adaptées à l'obj | P5: Durée estimée de la séance | U5: MUSCLES | V5: TONNAGE/MUSCLE | W5: EXO 1 | X5: EXO 2 | Y5: EXO 3 | Z5: EXO 4 | AA5: EXO 5 | AB5: EXO 6 | AC5: EXO 7 | AD5: EXO 8 | AE5: EXO 9 | AF5: EXO 10 | AG5: EXO 11 | AH5: EXO 12 | AI5: EXO 13 | AJ5: EXO 14 | AK5: EXO 15 | AL5: EXO 16
K6: Récup'/séries | U6: =DEBUTMU!X6 -> PECTORAUX | V6: =SUM(W6:AL6) -> 800 | W6: =IFERROR(VLOOKUP(U6,$D$11:$I$11,4,FALSE)*VLOOKUP(U6,$D$11:$I$11,6,FALSE)*VLOOKUP(U6,$F$12:$I$12,4,FALSE),0) -> 0 | X6: =IFERROR(VLOOKUP(U6,$D$16:$I$16,4,FALSE)*VLOOKUP(U6,$D$16:$I$16,6,FALSE)*VLOOKUP(U6,$F$17:$I$17,4,FALSE),0) -> 0 | Y6: =IFERROR(VLOOKUP(U6,$D$21:$I$21,4,FALSE)*VLOOKUP(U6,$D$21:$I$21,6,FALSE)*VLOOKUP(U6,F22:I22,4,FALSE),0) -> 0 | Z6: =IFERROR(VLOOKUP(U6,$D$26:$I$26,4,FALSE)*VLOOKUP(U6,$D$26:$I$26,6,FALSE)*VLOOKUP(U6,$F$27:$I$27,4,FALSE),0) -> 0 | AA6: =IFERROR(VLOOKUP(U6,$D$31:$I$31,4,FALSE)*VLOOKUP(U6,$D$31:$I$31,6,FALSE)*VLOOKUP(U6,$F$32:$I$32,4,FALSE),0) -> 0 | AB6: =IFERROR(VLOOKUP(U6,$D$36:$I$36,4,FALSE)*VLOOKUP(U6,$D$36:$I$36,6,FALSE)*VLOOKUP(U6,$F$37:$I$37,4,FALSE),0) -> 800 | AC6: =IFERROR(VLOOKUP(U6,$D$41:$I$41,4,FALSE)*VLOOKUP(U6,$D$41:$I$41,6,FALSE)*VLOOKUP(U6,$F$42:$I$42,4,FALSE),0) -> 0 | AD6: =IFERROR(VLOOKUP(U6,$D$46:$I$46,4,FALSE)*VLOOKUP(U6,$D$46:$I$46,6,FALSE)*VLOOKUP(U6,$F$47:$I$47,4,FALSE),0) -> 0 | AE6: =IFERROR(VLOOKUP(U6,$D$51:$I$51,4,FALSE)*VLOOKUP(U6,$D$51:$I$51,6,FALSE)*VLOOKUP(U6,$F$52:$I$52,4,FALSE),0) -> 0 | AF6: =IFERROR(VLOOKUP(U6,$D$56:$I$56,4,FALSE)*VLOOKUP(U6,$D$56:$I$56,6,FALSE)*VLOOKUP(U6,$F$57:$I$57,4,FALSE),0) -> 0 | AG6: =IFERROR(VLOOKUP(U6,$D$61:$I$61,4,FALSE)*VLOOKUP(U6,$D$61:$I$61,6,FALSE)*VLOOKUP(U6,$F$62:$I$62,4,FALSE),0) -> 0 | AH6: =IFERROR(VLOOKUP(U6,$D$66:$I$66,4,FALSE)*VLOOKUP(U6,$D$66:$I$66,6,FALSE)*VLOOKUP(U6,$F$67:$I$67,4,FALSE),0) -> 0 | AI6: =IFERROR(VLOOKUP(U6,$D$71:$I$71,4,FALSE)*VLOOKUP(U6,$D$71:$I$71,6,FALSE)*VLOOKUP(U6,$F$72:$I$72,4,FALSE),0) -> 0 | AJ6: =IFERROR(VLOOKUP(U6,$D$76:$I$76,4,FALSE)*VLOOKUP(U6,$D$76:$I$76,6,FALSE)*VLOOKUP(U6,$F$77:$I$77,4,FALSE),0) -> 0 | AK6: =IFERROR(VLOOKUP(U6,$D$81:$I$81,4,FALSE)*VLOOKUP(U6,$D$81:$I$81,6,FALSE)*VLOOKUP(U6,$F$82:$I$82,4,FALSE),0) -> 0 | AL6: =IFERROR(VLOOKUP(U6,$D$86:$I$86,4,FALSE)*VLOOKUP(U6,$D$86:$I$86,6,FALSE)*VLOOKUP(U6,$F$87:$I$87,4,FALSE),0) -> 0
G7: Pourcentage Charge idéale | I7: =IF($G$1=DEBUTMU!$Y$21,HLOOKUP($K$2,DEBUTMU!$AE$1:$DV$37,5,FALSE),HLOOKUP($K$2,DEBUTMU!$EN$1:$HB$37,5,FALSE)) -> 60 | J7: % | K7: =IF($G$1=DEBUTMU!$Y$21,HLOOKUP($M$2,DEBUTMU!$AE$1:$DV$37,4,FALSE),HLOOKUP($M$2,DEBUTMU!$EN$1:$HB$37,4,FALSE)) -> 30 | L7: " | P7: =(L12+L17+L22+L27+L32+L37+L42+L47+L52+L57+L62+L67+L72+L77+L82+L87)+(L12+L17+L22+L27+L32+L37+L42+L47+L52+L57+L62+L67+L72+L77+L82+L87)*10/100 -> 01:03:26 | U7: =DEBUTMU!X7 -> GRAND DROIT | V7: =SUM(W7:AL7) -> 1600 | W7: =IFERROR(VLOOKUP(U7,$D$11:$I$11,4,FALSE)*VLOOKUP(U7,$D$11:$I$11,6,FALSE)*VLOOKUP(U7,$F$12:$I$12,4,FALSE),0) -> 0 | X7: =IFERROR(VLOOKUP(U7,$D$16:$I$16,4,FALSE)*VLOOKUP(U7,$D$16:$I$16,6,FALSE)*VLOOKUP(U7,$F$17:$I$17,4,FALSE),0) -> 0 | Y7: =IFERROR(VLOOKUP(U7,$D$21:$I$21,4,FALSE)*VLOOKUP(U7,$D$21:$I$21,6,FALSE)*VLOOKUP(U7,F23:I23,4,FALSE),0) -> 0 | Z7: =IFERROR(VLOOKUP(U7,$D$26:$I$26,4,FALSE)*VLOOKUP(U7,$D$26:$I$26,6,FALSE)*VLOOKUP(U7,$F$27:$I$27,4,FALSE),0) -> 0 | AA7: =IFERROR(VLOOKUP(U7,$D$31:$I$31,4,FALSE)*VLOOKUP(U7,$D$31:$I$31,6,FALSE)*VLOOKUP(U7,$F$32:$I$32,4,FALSE),0) -> 0 | AB7: =IFERROR(VLOOKUP(U7,$D$36:$I$36,4,FALSE)*VLOOKUP(U7,$D$36:$I$36,6,FALSE)*VLOOKUP(U7,$F$37:$I$37,4,FALSE),0) -> 0 | AC7: =IFERROR(VLOOKUP(U7,$D$41:$I$41,4,FALSE)*VLOOKUP(U7,$D$41:$I$41,6,FALSE)*VLOOKUP(U7,$F$42:$I$42,4,FALSE),0) -> 0 | AD7: =IFERROR(VLOOKUP(U7,$D$46:$I$46,4,FALSE)*VLOOKUP(U7,$D$46:$I$46,6,FALSE)*VLOOKUP(U7,$F$47:$I$47,4,FALSE),0) -> 800 | AE7: =IFERROR(VLOOKUP(U7,$D$51:$I$51,4,FALSE)*VLOOKUP(U7,$D$51:$I$51,6,FALSE)*VLOOKUP(U7,$F$52:$I$52,4,FALSE),0) -> 0 | AF7: =IFERROR(VLOOKUP(U7,$D$56:$I$56,4,FALSE)*VLOOKUP(U7,$D$56:$I$56,6,FALSE)*VLOOKUP(U7,$F$57:$I$57,4,FALSE),0) -> 0 | AG7: =IFERROR(VLOOKUP(U7,$D$61:$I$61,4,FALSE)*VLOOKUP(U7,$D$61:$I$61,6,FALSE)*VLOOKUP(U7,$F$62:$I$62,4,FALSE),0) -> 0 | AH7: =IFERROR(VLOOKUP(U7,$D$66:$I$66,4,FALSE)*VLOOKUP(U7,$D$66:$I$66,6,FALSE)*VLOOKUP(U7,$F$67:$I$67,4,FALSE),0) -> 0 | AI7: =IFERROR(VLOOKUP(U7,$D$71:$I$71,4,FALSE)*VLOOKUP(U7,$D$71:$I$71,6,FALSE)*VLOOKUP(U7,$F$72:$I$72,4,FALSE),0) -> 800 | AJ7: =IFERROR(VLOOKUP(U7,$D$76:$I$76,4,FALSE)*VLOOKUP(U7,$D$76:$I$76,6,FALSE)*VLOOKUP(U7,$F$77:$I$77,4,FALSE),0) -> 0 | AK7: =IFERROR(VLOOKUP(U7,$D$81:$I$81,4,FALSE)*VLOOKUP(U7,$D$81:$I$81,6,FALSE)*VLOOKUP(U7,$F$82:$I$82,4,FALSE),0) -> 0 | AL7: =IFERROR(VLOOKUP(U7,$D$86:$I$86,4,FALSE)*VLOOKUP(U7,$D$86:$I$86,6,FALSE)*VLOOKUP(U7,$F$87:$I$87,4,FALSE),0) -> 0
U8: =DEBUTMU!X8 -> OBLIQUES | V8: 2400 | W8: 0 | X8: 0 | Y8: 0 | Z8: 800 | AA8: 0 | AB8: 0 | AC8: 0 | AD8: 0 | AE8: 800 | AF8: 0 | AG8: 0 | AH8: 0 | AI8: 0 | AJ8: 800 | AK8: 0 | AL8: 0
B9: =IF($G$1=DEBUTMU!$Y$21,HLOOKUP($M$2,DEBUTMU!$AE$1:$DV$37,7,FALSE),HLOOKUP($M$2,DEBUTMU!$EN$1:$HB$37,7,FALSE)) -> CIRCUIT TRAINING | U9: =DEBUTMU!X9 -> TRAPEZES | V9: 0 | W9: 0 | X9: 0 | Y9: 0 | Z9: 0 | AA9: 0 | AB9: 0 | AC9: 0 | AD9: 0 | AE9: 0 | AF9: 0 | AG9: 0 | AH9: 0 | AI9: 0 | AJ9: 0 | AK9: 0 | AL9: 0
K10: Récup' | M10: =VLOOKUP(D12,EX!$B$6:$L$528,8,FALSE) ->  | U10: =DEBUTMU!X10 -> DORSAUX | V10: 800 | W10: 0 | X10: 0 | Y10: 0 | Z10: 0 | AA10: 0 | AB10: 0 | AC10: 800 | AD10: 0 | AE10: 0 | AF10: 0 | AG10: 0 | AH10: 0 | AI10: 0 | AJ10: 0 | AK10: 0 | AL10: 0
A11: 1 | D11: =IF($G$1=DEBUTMU!$Y$21,HLOOKUP($G$2,DEBUTMU!$AE$1:$DV$37,6,FALSE),HLOOKUP($G$2,DEBUTMU!$EN$1:$HB$37,6,FALSE)) -> BICEPS | F11: =D12 -> 0 | G11: =IF($G$1=DEBUTMU!$Y$21,HLOOKUP($K$2,DEBUTMU!$AE$1:$DV$37,6,FALSE),HLOOKUP($K$2,DEBUTMU!$EN$1:$HB$37,6,FALSE)) -> 4 | H11: x | I11: =IF($G$1=DEBUTMU!$Y$21,HLOOKUP($L$2,DEBUTMU!$AE$1:$DV$37,6,FALSE),HLOOKUP($L$2,DEBUTMU!$EN$1:$HB$37,6,FALSE)) -> 20 | J11: - | K11: =IF($G$1=DEBUTMU!$Y$21,HLOOKUP($M$2,DEBUTMU!$AE$1:$DV$37,6,FALSE),HLOOKUP($M$2,DEBUTMU!$EN$1:$HB$37,6,FALSE)) -> 0 | L11: " | Q11: bilan | U11: =DEBUTMU!X11 -> LOMBAIRES | V11: 0 | W11: 0 | X11: 0 | Y11: 0 | Z11: 0 | AA11: 0 | AB11: 0 | AC11: 0 | AD11: 0 | AE11: 0 | AF11: 0 | AG11: 0 | AH11: 0 | AI11: 0 | AJ11: 0 | AK11: 0 | AL11: 0
D12: =IF($G$1=DEBUTMU!$Y$21,HLOOKUP($G$2,DEBUTMU!$AE$1:$DV$37,7,FALSE),HLOOKUP($G$2,DEBUTMU!$EN$1:$HB$37,7,FALSE)) -> 0 | F12: =D11 -> BICEPS | G12: Charge idéale | I12: =IF($G$1=DEBUTMU!$Y$21,HLOOKUP($L$2,DEBUTMU!$AE$1:$DV$37,7,FALSE),HLOOKUP($L$2,DEBUTMU!$EN$1:$HB$37,7,FALSE)) -> 10 | J12: Kg | K12: =100*I12/(VLOOKUP(I11,DEBUTMU!$O$39:$P$68,2,FALSE)) -> 18.51851852 | L12: =TIME(,,(G11*I11*2)+(K11*(G11-1))) -> 00:02:40 | U12: =DEBUTMU!X12 -> DELTOIDES | V12: 0 | W12: 0 | X12: 0 | Y12: 0 | Z12: 0 | AA12: 0 | AB12: 0 | AC12: 0 | AD12: 0 | AE12: 0 | AF12: 0 | AG12: 0 | AH12: 0 | AI12: 0 | AJ12: 0 | AK12: 0 | AL12: 0
U13: =DEBUTMU!X13 -> BICEPS | V13: 800 | W13: 800 | X13: 0 | Y13: 0 | Z13: 0 | AA13: 0 | AB13: 0 | AC13: 0 | AD13: 0 | AE13: 0 | AF13: 0 | AG13: 0 | AH13: 0 | AI13: 0 | AJ13: 0 | AK13: 0 | AL13: 0
B14: =IF($G$1=DEBUTMU!$Y$21,HLOOKUP($M$2,DEBUTMU!$AE$1:$DV$37,9,FALSE),HLOOKUP($M$2,DEBUTMU!$EN$1:$HB$37,9,FALSE)) -> CIRCUIT TRAINING | U14: =DEBUTMU!X14 -> TRICEPS | V14: 800 | W14: 0 | X14: 800 | Y14: 0 | Z14: 0 | AA14: 0 | AB14: 0 | AC14: 0 | AD14: 0 | AE14: 0 | AF14: 0 | AG14: 0 | AH14: 0 | AI14: 0 | AJ14: 0 | AK14: 0 | AL14: 0
K15: Récup' | M15: =VLOOKUP(D17,EX!$B$6:$L$528,8,FALSE) ->  | U15: =DEBUTMU!X15 -> QUADRICEPS | V15: 800 | W15: 0 | X15: 0 | Y15: 0 | Z15: 0 | AA15: 0 | AB15: 0 | AC15: 0 | AD15: 0 | AE15: 0 | AF15: 0 | AG15: 800 | AH15: 0 | AI15: 0 | AJ15: 0 | AK15: 0 | AL15: 0
A16: 2 | D16: =IF($G$1=DEBUTMU!$Y$21,HLOOKUP($G$2,DEBUTMU!$AE$1:$DV$37,8,FALSE),HLOOKUP($G$2,DEBUTMU!$EN$1:$HB$37,8,FALSE)) -> TRICEPS | F16: =D17 -> 0 | G16: =IF($G$1=DEBUTMU!$Y$21,HLOOKUP($K$2,DEBUTMU!$AE$1:$DV$37,8,FALSE),HLOOKUP($K$2,DEBUTMU!$EN$1:$HB$37,8,FALSE)) -> 4 | H16: x | I16: =IF($G$1=DEBUTMU!$Y$21,HLOOKUP($L$2,DEBUTMU!$AE$1:$DV$37,8,FALSE),HLOOKUP($L$2,DEBUTMU!$EN$1:$HB$37,8,FALSE)) -> 20 | J16: - | K16: =IF($G$1=DEBUTMU!$Y$21,HLOOKUP($M$2,DEBUTMU!$AE$1:$DV$37,8,FALSE),HLOOKUP($M$2,DEBUTMU!$EN$1:$HB$37,8,FALSE)) -> 0 | L16: " | U16: =DEBUTMU!X16 -> ISCHIOS | V16: 800 | W16: 0 | X16: 0 | Y16: 0 | Z16: 0 | AA16: 0 | AB16: 0 | AC16: 0 | AD16: 0 | AE16: 0 | AF16: 0 | AG16: 0 | AH16: 800 | AI16: 0 | AJ16: 0 | AK16: 0 | AL16: 0
D17: =IF($G$1=DEBUTMU!$Y$21,HLOOKUP($G$2,DEBUTMU!$AE$1:$DV$37,9,FALSE),HLOOKUP($G$2,DEBUTMU!$EN$1:$HB$37,9,FALSE)) -> 0 | F17: =D16 -> TRICEPS | G17: Charge idéale | I17: =IF($G$1=DEBUTMU!$Y$21,HLOOKUP($L$2,DEBUTMU!$AE$1:$DV$37,9,FALSE),HLOOKUP($L$2,DEBUTMU!$EN$1:$HB$37,9,FALSE)) -> 10 | J17: Kg | K17: =100*I17/(VLOOKUP(I16,DEBUTMU!$O$39:$P$68,2,FALSE)) -> 18.51851852 | L17: =TIME(,,(G16*I16*2)+(K16*(G16-1))) -> 00:02:40 | U17: =DEBUTMU!X17 -> MOLLETS | V17: 0 | W17: 0 | X17: 0 | Y17: 0 | Z17: 0 | AA17: 0 | AB17: 0 | AC17: 0 | AD17: 0 | AE17: 0 | AF17: 0 | AG17: 0 | AH17: 0 | AI17: 0 | AJ17: 0 | AK17: 0 | AL17: 0
U18: =DEBUTMU!X18 -> AVANT-BRAS | V18: 0 | W18: 0 | X18: 0 | Y18: 0 | Z18: 0 | AA18: 0 | AB18: 0 | AC18: 0 | AD18: 0 | AE18: 0 | AF18: 0 | AG18: 0 | AH18: 0 | AI18: 0 | AJ18: 0 | AK18: 0 | AL18: 0
B19: =IF($G$1=DEBUTMU!$Y$21,HLOOKUP($M$2,DEBUTMU!$AE$1:$DV$37,11,FALSE),HLOOKUP($M$2,DEBUTMU!$EN$1:$HB$37,11,FALSE)) -> CIRCUIT TRAINING | U19: =DEBUTMU!X19 -> FESSIERS | V19: 0 | W19: 0 | X19: 0 | Y19: 0 | Z19: 0 | AA19: 0 | AB19: 0 | AC19: 0 | AD19: 0 | AE19: 0 | AF19: 0 | AG19: 0 | AH19: 0 | AI19: 0 | AJ19: 0 | AK19: 0 | AL19: 0
K20: Récup' | M20: =VLOOKUP(D22,EX!$B$6:$L$528,8,FALSE) ->  | W20: 0 | X20: 0 | Y20: 0 | Z20: 0 | AA20: 800 | AB20: 0 | AC20: 0 | AD20: 0 | AE20: 0 | AF20: 800 | AG20: 0 | AH20: 0 | AI20: 0 | AJ20: 0 | AK20: 800 | AL20: 800
A21: 3 | D21: =IF($G$1=DEBUTMU!$Y$21,HLOOKUP($G$2,DEBUTMU!$AE$1:$DV$37,10,FALSE),HLOOKUP($G$2,DEBUTMU!$EN$1:$HB$37,10,FALSE)) -> GRAND DROIT | F21: =D22 -> 0 | G21: =IF($G$1=DEBUTMU!$Y$21,HLOOKUP($K$2,DEBUTMU!$AE$1:$DV$37,10,FALSE),HLOOKUP($K$2,DEBUTMU!$EN$1:$HB$37,10,FALSE)) -> 4 | H21: x | I21: =IF($G$1=DEBUTMU!$Y$21,HLOOKUP($L$2,DEBUTMU!$AE$1:$DV$37,10,FALSE),HLOOKUP($L$2,DEBUTMU!$EN$1:$HB$37,10,FALSE)) -> 20 | J21: - | K21: =IF($G$1=DEBUTMU!$Y$21,HLOOKUP($M$2,DEBUTMU!$AE$1:$DV$37,10,FALSE),HLOOKUP($M$2,DEBUTMU!$EN$1:$HB$37,10,FALSE)) -> 0 | L21: " | U21: TONNAGE TOTAL | V21: =SUM(V6:V19) -> 8800 | Y21: haut | Z21: 0
D22: =IF($G$1=DEBUTMU!$Y$21,HLOOKUP($G$2,DEBUTMU!$AE$1:$DV$37,11,FALSE),HLOOKUP($G$2,DEBUTMU!$EN$1:$HB$37,11,FALSE)) -> 0 | F22: =D21 -> GRAND DROIT | G22: Charge idéale | I22: =IF($G$1=DEBUTMU!$Y$21,HLOOKUP($L$2,DEBUTMU!$AE$1:$DV$37,11,FALSE),HLOOKUP($L$2,DEBUTMU!$EN$1:$HB$37,11,FALSE)) -> 10 | J22: Kg | K22: =100*I22/(VLOOKUP(I21,DEBUTMU!$O$39:$P$68,2,FALSE)) -> 18.51851852 | L22: =TIME(,,(G21*I21*2)+(K21*(G21-1))) -> 00:02:40 | Y22: bas | Z22: 0
Y23: gauche | Z23: 0
B24: =IF($G$1=DEBUTMU!$Y$21,HLOOKUP($M$2,DEBUTMU!$AE$1:$DV$37,13,FALSE),HLOOKUP($M$2,DEBUTMU!$EN$1:$HB$37,13,FALSE)) -> CIRCUIT TRAINING | Y24: droite | Z24: 0
K25: Récup' | M25: =VLOOKUP(D27,EX!$B$6:$L$528,8,FALSE) -> 
A26: 4 | D26: =IF($G$1=DEBUTMU!$Y$21,HLOOKUP($G$2,DEBUTMU!$AE$1:$DV$37,12,FALSE),HLOOKUP($G$2,DEBUTMU!$EN$1:$HB$37,12,FALSE)) -> OBLIQUES | F26: =D27 -> 0 | G26: =IF($G$1=DEBUTMU!$Y$21,HLOOKUP($K$2,DEBUTMU!$AE$1:$DV$37,12,FALSE),HLOOKUP($K$2,DEBUTMU!$EN$1:$HB$37,12,FALSE)) -> 4 | H26: x | I26: =IF($G$1=DEBUTMU!$Y$21,HLOOKUP($L$2,DEBUTMU!$AE$1:$DV$37,12,FALSE),HLOOKUP($L$2,DEBUTMU!$EN$1:$HB$37,12,FALSE)) -> 20 | J26: - | K26: =IF($G$1=DEBUTMU!$Y$21,HLOOKUP($M$2,DEBUTMU!$AE$1:$DV$37,12,FALSE),HLOOKUP($M$2,DEBUTMU!$EN$1:$HB$37,12,FALSE)) -> 30 | L26: "
D27: =IF($G$1=DEBUTMU!$Y$21,HLOOKUP($G$2,DEBUTMU!$AE$1:$DV$37,13,FALSE),HLOOKUP($G$2,DEBUTMU!$EN$1:$HB$37,13,FALSE)) -> 0 | F27: =D26 -> OBLIQUES | G27: Charge idéale | I27: =IF($G$1=DEBUTMU!$Y$21,HLOOKUP($L$2,DEBUTMU!$AE$1:$DV$37,13,FALSE),HLOOKUP($L$2,DEBUTMU!$EN$1:$HB$37,13,FALSE)) -> 10 | J27: Kg | K27: =100*I27/(VLOOKUP(I26,DEBUTMU!$O$39:$P$68,2,FALSE)) -> 18.51851852 | L27: =TIME(,,(G26*I26*2)+(K26*(G26-1))) -> 00:04:10
B29: =IF($G$1=DEBUTMU!$Y$21,HLOOKUP($M$2,DEBUTMU!$AE$1:$DV$37,15,FALSE),HLOOKUP($M$2,DEBUTMU!$EN$1:$HB$37,15,FALSE)) -> CIRCUIT TRAINING
K30: Récup' | M30: =VLOOKUP(D32,EX!$B$6:$L$528,8,FALSE) -> 
A31: 5 | D31: =IF($G$1=DEBUTMU!$Y$21,HLOOKUP($G$2,DEBUTMU!$AE$1:$DV$37,14,FALSE),HLOOKUP($G$2,DEBUTMU!$EN$1:$HB$37,14,FALSE)) -> 0 | F31: =D32 -> 0 | G31: =IF($G$1=DEBUTMU!$Y$21,HLOOKUP($K$2,DEBUTMU!$AE$1:$DV$37,14,FALSE),HLOOKUP($K$2,DEBUTMU!$EN$1:$HB$37,14,FALSE)) -> 4 | H31: x | I31: =IF($G$1=DEBUTMU!$Y$21,HLOOKUP($L$2,DEBUTMU!$AE$1:$DV$37,14,FALSE),HLOOKUP($L$2,DEBUTMU!$EN$1:$HB$37,14,FALSE)) -> 20 | J31: - | K31: =IF($G$1=DEBUTMU!$Y$21,HLOOKUP($M$2,DEBUTMU!$AE$1:$DV$37,14,FALSE),HLOOKUP($M$2,DEBUTMU!$EN$1:$HB$37,14,FALSE)) -> 30 | L31: "
D32: =IF($G$1=DEBUTMU!$Y$21,HLOOKUP($G$2,DEBUTMU!$AE$1:$DV$37,15,FALSE),HLOOKUP($G$2,DEBUTMU!$EN$1:$HB$37,15,FALSE)) -> 0 | F32: =D31 -> 0 | G32: Charge idéale | I32: =IF($G$1=DEBUTMU!$Y$21,HLOOKUP($L$2,DEBUTMU!$AE$1:$DV$37,15,FALSE),HLOOKUP($L$2,DEBUTMU!$EN$1:$HB$37,15,FALSE)) -> 10 | J32: Kg | K32: =100*I32/(VLOOKUP(I31,DEBUTMU!$O$39:$P$68,2,FALSE)) -> 18.51851852 | L32: =TIME(,,(G31*I31*2)+(K31*(G31-1))) -> 00:04:10
B34: =IF($G$1=DEBUTMU!$Y$21,HLOOKUP($M$2,DEBUTMU!$AE$1:$DV$37,17,FALSE),HLOOKUP($M$2,DEBUTMU!$EN$1:$HB$37,17,FALSE)) -> CIRCUIT TRAINING
K35: Récup' | M35: =VLOOKUP(D37,EX!$B$6:$L$528,8,FALSE) -> 
A36: 6 | D36: =IF($G$1=DEBUTMU!$Y$21,HLOOKUP($G$2,DEBUTMU!$AE$1:$DV$37,16,FALSE),HLOOKUP($G$2,DEBUTMU!$EN$1:$HB$37,16,FALSE)) -> PECTORAUX | F36: =D37 -> 0 | G36: =IF($G$1=DEBUTMU!$Y$21,HLOOKUP($K$2,DEBUTMU!$AE$1:$DV$37,16,FALSE),HLOOKUP($K$2,DEBUTMU!$EN$1:$HB$37,16,FALSE)) -> 4 | H36: x | I36: =IF($G$1=DEBUTMU!$Y$21,HLOOKUP($L$2,DEBUTMU!$AE$1:$DV$37,16,FALSE),HLOOKUP($L$2,DEBUTMU!$EN$1:$HB$37,16,FALSE)) -> 20 | J36: - | K36: =IF($G$1=DEBUTMU!$Y$21,HLOOKUP($M$2,DEBUTMU!$AE$1:$DV$37,16,FALSE),HLOOKUP($M$2,DEBUTMU!$EN$1:$HB$37,16,FALSE)) -> 0 | L36: "
D37: =IF($G$1=DEBUTMU!$Y$21,HLOOKUP($G$2,DEBUTMU!$AE$1:$DV$37,17,FALSE),HLOOKUP($G$2,DEBUTMU!$EN$1:$HB$37,17,FALSE)) -> 0 | F37: =D36 -> PECTORAUX | G37: Charge idéale | I37: =IF($G$1=DEBUTMU!$Y$21,HLOOKUP($L$2,DEBUTMU!$AE$1:$DV$37,17,FALSE),HLOOKUP($L$2,DEBUTMU!$EN$1:$HB$37,17,FALSE)) -> 10 | J37: Kg | K37: =100*I37/(VLOOKUP(I36,DEBUTMU!$O$39:$P$68,2,FALSE)) -> 18.51851852 | L37: =TIME(,,(G36*I36*2)+(K36*(G36-1))) -> 00:02:40
B39: =IF($G$1=DEBUTMU!$Y$21,HLOOKUP($M$2,DEBUTMU!$AE$1:$DV$37,19,FALSE),HLOOKUP($M$2,DEBUTMU!$EN$1:$HB$37,19,FALSE)) -> CIRCUIT TRAINING
K40: Récup' | M40: =VLOOKUP(D42,EX!$B$6:$L$528,8,FALSE) -> 
A41: 7 | D41: =IF($G$1=DEBUTMU!$Y$21,HLOOKUP($G$2,DEBUTMU!$AE$1:$DV$37,18,FALSE),HLOOKUP($G$2,DEBUTMU!$EN$1:$HB$37,18,FALSE)) -> DORSAUX | F41: =D42 -> 0 | G41: =IF($G$1=DEBUTMU!$Y$21,HLOOKUP($K$2,DEBUTMU!$AE$1:$DV$37,18,FALSE),HLOOKUP($K$2,DEBUTMU!$EN$1:$HB$37,18,FALSE)) -> 4 | H41: x | I41: =IF($G$1=DEBUTMU!$Y$21,HLOOKUP($L$2,DEBUTMU!$AE$1:$DV$37,18,FALSE),HLOOKUP($L$2,DEBUTMU!$EN$1:$HB$37,18,FALSE)) -> 20 | J41: - | K41: =IF($G$1=DEBUTMU!$Y$21,HLOOKUP($M$2,DEBUTMU!$AE$1:$DV$37,18,FALSE),HLOOKUP($M$2,DEBUTMU!$EN$1:$HB$37,18,FALSE)) -> 0 | L41: "
D42: =IF($G$1=DEBUTMU!$Y$21,HLOOKUP($G$2,DEBUTMU!$AE$1:$DV$37,19,FALSE),HLOOKUP($G$2,DEBUTMU!$EN$1:$HB$37,19,FALSE)) -> 0 | F42: =D41 -> DORSAUX | G42: Charge idéale | I42: =IF($G$1=DEBUTMU!$Y$21,HLOOKUP($L$2,DEBUTMU!$AE$1:$DV$37,19,FALSE),HLOOKUP($L$2,DEBUTMU!$EN$1:$HB$37,19,FALSE)) -> 10 | J42: Kg | K42: =100*I42/(VLOOKUP(I41,DEBUTMU!$O$39:$P$68,2,FALSE)) -> 18.51851852 | L42: =TIME(,,(G41*I41*2)+(K41*(G41-1))) -> 00:02:40
B44: =IF($G$1=DEBUTMU!$Y$21,HLOOKUP($M$2,DEBUTMU!$AE$1:$DV$37,21,FALSE),HLOOKUP($M$2,DEBUTMU!$EN$1:$HB$37,21,FALSE)) -> CIRCUIT TRAINING
K45: Récup' | M45: =VLOOKUP(D47,EX!$B$6:$L$528,8,FALSE) -> 
A46: 8 | D46: =IF($G$1=DEBUTMU!$Y$21,HLOOKUP($G$2,DEBUTMU!$AE$1:$DV$37,20,FALSE),HLOOKUP($G$2,DEBUTMU!$EN$1:$HB$37,20,FALSE)) -> GRAND DROIT | F46: =D47 -> 0 | G46: =IF($G$1=DEBUTMU!$Y$21,HLOOKUP($K$2,DEBUTMU!$AE$1:$DV$37,20,FALSE),HLOOKUP($K$2,DEBUTMU!$EN$1:$HB$37,20,FALSE)) -> 4 | H46: x | I46: =IF($G$1=DEBUTMU!$Y$21,HLOOKUP($L$2,DEBUTMU!$AE$1:$DV$37,20,FALSE),HLOOKUP($L$2,DEBUTMU!$EN$1:$HB$37,20,FALSE)) -> 20 | J46: - | K46: =IF($G$1=DEBUTMU!$Y$21,HLOOKUP($M$2,DEBUTMU!$AE$1:$DV$37,20,FALSE),HLOOKUP($M$2,DEBUTMU!$EN$1:$HB$37,20,FALSE)) -> 0 | L46: "
D47: =IF($G$1=DEBUTMU!$Y$21,HLOOKUP($G$2,DEBUTMU!$AE$1:$DV$37,21,FALSE),HLOOKUP($G$2,DEBUTMU!$EN$1:$HB$37,21,FALSE)) -> 0 | F47: =D46 -> GRAND DROIT | G47: Charge idéale | I47: =IF($G$1=DEBUTMU!$Y$21,HLOOKUP($L$2,DEBUTMU!$AE$1:$DV$37,21,FALSE),HLOOKUP($L$2,DEBUTMU!$EN$1:$HB$37,21,FALSE)) -> 10 | J47: Kg | K47: =100*I47/(VLOOKUP(I46,DEBUTMU!$O$39:$P$68,2,FALSE)) -> 18.51851852 | L47: =TIME(,,(G46*I46*2)+(K46*(G46-1))) -> 00:02:40
B49: =IF($G$1=DEBUTMU!$Y$21,HLOOKUP($M$2,DEBUTMU!$AE$1:$DV$37,23,FALSE),HLOOKUP($M$2,DEBUTMU!$EN$1:$HB$37,23,FALSE)) -> CIRCUIT TRAINING
K50: Récup' | M50: =VLOOKUP(D52,EX!$B$6:$L$528,8,FALSE) -> 
A51: 9 | D51: =IF($G$1=DEBUTMU!$Y$21,HLOOKUP($G$2,DEBUTMU!$AE$1:$DV$37,22,FALSE),HLOOKUP($G$2,DEBUTMU!$EN$1:$HB$37,22,FALSE)) -> OBLIQUES | F51: =D52 -> 0 | G51: =IF($G$1=DEBUTMU!$Y$21,HLOOKUP($K$2,DEBUTMU!$AE$1:$DV$37,22,FALSE),HLOOKUP($K$2,DEBUTMU!$EN$1:$HB$37,22,FALSE)) -> 4 | H51: x | I51: =IF($G$1=DEBUTMU!$Y$21,HLOOKUP($L$2,DEBUTMU!$AE$1:$DV$37,22,FALSE),HLOOKUP($L$2,DEBUTMU!$EN$1:$HB$37,22,FALSE)) -> 20 | J51: - | K51: =IF($G$1=DEBUTMU!$Y$21,HLOOKUP($M$2,DEBUTMU!$AE$1:$DV$37,22,FALSE),HLOOKUP($M$2,DEBUTMU!$EN$1:$HB$37,22,FALSE)) -> 30 | L51: "
D52: =IF($G$1=DEBUTMU!$Y$21,HLOOKUP($G$2,DEBUTMU!$AE$1:$DV$37,23,FALSE),HLOOKUP($G$2,DEBUTMU!$EN$1:$HB$37,23,FALSE)) -> 0 | F52: =D51 -> OBLIQUES | G52: Charge idéale | I52: =IF($G$1=DEBUTMU!$Y$21,HLOOKUP($L$2,DEBUTMU!$AE$1:$DV$37,23,FALSE),HLOOKUP($L$2,DEBUTMU!$EN$1:$HB$37,23,FALSE)) -> 10 | J52: Kg | K52: =100*I52/(VLOOKUP(I51,DEBUTMU!$O$39:$P$68,2,FALSE)) -> 18.51851852 | L52: =TIME(,,(G51*I51*2)+(K51*(G51-1))) -> 00:04:10
B54: =IF($G$1=DEBUTMU!$Y$21,HLOOKUP($M$2,DEBUTMU!$AE$1:$DV$37,25,FALSE),HLOOKUP($M$2,DEBUTMU!$EN$1:$HB$37,25,FALSE)) -> CIRCUIT TRAINING
K55: Récup' | M55: =VLOOKUP(D57,EX!$B$6:$L$528,8,FALSE) -> 
A56: 10 | D56: =IF($G$1=DEBUTMU!$Y$21,HLOOKUP($G$2,DEBUTMU!$AE$1:$DV$37,24,FALSE),HLOOKUP($G$2,DEBUTMU!$EN$1:$HB$37,24,FALSE)) -> 0 | F56: =D57 -> 0 | G56: =IF($G$1=DEBUTMU!$Y$21,HLOOKUP($K$2,DEBUTMU!$AE$1:$DV$37,24,FALSE),HLOOKUP($K$2,DEBUTMU!$EN$1:$HB$37,24,FALSE)) -> 4 | H56: x | I56: =IF($G$1=DEBUTMU!$Y$21,HLOOKUP($L$2,DEBUTMU!$AE$1:$DV$37,24,FALSE),HLOOKUP($L$2,DEBUTMU!$EN$1:$HB$37,24,FALSE)) -> 20 | J56: - | K56: =IF($G$1=DEBUTMU!$Y$21,HLOOKUP($M$2,DEBUTMU!$AE$1:$DV$37,24,FALSE),HLOOKUP($M$2,DEBUTMU!$EN$1:$HB$37,24,FALSE)) -> 30 | L56: "
D57: =IF($G$1=DEBUTMU!$Y$21,HLOOKUP($G$2,DEBUTMU!$AE$1:$DV$37,25,FALSE),HLOOKUP($G$2,DEBUTMU!$EN$1:$HB$37,25,FALSE)) -> 0 | F57: =D56 -> 0 | G57: Charge idéale | I57: =IF($G$1=DEBUTMU!$Y$21,HLOOKUP($L$2,DEBUTMU!$AE$1:$DV$37,25,FALSE),HLOOKUP($L$2,DEBUTMU!$EN$1:$HB$37,25,FALSE)) -> 10 | J57: Kg | K57: =100*I57/(VLOOKUP(I56,DEBUTMU!$O$39:$P$68,2,FALSE)) -> 18.51851852 | L57: =TIME(,,(G56*I56*2)+(K56*(G56-1))) -> 00:04:10
B59: =IF($G$1=DEBUTMU!$Y$21,HLOOKUP($M$2,DEBUTMU!$AE$1:$DV$37,27,FALSE),HLOOKUP($M$2,DEBUTMU!$EN$1:$HB$37,27,FALSE)) -> CIRCUIT TRAINING
K60: Récup' | M60: =VLOOKUP(D62,EX!$B$6:$L$528,8,FALSE) -> 
A61: 11 | D61: =IF($G$1=DEBUTMU!$Y$21,HLOOKUP($G$2,DEBUTMU!$AE$1:$DV$37,26,FALSE),HLOOKUP($G$2,DEBUTMU!$EN$1:$HB$37,26,FALSE)) -> QUADRICEPS | F61: =D62 -> 0 | G61: =IF($G$1=DEBUTMU!$Y$21,HLOOKUP($K$2,DEBUTMU!$AE$1:$DV$37,26,FALSE),HLOOKUP($K$2,DEBUTMU!$EN$1:$HB$37,26,FALSE)) -> 4 | H61: x | I61: =IF($G$1=DEBUTMU!$Y$21,HLOOKUP($L$2,DEBUTMU!$AE$1:$DV$37,26,FALSE),HLOOKUP($L$2,DEBUTMU!$EN$1:$HB$37,26,FALSE)) -> 20 | J61: - | K61: =IF($G$1=DEBUTMU!$Y$21,HLOOKUP($M$2,DEBUTMU!$AE$1:$DV$37,26,FALSE),HLOOKUP($M$2,DEBUTMU!$EN$1:$HB$37,26,FALSE)) -> 30 | L61: "
D62: =IF($G$1=DEBUTMU!$Y$21,HLOOKUP($G$2,DEBUTMU!$AE$1:$DV$37,27,FALSE),HLOOKUP($G$2,DEBUTMU!$EN$1:$HB$37,27,FALSE)) -> 0 | F62: =D61 -> QUADRICEPS | G62: Charge idéale | I62: =IF($G$1=DEBUTMU!$Y$21,HLOOKUP($L$2,DEBUTMU!$AE$1:$DV$37,27,FALSE),HLOOKUP($L$2,DEBUTMU!$EN$1:$HB$37,27,FALSE)) -> 10 | J62: Kg | K62: =100*I62/(VLOOKUP(I61,DEBUTMU!$O$39:$P$68,2,FALSE)) -> 18.51851852 | L62: =TIME(,,(G61*I61*2)+(K61*(G61-1))) -> 00:04:10
B64: =IF($G$1=DEBUTMU!$Y$21,HLOOKUP($M$2,DEBUTMU!$AE$1:$DV$37,29,FALSE),HLOOKUP($M$2,DEBUTMU!$EN$1:$HB$37,29,FALSE)) -> CIRCUIT TRAINING
K65: Récup' | M65: =VLOOKUP(D67,EX!$B$6:$L$528,8,FALSE) -> 
A66: 12 | D66: =IF($G$1=DEBUTMU!$Y$21,HLOOKUP($G$2,DEBUTMU!$AE$1:$DV$37,28,FALSE),HLOOKUP($G$2,DEBUTMU!$EN$1:$HB$37,28,FALSE)) -> ISCHIOS | F66: =D67 -> 0 | G66: =IF($G$1=DEBUTMU!$Y$21,HLOOKUP($K$2,DEBUTMU!$AE$1:$DV$37,28,FALSE),HLOOKUP($K$2,DEBUTMU!$EN$1:$HB$37,28,FALSE)) -> 4 | H66: x | I66: =IF($G$1=DEBUTMU!$Y$21,HLOOKUP($L$2,DEBUTMU!$AE$1:$DV$37,28,FALSE),HLOOKUP($L$2,DEBUTMU!$EN$1:$HB$37,28,FALSE)) -> 20 | J66: - | K66: =IF($G$1=DEBUTMU!$Y$21,HLOOKUP($M$2,DEBUTMU!$AE$1:$DV$37,28,FALSE),HLOOKUP($M$2,DEBUTMU!$EN$1:$HB$37,28,FALSE)) -> 30 | L66: "
D67: =IF($G$1=DEBUTMU!$Y$21,HLOOKUP($G$2,DEBUTMU!$AE$1:$DV$37,29,FALSE),HLOOKUP($G$2,DEBUTMU!$EN$1:$HB$37,29,FALSE)) -> 0 | F67: =D66 -> ISCHIOS | G67: Charge idéale | I67: =IF($G$1=DEBUTMU!$Y$21,HLOOKUP($L$2,DEBUTMU!$AE$1:$DV$37,29,FALSE),HLOOKUP($L$2,DEBUTMU!$EN$1:$HB$37,29,FALSE)) -> 10 | J67: Kg | K67: =100*I67/(VLOOKUP(I66,DEBUTMU!$O$39:$P$68,2,FALSE)) -> 18.51851852 | L67: =TIME(,,(G66*I66*2)+(K66*(G66-1))) -> 00:04:10
B69: =IF($G$1=DEBUTMU!$Y$21,HLOOKUP($M$2,DEBUTMU!$AE$1:$DV$37,31,FALSE),HLOOKUP($M$2,DEBUTMU!$EN$1:$HB$37,31,FALSE)) -> CIRCUIT TRAINING
K70: Récup' | M70: =VLOOKUP(D72,EX!$B$6:$L$528,8,FALSE) -> 
A71: 13 | D71: =IF($G$1=DEBUTMU!$Y$21,HLOOKUP($G$2,DEBUTMU!$AE$1:$DV$37,30,FALSE),HLOOKUP($G$2,DEBUTMU!$EN$1:$HB$37,30,FALSE)) -> GRAND DROIT | F71: =D72 -> 0 | G71: =IF($G$1=DEBUTMU!$Y$21,HLOOKUP($K$2,DEBUTMU!$AE$1:$DV$37,30,FALSE),HLOOKUP($K$2,DEBUTMU!$EN$1:$HB$37,30,FALSE)) -> 4 | H71: x | I71: =IF($G$1=DEBUTMU!$Y$21,HLOOKUP($L$2,DEBUTMU!$AE$1:$DV$37,30,FALSE),HLOOKUP($L$2,DEBUTMU!$EN$1:$HB$37,30,FALSE)) -> 20 | J71: - | K71: =IF($G$1=DEBUTMU!$Y$21,HLOOKUP($M$2,DEBUTMU!$AE$1:$DV$37,30,FALSE),HLOOKUP($M$2,DEBUTMU!$EN$1:$HB$37,30,FALSE)) -> 30 | L71: "
D72: =IF($G$1=DEBUTMU!$Y$21,HLOOKUP($G$2,DEBUTMU!$AE$1:$DV$37,31,FALSE),HLOOKUP($G$2,DEBUTMU!$EN$1:$HB$37,31,FALSE)) -> 0 | F72: =D71 -> GRAND DROIT | G72: Charge idéale | I72: =IF($G$1=DEBUTMU!$Y$21,HLOOKUP($L$2,DEBUTMU!$AE$1:$DV$37,31,FALSE),HLOOKUP($L$2,DEBUTMU!$EN$1:$HB$37,31,FALSE)) -> 10 | J72: Kg | K72: =100*I72/(VLOOKUP(I71,DEBUTMU!$O$39:$P$68,2,FALSE)) -> 18.51851852 | L72: =TIME(,,(G71*I71*2)+(K71*(G71-1))) -> 00:04:10
B74: =IF($G$1=DEBUTMU!$Y$21,HLOOKUP($M$2,DEBUTMU!$AE$1:$DV$37,33,FALSE),HLOOKUP($M$2,DEBUTMU!$EN$1:$HB$37,33,FALSE)) -> CIRCUIT TRAINING
K75: Récup' | M75: =VLOOKUP(D77,EX!$B$6:$L$528,8,FALSE) -> 
A76: 14 | D76: =IF($G$1=DEBUTMU!$Y$21,HLOOKUP($G$2,DEBUTMU!$AE$1:$DV$37,32,FALSE),HLOOKUP($G$2,DEBUTMU!$EN$1:$HB$37,32,FALSE)) -> OBLIQUES | F76: =D77 -> 0 | G76: =IF($G$1=DEBUTMU!$Y$21,HLOOKUP($K$2,DEBUTMU!$AE$1:$DV$37,32,FALSE),HLOOKUP($K$2,DEBUTMU!$EN$1:$HB$37,32,FALSE)) -> 4 | H76: x | I76: =IF($G$1=DEBUTMU!$Y$21,HLOOKUP($L$2,DEBUTMU!$AE$1:$DV$37,32,FALSE),HLOOKUP($L$2,DEBUTMU!$EN$1:$HB$37,32,FALSE)) -> 20 | J76: - | K76: =IF($G$1=DEBUTMU!$Y$21,HLOOKUP($M$2,DEBUTMU!$AE$1:$DV$37,32,FALSE),HLOOKUP($M$2,DEBUTMU!$EN$1:$HB$37,32,FALSE)) -> 30 | L76: "
D77: =IF($G$1=DEBUTMU!$Y$21,HLOOKUP($G$2,DEBUTMU!$AE$1:$DV$37,33,FALSE),HLOOKUP($G$2,DEBUTMU!$EN$1:$HB$37,33,FALSE)) -> 0 | F77: =D76 -> OBLIQUES | G77: Charge idéale | I77: =IF($G$1=DEBUTMU!$Y$21,HLOOKUP($L$2,DEBUTMU!$AE$1:$DV$37,33,FALSE),HLOOKUP($L$2,DEBUTMU!$EN$1:$HB$37,33,FALSE)) -> 10 | J77: Kg | K77: =100*I77/(VLOOKUP(I76,DEBUTMU!$O$39:$P$68,2,FALSE)) -> 18.51851852 | L77: =TIME(,,(G76*I76*2)+(K76*(G76-1))) -> 00:04:10
B79: =IF($G$1=DEBUTMU!$Y$21,HLOOKUP($M$2,DEBUTMU!$AE$1:$DV$37,35,FALSE),HLOOKUP($M$2,DEBUTMU!$EN$1:$HB$37,35,FALSE)) -> CIRCUIT TRAINING
K80: Récup' | M80: =VLOOKUP(D82,EX!$B$6:$L$528,8,FALSE) -> 
A81: 15 | D81: =IF($G$1=DEBUTMU!$Y$21,HLOOKUP($G$2,DEBUTMU!$AE$1:$DV$37,34,FALSE),HLOOKUP($G$2,DEBUTMU!$EN$1:$HB$37,34,FALSE)) -> 0 | F81: =D82 -> 0 | G81: =IF($G$1=DEBUTMU!$Y$21,HLOOKUP($K$2,DEBUTMU!$AE$1:$DV$37,34,FALSE),HLOOKUP($K$2,DEBUTMU!$EN$1:$HB$37,34,FALSE)) -> 4 | H81: x | I81: =IF($G$1=DEBUTMU!$Y$21,HLOOKUP($L$2,DEBUTMU!$AE$1:$DV$37,34,FALSE),HLOOKUP($L$2,DEBUTMU!$EN$1:$HB$37,34,FALSE)) -> 20 | J81: - | K81: =IF($G$1=DEBUTMU!$Y$21,HLOOKUP($M$2,DEBUTMU!$AE$1:$DV$37,34,FALSE),HLOOKUP($M$2,DEBUTMU!$EN$1:$HB$37,34,FALSE)) -> 30 | L81: "
D82: =IF($G$1=DEBUTMU!$Y$21,HLOOKUP($G$2,DEBUTMU!$AE$1:$DV$37,35,FALSE),HLOOKUP($G$2,DEBUTMU!$EN$1:$HB$37,35,FALSE)) -> 0 | F82: =D81 -> 0 | G82: Charge idéale | I82: =IF($G$1=DEBUTMU!$Y$21,HLOOKUP($L$2,DEBUTMU!$AE$1:$DV$37,35,FALSE),HLOOKUP($L$2,DEBUTMU!$EN$1:$HB$37,35,FALSE)) -> 10 | J82: Kg | K82: =100*I82/(VLOOKUP(I81,DEBUTMU!$O$39:$P$68,2,FALSE)) -> 18.51851852 | L82: =TIME(,,(G81*I81*2)+(K81*(G81-1))) -> 00:04:10
B84: =IF($G$1=DEBUTMU!$Y$21,HLOOKUP($M$2,DEBUTMU!$AE$1:$DV$37,37,FALSE),HLOOKUP($M$2,DEBUTMU!$EN$1:$HB$37,37,FALSE)) -> CIRCUIT TRAINING
K85: Récup' | M85: =VLOOKUP(D87,EX!$B$6:$L$528,8,FALSE) -> 
A86: 16 | D86: =IF($G$1=DEBUTMU!$Y$21,HLOOKUP($G$2,DEBUTMU!$AE$1:$DV$37,36,FALSE),HLOOKUP($G$2,DEBUTMU!$EN$1:$HB$37,36,FALSE)) -> 0 | F86: =D87 -> 0 | G86: =IF($G$1=DEBUTMU!$Y$21,HLOOKUP($K$2,DEBUTMU!$AE$1:$DV$37,36,FALSE),HLOOKUP($K$2,DEBUTMU!$EN$1:$HB$37,36,FALSE)) -> 4 | H86: x | I86: =IF($G$1=DEBUTMU!$Y$21,HLOOKUP($L$2,DEBUTMU!$AE$1:$DV$37,36,FALSE),HLOOKUP($L$2,DEBUTMU!$EN$1:$HB$37,36,FALSE)) -> 20 | J86: - | K86: =IF($G$1=DEBUTMU!$Y$21,HLOOKUP($M$2,DEBUTMU!$AE$1:$DV$37,36,FALSE),HLOOKUP($M$2,DEBUTMU!$EN$1:$HB$37,36,FALSE)) -> 30 | L86: "
D87: =IF($G$1=DEBUTMU!$Y$21,HLOOKUP($G$2,DEBUTMU!$AE$1:$DV$37,37,FALSE),HLOOKUP($G$2,DEBUTMU!$EN$1:$HB$37,37,FALSE)) -> 0 | F87: =D86 -> 0 | G87: Charge idéale | I87: =IF($G$1=DEBUTMU!$Y$21,HLOOKUP($L$2,DEBUTMU!$AE$1:$DV$37,37,FALSE),HLOOKUP($L$2,DEBUTMU!$EN$1:$HB$37,37,FALSE)) -> 10 | J87: Kg | K87: =100*I87/(VLOOKUP(I86,DEBUTMU!$O$39:$P$68,2,FALSE)) -> 18.51851852 | L87: =TIME(,,(G86*I86*2)+(K86*(G86-1))) -> 00:04:10
G91: Tonnage | I91: =V21 -> 8800 | J91: Kg

Sheet S4
B1: ='S1'!B1 -> 1META | C1: Séance | E1: 4 | G1: Programme Prof | N1: Méthode d'entrainement
B2: ='S1'!B2 -> Abdel Nour | D2: =VLOOKUP(E1,DEBUTMU!$A$6:$C$35,2,FALSE) -> 0 | E2: =VLOOKUP(E1,DEBUTMU!$A$6:$C$35,3,FALSE) -> 0 | G2: S4-BISET1 | K2: =VLOOKUP($G$2,DEBUTMU!$Z$6:$AC$37,2,FALSE) -> SERIE-CHARGE-S4-BISET1 | L2: =VLOOKUP($G$2,DEBUTMU!$Z$6:$AC$37,3,FALSE) -> REPS-POURCENT-S4-BISET1 | M2: =VLOOKUP($G$2,DEBUTMU!$Z$6:$AC$37,4,FALSE) -> RECUP-METH-S4-BISET1 | N2: =IF($G$1=DEBUTMU!$Y$21,HLOOKUP($M$2,DEBUTMU!$AE$1:$DV$37,5,FALSE),HLOOKUP($M$2,DEBUTMU!$ET$1:$HH$37,5,FALSE)) -> BISET
D4: Objectif séance | G4: Séries | I4: Réps | M4: Conseils d'entrainement
D5: =IF($G$1=DEBUTMU!$Y$21,HLOOKUP($G$2,DEBUTMU!$AE$1:$DV$37,4,FALSE),HLOOKUP($G$2,DEBUTMU!$ET$1:$HH$37,4,FALSE)) -> Travailler le volume simplement | G5: =IF($G$1=DEBUTMU!$Y$21,HLOOKUP($K$2,DEBUTMU!$AE$1:$DV$37,4,FALSE),HLOOKUP($K$2,DEBUTMU!$ET$1:$HH$37,4,FALSE)) -> 4 | H5: x | I5: =IF($G$1=DEBUTMU!$Y$21,HLOOKUP($L$2,DEBUTMU!$AE$1:$DV$37,4,FALSE),HLOOKUP($L$2,DEBUTMU!$ET$1:$HH$37,4,FALSE)) -> 20 | M5: =VLOOKUP(G2,DEBUTMU!Z6:AD37,5,FALSE) -> Enchainer 2 exos du même groupe musculaire sans pause | P5: Durée estimée de la séance | U5: MUSCLES | V5: TONNAGE/MUSCLE | W5: EXO 1 | X5: EXO 2 | Y5: EXO 3 | Z5: EXO 4 | AA5: EXO 5 | AB5: EXO 6 | AC5: EXO 7 | AD5: EXO 8 | AE5: EXO 9 | AF5: EXO 10 | AG5: EXO 11 | AH5: EXO 12 | AI5: EXO 13 | AJ5: EXO 14 | AK5: EXO 15 | AL5: EXO 16
K6: Récup'/séries | U6: =DEBUTMU!X6 -> PECTORAUX | V6: =SUM(W6:AL6) -> 3200 | W6: =IFERROR(VLOOKUP(U6,$D$11:$I$11,4,FALSE)*VLOOKUP(U6,$D$11:$I$11,6,FALSE)*VLOOKUP(U6,$F$12:$I$12,4,FALSE),0) -> 0 | X6: =IFERROR(VLOOKUP(U6,$D$16:$I$16,4,FALSE)*VLOOKUP(U6,$D$16:$I$16,6,FALSE)*VLOOKUP(U6,$F$17:$I$17,4,FALSE),0) -> 0 | Y6: =IFERROR(VLOOKUP(U6,$D$21:$I$21,4,FALSE)*VLOOKUP(U6,$D$21:$I$21,6,FALSE)*VLOOKUP(U6,F22:I22,4,FALSE),0) -> 0 | Z6: =IFERROR(VLOOKUP(U6,$D$26:$I$26,4,FALSE)*VLOOKUP(U6,$D$26:$I$26,6,FALSE)*VLOOKUP(U6,$F$27:$I$27,4,FALSE),0) -> 0 | AA6: =IFERROR(VLOOKUP(U6,$D$31:$I$31,4,FALSE)*VLOOKUP(U6,$D$31:$I$31,6,FALSE)*VLOOKUP(U6,$F$32:$I$32,4,FALSE),0) -> 1600 | AB6: =IFERROR(VLOOKUP(U6,$D$36:$I$36,4,FALSE)*VLOOKUP(U6,$D$36:$I$36,6,FALSE)*VLOOKUP(U6,$F$37:$I$37,4,FALSE),0) -> 0 | AC6: =IFERROR(VLOOKUP(U6,$D$41:$I$41,4,FALSE)*VLOOKUP(U6,$D$41:$I$41,6,FALSE)*VLOOKUP(U6,$F$42:$I$42,4,FALSE),0) -> 0 | AD6: =IFERROR(VLOOKUP(U6,$D$46:$I$46,4,FALSE)*VLOOKUP(U6,$D$46:$I$46,6,FALSE)*VLOOKUP(U6,$F$47:$I$47,4,FALSE),0) -> 0 | AE6: =IFERROR(VLOOKUP(U6,$D$51:$I$51,4,FALSE)*VLOOKUP(U6,$D$51:$I$51,6,FALSE)*VLOOKUP(U6,$F$52:$I$52,4,FALSE),0) -> 0 | AF6: =IFERROR(VLOOKUP(U6,$D$56:$I$56,4,FALSE)*VLOOKUP(U6,$D$56:$I$56,6,FALSE)*VLOOKUP(U6,$F$57:$I$57,4,FALSE),0) -> 0 | AG6: =IFERROR(VLOOKUP(U6,$D$61:$I$61,4,FALSE)*VLOOKUP(U6,$D$61:$I$61,6,FALSE)*VLOOKUP(U6,$F$62:$I$62,4,FALSE),0) -> 0 | AH6: =IFERROR(VLOOKUP(U6,$D$66:$I$66,4,FALSE)*VLOOKUP(U6,$D$66:$I$66,6,FALSE)*VLOOKUP(U6,$F$67:$I$67,4,FALSE),0) -> 0 | AI6: =IFERROR(VLOOKUP(U6,$D$71:$I$71,4,FALSE)*VLOOKUP(U6,$D$71:$I$71,6,FALSE)*VLOOKUP(U6,$F$72:$I$72,4,FALSE),0) -> 1600 | AJ6: =IFERROR(VLOOKUP(U6,$D$76:$I$76,4,FALSE)*VLOOKUP(U6,$D$76:$I$76,6,FALSE)*VLOOKUP(U6,$F$77:$I$77,4,FALSE),0) -> 0 | AK6: =IFERROR(VLOOKUP(U6,$D$81:$I$81,4,FALSE)*VLOOKUP(U6,$D$81:$I$81,6,FALSE)*VLOOKUP(U6,$F$82:$I$82,4,FALSE),0) -> 0 | AL6: =IFERROR(VLOOKUP(U6,$D$86:$I$86,4,FALSE)*VLOOKUP(U6,$D$86:$I$86,6,FALSE)*VLOOKUP(U6,$F$87:$I$87,4,FALSE),0) -> 0
G7: Pourcentage Charge idéale | I7: =IF($G$1=DEBUTMU!$Y$21,HLOOKUP($K$2,DEBUTMU!$AE$1:$DV$37,5,FALSE),HLOOKUP($K$2,DEBUTMU!$ET$1:$HH$37,5,FALSE)) -> 60 | J7: % | K7: =IF($G$1=DEBUTMU!$Y$21,HLOOKUP($M$2,DEBUTMU!$AE$1:$DV$37,4,FALSE),HLOOKUP($M$2,DEBUTMU!$ET$1:$HH$37,4,FALSE)) -> 90 | L7: " | P7: =(L12+L17+L22+L27+L32+L37+L42+L47+L52+L57+L62+L67+L72+L77+L82+L87)+(L12+L17+L22+L27+L32+L37+L42+L47+L52+L57+L62+L67+L72+L77+L82+L87)*10/100 -> 02:06:08 | U7: =DEBUTMU!X7 -> GRAND DROIT | V7: =SUM(W7:AL7) -> 2400 | W7: =IFERROR(VLOOKUP(U7,$D$11:$I$11,4,FALSE)*VLOOKUP(U7,$D$11:$I$11,6,FALSE)*VLOOKUP(U7,$F$12:$I$12,4,FALSE),0) -> 800 | X7: =IFERROR(VLOOKUP(U7,$D$16:$I$16,4,FALSE)*VLOOKUP(U7,$D$16:$I$16,6,FALSE)*VLOOKUP(U7,$F$17:$I$17,4,FALSE),0) -> 0 | Y7: =IFERROR(VLOOKUP(U7,$D$21:$I$21,4,FALSE)*VLOOKUP(U7,$D$21:$I$21,6,FALSE)*VLOOKUP(U7,F23:I23,4,FALSE),0) -> 0 | Z7: =IFERROR(VLOOKUP(U7,$D$26:$I$26,4,FALSE)*VLOOKUP(U7,$D$26:$I$26,6,FALSE)*VLOOKUP(U7,$F$27:$I$27,4,FALSE),0) -> 0 | AA7: =IFERROR(VLOOKUP(U7,$D$31:$I$31,4,FALSE)*VLOOKUP(U7,$D$31:$I$31,6,FALSE)*VLOOKUP(U7,$F$32:$I$32,4,FALSE),0) -> 0 | AB7: =IFERROR(VLOOKUP(U7,$D$36:$I$36,4,FALSE)*VLOOKUP(U7,$D$36:$I$36,6,FALSE)*VLOOKUP(U7,$F$37:$I$37,4,FALSE),0) -> 0 | AC7: =IFERROR(VLOOKUP(U7,$D$41:$I$41,4,FALSE)*VLOOKUP(U7,$D$41:$I$41,6,FALSE)*VLOOKUP(U7,$F$42:$I$42,4,FALSE),0) -> 0 | AD7: =IFERROR(VLOOKUP(U7,$D$46:$I$46,4,FALSE)*VLOOKUP(U7,$D$46:$I$46,6,FALSE)*VLOOKUP(U7,$F$47:$I$47,4,FALSE),0) -> 0 | AE7: =IFERROR(VLOOKUP(U7,$D$51:$I$51,4,FALSE)*VLOOKUP(U7,$D$51:$I$51,6,FALSE)*VLOOKUP(U7,$F$52:$I$52,4,FALSE),0) -> 800 | AF7: =IFERROR(VLOOKUP(U7,$D$56:$I$56,4,FALSE)*VLOOKUP(U7,$D$56:$I$56,6,FALSE)*VLOOKUP(U7,$F$57:$I$57,4,FALSE),0) -> 0 | AG7: =IFERROR(VLOOKUP(U7,$D$61:$I$61,4,FALSE)*VLOOKUP(U7,$D$61:$I$61,6,FALSE)*VLOOKUP(U7,$F$62:$I$62,4,FALSE),0) -> 800 | AH7: =IFERROR(VLOOKUP(U7,$D$66:$I$66,4,FALSE)*VLOOKUP(U7,$D$66:$I$66,6,FALSE)*VLOOKUP(U7,$F$67:$I$67,4,FALSE),0) -> 0 | AI7: =IFERROR(VLOOKUP(U7,$D$71:$I$71,4,FALSE)*VLOOKUP(U7,$D$71:$I$71,6,FALSE)*VLOOKUP(U7,$F$72:$I$72,4,FALSE),0) -> 0 | AJ7: =IFERROR(VLOOKUP(U7,$D$76:$I$76,4,FALSE)*VLOOKUP(U7,$D$76:$I$76,6,FALSE)*VLOOKUP(U7,$F$77:$I$77,4,FALSE),0) -> 0 | AK7: =IFERROR(VLOOKUP(U7,$D$81:$I$81,4,FALSE)*VLOOKUP(U7,$D$81:$I$81,6,FALSE)*VLOOKUP(U7,$F$82:$I$82,4,FALSE),0) -> 0 | AL7: =IFERROR(VLOOKUP(U7,$D$86:$I$86,4,FALSE)*VLOOKUP(U7,$D$86:$I$86,6,FALSE)*VLOOKUP(U7,$F$87:$I$87,4,FALSE),0) -> 0
U8: =DEBUTMU!X8 -> OBLIQUES | V8: 0 | W8: 0 | X8: 0 | Y8: 0 | Z8: 0 | AA8: 0 | AB8: 0 | AC8: 0 | AD8: 0 | AE8: 0 | AF8: 0 | AG8: 0 | AH8: 0 | AI8: 0 | AJ8: 0 | AK8: 0 | AL8: 0
B9: =IF($G$1=DEBUTMU!$Y$21,HLOOKUP($M$2,DEBUTMU!$AE$1:$DV$37,7,FALSE),HLOOKUP($M$2,DEBUTMU!$ET$1:$HH$37,7,FALSE)) -> BISET | U9: =DEBUTMU!X9 -> TRAPEZES | V9: 0 | W9: 0 | X9: 0 | Y9: 0 | Z9: 0 | AA9: 0 | AB9: 0 | AC9: 0 | AD9: 0 | AE9: 0 | AF9: 0 | AG9: 0 | AH9: 0 | AI9: 0 | AJ9: 0 | AK9: 0 | AL9: 0
K10: Récup' | M10: =VLOOKUP(D12,EX!$B$6:$L$528,8,FALSE) -> 0 | U10: =DEBUTMU!X10 -> DORSAUX | V10: 6400 | W10: 0 | X10: 0 | Y10: 0 | Z10: 0 | AA10: 0 | AB10: 0 | AC10: 1600 | AD10: 1600 | AE10: 0 | AF10: 0 | AG10: 0 | AH10: 0 | AI10: 0 | AJ10: 0 | AK10: 1600 | AL10: 1600
A11: 1 | D11: =IF($G$1=DEBUTMU!$Y$21,HLOOKUP($G$2,DEBUTMU!$AE$1:$DV$37,6,FALSE),HLOOKUP($G$2,DEBUTMU!$ET$1:$HH$37,6,FALSE)) -> GRAND DROIT | F11: =D12 -> Crunch machine | G11: =IF($G$1=DEBUTMU!$Y$21,HLOOKUP($K$2,DEBUTMU!$AE$1:$DV$37,6,FALSE),HLOOKUP($K$2,DEBUTMU!$ET$1:$HH$37,6,FALSE)) -> 4 | H11: x | I11: =IF($G$1=DEBUTMU!$Y$21,HLOOKUP($L$2,DEBUTMU!$AE$1:$DV$37,6,FALSE),HLOOKUP($L$2,DEBUTMU!$ET$1:$HH$37,6,FALSE)) -> 20 | J11: - | K11: =IF($G$1=DEBUTMU!$Y$21,HLOOKUP($M$2,DEBUTMU!$AE$1:$DV$37,6,FALSE),HLOOKUP($M$2,DEBUTMU!$ET$1:$HH$37,6,FALSE)) -> 90 | L11: " | Q11: bilan | U11: =DEBUTMU!X11 -> LOMBAIRES | V11: 2400 | W11: 0 | X11: 0 | Y11: 800 | Z11: 800 | AA11: 0 | AB11: 0 | AC11: 0 | AD11: 0 | AE11: 0 | AF11: 0 | AG11: 0 | AH11: 800 | AI11: 0 | AJ11: 0 | AK11: 0 | AL11: 0
D12: =IF($G$1=DEBUTMU!$Y$21,HLOOKUP($G$2,DEBUTMU!$AE$1:$DV$37,7,FALSE),HLOOKUP($G$2,DEBUTMU!$ET$1:$HH$37,7,FALSE)) -> Crunch machine | F12: =D11 -> GRAND DROIT | G12: Charge idéale | I12: =IF($G$1=DEBUTMU!$Y$21,HLOOKUP($L$2,DEBUTMU!$AE$1:$DV$37,7,FALSE),HLOOKUP($L$2,DEBUTMU!$ET$1:$HH$37,7,FALSE)) -> 10 | J12: Kg | K12: =100*I12/(VLOOKUP(I11,DEBUTMU!$O$39:$P$68,2,FALSE)) -> 18.51851852 | L12: =TIME(,,(G11*I11*2)+(K11*(G11-1))) -> 00:07:10 | U12: =DEBUTMU!X12 -> DELTOIDES | V12: 0 | W12: 0 | X12: 0 | Y12: 0 | Z12: 0 | AA12: 0 | AB12: 0 | AC12: 0 | AD12: 0 | AE12: 0 | AF12: 0 | AG12: 0 | AH12: 0 | AI12: 0 | AJ12: 0 | AK12: 0 | AL12: 0
U13: =DEBUTMU!X13 -> BICEPS | V13: 0 | W13: 0 | X13: 0 | Y13: 0 | Z13: 0 | AA13: 0 | AB13: 0 | AC13: 0 | AD13: 0 | AE13: 0 | AF13: 0 | AG13: 0 | AH13: 0 | AI13: 0 | AJ13: 0 | AK13: 0 | AL13: 0
B14: =IF($G$1=DEBUTMU!$Y$21,HLOOKUP($M$2,DEBUTMU!$AE$1:$DV$37,9,FALSE),HLOOKUP($M$2,DEBUTMU!$ET$1:$HH$37,9,FALSE)) -> BISET | U14: =DEBUTMU!X14 -> TRICEPS | V14: 0 | W14: 0 | X14: 0 | Y14: 0 | Z14: 0 | AA14: 0 | AB14: 0 | AC14: 0 | AD14: 0 | AE14: 0 | AF14: 0 | AG14: 0 | AH14: 0 | AI14: 0 | AJ14: 0 | AK14: 0 | AL14: 0
K15: Récup' | M15: =VLOOKUP(D17,EX!$B$6:$L$528,8,FALSE) -> Relevez le buste le plus haut possible en direction des genoux en contractant les abdos et en gardant les lombaires plaquées. Déescendre doucement sans toucher le sol | U15: =DEBUTMU!X15 -> QUADRICEPS | V15: 0 | W15: 0 | X15: 0 | Y15: 0 | Z15: 0 | AA15: 0 | AB15: 0 | AC15: 0 | AD15: 0 | AE15: 0 | AF15: 0 | AG15: 0 | AH15: 0 | AI15: 0 | AJ15: 0 | AK15: 0 | AL15: 0
A16: 2 | D16: =IF($G$1=DEBUTMU!$Y$21,HLOOKUP($G$2,DEBUTMU!$AE$1:$DV$37,8,FALSE),HLOOKUP($G$2,DEBUTMU!$ET$1:$HH$37,8,FALSE)) -> GRAND DROIT | F16: =D17 -> Crunch sol | G16: =IF($G$1=DEBUTMU!$Y$21,HLOOKUP($K$2,DEBUTMU!$AE$1:$DV$37,8,FALSE),HLOOKUP($K$2,DEBUTMU!$ET$1:$HH$37,8,FALSE)) -> 4 | H16: x | I16: =IF($G$1=DEBUTMU!$Y$21,HLOOKUP($L$2,DEBUTMU!$AE$1:$DV$37,8,FALSE),HLOOKUP($L$2,DEBUTMU!$ET$1:$HH$37,8,FALSE)) -> 20 | J16: - | K16: =IF($G$1=DEBUTMU!$Y$21,HLOOKUP($M$2,DEBUTMU!$AE$1:$DV$37,8,FALSE),HLOOKUP($M$2,DEBUTMU!$ET$1:$HH$37,8,FALSE)) -> 90 | L16: " | U16: =DEBUTMU!X16 -> ISCHIOS | V16: 0 | W16: 0 | X16: 0 | Y16: 0 | Z16: 0 | AA16: 0 | AB16: 0 | AC16: 0 | AD16: 0 | AE16: 0 | AF16: 0 | AG16: 0 | AH16: 0 | AI16: 0 | AJ16: 0 | AK16: 0 | AL16: 0
D17: =IF($G$1=DEBUTMU!$Y$21,HLOOKUP($G$2,DEBUTMU!$AE$1:$DV$37,9,FALSE),HLOOKUP($G$2,DEBUTMU!$ET$1:$HH$37,9,FALSE)) -> Crunch sol | F17: =D16 -> GRAND DROIT | G17: Charge idéale | I17: =IF($G$1=DEBUTMU!$Y$21,HLOOKUP($L$2,DEBUTMU!$AE$1:$DV$37,9,FALSE),HLOOKUP($L$2,DEBUTMU!$ET$1:$HH$37,9,FALSE)) -> 0 | J17: Kg | K17: =100*I17/(VLOOKUP(I16,DEBUTMU!$O$39:$P$68,2,FALSE)) -> 0 | L17: =TIME(,,(G16*I16*2)+(K16*(G16-1))) -> 00:07:10 | U17: =DEBUTMU!X17 -> MOLLETS | V17: 0 | W17: 0 | X17: 0 | Y17: 0 | Z17: 0 | AA17: 0 | AB17: 0 | AC17: 0 | AD17: 0 | AE17: 0 | AF17: 0 | AG17: 0 | AH17: 0 | AI17: 0 | AJ17: 0 | AK17: 0 | AL17: 0
U18: =DEBUTMU!X18 -> AVANT-BRAS | V18: 0 | W18: 0 | X18: 0 | Y18: 0 | Z18: 0 | AA18: 0 | AB18: 0 | AC18: 0 | AD18: 0 | AE18: 0 | AF18: 0 | AG18: 0 | AH18: 0 | AI18: 0 | AJ18: 0 | AK18: 0 | AL18: 0
B19: =IF($G$1=DEBUTMU!$Y$21,HLOOKUP($M$2,DEBUTMU!$AE$1:$DV$37,11,FALSE),HLOOKUP($M$2,DEBUTMU!$ET$1:$HH$37,11,FALSE)) -> BISET | U19: =DEBUTMU!X19 -> FESSIERS | V19: 0 | W19: 0 | X19: 0 | Y19: 0 | Z19: 0 | AA19: 0 | AB19: 0 | AC19: 0 | AD19: 0 | AE19: 0 | AF19: 0 | AG19: 0 | AH19: 0 | AI19: 0 | AJ19: 0 | AK19: 0 | AL19: 0
K20: Récup' | M20: =VLOOKUP(D22,EX!$B$6:$L$528,8,FALSE) -> 0 | W20: 0 | X20: 0 | Y20: 0 | Z20: 0 | AA20: 0 | AB20: 0 | AC20: 0 | AD20: 0 | AE20: 0 | AF20: 0 | AG20: 0 | AH20: 0 | AI20: 0 | AJ20: 0 | AK20: 0 | AL20: 0
A21: 3 | D21: =IF($G$1=DEBUTMU!$Y$21,HLOOKUP($G$2,DEBUTMU!$AE$1:$DV$37,10,FALSE),HLOOKUP($G$2,DEBUTMU!$ET$1:$HH$37,10,FALSE)) -> LOMBAIRES | F21: =D22 -> Soulevé de terre à la barre | G21: =IF($G$1=DEBUTMU!$Y$21,HLOOKUP($K$2,DEBUTMU!$AE$1:$DV$37,10,FALSE),HLOOKUP($K$2,DEBUTMU!$ET$1:$HH$37,10,FALSE)) -> 4 | H21: x | I21: =IF($G$1=DEBUTMU!$Y$21,HLOOKUP($L$2,DEBUTMU!$AE$1:$DV$37,10,FALSE),HLOOKUP($L$2,DEBUTMU!$ET$1:$HH$37,10,FALSE)) -> 20 | J21: - | K21: =IF($G$1=DEBUTMU!$Y$21,HLOOKUP($M$2,DEBUTMU!$AE$1:$DV$37,10,FALSE),HLOOKUP($M$2,DEBUTMU!$ET$1:$HH$37,10,FALSE)) -> 90 | L21: " | U21: TONNAGE TOTAL | V21: =SUM(V6:V19) -> 14400 | Y21: haut | Z21: 0
D22: =IF($G$1=DEBUTMU!$Y$21,HLOOKUP($G$2,DEBUTMU!$AE$1:$DV$37,11,FALSE),HLOOKUP($G$2,DEBUTMU!$ET$1:$HH$37,11,FALSE)) -> Soulevé de terre à la barre | F22: =D21 -> LOMBAIRES | G22: Charge idéale | I22: =IF($G$1=DEBUTMU!$Y$21,HLOOKUP($L$2,DEBUTMU!$AE$1:$DV$37,11,FALSE),HLOOKUP($L$2,DEBUTMU!$ET$1:$HH$37,11,FALSE)) -> 10 | J22: Kg | K22: =100*I22/(VLOOKUP(I21,DEBUTMU!$O$39:$P$68,2,FALSE)) -> 18.51851852 | L22: =TIME(,,(G21*I21*2)+(K21*(G21-1))) -> 00:07:10 | Y22: bas | Z22: 0
Y23: gauche | Z23: 0
B24: =IF($G$1=DEBUTMU!$Y$21,HLOOKUP($M$2,DEBUTMU!$AE$1:$DV$37,13,FALSE),HLOOKUP($M$2,DEBUTMU!$ET$1:$HH$37,13,FALSE)) -> BISET | Y24: droite | Z24: 0
K25: Récup' | M25: =VLOOKUP(D27,EX!$B$6:$L$528,8,FALSE) -> 0
A26: 4 | D26: =IF($G$1=DEBUTMU!$Y$21,HLOOKUP($G$2,DEBUTMU!$AE$1:$DV$37,12,FALSE),HLOOKUP($G$2,DEBUTMU!$ET$1:$HH$37,12,FALSE)) -> LOMBAIRES | F26: =D27 -> Extension Relevé de buste | G26: =IF($G$1=DEBUTMU!$Y$21,HLOOKUP($K$2,DEBUTMU!$AE$1:$DV$37,12,FALSE),HLOOKUP($K$2,DEBUTMU!$ET$1:$HH$37,12,FALSE)) -> 4 | H26: x | I26: =IF($G$1=DEBUTMU!$Y$21,HLOOKUP($L$2,DEBUTMU!$AE$1:$DV$37,12,FALSE),HLOOKUP($L$2,DEBUTMU!$ET$1:$HH$37,12,FALSE)) -> 20 | J26: - | K26: =IF($G$1=DEBUTMU!$Y$21,HLOOKUP($M$2,DEBUTMU!$AE$1:$DV$37,12,FALSE),HLOOKUP($M$2,DEBUTMU!$ET$1:$HH$37,12,FALSE)) -> 90 | L26: "
D27: =IF($G$1=DEBUTMU!$Y$21,HLOOKUP($G$2,DEBUTMU!$AE$1:$DV$37,13,FALSE),HLOOKUP($G$2,DEBUTMU!$ET$1:$HH$37,13,FALSE)) -> Extension Relevé de buste | F27: =D26 -> LOMBAIRES | G27: Charge idéale | I27: =IF($G$1=DEBUTMU!$Y$21,HLOOKUP($L$2,DEBUTMU!$AE$1:$DV$37,13,FALSE),HLOOKUP($L$2,DEBUTMU!$ET$1:$HH$37,13,FALSE)) -> 10 | J27: Kg | K27: =100*I27/(VLOOKUP(I26,DEBUTMU!$O$39:$P$68,2,FALSE)) -> 18.51851852 | L27: =TIME(,,(G26*I26*2)+(K26*(G26-1))) -> 00:07:10
B29: =IF($G$1=DEBUTMU!$Y$21,HLOOKUP($M$2,DEBUTMU!$AE$1:$DV$37,15,FALSE),HLOOKUP($M$2,DEBUTMU!$ET$1:$HH$37,15,FALSE)) -> BISET
K30: Récup' | M30: =VLOOKUP(D32,EX!$B$6:$L$528,8,FALSE) -> Tendez les bras au-dessus des épaules. Pliez les bras et laissez redescendre progressivement la barre jusqu'à toucher la poitrine Remontez lentement la barre
A31: 5 | D31: =IF($G$1=DEBUTMU!$Y$21,HLOOKUP($G$2,DEBUTMU!$AE$1:$DV$37,14,FALSE),HLOOKUP($G$2,DEBUTMU!$ET$1:$HH$37,14,FALSE)) -> PECTORAUX | F31: =D32 -> Développé couché barre | G31: =IF($G$1=DEBUTMU!$Y$21,HLOOKUP($K$2,DEBUTMU!$AE$1:$DV$37,14,FALSE),HLOOKUP($K$2,DEBUTMU!$ET$1:$HH$37,14,FALSE)) -> 4 | H31: x | I31: =IF($G$1=DEBUTMU!$Y$21,HLOOKUP($L$2,DEBUTMU!$AE$1:$DV$37,14,FALSE),HLOOKUP($L$2,DEBUTMU!$ET$1:$HH$37,14,FALSE)) -> 20 | J31: - | K31: =IF($G$1=DEBUTMU!$Y$21,HLOOKUP($M$2,DEBUTMU!$AE$1:$DV$37,14,FALSE),HLOOKUP($M$2,DEBUTMU!$ET$1:$HH$37,14,FALSE)) -> 90 | L31: "
D32: =IF($G$1=DEBUTMU!$Y$21,HLOOKUP($G$2,DEBUTMU!$AE$1:$DV$37,15,FALSE),HLOOKUP($G$2,DEBUTMU!$ET$1:$HH$37,15,FALSE)) -> Développé couché barre | F32: =D31 -> PECTORAUX | G32: Charge idéale | I32: =IF($G$1=DEBUTMU!$Y$21,HLOOKUP($L$2,DEBUTMU!$AE$1:$DV$37,15,FALSE),HLOOKUP($L$2,DEBUTMU!$ET$1:$HH$37,15,FALSE)) -> 20 | J32: Kg | K32: =100*I32/(VLOOKUP(I31,DEBUTMU!$O$39:$P$68,2,FALSE)) -> 37.03703704 | L32: =TIME(,,(G31*I31*2)+(K31*(G31-1))) -> 00:07:10
B34: =IF($G$1=DEBUTMU!$Y$21,HLOOKUP($M$2,DEBUTMU!$AE$1:$DV$37,17,FALSE),HLOOKUP($M$2,DEBUTMU!$ET$1:$HH$37,17,FALSE)) -> BISET
K35: Récup' | M35: =VLOOKUP(D37,EX!$B$6:$L$528,8,FALSE) -> Descendre le buste le plus bas possible et reveir à la position de départ. Varier les angles et les hauteurs selon l'objectif.
A36: 6 | D36: =IF($G$1=DEBUTMU!$Y$21,HLOOKUP($G$2,DEBUTMU!$AE$1:$DV$37,16,FALSE),HLOOKUP($G$2,DEBUTMU!$ET$1:$HH$37,16,FALSE)) -> PECTORAUX | F36: =D37 -> Pompes | G36: =IF($G$1=DEBUTMU!$Y$21,HLOOKUP($K$2,DEBUTMU!$AE$1:$DV$37,16,FALSE),HLOOKUP($K$2,DEBUTMU!$ET$1:$HH$37,16,FALSE)) -> 4 | H36: x | I36: =IF($G$1=DEBUTMU!$Y$21,HLOOKUP($L$2,DEBUTMU!$AE$1:$DV$37,16,FALSE),HLOOKUP($L$2,DEBUTMU!$ET$1:$HH$37,16,FALSE)) -> 20 | J36: - | K36: =IF($G$1=DEBUTMU!$Y$21,HLOOKUP($M$2,DEBUTMU!$AE$1:$DV$37,16,FALSE),HLOOKUP($M$2,DEBUTMU!$ET$1:$HH$37,16,FALSE)) -> 90 | L36: "
D37: =IF($G$1=DEBUTMU!$Y$21,HLOOKUP($G$2,DEBUTMU!$AE$1:$DV$37,17,FALSE),HLOOKUP($G$2,DEBUTMU!$ET$1:$HH$37,17,FALSE)) -> Pompes | F37: =D36 -> PECTORAUX | G37: Charge idéale | I37: =IF($G$1=DEBUTMU!$Y$21,HLOOKUP($L$2,DEBUTMU!$AE$1:$DV$37,17,FALSE),HLOOKUP($L$2,DEBUTMU!$ET$1:$HH$37,17,FALSE)) -> 0 | J37: Kg | K37: =100*I37/(VLOOKUP(I36,DEBUTMU!$O$39:$P$68,2,FALSE)) -> 0 | L37: =TIME(,,(G36*I36*2)+(K36*(G36-1))) -> 00:07:10
B39: =IF($G$1=DEBUTMU!$Y$21,HLOOKUP($M$2,DEBUTMU!$AE$1:$DV$37,19,FALSE),HLOOKUP($M$2,DEBUTMU!$ET$1:$HH$37,19,FALSE)) -> BISET
K40: Récup' | M40: =VLOOKUP(D42,EX!$B$6:$L$528,8,FALSE) -> Amenez lentement la barre au contact de la poitrine en pliant les bras et revenez progressivement à la position de départ en dépliant les bras.
A41: 7 | D41: =IF($G$1=DEBUTMU!$Y$21,HLOOKUP($G$2,DEBUTMU!$AE$1:$DV$37,18,FALSE),HLOOKUP($G$2,DEBUTMU!$ET$1:$HH$37,18,FALSE)) -> DORSAUX | F41: =D42 -> Tirage horizontal | G41: =IF($G$1=DEBUTMU!$Y$21,HLOOKUP($K$2,DEBUTMU!$AE$1:$DV$37,18,FALSE),HLOOKUP($K$2,DEBUTMU!$ET$1:$HH$37,18,FALSE)) -> 4 | H41: x | I41: =IF($G$1=DEBUTMU!$Y$21,HLOOKUP($L$2,DEBUTMU!$AE$1:$DV$37,18,FALSE),HLOOKUP($L$2,DEBUTMU!$ET$1:$HH$37,18,FALSE)) -> 20 | J41: - | K41: =IF($G$1=DEBUTMU!$Y$21,HLOOKUP($M$2,DEBUTMU!$AE$1:$DV$37,18,FALSE),HLOOKUP($M$2,DEBUTMU!$ET$1:$HH$37,18,FALSE)) -> 90 | L41: "
D42: =IF($G$1=DEBUTMU!$Y$21,HLOOKUP($G$2,DEBUTMU!$AE$1:$DV$37,19,FALSE),HLOOKUP($G$2,DEBUTMU!$ET$1:$HH$37,19,FALSE)) -> Tirage horizontal | F42: =D41 -> DORSAUX | G42: Charge idéale | I42: =IF($G$1=DEBUTMU!$Y$21,HLOOKUP($L$2,DEBUTMU!$AE$1:$DV$37,19,FALSE),HLOOKUP($L$2,DEBUTMU!$ET$1:$HH$37,19,FALSE)) -> 20 | J42: Kg | K42: =100*I42/(VLOOKUP(I41,DEBUTMU!$O$39:$P$68,2,FALSE)) -> 37.03703704 | L42: =TIME(,,(G41*I41*2)+(K41*(G41-1))) -> 00:07:10
B44: =IF($G$1=DEBUTMU!$Y$21,HLOOKUP($M$2,DEBUTMU!$AE$1:$DV$37,21,FALSE),HLOOKUP($M$2,DEBUTMU!$ET$1:$HH$37,21,FALSE)) -> BISET
K45: Récup' | M45: =VLOOKUP(D47,EX!$B$6:$L$528,8,FALSE) -> 0
A46: 8 | D46: =IF($G$1=DEBUTMU!$Y$21,HLOOKUP($G$2,DEBUTMU!$AE$1:$DV$37,20,FALSE),HLOOKUP($G$2,DEBUTMU!$ET$1:$HH$37,20,FALSE)) -> DORSAUX | F46: =D47 -> Barre T | G46: =IF($G$1=DEBUTMU!$Y$21,HLOOKUP($K$2,DEBUTMU!$AE$1:$DV$37,20,FALSE),HLOOKUP($K$2,DEBUTMU!$ET$1:$HH$37,20,FALSE)) -> 4 | H46: x | I46: =IF($G$1=DEBUTMU!$Y$21,HLOOKUP($L$2,DEBUTMU!$AE$1:$DV$37,20,FALSE),HLOOKUP($L$2,DEBUTMU!$ET$1:$HH$37,20,FALSE)) -> 20 | J46: - | K46: =IF($G$1=DEBUTMU!$Y$21,HLOOKUP($M$2,DEBUTMU!$AE$1:$DV$37,20,FALSE),HLOOKUP($M$2,DEBUTMU!$ET$1:$HH$37,20,FALSE)) -> 90 | L46: "
D47: =IF($G$1=DEBUTMU!$Y$21,HLOOKUP($G$2,DEBUTMU!$AE$1:$DV$37,21,FALSE),HLOOKUP($G$2,DEBUTMU!$ET$1:$HH$37,21,FALSE)) -> Barre T | F47: =D46 -> DORSAUX | G47: Charge idéale | I47: =IF($G$1=DEBUTMU!$Y$21,HLOOKUP($L$2,DEBUTMU!$AE$1:$DV$37,21,FALSE),HLOOKUP($L$2,DEBUTMU!$ET$1:$HH$37,21,FALSE)) -> 20 | J47: Kg | K47: =100*I47/(VLOOKUP(I46,DEBUTMU!$O$39:$P$68,2,FALSE)) -> 37.03703704 | L47: =TIME(,,(G46*I46*2)+(K46*(G46-1))) -> 00:07:10
B49: =IF($G$1=DEBUTMU!$Y$21,HLOOKUP($M$2,DEBUTMU!$AE$1:$DV$37,23,FALSE),HLOOKUP($M$2,DEBUTMU!$ET$1:$HH$37,23,FALSE)) -> BISET
K50: Récup' | M50: =VLOOKUP(D52,EX!$B$6:$L$528,8,FALSE) -> 0
A51: 9 | D51: =IF($G$1=DEBUTMU!$Y$21,HLOOKUP($G$2,DEBUTMU!$AE$1:$DV$37,22,FALSE),HLOOKUP($G$2,DEBUTMU!$ET$1:$HH$37,22,FALSE)) -> GRAND DROIT | F51: =D52 -> Crunch machine | G51: =IF($G$1=DEBUTMU!$Y$21,HLOOKUP($K$2,DEBUTMU!$AE$1:$DV$37,22,FALSE),HLOOKUP($K$2,DEBUTMU!$ET$1:$HH$37,22,FALSE)) -> 4 | H51: x | I51: =IF($G$1=DEBUTMU!$Y$21,HLOOKUP($L$2,DEBUTMU!$AE$1:$DV$37,22,FALSE),HLOOKUP($L$2,DEBUTMU!$ET$1:$HH$37,22,FALSE)) -> 20 | J51: - | K51: =IF($G$1=DEBUTMU!$Y$21,HLOOKUP($M$2,DEBUTMU!$AE$1:$DV$37,22,FALSE),HLOOKUP($M$2,DEBUTMU!$ET$1:$HH$37,22,FALSE)) -> 90 | L51: "
D52: =IF($G$1=DEBUTMU!$Y$21,HLOOKUP($G$2,DEBUTMU!$AE$1:$DV$37,23,FALSE),HLOOKUP($G$2,DEBUTMU!$ET$1:$HH$37,23,FALSE)) -> Crunch machine | F52: =D51 -> GRAND DROIT | G52: Charge idéale | I52: =IF($G$1=DEBUTMU!$Y$21,HLOOKUP($L$2,DEBUTMU!$AE$1:$DV$37,23,FALSE),HLOOKUP($L$2,DEBUTMU!$ET$1:$HH$37,23,FALSE)) -> 10 | J52: Kg | K52: =100*I52/(VLOOKUP(I51,DEBUTMU!$O$39:$P$68,2,FALSE)) -> 18.51851852 | L52: =TIME(,,(G51*I51*2)+(K51*(G51-1))) -> 00:07:10
B54: =IF($G$1=DEBUTMU!$Y$21,HLOOKUP($M$2,DEBUTMU!$AE$1:$DV$37,25,FALSE),HLOOKUP($M$2,DEBUTMU!$ET$1:$HH$37,25,FALSE)) -> BISET
K55: Récup' | M55: =VLOOKUP(D57,EX!$B$6:$L$528,8,FALSE) -> Relevez le buste le plus haut possible en direction des genoux en contractant les abdos et en gardant les lombaires plaquées. Déescendre doucement sans toucher le sol
A56: 10 | D56: =IF($G$1=DEBUTMU!$Y$21,HLOOKUP($G$2,DEBUTMU!$AE$1:$DV$37,24,FALSE),HLOOKUP($G$2,DEBUTMU!$ET$1:$HH$37,24,FALSE)) -> GRAND DROIT | F56: =D57 -> Crunch sol | G56: =IF($G$1=DEBUTMU!$Y$21,HLOOKUP($K$2,DEBUTMU!$AE$1:$DV$37,24,FALSE),HLOOKUP($K$2,DEBUTMU!$ET$1:$HH$37,24,FALSE)) -> 4 | H56: x | I56: =IF($G$1=DEBUTMU!$Y$21,HLOOKUP($L$2,DEBUTMU!$AE$1:$DV$37,24,FALSE),HLOOKUP($L$2,DEBUTMU!$ET$1:$HH$37,24,FALSE)) -> 20 | J56: - | K56: =IF($G$1=DEBUTMU!$Y$21,HLOOKUP($M$2,DEBUTMU!$AE$1:$DV$37,24,FALSE),HLOOKUP($M$2,DEBUTMU!$ET$1:$HH$37,24,FALSE)) -> 90 | L56: "
D57: =IF($G$1=DEBUTMU!$Y$21,HLOOKUP($G$2,DEBUTMU!$AE$1:$DV$37,25,FALSE),HLOOKUP($G$2,DEBUTMU!$ET$1:$HH$37,25,FALSE)) -> Crunch sol | F57: =D56 -> GRAND DROIT | G57: Charge idéale | I57: =IF($G$1=DEBUTMU!$Y$21,HLOOKUP($L$2,DEBUTMU!$AE$1:$DV$37,25,FALSE),HLOOKUP($L$2,DEBUTMU!$ET$1:$HH$37,25,FALSE)) -> 0 | J57: Kg | K57: =100*I57/(VLOOKUP(I56,DEBUTMU!$O$39:$P$68,2,FALSE)) -> 0 | L57: =TIME(,,(G56*I56*2)+(K56*(G56-1))) -> 00:07:10
B59: =IF($G$1=DEBUTMU!$Y$21,HLOOKUP($M$2,DEBUTMU!$AE$1:$DV$37,27,FALSE),HLOOKUP($M$2,DEBUTMU!$ET$1:$HH$37,27,FALSE)) -> BISET
K60: Récup' | M60: =VLOOKUP(D62,EX!$B$6:$L$528,8,FALSE) -> 0
A61: 11 | D61: =IF($G$1=DEBUTMU!$Y$21,HLOOKUP($G$2,DEBUTMU!$AE$1:$DV$37,26,FALSE),HLOOKUP($G$2,DEBUTMU!$ET$1:$HH$37,26,FALSE)) -> GRAND DROIT | F61: =D62 -> Gainage planche | G61: =IF($G$1=DEBUTMU!$Y$21,HLOOKUP($K$2,DEBUTMU!$AE$1:$DV$37,26,FALSE),HLOOKUP($K$2,DEBUTMU!$ET$1:$HH$37,26,FALSE)) -> 4 | H61: x | I61: =IF($G$1=DEBUTMU!$Y$21,HLOOKUP($L$2,DEBUTMU!$AE$1:$DV$37,26,FALSE),HLOOKUP($L$2,DEBUTMU!$ET$1:$HH$37,26,FALSE)) -> 20 | J61: - | K61: =IF($G$1=DEBUTMU!$Y$21,HLOOKUP($M$2,DEBUTMU!$AE$1:$DV$37,26,FALSE),HLOOKUP($M$2,DEBUTMU!$ET$1:$HH$37,26,FALSE)) -> 90 | L61: "
D62: =IF($G$1=DEBUTMU!$Y$21,HLOOKUP($G$2,DEBUTMU!$AE$1:$DV$37,27,FALSE),HLOOKUP($G$2,DEBUTMU!$ET$1:$HH$37,27,FALSE)) -> Gainage planche | F62: =D61 -> GRAND DROIT | G62: Charge idéale | I62: =IF($G$1=DEBUTMU!$Y$21,HLOOKUP($L$2,DEBUTMU!$AE$1:$DV$37,27,FALSE),HLOOKUP($L$2,DEBUTMU!$ET$1:$HH$37,27,FALSE)) -> 10 | J62: Kg | K62: =100*I62/(VLOOKUP(I61,DEBUTMU!$O$39:$P$68,2,FALSE)) -> 18.51851852 | L62: =TIME(,,(G61*I61*2)+(K61*(G61-1))) -> 00:07:10
B64: =IF($G$1=DEBUTMU!$Y$21,HLOOKUP($M$2,DEBUTMU!$AE$1:$DV$37,29,FALSE),HLOOKUP($M$2,DEBUTMU!$ET$1:$HH$37,29,FALSE)) -> BISET
K65: Récup' | M65: =VLOOKUP(D67,EX!$B$6:$L$528,8,FALSE) -> 0
A66: 12 | D66: =IF($G$1=DEBUTMU!$Y$21,HLOOKUP($G$2,DEBUTMU!$AE$1:$DV$37,28,FALSE),HLOOKUP($G$2,DEBUTMU!$ET$1:$HH$37,28,FALSE)) -> LOMBAIRES | F66: =D67 -> Extension Relevé de buste | G66: =IF($G$1=DEBUTMU!$Y$21,HLOOKUP($K$2,DEBUTMU!$AE$1:$DV$37,28,FALSE),HLOOKUP($K$2,DEBUTMU!$ET$1:$HH$37,28,FALSE)) -> 4 | H66: x | I66: =IF($G$1=DEBUTMU!$Y$21,HLOOKUP($L$2,DEBUTMU!$AE$1:$DV$37,28,FALSE),HLOOKUP($L$2,DEBUTMU!$ET$1:$HH$37,28,FALSE)) -> 20 | J66: - | K66: =IF($G$1=DEBUTMU!$Y$21,HLOOKUP($M$2,DEBUTMU!$AE$1:$DV$37,28,FALSE),HLOOKUP($M$2,DEBUTMU!$ET$1:$HH$37,28,FALSE)) -> 90 | L66: "
D67: =IF($G$1=DEBUTMU!$Y$21,HLOOKUP($G$2,DEBUTMU!$AE$1:$DV$37,29,FALSE),HLOOKUP($G$2,DEBUTMU!$ET$1:$HH$37,29,FALSE)) -> Extension Relevé de buste | F67: =D66 -> LOMBAIRES | G67: Charge idéale | I67: =IF($G$1=DEBUTMU!$Y$21,HLOOKUP($L$2,DEBUTMU!$AE$1:$DV$37,29,FALSE),HLOOKUP($L$2,DEBUTMU!$ET$1:$HH$37,29,FALSE)) -> 10 | J67: Kg | K67: =100*I67/(VLOOKUP(I66,DEBUTMU!$O$39:$P$68,2,FALSE)) -> 18.51851852 | L67: =TIME(,,(G66*I66*2)+(K66*(G66-1))) -> 00:07:10
B69: =IF($G$1=DEBUTMU!$Y$21,HLOOKUP($M$2,DEBUTMU!$AE$1:$DV$37,31,FALSE),HLOOKUP($M$2,DEBUTMU!$ET$1:$HH$37,31,FALSE)) -> BISET
K70: Récup' | M70: =VLOOKUP(D72,EX!$B$6:$L$528,8,FALSE) -> Tendez les bras au-dessus des épaules. Pliez les bras et laissez redescendre progressivement la barre jusqu'à toucher la poitrine Remontez lentement la barre
A71: 13 | D71: =IF($G$1=DEBUTMU!$Y$21,HLOOKUP($G$2,DEBUTMU!$AE$1:$DV$37,30,FALSE),HLOOKUP($G$2,DEBUTMU!$ET$1:$HH$37,30,FALSE)) -> PECTORAUX | F71: =D72 -> Développé couché barre | G71: =IF($G$1=DEBUTMU!$Y$21,HLOOKUP($K$2,DEBUTMU!$AE$1:$DV$37,30,FALSE),HLOOKUP($K$2,DEBUTMU!$ET$1:$HH$37,30,FALSE)) -> 4 | H71: x | I71: =IF($G$1=DEBUTMU!$Y$21,HLOOKUP($L$2,DEBUTMU!$AE$1:$DV$37,30,FALSE),HLOOKUP($L$2,DEBUTMU!$ET$1:$HH$37,30,FALSE)) -> 20 | J71: - | K71: =IF($G$1=DEBUTMU!$Y$21,HLOOKUP($M$2,DEBUTMU!$AE$1:$DV$37,30,FALSE),HLOOKUP($M$2,DEBUTMU!$ET$1:$HH$37,30,FALSE)) -> 90 | L71: "
D72: =IF($G$1=DEBUTMU!$Y$21,HLOOKUP($G$2,DEBUTMU!$AE$1:$DV$37,31,FALSE),HLOOKUP($G$2,DEBUTMU!$ET$1:$HH$37,31,FALSE)) -> Développé couché barre | F72: =D71 -> PECTORAUX | G72: Charge idéale | I72: =IF($G$1=DEBUTMU!$Y$21,HLOOKUP($L$2,DEBUTMU!$AE$1:$DV$37,31,FALSE),HLOOKUP($L$2,DEBUTMU!$ET$1:$HH$37,31,FALSE)) -> 20 | J72: Kg | K72: =100*I72/(VLOOKUP(I71,DEBUTMU!$O$39:$P$68,2,FALSE)) -> 37.03703704 | L72: =TIME(,,(G71*I71*2)+(K71*(G71-1))) -> 00:07:10
B74: =IF($G$1=DEBUTMU!$Y$21,HLOOKUP($M$2,DEBUTMU!$AE$1:$DV$37,33,FALSE),HLOOKUP($M$2,DEBUTMU!$ET$1:$HH$37,33,FALSE)) -> BISET
K75: Récup' | M75: =VLOOKUP(D77,EX!$B$6:$L$528,8,FALSE) -> Descendre le buste le plus bas possible et reveir à la position de départ. Varier les angles et les hauteurs selon l'objectif.
A76: 14 | D76: =IF($G$1=DEBUTMU!$Y$21,HLOOKUP($G$2,DEBUTMU!$AE$1:$DV$37,32,FALSE),HLOOKUP($G$2,DEBUTMU!$ET$1:$HH$37,32,FALSE)) -> PECTORAUX | F76: =D77 -> Pompes | G76: =IF($G$1=DEBUTMU!$Y$21,HLOOKUP($K$2,DEBUTMU!$AE$1:$DV$37,32,FALSE),HLOOKUP($K$2,DEBUTMU!$ET$1:$HH$37,32,FALSE)) -> 4 | H76: x | I76: =IF($G$1=DEBUTMU!$Y$21,HLOOKUP($L$2,DEBUTMU!$AE$1:$DV$37,32,FALSE),HLOOKUP($L$2,DEBUTMU!$ET$1:$HH$37,32,FALSE)) -> 20 | J76: - | K76: =IF($G$1=DEBUTMU!$Y$21,HLOOKUP($M$2,DEBUTMU!$AE$1:$DV$37,32,FALSE),HLOOKUP($M$2,DEBUTMU!$ET$1:$HH$37,32,FALSE)) -> 90 | L76: "
D77: =IF($G$1=DEBUTMU!$Y$21,HLOOKUP($G$2,DEBUTMU!$AE$1:$DV$37,33,FALSE),HLOOKUP($G$2,DEBUTMU!$ET$1:$HH$37,33,FALSE)) -> Pompes | F77: =D76 -> PECTORAUX | G77: Charge idéale | I77: =IF($G$1=DEBUTMU!$Y$21,HLOOKUP($L$2,DEBUTMU!$AE$1:$DV$37,33,FALSE),HLOOKUP($L$2,DEBUTMU!$ET$1:$HH$37,33,FALSE)) -> 0 | J77: Kg | K77: =100*I77/(VLOOKUP(I76,DEBUTMU!$O$39:$P$68,2,FALSE)) -> 0 | L77: =TIME(,,(G76*I76*2)+(K76*(G76-1))) -> 00:07:10
B79: =IF($G$1=DEBUTMU!$Y$21,HLOOKUP($M$2,DEBUTMU!$AE$1:$DV$37,35,FALSE),HLOOKUP($M$2,DEBUTMU!$ET$1:$HH$37,35,FALSE)) -> BISET
K80: Récup' | M80: =VLOOKUP(D82,EX!$B$6:$L$528,8,FALSE) -> Amenez lentement la barre au contact de la poitrine en pliant les bras et revenez progressivement à la position de départ en dépliant les bras.
A81: 15 | D81: =IF($G$1=DEBUTMU!$Y$21,HLOOKUP($G$2,DEBUTMU!$AE$1:$DV$37,34,FALSE),HLOOKUP($G$2,DEBUTMU!$ET$1:$HH$37,34,FALSE)) -> DORSAUX | F81: =D82 -> Tirage horizontal | G81: =IF($G$1=DEBUTMU!$Y$21,HLOOKUP($K$2,DEBUTMU!$AE$1:$DV$37,34,FALSE),HLOOKUP($K$2,DEBUTMU!$ET$1:$HH$37,34,FALSE)) -> 4 | H81: x | I81: =IF($G$1=DEBUTMU!$Y$21,HLOOKUP($L$2,DEBUTMU!$AE$1:$DV$37,34,FALSE),HLOOKUP($L$2,DEBUTMU!$ET$1:$HH$37,34,FALSE)) -> 20 | J81: - | K81: =IF($G$1=DEBUTMU!$Y$21,HLOOKUP($M$2,DEBUTMU!$AE$1:$DV$37,34,FALSE),HLOOKUP($M$2,DEBUTMU!$ET$1:$HH$37,34,FALSE)) -> 90 | L81: "
D82: =IF($G$1=DEBUTMU!$Y$21,HLOOKUP($G$2,DEBUTMU!$AE$1:$DV$37,35,FALSE),HLOOKUP($G$2,DEBUTMU!$ET$1:$HH$37,35,FALSE)) -> Tirage horizontal | F82: =D81 -> DORSAUX | G82: Charge idéale | I82: =IF($G$1=DEBUTMU!$Y$21,HLOOKUP($L$2,DEBUTMU!$AE$1:$DV$37,35,FALSE),HLOOKUP($L$2,DEBUTMU!$ET$1:$HH$37,35,FALSE)) -> 20 | J82: Kg | K82: =100*I82/(VLOOKUP(I81,DEBUTMU!$O$39:$P$68,2,FALSE)) -> 37.03703704 | L82: =TIME(,,(G81*I81*2)+(K81*(G81-1))) -> 00:07:10
B84: =IF($G$1=DEBUTMU!$Y$21,HLOOKUP($M$2,DEBUTMU!$AE$1:$DV$37,37,FALSE),HLOOKUP($M$2,DEBUTMU!$ET$1:$HH$37,37,FALSE)) -> BISET
K85: Récup' | M85: =VLOOKUP(D87,EX!$B$6:$L$528,8,FALSE) -> 0
A86: 16 | D86: =IF($G$1=DEBUTMU!$Y$21,HLOOKUP($G$2,DEBUTMU!$AE$1:$DV$37,36,FALSE),HLOOKUP($G$2,DEBUTMU!$ET$1:$HH$37,36,FALSE)) -> DORSAUX | F86: =D87 -> Barre T | G86: =IF($G$1=DEBUTMU!$Y$21,HLOOKUP($K$2,DEBUTMU!$AE$1:$DV$37,36,FALSE),HLOOKUP($K$2,DEBUTMU!$ET$1:$HH$37,36,FALSE)) -> 4 | H86: x | I86: =IF($G$1=DEBUTMU!$Y$21,HLOOKUP($L$2,DEBUTMU!$AE$1:$DV$37,36,FALSE),HLOOKUP($L$2,DEBUTMU!$ET$1:$HH$37,36,FALSE)) -> 20 | J86: - | K86: =IF($G$1=DEBUTMU!$Y$21,HLOOKUP($M$2,DEBUTMU!$AE$1:$DV$37,36,FALSE),HLOOKUP($M$2,DEBUTMU!$ET$1:$HH$37,36,FALSE)) -> 90 | L86: "
D87: =IF($G$1=DEBUTMU!$Y$21,HLOOKUP($G$2,DEBUTMU!$AE$1:$DV$37,37,FALSE),HLOOKUP($G$2,DEBUTMU!$ET$1:$HH$37,37,FALSE)) -> Barre T | F87: =D86 -> DORSAUX | G87: Charge idéale | I87: =IF($G$1=DEBUTMU!$Y$21,HLOOKUP($L$2,DEBUTMU!$AE$1:$DV$37,37,FALSE),HLOOKUP($L$2,DEBUTMU!$ET$1:$HH$37,37,FALSE)) -> 20 | J87: Kg | K87: =100*I87/(VLOOKUP(I86,DEBUTMU!$O$39:$P$68,2,FALSE)) -> 37.03703704 | L87: =TIME(,,(G86*I86*2)+(K86*(G86-1))) -> 00:07:10
G91: Tonnage | I91: =V21 -> 14400 | J91: Kg

Sheet S5
B1: ='S1'!B1 -> 1META | C1: Séance | E1: 5 | G1: Programme Prof | N1: Méthode d'entrainement
B2: ='S1'!B2 -> Abdel Nour | D2: =VLOOKUP(E1,DEBUTMU!$A$6:$C$35,2,FALSE) -> 0 | E2: =VLOOKUP(E1,DEBUTMU!$A$6:$C$35,3,FALSE) -> 0 | G2: S6-pyramide | K2: =VLOOKUP($G$2,DEBUTMU!$Z$6:$AC$37,2,FALSE) -> SERIE-CHARGE-S6-pyramide | L2: =VLOOKUP($G$2,DEBUTMU!$Z$6:$AC$37,3,FALSE) -> REPS-POURCENT-S6-pyramide | M2: =VLOOKUP($G$2,DEBUTMU!$Z$6:$AC$37,4,FALSE) -> RECUP-METH-S6-pyramide | N2: =IF($G$1=DEBUTMU!$Y$21,HLOOKUP($M$2,DEBUTMU!$AE$1:$DV$37,5,FALSE),HLOOKUP($M$2,DEBUTMU!$EZ$1:$HN$37,5,FALSE)) -> CIRCUIT TRAINING
D4: Objectif séance | G4: Séries | I4: Réps | M4: Conseils d'entrainement
D5: =IF($G$1=DEBUTMU!$Y$21,HLOOKUP($G$2,DEBUTMU!$AE$1:$DV$37,4,FALSE),HLOOKUP($G$2,DEBUTMU!$EZ$1:$HN$37,4,FALSE)) -> 0 | G5: =IF($G$1=DEBUTMU!$Y$21,HLOOKUP($K$2,DEBUTMU!$AE$1:$DV$37,4,FALSE),HLOOKUP($K$2,DEBUTMU!$EZ$1:$HN$37,4,FALSE)) -> 4 | H5: x | I5: =IF($G$1=DEBUTMU!$Y$21,HLOOKUP($L$2,DEBUTMU!$AE$1:$DV$37,4,FALSE),HLOOKUP($L$2,DEBUTMU!$EZ$1:$HN$37,4,FALSE)) -> 20 | M5: =VLOOKUP(G2,DEBUTMU!Z6:AD37,5,FALSE) -> Faire la montée de la pyramide pour trouver son max | P5: Durée estimée de la séance | U5: MUSCLES | V5: TONNAGE/MUSCLE | W5: EXO 1 | X5: EXO 2 | Y5: EXO 3 | Z5: EXO 4 | AA5: EXO 5 | AB5: EXO 6 | AC5: EXO 7 | AD5: EXO 8 | AE5: EXO 9 | AF5: EXO 10 | AG5: EXO 11 | AH5: EXO 12 | AI5: EXO 13 | AJ5: EXO 14 | AK5: EXO 15 | AL5: EXO 16
K6: Récup'/séries | U6: =DEBUTMU!X6 -> PECTORAUX | V6: =SUM(W6:AL6) -> 0 | W6: =IFERROR(VLOOKUP(U6,$D$11:$I$11,4,FALSE)*VLOOKUP(U6,$D$11:$I$11,6,FALSE)*VLOOKUP(U6,$F$12:$I$12,4,FALSE),0) -> 0 | X6: =IFERROR(VLOOKUP(U6,$D$16:$I$16,4,FALSE)*VLOOKUP(U6,$D$16:$I$16,6,FALSE)*VLOOKUP(U6,$F$17:$I$17,4,FALSE),0) -> 0 | Y6: =IFERROR(VLOOKUP(U6,$D$21:$I$21,4,FALSE)*VLOOKUP(U6,$D$21:$I$21,6,FALSE)*VLOOKUP(U6,F22:I22,4,FALSE),0) -> 0 | Z6: =IFERROR(VLOOKUP(U6,$D$26:$I$26,4,FALSE)*VLOOKUP(U6,$D$26:$I$26,6,FALSE)*VLOOKUP(U6,$F$27:$I$27,4,FALSE),0) -> 0 | AA6: =IFERROR(VLOOKUP(U6,$D$31:$I$31,4,FALSE)*VLOOKUP(U6,$D$31:$I$31,6,FALSE)*VLOOKUP(U6,$F$32:$I$32,4,FALSE),0) -> 0 | AB6: =IFERROR(VLOOKUP(U6,$D$36:$I$36,4,FALSE)*VLOOKUP(U6,$D$36:$I$36,6,FALSE)*VLOOKUP(U6,$F$37:$I$37,4,FALSE),0) -> 0 | AC6: =IFERROR(VLOOKUP(U6,$D$41:$I$41,4,FALSE)*VLOOKUP(U6,$D$41:$I$41,6,FALSE)*VLOOKUP(U6,$F$42:$I$42,4,FALSE),0) -> 0 | AD6: =IFERROR(VLOOKUP(U6,$D$46:$I$46,4,FALSE)*VLOOKUP(U6,$D$46:$I$46,6,FALSE)*VLOOKUP(U6,$F$47:$I$47,4,FALSE),0) -> 0 | AE6: =IFERROR(VLOOKUP(U6,$D$51:$I$51,4,FALSE)*VLOOKUP(U6,$D$51:$I$51,6,FALSE)*VLOOKUP(U6,$F$52:$I$52,4,FALSE),0) -> 0 | AF6: =IFERROR(VLOOKUP(U6,$D$56:$I$56,4,FALSE)*VLOOKUP(U6,$D$56:$I$56,6,FALSE)*VLOOKUP(U6,$F$57:$I$57,4,FALSE),0) -> 0 | AG6: =IFERROR(VLOOKUP(U6,$D$61:$I$61,4,FALSE)*VLOOKUP(U6,$D$61:$I$61,6,FALSE)*VLOOKUP(U6,$F$62:$I$62,4,FALSE),0) -> 0 | AH6: =IFERROR(VLOOKUP(U6,$D$66:$I$66,4,FALSE)*VLOOKUP(U6,$D$66:$I$66,6,FALSE)*VLOOKUP(U6,$F$67:$I$67,4,FALSE),0) -> 0 | AI6: =IFERROR(VLOOKUP(U6,$D$71:$I$71,4,FALSE)*VLOOKUP(U6,$D$71:$I$71,6,FALSE)*VLOOKUP(U6,$F$72:$I$72,4,FALSE),0) -> 0 | AJ6: =IFERROR(VLOOKUP(U6,$D$76:$I$76,4,FALSE)*VLOOKUP(U6,$D$76:$I$76,6,FALSE)*VLOOKUP(U6,$F$77:$I$77,4,FALSE),0) -> 0 | AK6: =IFERROR(VLOOKUP(U6,$D$81:$I$81,4,FALSE)*VLOOKUP(U6,$D$81:$I$81,6,FALSE)*VLOOKUP(U6,$F$82:$I$82,4,FALSE),0) -> 0 | AL6: =IFERROR(VLOOKUP(U6,$D$86:$I$86,4,FALSE)*VLOOKUP(U6,$D$86:$I$86,6,FALSE)*VLOOKUP(U6,$F$87:$I$87,4,FALSE),0) -> 0
G7: Pourcentage Charge idéale | I7: =IF($G$1=DEBUTMU!$Y$21,HLOOKUP($K$2,DEBUTMU!$AE$1:$DV$37,5,FALSE),HLOOKUP($K$2,DEBUTMU!$EZ$1:$HN$37,5,FALSE)) -> 60 | J7: % | K7: =IF($G$1=DEBUTMU!$Y$21,HLOOKUP($M$2,DEBUTMU!$AE$1:$DV$37,4,FALSE),HLOOKUP($M$2,DEBUTMU!$EZ$1:$HN$37,4,FALSE)) -> 10 | L7: " | P7: =(L12+L17+L22+L27+L32+L37+L42+L47+L52+L57+L62+L67+L72+L77+L82+L87)+(L12+L17+L22+L27+L32+L37+L42+L47+L52+L57+L62+L67+L72+L77+L82+L87)*10/100 -> 00:55:44 | U7: =DEBUTMU!X7 -> GRAND DROIT | V7: =SUM(W7:AL7) -> 0 | W7: =IFERROR(VLOOKUP(U7,$D$11:$I$11,4,FALSE)*VLOOKUP(U7,$D$11:$I$11,6,FALSE)*VLOOKUP(U7,$F$12:$I$12,4,FALSE),0) -> 0 | X7: =IFERROR(VLOOKUP(U7,$D$16:$I$16,4,FALSE)*VLOOKUP(U7,$D$16:$I$16,6,FALSE)*VLOOKUP(U7,$F$17:$I$17,4,FALSE),0) -> 0 | Y7: =IFERROR(VLOOKUP(U7,$D$21:$I$21,4,FALSE)*VLOOKUP(U7,$D$21:$I$21,6,FALSE)*VLOOKUP(U7,F23:I23,4,FALSE),0) -> 0 | Z7: =IFERROR(VLOOKUP(U7,$D$26:$I$26,4,FALSE)*VLOOKUP(U7,$D$26:$I$26,6,FALSE)*VLOOKUP(U7,$F$27:$I$27,4,FALSE),0) -> 0 | AA7: =IFERROR(VLOOKUP(U7,$D$31:$I$31,4,FALSE)*VLOOKUP(U7,$D$31:$I$31,6,FALSE)*VLOOKUP(U7,$F$32:$I$32,4,FALSE),0) -> 0 | AB7: =IFERROR(VLOOKUP(U7,$D$36:$I$36,4,FALSE)*VLOOKUP(U7,$D$36:$I$36,6,FALSE)*VLOOKUP(U7,$F$37:$I$37,4,FALSE),0) -> 0 | AC7: =IFERROR(VLOOKUP(U7,$D$41:$I$41,4,FALSE)*VLOOKUP(U7,$D$41:$I$41,6,FALSE)*VLOOKUP(U7,$F$42:$I$42,4,FALSE),0) -> 0 | AD7: =IFERROR(VLOOKUP(U7,$D$46:$I$46,4,FALSE)*VLOOKUP(U7,$D$46:$I$46,6,FALSE)*VLOOKUP(U7,$F$47:$I$47,4,FALSE),0) -> 0 | AE7: =IFERROR(VLOOKUP(U7,$D$51:$I$51,4,FALSE)*VLOOKUP(U7,$D$51:$I$51,6,FALSE)*VLOOKUP(U7,$F$52:$I$52,4,FALSE),0) -> 0 | AF7: =IFERROR(VLOOKUP(U7,$D$56:$I$56,4,FALSE)*VLOOKUP(U7,$D$56:$I$56,6,FALSE)*VLOOKUP(U7,$F$57:$I$57,4,FALSE),0) -> 0 | AG7: =IFERROR(VLOOKUP(U7,$D$61:$I$61,4,FALSE)*VLOOKUP(U7,$D$61:$I$61,6,FALSE)*VLOOKUP(U7,$F$62:$I$62,4,FALSE),0) -> 0 | AH7: =IFERROR(VLOOKUP(U7,$D$66:$I$66,4,FALSE)*VLOOKUP(U7,$D$66:$I$66,6,FALSE)*VLOOKUP(U7,$F$67:$I$67,4,FALSE),0) -> 0 | AI7: =IFERROR(VLOOKUP(U7,$D$71:$I$71,4,FALSE)*VLOOKUP(U7,$D$71:$I$71,6,FALSE)*VLOOKUP(U7,$F$72:$I$72,4,FALSE),0) -> 0 | AJ7: =IFERROR(VLOOKUP(U7,$D$76:$I$76,4,FALSE)*VLOOKUP(U7,$D$76:$I$76,6,FALSE)*VLOOKUP(U7,$F$77:$I$77,4,FALSE),0) -> 0 | AK7: =IFERROR(VLOOKUP(U7,$D$81:$I$81,4,FALSE)*VLOOKUP(U7,$D$81:$I$81,6,FALSE)*VLOOKUP(U7,$F$82:$I$82,4,FALSE),0) -> 0 | AL7: =IFERROR(VLOOKUP(U7,$D$86:$I$86,4,FALSE)*VLOOKUP(U7,$D$86:$I$86,6,FALSE)*VLOOKUP(U7,$F$87:$I$87,4,FALSE),0) -> 0
U8: =DEBUTMU!X8 -> OBLIQUES | V8: 0 | W8: 0 | X8: 0 | Y8: 0 | Z8: 0 | AA8: 0 | AB8: 0 | AC8: 0 | AD8: 0 | AE8: 0 | AF8: 0 | AG8: 0 | AH8: 0 | AI8: 0 | AJ8: 0 | AK8: 0 | AL8: 0
B9: =IF($G$1=DEBUTMU!$Y$21,HLOOKUP($M$2,DEBUTMU!$AE$1:$DV$37,7,FALSE),HLOOKUP($M$2,DEBUTMU!$EZ$1:$HN$37,7,FALSE)) -> CIRCUIT TRAINING | U9: =DEBUTMU!X9 -> TRAPEZES | V9: 0 | W9: 0 | X9: 0 | Y9: 0 | Z9: 0 | AA9: 0 | AB9: 0 | AC9: 0 | AD9: 0 | AE9: 0 | AF9: 0 | AG9: 0 | AH9: 0 | AI9: 0 | AJ9: 0 | AK9: 0 | AL9: 0
K10: Récup' | M10: =VLOOKUP(D12,EX!$B$6:$L$528,8,FALSE) ->  | U10: =DEBUTMU!X10 -> DORSAUX | V10: 0 | W10: 0 | X10: 0 | Y10: 0 | Z10: 0 | AA10: 0 | AB10: 0 | AC10: 0 | AD10: 0 | AE10: 0 | AF10: 0 | AG10: 0 | AH10: 0 | AI10: 0 | AJ10: 0 | AK10: 0 | AL10: 0
A11: 1 | D11: =IF($G$1=DEBUTMU!$Y$21,HLOOKUP($G$2,DEBUTMU!$AE$1:$DV$37,6,FALSE),HLOOKUP($G$2,DEBUTMU!$EZ$1:$HN$37,6,FALSE)) -> 0 | F11: =D12 -> 0 | G11: =IF($G$1=DEBUTMU!$Y$21,HLOOKUP($K$2,DEBUTMU!$AE$1:$DV$37,6,FALSE),HLOOKUP($K$2,DEBUTMU!$EZ$1:$HN$37,6,FALSE)) -> 4 | H11: x | I11: =IF($G$1=DEBUTMU!$Y$21,HLOOKUP($L$2,DEBUTMU!$AE$1:$DV$37,6,FALSE),HLOOKUP($L$2,DEBUTMU!$EZ$1:$HN$37,6,FALSE)) -> 20 | J11: - | K11: =IF($G$1=DEBUTMU!$Y$21,HLOOKUP($M$2,DEBUTMU!$AE$1:$DV$37,6,FALSE),HLOOKUP($M$2,DEBUTMU!$EZ$1:$HN$37,6,FALSE)) -> 10 | L11: " | Q11: bilan | U11: =DEBUTMU!X11 -> LOMBAIRES | V11: 0 | W11: 0 | X11: 0 | Y11: 0 | Z11: 0 | AA11: 0 | AB11: 0 | AC11: 0 | AD11: 0 | AE11: 0 | AF11: 0 | AG11: 0 | AH11: 0 | AI11: 0 | AJ11: 0 | AK11: 0 | AL11: 0
D12: =IF($G$1=DEBUTMU!$Y$21,HLOOKUP($G$2,DEBUTMU!$AE$1:$DV$37,7,FALSE),HLOOKUP($G$2,DEBUTMU!$EZ$1:$HN$37,7,FALSE)) -> 0 | F12: =D11 -> 0 | G12: Charge idéale | I12: =IF($G$1=DEBUTMU!$Y$21,HLOOKUP($L$2,DEBUTMU!$AE$1:$DV$37,7,FALSE),HLOOKUP($L$2,DEBUTMU!$EZ$1:$HN$37,7,FALSE)) -> 10 | J12: Kg | K12: =100*I12/(VLOOKUP(I11,DEBUTMU!$O$39:$P$68,2,FALSE)) -> 18.51851852 | L12: =TIME(,,(G11*I11*2)+(K11*(G11-1))) -> 00:03:10 | U12: =DEBUTMU!X12 -> DELTOIDES | V12: 0 | W12: 0 | X12: 0 | Y12: 0 | Z12: 0 | AA12: 0 | AB12: 0 | AC12: 0 | AD12: 0 | AE12: 0 | AF12: 0 | AG12: 0 | AH12: 0 | AI12: 0 | AJ12: 0 | AK12: 0 | AL12: 0
U13: =DEBUTMU!X13 -> BICEPS | V13: 0 | W13: 0 | X13: 0 | Y13: 0 | Z13: 0 | AA13: 0 | AB13: 0 | AC13: 0 | AD13: 0 | AE13: 0 | AF13: 0 | AG13: 0 | AH13: 0 | AI13: 0 | AJ13: 0 | AK13: 0 | AL13: 0
B14: =IF($G$1=DEBUTMU!$Y$21,HLOOKUP($M$2,DEBUTMU!$AE$1:$DV$37,9,FALSE),HLOOKUP($M$2,DEBUTMU!$EZ$1:$HN$37,9,FALSE)) -> CIRCUIT TRAINING | U14: =DEBUTMU!X14 -> TRICEPS | V14: 0 | W14: 0 | X14: 0 | Y14: 0 | Z14: 0 | AA14: 0 | AB14: 0 | AC14: 0 | AD14: 0 | AE14: 0 | AF14: 0 | AG14: 0 | AH14: 0 | AI14: 0 | AJ14: 0 | AK14: 0 | AL14: 0
K15: Récup' | M15: =VLOOKUP(D17,EX!$B$6:$L$528,8,FALSE) ->  | U15: =DEBUTMU!X15 -> QUADRICEPS | V15: 0 | W15: 0 | X15: 0 | Y15: 0 | Z15: 0 | AA15: 0 | AB15: 0 | AC15: 0 | AD15: 0 | AE15: 0 | AF15: 0 | AG15: 0 | AH15: 0 | AI15: 0 | AJ15: 0 | AK15: 0 | AL15: 0
A16: 2 | D16: =IF($G$1=DEBUTMU!$Y$21,HLOOKUP($G$2,DEBUTMU!$AE$1:$DV$37,8,FALSE),HLOOKUP($G$2,DEBUTMU!$EZ$1:$HN$37,8,FALSE)) -> 0 | F16: =D17 -> 0 | G16: =IF($G$1=DEBUTMU!$Y$21,HLOOKUP($K$2,DEBUTMU!$AE$1:$DV$37,8,FALSE),HLOOKUP($K$2,DEBUTMU!$EZ$1:$HN$37,8,FALSE)) -> 4 | H16: x | I16: =IF($G$1=DEBUTMU!$Y$21,HLOOKUP($L$2,DEBUTMU!$AE$1:$DV$37,8,FALSE),HLOOKUP($L$2,DEBUTMU!$EZ$1:$HN$37,8,FALSE)) -> 20 | J16: - | K16: =IF($G$1=DEBUTMU!$Y$21,HLOOKUP($M$2,DEBUTMU!$AE$1:$DV$37,8,FALSE),HLOOKUP($M$2,DEBUTMU!$EZ$1:$HN$37,8,FALSE)) -> 10 | L16: " | U16: =DEBUTMU!X16 -> ISCHIOS | V16: 0 | W16: 0 | X16: 0 | Y16: 0 | Z16: 0 | AA16: 0 | AB16: 0 | AC16: 0 | AD16: 0 | AE16: 0 | AF16: 0 | AG16: 0 | AH16: 0 | AI16: 0 | AJ16: 0 | AK16: 0 | AL16: 0
D17: =IF($G$1=DEBUTMU!$Y$21,HLOOKUP($G$2,DEBUTMU!$AE$1:$DV$37,9,FALSE),HLOOKUP($G$2,DEBUTMU!$EZ$1:$HN$37,9,FALSE)) -> 0 | F17: =D16 -> 0 | G17: Charge idéale | I17: =IF($G$1=DEBUTMU!$Y$21,HLOOKUP($L$2,DEBUTMU!$AE$1:$DV$37,9,FALSE),HLOOKUP($L$2,DEBUTMU!$EZ$1:$HN$37,9,FALSE)) -> 10 | J17: Kg | K17: =100*I17/(VLOOKUP(I16,DEBUTMU!$O$39:$P$68,2,FALSE)) -> 18.51851852 | L17: =TIME(,,(G16*I16*2)+(K16*(G16-1))) -> 00:03:10 | U17: =DEBUTMU!X17 -> MOLLETS | V17: 0 | W17: 0 | X17: 0 | Y17: 0 | Z17: 0 | AA17: 0 | AB17: 0 | AC17: 0 | AD17: 0 | AE17: 0 | AF17: 0 | AG17: 0 | AH17: 0 | AI17: 0 | AJ17: 0 | AK17: 0 | AL17: 0
U18: =DEBUTMU!X18 -> AVANT-BRAS | V18: 0 | W18: 0 | X18: 0 | Y18: 0 | Z18: 0 | AA18: 0 | AB18: 0 | AC18: 0 | AD18: 0 | AE18: 0 | AF18: 0 | AG18: 0 | AH18: 0 | AI18: 0 | AJ18: 0 | AK18: 0 | AL18: 0
B19: =IF($G$1=DEBUTMU!$Y$21,HLOOKUP($M$2,DEBUTMU!$AE$1:$DV$37,11,FALSE),HLOOKUP($M$2,DEBUTMU!$EZ$1:$HN$37,11,FALSE)) -> CIRCUIT TRAINING | U19: =DEBUTMU!X19 -> FESSIERS | V19: 0 | W19: 0 | X19: 0 | Y19: 0 | Z19: 0 | AA19: 0 | AB19: 0 | AC19: 0 | AD19: 0 | AE19: 0 | AF19: 0 | AG19: 0 | AH19: 0 | AI19: 0 | AJ19: 0 | AK19: 0 | AL19: 0
K20: Récup' | M20: =VLOOKUP(D22,EX!$B$6:$L$528,8,FALSE) ->  | W20: 800 | X20: 800 | Y20: 1600 | Z20: 800 | AA20: 800 | AB20: 800 | AC20: 800 | AD20: 800 | AE20: 800 | AF20: 800 | AG20: 800 | AH20: 800 | AI20: 800 | AJ20: 800 | AK20: 800 | AL20: 800
A21: 3 | D21: =IF($G$1=DEBUTMU!$Y$21,HLOOKUP($G$2,DEBUTMU!$AE$1:$DV$37,10,FALSE),HLOOKUP($G$2,DEBUTMU!$EZ$1:$HN$37,10,FALSE)) -> 0 | F21: =D22 -> 0 | G21: =IF($G$1=DEBUTMU!$Y$21,HLOOKUP($K$2,DEBUTMU!$AE$1:$DV$37,10,FALSE),HLOOKUP($K$2,DEBUTMU!$EZ$1:$HN$37,10,FALSE)) -> 4 | H21: x | I21: =IF($G$1=DEBUTMU!$Y$21,HLOOKUP($L$2,DEBUTMU!$AE$1:$DV$37,10,FALSE),HLOOKUP($L$2,DEBUTMU!$EZ$1:$HN$37,10,FALSE)) -> 20 | J21: - | K21: =IF($G$1=DEBUTMU!$Y$21,HLOOKUP($M$2,DEBUTMU!$AE$1:$DV$37,10,FALSE),HLOOKUP($M$2,DEBUTMU!$EZ$1:$HN$37,10,FALSE)) -> 10 | L21: " | U21: TONNAGE TOTAL | V21: =SUM(V6:V19) -> 0 | Y21: haut | Z21: 0
D22: =IF($G$1=DEBUTMU!$Y$21,HLOOKUP($G$2,DEBUTMU!$AE$1:$DV$37,11,FALSE),HLOOKUP($G$2,DEBUTMU!$EZ$1:$HN$37,11,FALSE)) -> 0 | F22: =D21 -> 0 | G22: Charge idéale | I22: =IF($G$1=DEBUTMU!$Y$21,HLOOKUP($L$2,DEBUTMU!$AE$1:$DV$37,11,FALSE),HLOOKUP($L$2,DEBUTMU!$EZ$1:$HN$37,11,FALSE)) -> 10 | J22: Kg | K22: =100*I22/(VLOOKUP(I21,DEBUTMU!$O$39:$P$68,2,FALSE)) -> 18.51851852 | L22: =TIME(,,(G21*I21*2)+(K21*(G21-1))) -> 00:03:10 | Y22: bas | Z22: 0
Y23: gauche | Z23: 0
B24: =IF($G$1=DEBUTMU!$Y$21,HLOOKUP($M$2,DEBUTMU!$AE$1:$DV$37,13,FALSE),HLOOKUP($M$2,DEBUTMU!$EZ$1:$HN$37,13,FALSE)) -> CIRCUIT TRAINING | Y24: droite | Z24: 0
K25: Récup' | M25: =VLOOKUP(D27,EX!$B$6:$L$528,8,FALSE) -> 
A26: 4 | D26: =IF($G$1=DEBUTMU!$Y$21,HLOOKUP($G$2,DEBUTMU!$AE$1:$DV$37,12,FALSE),HLOOKUP($G$2,DEBUTMU!$EZ$1:$HN$37,12,FALSE)) -> 0 | F26: =D27 -> 0 | G26: =IF($G$1=DEBUTMU!$Y$21,HLOOKUP($K$2,DEBUTMU!$AE$1:$DV$37,12,FALSE),HLOOKUP($K$2,DEBUTMU!$EZ$1:$HN$37,12,FALSE)) -> 4 | H26: x | I26: =IF($G$1=DEBUTMU!$Y$21,HLOOKUP($L$2,DEBUTMU!$AE$1:$DV$37,12,FALSE),HLOOKUP($L$2,DEBUTMU!$EZ$1:$HN$37,12,FALSE)) -> 20 | J26: - | K26: =IF($G$1=DEBUTMU!$Y$21,HLOOKUP($M$2,DEBUTMU!$AE$1:$DV$37,12,FALSE),HLOOKUP($M$2,DEBUTMU!$EZ$1:$HN$37,12,FALSE)) -> 10 | L26: "
D27: =IF($G$1=DEBUTMU!$Y$21,HLOOKUP($G$2,DEBUTMU!$AE$1:$DV$37,13,FALSE),HLOOKUP($G$2,DEBUTMU!$EZ$1:$HN$37,13,FALSE)) -> 0 | F27: =D26 -> 0 | G27: Charge idéale | I27: =IF($G$1=DEBUTMU!$Y$21,HLOOKUP($L$2,DEBUTMU!$AE$1:$DV$37,13,FALSE),HLOOKUP($L$2,DEBUTMU!$EZ$1:$HN$37,13,FALSE)) -> 10 | J27: Kg | K27: =100*I27/(VLOOKUP(I26,DEBUTMU!$O$39:$P$68,2,FALSE)) -> 18.51851852 | L27: =TIME(,,(G26*I26*2)+(K26*(G26-1))) -> 00:03:10
B29: =IF($G$1=DEBUTMU!$Y$21,HLOOKUP($M$2,DEBUTMU!$AE$1:$DV$37,15,FALSE),HLOOKUP($M$2,DEBUTMU!$EZ$1:$HN$37,15,FALSE)) -> CIRCUIT TRAINING
K30: Récup' | M30: =VLOOKUP(D32,EX!$B$6:$L$528,8,FALSE) -> 
A31: 5 | D31: =IF($G$1=DEBUTMU!$Y$21,HLOOKUP($G$2,DEBUTMU!$AE$1:$DV$37,14,FALSE),HLOOKUP($G$2,DEBUTMU!$EZ$1:$HN$37,14,FALSE)) -> 0 | F31: =D32 -> 0 | G31: =IF($G$1=DEBUTMU!$Y$21,HLOOKUP($K$2,DEBUTMU!$AE$1:$DV$37,14,FALSE),HLOOKUP($K$2,DEBUTMU!$EZ$1:$HN$37,14,FALSE)) -> 4 | H31: x | I31: =IF($G$1=DEBUTMU!$Y$21,HLOOKUP($L$2,DEBUTMU!$AE$1:$DV$37,14,FALSE),HLOOKUP($L$2,DEBUTMU!$EZ$1:$HN$37,14,FALSE)) -> 20 | J31: - | K31: =IF($G$1=DEBUTMU!$Y$21,HLOOKUP($M$2,DEBUTMU!$AE$1:$DV$37,14,FALSE),HLOOKUP($M$2,DEBUTMU!$EZ$1:$HN$37,14,FALSE)) -> 10 | L31: "
D32: =IF($G$1=DEBUTMU!$Y$21,HLOOKUP($G$2,DEBUTMU!$AE$1:$DV$37,15,FALSE),HLOOKUP($G$2,DEBUTMU!$EZ$1:$HN$37,15,FALSE)) -> 0 | F32: =D31 -> 0 | G32: Charge idéale | I32: =IF($G$1=DEBUTMU!$Y$21,HLOOKUP($L$2,DEBUTMU!$AE$1:$DV$37,15,FALSE),HLOOKUP($L$2,DEBUTMU!$EZ$1:$HN$37,15,FALSE)) -> 10 | J32: Kg | K32: =100*I32/(VLOOKUP(I31,DEBUTMU!$O$39:$P$68,2,FALSE)) -> 18.51851852 | L32: =TIME(,,(G31*I31*2)+(K31*(G31-1))) -> 00:03:10
B34: =IF($G$1=DEBUTMU!$Y$21,HLOOKUP($M$2,DEBUTMU!$AE$1:$DV$37,17,FALSE),HLOOKUP($M$2,DEBUTMU!$EZ$1:$HN$37,17,FALSE)) -> CIRCUIT TRAINING
K35: Récup' | M35: =VLOOKUP(D37,EX!$B$6:$L$528,8,FALSE) -> 
A36: 6 | D36: =IF($G$1=DEBUTMU!$Y$21,HLOOKUP($G$2,DEBUTMU!$AE$1:$DV$37,16,FALSE),HLOOKUP($G$2,DEBUTMU!$EZ$1:$HN$37,16,FALSE)) -> 0 | F36: =D37 -> 0 | G36: =IF($G$1=DEBUTMU!$Y$21,HLOOKUP($K$2,DEBUTMU!$AE$1:$DV$37,16,FALSE),HLOOKUP($K$2,DEBUTMU!$EZ$1:$HN$37,16,FALSE)) -> 4 | H36: x | I36: =IF($G$1=DEBUTMU!$Y$21,HLOOKUP($L$2,DEBUTMU!$AE$1:$DV$37,16,FALSE),HLOOKUP($L$2,DEBUTMU!$EZ$1:$HN$37,16,FALSE)) -> 20 | J36: - | K36: =IF($G$1=DEBUTMU!$Y$21,HLOOKUP($M$2,DEBUTMU!$AE$1:$DV$37,16,FALSE),HLOOKUP($M$2,DEBUTMU!$EZ$1:$HN$37,16,FALSE)) -> 10 | L36: "
D37: =IF($G$1=DEBUTMU!$Y$21,HLOOKUP($G$2,DEBUTMU!$AE$1:$DV$37,17,FALSE),HLOOKUP($G$2,DEBUTMU!$EZ$1:$HN$37,17,FALSE)) -> 0 | F37: =D36 -> 0 | G37: Charge idéale | I37: =IF($G$1=DEBUTMU!$Y$21,HLOOKUP($L$2,DEBUTMU!$AE$1:$DV$37,17,FALSE),HLOOKUP($L$2,DEBUTMU!$EZ$1:$HN$37,17,FALSE)) -> 10 | J37: Kg | K37: =100*I37/(VLOOKUP(I36,DEBUTMU!$O$39:$P$68,2,FALSE)) -> 18.51851852 | L37: =TIME(,,(G36*I36*2)+(K36*(G36-1))) -> 00:03:10
B39: =IF($G$1=DEBUTMU!$Y$21,HLOOKUP($M$2,DEBUTMU!$AE$1:$DV$37,19,FALSE),HLOOKUP($M$2,DEBUTMU!$EZ$1:$HN$37,19,FALSE)) -> CIRCUIT TRAINING
K40: Récup' | M40: =VLOOKUP(D42,EX!$B$6:$L$528,8,FALSE) -> 
A41: 7 | D41: =IF($G$1=DEBUTMU!$Y$21,HLOOKUP($G$2,DEBUTMU!$AE$1:$DV$37,18,FALSE),HLOOKUP($G$2,DEBUTMU!$EZ$1:$HN$37,18,FALSE)) -> 0 | F41: =D42 -> 0 | G41: =IF($G$1=DEBUTMU!$Y$21,HLOOKUP($K$2,DEBUTMU!$AE$1:$DV$37,18,FALSE),HLOOKUP($K$2,DEBUTMU!$EZ$1:$HN$37,18,FALSE)) -> 4 | H41: x | I41: =IF($G$1=DEBUTMU!$Y$21,HLOOKUP($L$2,DEBUTMU!$AE$1:$DV$37,18,FALSE),HLOOKUP($L$2,DEBUTMU!$EZ$1:$HN$37,18,FALSE)) -> 20 | J41: - | K41: =IF($G$1=DEBUTMU!$Y$21,HLOOKUP($M$2,DEBUTMU!$AE$1:$DV$37,18,FALSE),HLOOKUP($M$2,DEBUTMU!$EZ$1:$HN$37,18,FALSE)) -> 10 | L41: "
D42: =IF($G$1=DEBUTMU!$Y$21,HLOOKUP($G$2,DEBUTMU!$AE$1:$DV$37,19,FALSE),HLOOKUP($G$2,DEBUTMU!$EZ$1:$HN$37,19,FALSE)) -> 0 | F42: =D41 -> 0 | G42: Charge idéale | I42: =IF($G$1=DEBUTMU!$Y$21,HLOOKUP($L$2,DEBUTMU!$AE$1:$DV$37,19,FALSE),HLOOKUP($L$2,DEBUTMU!$EZ$1:$HN$37,19,FALSE)) -> 10 | J42: Kg | K42: =100*I42/(VLOOKUP(I41,DEBUTMU!$O$39:$P$68,2,FALSE)) -> 18.51851852 | L42: =TIME(,,(G41*I41*2)+(K41*(G41-1))) -> 00:03:10
B44: =IF($G$1=DEBUTMU!$Y$21,HLOOKUP($M$2,DEBUTMU!$AE$1:$DV$37,21,FALSE),HLOOKUP($M$2,DEBUTMU!$EZ$1:$HN$37,21,FALSE)) -> CIRCUIT TRAINING
K45: Récup' | M45: =VLOOKUP(D47,EX!$B$6:$L$528,8,FALSE) -> 
A46: 8 | D46: =IF($G$1=DEBUTMU!$Y$21,HLOOKUP($G$2,DEBUTMU!$AE$1:$DV$37,20,FALSE),HLOOKUP($G$2,DEBUTMU!$EZ$1:$HN$37,20,FALSE)) -> 0 | F46: =D47 -> 0 | G46: =IF($G$1=DEBUTMU!$Y$21,HLOOKUP($K$2,DEBUTMU!$AE$1:$DV$37,20,FALSE),HLOOKUP($K$2,DEBUTMU!$EZ$1:$HN$37,20,FALSE)) -> 4 | H46: x | I46: =IF($G$1=DEBUTMU!$Y$21,HLOOKUP($L$2,DEBUTMU!$AE$1:$DV$37,20,FALSE),HLOOKUP($L$2,DEBUTMU!$EZ$1:$HN$37,20,FALSE)) -> 20 | J46: - | K46: =IF($G$1=DEBUTMU!$Y$21,HLOOKUP($M$2,DEBUTMU!$AE$1:$DV$37,20,FALSE),HLOOKUP($M$2,DEBUTMU!$EZ$1:$HN$37,20,FALSE)) -> 10 | L46: "
D47: =IF($G$1=DEBUTMU!$Y$21,HLOOKUP($G$2,DEBUTMU!$AE$1:$DV$37,21,FALSE),HLOOKUP($G$2,DEBUTMU!$EZ$1:$HN$37,21,FALSE)) -> 0 | F47: =D46 -> 0 | G47: Charge idéale | I47: =IF($G$1=DEBUTMU!$Y$21,HLOOKUP($L$2,DEBUTMU!$AE$1:$DV$37,21,FALSE),HLOOKUP($L$2,DEBUTMU!$EZ$1:$HN$37,21,FALSE)) -> 10 | J47: Kg | K47: =100*I47/(VLOOKUP(I46,DEBUTMU!$O$39:$P$68,2,FALSE)) -> 18.51851852 | L47: =TIME(,,(G46*I46*2)+(K46*(G46-1))) -> 00:03:10
B49: =IF($G$1=DEBUTMU!$Y$21,HLOOKUP($M$2,DEBUTMU!$AE$1:$DV$37,23,FALSE),HLOOKUP($M$2,DEBUTMU!$EZ$1:$HN$37,23,FALSE)) -> CIRCUIT TRAINING
K50: Récup' | M50: =VLOOKUP(D52,EX!$B$6:$L$528,8,FALSE) -> 
A51: 9 | D51: =IF($G$1=DEBUTMU!$Y$21,HLOOKUP($G$2,DEBUTMU!$AE$1:$DV$37,22,FALSE),HLOOKUP($G$2,DEBUTMU!$EZ$1:$HN$37,22,FALSE)) -> 0 | F51: =D52 -> 0 | G51: =IF($G$1=DEBUTMU!$Y$21,HLOOKUP($K$2,DEBUTMU!$AE$1:$DV$37,22,FALSE),HLOOKUP($K$2,DEBUTMU!$EZ$1:$HN$37,22,FALSE)) -> 4 | H51: x | I51: =IF($G$1=DEBUTMU!$Y$21,HLOOKUP($L$2,DEBUTMU!$AE$1:$DV$37,22,FALSE),HLOOKUP($L$2,DEBUTMU!$EZ$1:$HN$37,22,FALSE)) -> 20 | J51: - | K51: =IF($G$1=DEBUTMU!$Y$21,HLOOKUP($M$2,DEBUTMU!$AE$1:$DV$37,22,FALSE),HLOOKUP($M$2,DEBUTMU!$EZ$1:$HN$37,22,FALSE)) -> 10 | L51: "
D52: =IF($G$1=DEBUTMU!$Y$21,HLOOKUP($G$2,DEBUTMU!$AE$1:$DV$37,23,FALSE),HLOOKUP($G$2,DEBUTMU!$EZ$1:$HN$37,23,FALSE)) -> 0 | F52: =D51 -> 0 | G52: Charge idéale | I52: =IF($G$1=DEBUTMU!$Y$21,HLOOKUP($L$2,DEBUTMU!$AE$1:$DV$37,23,FALSE),HLOOKUP($L$2,DEBUTMU!$EZ$1:$HN$37,23,FALSE)) -> 10 | J52: Kg | K52: =100*I52/(VLOOKUP(I51,DEBUTMU!$O$39:$P$68,2,FALSE)) -> 18.51851852 | L52: =TIME(,,(G51*I51*2)+(K51*(G51-1))) -> 00:03:10
B54: =IF($G$1=DEBUTMU!$Y$21,HLOOKUP($M$2,DEBUTMU!$AE$1:$DV$37,25,FALSE),HLOOKUP($M$2,DEBUTMU!$EZ$1:$HN$37,25,FALSE)) -> CIRCUIT TRAINING
K55: Récup' | M55: =VLOOKUP(D57,EX!$B$6:$L$528,8,FALSE) -> 
A56: 10 | D56: =IF($G$1=DEBUTMU!$Y$21,HLOOKUP($G$2,DEBUTMU!$AE$1:$DV$37,24,FALSE),HLOOKUP($G$2,DEBUTMU!$EZ$1:$HN$37,24,FALSE)) -> 0 | F56: =D57 -> 0 | G56: =IF($G$1=DEBUTMU!$Y$21,HLOOKUP($K$2,DEBUTMU!$AE$1:$DV$37,24,FALSE),HLOOKUP($K$2,DEBUTMU!$EZ$1:$HN$37,24,FALSE)) -> 4 | H56: x | I56: =IF($G$1=DEBUTMU!$Y$21,HLOOKUP($L$2,DEBUTMU!$AE$1:$DV$37,24,FALSE),HLOOKUP($L$2,DEBUTMU!$EZ$1:$HN$37,24,FALSE)) -> 20 | J56: - | K56: =IF($G$1=DEBUTMU!$Y$21,HLOOKUP($M$2,DEBUTMU!$AE$1:$DV$37,24,FALSE),HLOOKUP($M$2,DEBUTMU!$EZ$1:$HN$37,24,FALSE)) -> 10 | L56: "
D57: =IF($G$1=DEBUTMU!$Y$21,HLOOKUP($G$2,DEBUTMU!$AE$1:$DV$37,25,FALSE),HLOOKUP($G$2,DEBUTMU!$EZ$1:$HN$37,25,FALSE)) -> 0 | F57: =D56 -> 0 | G57: Charge idéale | I57: =IF($G$1=DEBUTMU!$Y$21,HLOOKUP($L$2,DEBUTMU!$AE$1:$DV$37,25,FALSE),HLOOKUP($L$2,DEBUTMU!$EZ$1:$HN$37,25,FALSE)) -> 10 | J57: Kg | K57: =100*I57/(VLOOKUP(I56,DEBUTMU!$O$39:$P$68,2,FALSE)) -> 18.51851852 | L57: =TIME(,,(G56*I56*2)+(K56*(G56-1))) -> 00:03:10
B59: =IF($G$1=DEBUTMU!$Y$21,HLOOKUP($M$2,DEBUTMU!$AE$1:$DV$37,27,FALSE),HLOOKUP($M$2,DEBUTMU!$EZ$1:$HN$37,27,FALSE)) -> CIRCUIT TRAINING
K60: Récup' | M60: =VLOOKUP(D62,EX!$B$6:$L$528,8,FALSE) -> 
A61: 11 | D61: =IF($G$1=DEBUTMU!$Y$21,HLOOKUP($G$2,DEBUTMU!$AE$1:$DV$37,26,FALSE),HLOOKUP($G$2,DEBUTMU!$EZ$1:$HN$37,26,FALSE)) -> 0 | F61: =D62 -> 0 | G61: =IF($G$1=DEBUTMU!$Y$21,HLOOKUP($K$2,DEBUTMU!$AE$1:$DV$37,26,FALSE),HLOOKUP($K$2,DEBUTMU!$EZ$1:$HN$37,26,FALSE)) -> 4 | H61: x | I61: =IF($G$1=DEBUTMU!$Y$21,HLOOKUP($L$2,DEBUTMU!$AE$1:$DV$37,26,FALSE),HLOOKUP($L$2,DEBUTMU!$EZ$1:$HN$37,26,FALSE)) -> 20 | J61: - | K61: =IF($G$1=DEBUTMU!$Y$21,HLOOKUP($M$2,DEBUTMU!$AE$1:$DV$37,26,FALSE),HLOOKUP($M$2,DEBUTMU!$EZ$1:$HN$37,26,FALSE)) -> 10 | L61: "
D62: =IF($G$1=DEBUTMU!$Y$21,HLOOKUP($G$2,DEBUTMU!$AE$1:$DV$37,27,FALSE),HLOOKUP($G$2,DEBUTMU!$EZ$1:$HN$37,27,FALSE)) -> 0 | F62: =D61 -> 0 | G62: Charge idéale | I62: =IF($G$1=DEBUTMU!$Y$21,HLOOKUP($L$2,DEBUTMU!$AE$1:$DV$37,27,FALSE),HLOOKUP($L$2,DEBUTMU!$EZ$1:$HN$37,27,FALSE)) -> 10 | J62: Kg | K62: =100*I62/(VLOOKUP(I61,DEBUTMU!$O$39:$P$68,2,FALSE)) -> 18.51851852 | L62: =TIME(,,(G61*I61*2)+(K61*(G61-1))) -> 00:03:10
B64: =IF($G$1=DEBUTMU!$Y$21,HLOOKUP($M$2,DEBUTMU!$AE$1:$DV$37,29,FALSE),HLOOKUP($M$2,DEBUTMU!$EZ$1:$HN$37,29,FALSE)) -> CIRCUIT TRAINING
K65: Récup' | M65: =VLOOKUP(D67,EX!$B$6:$L$528,8,FALSE) -> 
A66: 12 | D66: =IF($G$1=DEBUTMU!$Y$21,HLOOKUP($G$2,DEBUTMU!$AE$1:$DV$37,28,FALSE),HLOOKUP($G$2,DEBUTMU!$EZ$1:$HN$37,28,FALSE)) -> 0 | F66: =D67 -> 0 | G66: =IF($G$1=DEBUTMU!$Y$21,HLOOKUP($K$2,DEBUTMU!$AE$1:$DV$37,28,FALSE),HLOOKUP($K$2,DEBUTMU!$EZ$1:$HN$37,28,FALSE)) -> 4 | H66: x | I66: =IF($G$1=DEBUTMU!$Y$21,HLOOKUP($L$2,DEBUTMU!$AE$1:$DV$37,28,FALSE),HLOOKUP($L$2,DEBUTMU!$EZ$1:$HN$37,28,FALSE)) -> 20 | J66: - | K66: =IF($G$1=DEBUTMU!$Y$21,HLOOKUP($M$2,DEBUTMU!$AE$1:$DV$37,28,FALSE),HLOOKUP($M$2,DEBUTMU!$EZ$1:$HN$37,28,FALSE)) -> 10 | L66: "
D67: =IF($G$1=DEBUTMU!$Y$21,HLOOKUP($G$2,DEBUTMU!$AE$1:$DV$37,29,FALSE),HLOOKUP($G$2,DEBUTMU!$EZ$1:$HN$37,29,FALSE)) -> 0 | F67: =D66 -> 0 | G67: Charge idéale | I67: =IF($G$1=DEBUTMU!$Y$21,HLOOKUP($L$2,DEBUTMU!$AE$1:$DV$37,29,FALSE),HLOOKUP($L$2,DEBUTMU!$EZ$1:$HN$37,29,FALSE)) -> 10 | J67: Kg | K67: =100*I67/(VLOOKUP(I66,DEBUTMU!$O$39:$P$68,2,FALSE)) -> 18.51851852 | L67: =TIME(,,(G66*I66*2)+(K66*(G66-1))) -> 00:03:10
B69: =IF($G$1=DEBUTMU!$Y$21,HLOOKUP($M$2,DEBUTMU!$AE$1:$DV$37,31,FALSE),HLOOKUP($M$2,DEBUTMU!$EZ$1:$HN$37,31,FALSE)) -> CIRCUIT TRAINING
K70: Récup' | M70: =VLOOKUP(D72,EX!$B$6:$L$528,8,FALSE) -> 
A71: 13 | D71: =IF($G$1=DEBUTMU!$Y$21,HLOOKUP($G$2,DEBUTMU!$AE$1:$DV$37,30,FALSE),HLOOKUP($G$2,DEBUTMU!$EZ$1:$HN$37,30,FALSE)) -> 0 | F71: =D72 -> 0 | G71: =IF($G$1=DEBUTMU!$Y$21,HLOOKUP($K$2,DEBUTMU!$AE$1:$DV$37,30,FALSE),HLOOKUP($K$2,DEBUTMU!$EZ$1:$HN$37,30,FALSE)) -> 4 | H71: x | I71: =IF($G$1=DEBUTMU!$Y$21,HLOOKUP($L$2,DEBUTMU!$AE$1:$DV$37,30,FALSE),HLOOKUP($L$2,DEBUTMU!$EZ$1:$HN$37,30,FALSE)) -> 20 | J71: - | K71: =IF($G$1=DEBUTMU!$Y$21,HLOOKUP($M$2,DEBUTMU!$AE$1:$DV$37,30,FALSE),HLOOKUP($M$2,DEBUTMU!$EZ$1:$HN$37,30,FALSE)) -> 10 | L71: "
D72: =IF($G$1=DEBUTMU!$Y$21,HLOOKUP($G$2,DEBUTMU!$AE$1:$DV$37,31,FALSE),HLOOKUP($G$2,DEBUTMU!$EZ$1:$HN$37,31,FALSE)) -> 0 | F72: =D71 -> 0 | G72: Charge idéale | I72: =IF($G$1=DEBUTMU!$Y$21,HLOOKUP($L$2,DEBUTMU!$AE$1:$DV$37,31,FALSE),HLOOKUP($L$2,DEBUTMU!$EZ$1:$HN$37,31,FALSE)) -> 10 | J72: Kg | K72: =100*I72/(VLOOKUP(I71,DEBUTMU!$O$39:$P$68,2,FALSE)) -> 18.51851852 | L72: =TIME(,,(G71*I71*2)+(K71*(G71-1))) -> 00:03:10
B74: =IF($G$1=DEBUTMU!$Y$21,HLOOKUP($M$2,DEBUTMU!$AE$1:$DV$37,33,FALSE),HLOOKUP($M$2,DEBUTMU!$EZ$1:$HN$37,33,FALSE)) -> CIRCUIT TRAINING
K75: Récup' | M75: =VLOOKUP(D77,EX!$B$6:$L$528,8,FALSE) -> 
A76: 14 | D76: =IF($G$1=DEBUTMU!$Y$21,HLOOKUP($G$2,DEBUTMU!$AE$1:$DV$37,32,FALSE),HLOOKUP($G$2,DEBUTMU!$EZ$1:$HN$37,32,FALSE)) -> 0 | F76: =D77 -> 0 | G76: =IF($G$1=DEBUTMU!$Y$21,HLOOKUP($K$2,DEBUTMU!$AE$1:$DV$37,32,FALSE),HLOOKUP($K$2,DEBUTMU!$EZ$1:$HN$37,32,FALSE)) -> 4 | H76: x | I76: =IF($G$1=DEBUTMU!$Y$21,HLOOKUP($L$2,DEBUTMU!$AE$1:$DV$37,32,FALSE),HLOOKUP($L$2,DEBUTMU!$EZ$1:$HN$37,32,FALSE)) -> 20 | J76: - | K76: =IF($G$1=DEBUTMU!$Y$21,HLOOKUP($M$2,DEBUTMU!$AE$1:$DV$37,32,FALSE),HLOOKUP($M$2,DEBUTMU!$EZ$1:$HN$37,32,FALSE)) -> 10 | L76: "
D77: =IF($G$1=DEBUTMU!$Y$21,HLOOKUP($G$2,DEBUTMU!$AE$1:$DV$37,33,FALSE),HLOOKUP($G$2,DEBUTMU!$EZ$1:$HN$37,33,FALSE)) -> 0 | F77: =D76 -> 0 | G77: Charge idéale | I77: =IF($G$1=DEBUTMU!$Y$21,HLOOKUP($L$2,DEBUTMU!$AE$1:$DV$37,33,FALSE),HLOOKUP($L$2,DEBUTMU!$EZ$1:$HN$37,33,FALSE)) -> 10 | J77: Kg | K77: =100*I77/(VLOOKUP(I76,DEBUTMU!$O$39:$P$68,2,FALSE)) -> 18.51851852 | L77: =TIME(,,(G76*I76*2)+(K76*(G76-1))) -> 00:03:10
B79: =IF($G$1=DEBUTMU!$Y$21,HLOOKUP($M$2,DEBUTMU!$AE$1:$DV$37,35,FALSE),HLOOKUP($M$2,DEBUTMU!$EZ$1:$HN$37,35,FALSE)) -> CIRCUIT TRAINING
K80: Récup' | M80: =VLOOKUP(D82,EX!$B$6:$L$528,8,FALSE) -> 
A81: 15 | D81: =IF($G$1=DEBUTMU!$Y$21,HLOOKUP($G$2,DEBUTMU!$AE$1:$DV$37,34,FALSE),HLOOKUP($G$2,DEBUTMU!$EZ$1:$HN$37,34,FALSE)) -> 0 | F81: =D82 -> 0 | G81: =IF($G$1=DEBUTMU!$Y$21,HLOOKUP($K$2,DEBUTMU!$AE$1:$DV$37,34,FALSE),HLOOKUP($K$2,DEBUTMU!$EZ$1:$HN$37,34,FALSE)) -> 4 | H81: x | I81: =IF($G$1=DEBUTMU!$Y$21,HLOOKUP($L$2,DEBUTMU!$AE$1:$DV$37,34,FALSE),HLOOKUP($L$2,DEBUTMU!$EZ$1:$HN$37,34,FALSE)) -> 20 | J81: - | K81: =IF($G$1=DEBUTMU!$Y$21,HLOOKUP($M$2,DEBUTMU!$AE$1:$DV$37,34,FALSE),HLOOKUP($M$2,DEBUTMU!$EZ$1:$HN$37,34,FALSE)) -> 10 | L81: "
D82: =IF($G$1=DEBUTMU!$Y$21,HLOOKUP($G$2,DEBUTMU!$AE$1:$DV$37,35,FALSE),HLOOKUP($G$2,DEBUTMU!$EZ$1:$HN$37,35,FALSE)) -> 0 | F82: =D81 -> 0 | G82: Charge idéale | I82: =IF($G$1=DEBUTMU!$Y$21,HLOOKUP($L$2,DEBUTMU!$AE$1:$DV$37,35,FALSE),HLOOKUP($L$2,DEBUTMU!$EZ$1:$HN$37,35,FALSE)) -> 10 | J82: Kg | K82: =100*I82/(VLOOKUP(I81,DEBUTMU!$O$39:$P$68,2,FALSE)) -> 18.51851852 | L82: =TIME(,,(G81*I81*2)+(K81*(G81-1))) -> 00:03:10
B84: =IF($G$1=DEBUTMU!$Y$21,HLOOKUP($M$2,DEBUTMU!$AE$1:$DV$37,37,FALSE),HLOOKUP($M$2,DEBUTMU!$EZ$1:$HN$37,37,FALSE)) -> CIRCUIT TRAINING
K85: Récup' | M85: =VLOOKUP(D87,EX!$B$6:$L$528,8,FALSE) -> 
A86: 16 | D86: =IF($G$1=DEBUTMU!$Y$21,HLOOKUP($G$2,DEBUTMU!$AE$1:$DV$37,36,FALSE),HLOOKUP($G$2,DEBUTMU!$EZ$1:$HN$37,36,FALSE)) -> 0 | F86: =D87 -> 0 | G86: =IF($G$1=DEBUTMU!$Y$21,HLOOKUP($K$2,DEBUTMU!$AE$1:$DV$37,36,FALSE),HLOOKUP($K$2,DEBUTMU!$EZ$1:$HN$37,36,FALSE)) -> 4 | H86: x | I86: =IF($G$1=DEBUTMU!$Y$21,HLOOKUP($L$2,DEBUTMU!$AE$1:$DV$37,36,FALSE),HLOOKUP($L$2,DEBUTMU!$EZ$1:$HN$37,36,FALSE)) -> 20 | J86: - | K86: =IF($G$1=DEBUTMU!$Y$21,HLOOKUP($M$2,DEBUTMU!$AE$1:$DV$37,36,FALSE),HLOOKUP($M$2,DEBUTMU!$EZ$1:$HN$37,36,FALSE)) -> 10 | L86: "
D87: =IF($G$1=DEBUTMU!$Y$21,HLOOKUP($G$2,DEBUTMU!$AE$1:$DV$37,37,FALSE),HLOOKUP($G$2,DEBUTMU!$EZ$1:$HN$37,37,FALSE)) -> 0 | F87: =D86 -> 0 | G87: Charge idéale | I87: =IF($G$1=DEBUTMU!$Y$21,HLOOKUP($L$2,DEBUTMU!$AE$1:$DV$37,37,FALSE),HLOOKUP($L$2,DEBUTMU!$EZ$1:$HN$37,37,FALSE)) -> 10 | J87: Kg | K87: =100*I87/(VLOOKUP(I86,DEBUTMU!$O$39:$P$68,2,FALSE)) -> 18.51851852 | L87: =TIME(,,(G86*I86*2)+(K86*(G86-1))) -> 00:03:10
G91: Tonnage | I91: =V21 -> 0 | J91: Kg

Sheet S6
B1: ='S1'!B1 -> 1META | C1: Séance | E1: 6 | G1: Programme perso | N1: Méthode d'entrainement
B2: ='S1'!B2 -> Abdel Nour | D2: =VLOOKUP(E1,DEBUTMU!$A$6:$C$35,2,FALSE) -> 0 | E2: =VLOOKUP(E1,DEBUTMU!$A$6:$C$35,3,FALSE) -> 0 | G2: MA SEANCE 5 | K2: =VLOOKUP($G$2,DEBUTMU!$Z$6:$AC$37,2,FALSE) -> SERIE-CHARGE-MA SEANCE 5 | L2: =VLOOKUP($G$2,DEBUTMU!$Z$6:$AC$37,3,FALSE) -> REPS-POURCENT-MA SEANCE 5 | M2: =VLOOKUP($G$2,DEBUTMU!$Z$6:$AC$37,4,FALSE) -> RECUP-METH-MA SEANCE 5 | N2: =IF($G$1=DEBUTMU!$Y$21,HLOOKUP($M$2,DEBUTMU!$AE$1:$DV$37,5,FALSE),HLOOKUP($M$2,DEBUTMU!$FF$1:$HT$37,5,FALSE)) -> CIRCUIT TRAINING
D4: Objectif séance | G4: Séries | I4: Réps | M4: Conseils d'entrainement
D5: =IF($G$1=DEBUTMU!$Y$21,HLOOKUP($G$2,DEBUTMU!$AE$1:$DV$37,4,FALSE),HLOOKUP($G$2,DEBUTMU!$FF$1:$HT$37,4,FALSE)) -> 0 | G5: =IF($G$1=DEBUTMU!$Y$21,HLOOKUP($K$2,DEBUTMU!$AE$1:$DV$37,4,FALSE),HLOOKUP($K$2,DEBUTMU!$FF$1:$HT$37,4,FALSE)) -> 4 | H5: x | I5: =IF($G$1=DEBUTMU!$Y$21,HLOOKUP($L$2,DEBUTMU!$AE$1:$DV$37,4,FALSE),HLOOKUP($L$2,DEBUTMU!$FF$1:$HT$37,4,FALSE)) -> 20 | M5: =VLOOKUP(G2,DEBUTMU!Z6:AD37,5,FALSE) -> Enchianer les exos sans pause avec charges adaptées à l'obj | P5: Durée estimée de la séance | U5: MUSCLES | V5: TONNAGE/MUSCLE | W5: EXO 1 | X5: EXO 2 | Y5: EXO 3 | Z5: EXO 4 | AA5: EXO 5 | AB5: EXO 6 | AC5: EXO 7 | AD5: EXO 8 | AE5: EXO 9 | AF5: EXO 10 | AG5: EXO 11 | AH5: EXO 12 | AI5: EXO 13 | AJ5: EXO 14 | AK5: EXO 15 | AL5: EXO 16
K6: Récup'/séries | U6: =DEBUTMU!X6 -> PECTORAUX | V6: =SUM(W6:AL6) -> 0 | W6: =IFERROR(VLOOKUP(U6,$D$11:$I$11,4,FALSE)*VLOOKUP(U6,$D$11:$I$11,6,FALSE)*VLOOKUP(U6,$F$12:$I$12,4,FALSE),0) -> 0 | X6: =IFERROR(VLOOKUP(U6,$D$16:$I$16,4,FALSE)*VLOOKUP(U6,$D$16:$I$16,6,FALSE)*VLOOKUP(U6,$F$17:$I$17,4,FALSE),0) -> 0 | Y6: =IFERROR(VLOOKUP(U6,$D$21:$I$21,4,FALSE)*VLOOKUP(U6,$D$21:$I$21,6,FALSE)*VLOOKUP(U6,F22:I22,4,FALSE),0) -> 0 | Z6: =IFERROR(VLOOKUP(U6,$D$26:$I$26,4,FALSE)*VLOOKUP(U6,$D$26:$I$26,6,FALSE)*VLOOKUP(U6,$F$27:$I$27,4,FALSE),0) -> 0 | AA6: =IFERROR(VLOOKUP(U6,$D$31:$I$31,4,FALSE)*VLOOKUP(U6,$D$31:$I$31,6,FALSE)*VLOOKUP(U6,$F$32:$I$32,4,FALSE),0) -> 0 | AB6: =IFERROR(VLOOKUP(U6,$D$36:$I$36,4,FALSE)*VLOOKUP(U6,$D$36:$I$36,6,FALSE)*VLOOKUP(U6,$F$37:$I$37,4,FALSE),0) -> 0 | AC6: =IFERROR(VLOOKUP(U6,$D$41:$I$41,4,FALSE)*VLOOKUP(U6,$D$41:$I$41,6,FALSE)*VLOOKUP(U6,$F$42:$I$42,4,FALSE),0) -> 0 | AD6: =IFERROR(VLOOKUP(U6,$D$46:$I$46,4,FALSE)*VLOOKUP(U6,$D$46:$I$46,6,FALSE)*VLOOKUP(U6,$F$47:$I$47,4,FALSE),0) -> 0 | AE6: =IFERROR(VLOOKUP(U6,$D$51:$I$51,4,FALSE)*VLOOKUP(U6,$D$51:$I$51,6,FALSE)*VLOOKUP(U6,$F$52:$I$52,4,FALSE),0) -> 0 | AF6: =IFERROR(VLOOKUP(U6,$D$56:$I$56,4,FALSE)*VLOOKUP(U6,$D$56:$I$56,6,FALSE)*VLOOKUP(U6,$F$57:$I$57,4,FALSE),0) -> 0 | AG6: =IFERROR(VLOOKUP(U6,$D$61:$I$61,4,FALSE)*VLOOKUP(U6,$D$61:$I$61,6,FALSE)*VLOOKUP(U6,$F$62:$I$62,4,FALSE),0) -> 0 | AH6: =IFERROR(VLOOKUP(U6,$D$66:$I$66,4,FALSE)*VLOOKUP(U6,$D$66:$I$66,6,FALSE)*VLOOKUP(U6,$F$67:$I$67,4,FALSE),0) -> 0 | AI6: =IFERROR(VLOOKUP(U6,$D$71:$I$71,4,FALSE)*VLOOKUP(U6,$D$71:$I$71,6,FALSE)*VLOOKUP(U6,$F$72:$I$72,4,FALSE),0) -> 0 | AJ6: =IFERROR(VLOOKUP(U6,$D$76:$I$76,4,FALSE)*VLOOKUP(U6,$D$76:$I$76,6,FALSE)*VLOOKUP(U6,$F$77:$I$77,4,FALSE),0) -> 0 | AK6: =IFERROR(VLOOKUP(U6,$D$81:$I$81,4,FALSE)*VLOOKUP(U6,$D$81:$I$81,6,FALSE)*VLOOKUP(U6,$F$82:$I$82,4,FALSE),0) -> 0 | AL6: =IFERROR(VLOOKUP(U6,$D$86:$I$86,4,FALSE)*VLOOKUP(U6,$D$86:$I$86,6,FALSE)*VLOOKUP(U6,$F$87:$I$87,4,FALSE),0) -> 0
G7: Pourcentage Charge idéale | I7: =IF($G$1=DEBUTMU!$Y$21,HLOOKUP($K$2,DEBUTMU!$AE$1:$DV$37,5,FALSE),HLOOKUP($K$2,DEBUTMU!$FF$1:$HT$37,5,FALSE)) -> 60 | J7: % | K7: =IF($G$1=DEBUTMU!$Y$21,HLOOKUP($M$2,DEBUTMU!$AE$1:$DV$37,4,FALSE),HLOOKUP($M$2,DEBUTMU!$FF$1:$HT$37,4,FALSE)) -> 10 | L7: " | P7: =(L12+L17+L22+L27+L32+L37+L42+L47+L52+L57+L62+L67+L72+L77+L82+L87)+(L12+L17+L22+L27+L32+L37+L42+L47+L52+L57+L62+L67+L72+L77+L82+L87)*10/100 -> 00:55:44 | U7: =DEBUTMU!X7 -> GRAND DROIT | V7: =SUM(W7:AL7) -> 0 | W7: =IFERROR(VLOOKUP(U7,$D$11:$I$11,4,FALSE)*VLOOKUP(U7,$D$11:$I$11,6,FALSE)*VLOOKUP(U7,$F$12:$I$12,4,FALSE),0) -> 0 | X7: =IFERROR(VLOOKUP(U7,$D$16:$I$16,4,FALSE)*VLOOKUP(U7,$D$16:$I$16,6,FALSE)*VLOOKUP(U7,$F$17:$I$17,4,FALSE),0) -> 0 | Y7: =IFERROR(VLOOKUP(U7,$D$21:$I$21,4,FALSE)*VLOOKUP(U7,$D$21:$I$21,6,FALSE)*VLOOKUP(U7,F23:I23,4,FALSE),0) -> 0 | Z7: =IFERROR(VLOOKUP(U7,$D$26:$I$26,4,FALSE)*VLOOKUP(U7,$D$26:$I$26,6,FALSE)*VLOOKUP(U7,$F$27:$I$27,4,FALSE),0) -> 0 | AA7: =IFERROR(VLOOKUP(U7,$D$31:$I$31,4,FALSE)*VLOOKUP(U7,$D$31:$I$31,6,FALSE)*VLOOKUP(U7,$F$32:$I$32,4,FALSE),0) -> 0 | AB7: =IFERROR(VLOOKUP(U7,$D$36:$I$36,4,FALSE)*VLOOKUP(U7,$D$36:$I$36,6,FALSE)*VLOOKUP(U7,$F$37:$I$37,4,FALSE),0) -> 0 | AC7: =IFERROR(VLOOKUP(U7,$D$41:$I$41,4,FALSE)*VLOOKUP(U7,$D$41:$I$41,6,FALSE)*VLOOKUP(U7,$F$42:$I$42,4,FALSE),0) -> 0 | AD7: =IFERROR(VLOOKUP(U7,$D$46:$I$46,4,FALSE)*VLOOKUP(U7,$D$46:$I$46,6,FALSE)*VLOOKUP(U7,$F$47:$I$47,4,FALSE),0) -> 0 | AE7: =IFERROR(VLOOKUP(U7,$D$51:$I$51,4,FALSE)*VLOOKUP(U7,$D$51:$I$51,6,FALSE)*VLOOKUP(U7,$F$52:$I$52,4,FALSE),0) -> 0 | AF7: =IFERROR(VLOOKUP(U7,$D$56:$I$56,4,FALSE)*VLOOKUP(U7,$D$56:$I$56,6,FALSE)*VLOOKUP(U7,$F$57:$I$57,4,FALSE),0) -> 0 | AG7: =IFERROR(VLOOKUP(U7,$D$61:$I$61,4,FALSE)*VLOOKUP(U7,$D$61:$I$61,6,FALSE)*VLOOKUP(U7,$F$62:$I$62,4,FALSE),0) -> 0 | AH7: =IFERROR(VLOOKUP(U7,$D$66:$I$66,4,FALSE)*VLOOKUP(U7,$D$66:$I$66,6,FALSE)*VLOOKUP(U7,$F$67:$I$67,4,FALSE),0) -> 0 | AI7: =IFERROR(VLOOKUP(U7,$D$71:$I$71,4,FALSE)*VLOOKUP(U7,$D$71:$I$71,6,FALSE)*VLOOKUP(U7,$F$72:$I$72,4,FALSE),0) -> 0 | AJ7: =IFERROR(VLOOKUP(U7,$D$76:$I$76,4,FALSE)*VLOOKUP(U7,$D$76:$I$76,6,FALSE)*VLOOKUP(U7,$F$77:$I$77,4,FALSE),0) -> 0 | AK7: =IFERROR(VLOOKUP(U7,$D$81:$I$81,4,FALSE)*VLOOKUP(U7,$D$81:$I$81,6,FALSE)*VLOOKUP(U7,$F$82:$I$82,4,FALSE),0) -> 0 | AL7: =IFERROR(VLOOKUP(U7,$D$86:$I$86,4,FALSE)*VLOOKUP(U7,$D$86:$I$86,6,FALSE)*VLOOKUP(U7,$F$87:$I$87,4,FALSE),0) -> 0
U8: =DEBUTMU!X8 -> OBLIQUES | V8: 0 | W8: 0 | X8: 0 | Y8: 0 | Z8: 0 | AA8: 0 | AB8: 0 | AC8: 0 | AD8: 0 | AE8: 0 | AF8: 0 | AG8: 0 | AH8: 0 | AI8: 0 | AJ8: 0 | AK8: 0 | AL8: 0
B9: =IF($G$1=DEBUTMU!$Y$21,HLOOKUP($M$2,DEBUTMU!$AE$1:$DV$37,7,FALSE),HLOOKUP($M$2,DEBUTMU!$FF$1:$HT$37,7,FALSE)) -> CIRCUIT TRAINING | U9: =DEBUTMU!X9 -> TRAPEZES | V9: 0 | W9: 0 | X9: 0 | Y9: 0 | Z9: 0 | AA9: 0 | AB9: 0 | AC9: 0 | AD9: 0 | AE9: 0 | AF9: 0 | AG9: 0 | AH9: 0 | AI9: 0 | AJ9: 0 | AK9: 0 | AL9: 0
K10: Récup' | M10: =VLOOKUP(D12,EX!$B$6:$L$528,8,FALSE) ->  | U10: =DEBUTMU!X10 -> DORSAUX | V10: 0 | W10: 0 | X10: 0 | Y10: 0 | Z10: 0 | AA10: 0 | AB10: 0 | AC10: 0 | AD10: 0 | AE10: 0 | AF10: 0 | AG10: 0 | AH10: 0 | AI10: 0 | AJ10: 0 | AK10: 0 | AL10: 0
A11: 1 | D11: =IF($G$1=DEBUTMU!$Y$21,HLOOKUP($G$2,DEBUTMU!$AE$1:$DV$37,6,FALSE),HLOOKUP($G$2,DEBUTMU!$FF$1:$HT$37,6,FALSE)) -> 0 | F11: =D12 -> 0 | G11: =IF($G$1=DEBUTMU!$Y$21,HLOOKUP($K$2,DEBUTMU!$AE$1:$DV$37,6,FALSE),HLOOKUP($K$2,DEBUTMU!$FF$1:$HT$37,6,FALSE)) -> 4 | H11: x | I11: =IF($G$1=DEBUTMU!$Y$21,HLOOKUP($L$2,DEBUTMU!$AE$1:$DV$37,6,FALSE),HLOOKUP($L$2,DEBUTMU!$FF$1:$HT$37,6,FALSE)) -> 20 | J11: - | K11: =IF($G$1=DEBUTMU!$Y$21,HLOOKUP($M$2,DEBUTMU!$AE$1:$DV$37,6,FALSE),HLOOKUP($M$2,DEBUTMU!$FF$1:$HT$37,6,FALSE)) -> 10 | L11: " | Q11: bilan | U11: =DEBUTMU!X11 -> LOMBAIRES | V11: 0 | W11: 0 | X11: 0 | Y11: 0 | Z11: 0 | AA11: 0 | AB11: 0 | AC11: 0 | AD11: 0 | AE11: 0 | AF11: 0 | AG11: 0 | AH11: 0 | AI11: 0 | AJ11: 0 | AK11: 0 | AL11: 0
D12: =IF($G$1=DEBUTMU!$Y$21,HLOOKUP($G$2,DEBUTMU!$AE$1:$DV$37,7,FALSE),HLOOKUP($G$2,DEBUTMU!$FF$1:$HT$37,7,FALSE)) -> 0 | F12: =D11 -> 0 | G12: Charge idéale | I12: =IF($G$1=DEBUTMU!$Y$21,HLOOKUP($L$2,DEBUTMU!$AE$1:$DV$37,7,FALSE),HLOOKUP($L$2,DEBUTMU!$FF$1:$HT$37,7,FALSE)) -> 10 | J12: Kg | K12: =100*I12/(VLOOKUP(I11,DEBUTMU!$O$39:$P$68,2,FALSE)) -> 18.51851852 | L12: =TIME(,,(G11*I11*2)+(K11*(G11-1))) -> 00:03:10 | U12: =DEBUTMU!X12 -> DELTOIDES | V12: 0 | W12: 0 | X12: 0 | Y12: 0 | Z12: 0 | AA12: 0 | AB12: 0 | AC12: 0 | AD12: 0 | AE12: 0 | AF12: 0 | AG12: 0 | AH12: 0 | AI12: 0 | AJ12: 0 | AK12: 0 | AL12: 0
U13: =DEBUTMU!X13 -> BICEPS | V13: 0 | W13: 0 | X13: 0 | Y13: 0 | Z13: 0 | AA13: 0 | AB13: 0 | AC13: 0 | AD13: 0 | AE13: 0 | AF13: 0 | AG13: 0 | AH13: 0 | AI13: 0 | AJ13: 0 | AK13: 0 | AL13: 0
B14: =IF($G$1=DEBUTMU!$Y$21,HLOOKUP($M$2,DEBUTMU!$AE$1:$DV$37,9,FALSE),HLOOKUP($M$2,DEBUTMU!$FF$1:$HT$37,9,FALSE)) -> CIRCUIT TRAINING | U14: =DEBUTMU!X14 -> TRICEPS | V14: 0 | W14: 0 | X14: 0 | Y14: 0 | Z14: 0 | AA14: 0 | AB14: 0 | AC14: 0 | AD14: 0 | AE14: 0 | AF14: 0 | AG14: 0 | AH14: 0 | AI14: 0 | AJ14: 0 | AK14: 0 | AL14: 0
K15: Récup' | M15: =VLOOKUP(D17,EX!$B$6:$L$528,8,FALSE) ->  | U15: =DEBUTMU!X15 -> QUADRICEPS | V15: 0 | W15: 0 | X15: 0 | Y15: 0 | Z15: 0 | AA15: 0 | AB15: 0 | AC15: 0 | AD15: 0 | AE15: 0 | AF15: 0 | AG15: 0 | AH15: 0 | AI15: 0 | AJ15: 0 | AK15: 0 | AL15: 0
A16: 2 | D16: =IF($G$1=DEBUTMU!$Y$21,HLOOKUP($G$2,DEBUTMU!$AE$1:$DV$37,8,FALSE),HLOOKUP($G$2,DEBUTMU!$FF$1:$HT$37,8,FALSE)) -> 0 | F16: =D17 -> 0 | G16: =IF($G$1=DEBUTMU!$Y$21,HLOOKUP($K$2,DEBUTMU!$AE$1:$DV$37,8,FALSE),HLOOKUP($K$2,DEBUTMU!$FF$1:$HT$37,8,FALSE)) -> 4 | H16: x | I16: =IF($G$1=DEBUTMU!$Y$21,HLOOKUP($L$2,DEBUTMU!$AE$1:$DV$37,8,FALSE),HLOOKUP($L$2,DEBUTMU!$FF$1:$HT$37,8,FALSE)) -> 20 | J16: - | K16: =IF($G$1=DEBUTMU!$Y$21,HLOOKUP($M$2,DEBUTMU!$AE$1:$DV$37,8,FALSE),HLOOKUP($M$2,DEBUTMU!$FF$1:$HT$37,8,FALSE)) -> 10 | L16: " | U16: =DEBUTMU!X16 -> ISCHIOS | V16: 0 | W16: 0 | X16: 0 | Y16: 0 | Z16: 0 | AA16: 0 | AB16: 0 | AC16: 0 | AD16: 0 | AE16: 0 | AF16: 0 | AG16: 0 | AH16: 0 | AI16: 0 | AJ16: 0 | AK16: 0 | AL16: 0
D17: =IF($G$1=DEBUTMU!$Y$21,HLOOKUP($G$2,DEBUTMU!$AE$1:$DV$37,9,FALSE),HLOOKUP($G$2,DEBUTMU!$FF$1:$HT$37,9,FALSE)) -> 0 | F17: =D16 -> 0 | G17: Charge idéale | I17: =IF($G$1=DEBUTMU!$Y$21,HLOOKUP($L$2,DEBUTMU!$AE$1:$DV$37,9,FALSE),HLOOKUP($L$2,DEBUTMU!$FF$1:$HT$37,9,FALSE)) -> 10 | J17: Kg | K17: =100*I17/(VLOOKUP(I16,DEBUTMU!$O$39:$P$68,2,FALSE)) -> 18.51851852 | L17: =TIME(,,(G16*I16*2)+(K16*(G16-1))) -> 00:03:10 | U17: =DEBUTMU!X17 -> MOLLETS | V17: 0 | W17: 0 | X17: 0 | Y17: 0 | Z17: 0 | AA17: 0 | AB17: 0 | AC17: 0 | AD17: 0 | AE17: 0 | AF17: 0 | AG17: 0 | AH17: 0 | AI17: 0 | AJ17: 0 | AK17: 0 | AL17: 0
U18: =DEBUTMU!X18 -> AVANT-BRAS | V18: 0 | W18: 0 | X18: 0 | Y18: 0 | Z18: 0 | AA18: 0 | AB18: 0 | AC18: 0 | AD18: 0 | AE18: 0 | AF18: 0 | AG18: 0 | AH18: 0 | AI18: 0 | AJ18: 0 | AK18: 0 | AL18: 0
B19: =IF($G$1=DEBUTMU!$Y$21,HLOOKUP($M$2,DEBUTMU!$AE$1:$DV$37,11,FALSE),HLOOKUP($M$2,DEBUTMU!$FF$1:$HT$37,11,FALSE)) -> CIRCUIT TRAINING | U19: =DEBUTMU!X19 -> FESSIERS | V19: 0 | W19: 0 | X19: 0 | Y19: 0 | Z19: 0 | AA19: 0 | AB19: 0 | AC19: 0 | AD19: 0 | AE19: 0 | AF19: 0 | AG19: 0 | AH19: 0 | AI19: 0 | AJ19: 0 | AK19: 0 | AL19: 0
K20: Récup' | M20: =VLOOKUP(D22,EX!$B$6:$L$528,8,FALSE) ->  | W20: 800 | X20: 800 | Y20: 1600 | Z20: 800 | AA20: 800 | AB20: 800 | AC20: 800 | AD20: 800 | AE20: 800 | AF20: 800 | AG20: 800 | AH20: 800 | AI20: 800 | AJ20: 800 | AK20: 800 | AL20: 800
A21: 3 | D21: =IF($G$1=DEBUTMU!$Y$21,HLOOKUP($G$2,DEBUTMU!$AE$1:$DV$37,10,FALSE),HLOOKUP($G$2,DEBUTMU!$FF$1:$HT$37,10,FALSE)) -> 0 | F21: =D22 -> 0 | G21: =IF($G$1=DEBUTMU!$Y$21,HLOOKUP($K$2,DEBUTMU!$AE$1:$DV$37,10,FALSE),HLOOKUP($K$2,DEBUTMU!$FF$1:$HT$37,10,FALSE)) -> 4 | H21: x | I21: =IF($G$1=DEBUTMU!$Y$21,HLOOKUP($L$2,DEBUTMU!$AE$1:$DV$37,10,FALSE),HLOOKUP($L$2,DEBUTMU!$FF$1:$HT$37,10,FALSE)) -> 20 | J21: - | K21: =IF($G$1=DEBUTMU!$Y$21,HLOOKUP($M$2,DEBUTMU!$AE$1:$DV$37,10,FALSE),HLOOKUP($M$2,DEBUTMU!$FF$1:$HT$37,10,FALSE)) -> 10 | L21: " | U21: TONNAGE TOTAL | V21: =SUM(V6:V19) -> 0 | Y21: haut | Z21: 0
D22: =IF($G$1=DEBUTMU!$Y$21,HLOOKUP($G$2,DEBUTMU!$AE$1:$DV$37,11,FALSE),HLOOKUP($G$2,DEBUTMU!$FF$1:$HT$37,11,FALSE)) -> 0 | F22: =D21 -> 0 | G22: Charge idéale | I22: =IF($G$1=DEBUTMU!$Y$21,HLOOKUP($L$2,DEBUTMU!$AE$1:$DV$37,11,FALSE),HLOOKUP($L$2,DEBUTMU!$FF$1:$HT$37,11,FALSE)) -> 10 | J22: Kg | K22: =100*I22/(VLOOKUP(I21,DEBUTMU!$O$39:$P$68,2,FALSE)) -> 18.51851852 | L22: =TIME(,,(G21*I21*2)+(K21*(G21-1))) -> 00:03:10 | Y22: bas | Z22: 0
Y23: gauche | Z23: 0
B24: =IF($G$1=DEBUTMU!$Y$21,HLOOKUP($M$2,DEBUTMU!$AE$1:$DV$37,13,FALSE),HLOOKUP($M$2,DEBUTMU!$FF$1:$HT$37,13,FALSE)) -> CIRCUIT TRAINING | Y24: droite | Z24: 0
K25: Récup' | M25: =VLOOKUP(D27,EX!$B$6:$L$528,8,FALSE) -> 
A26: 4 | D26: =IF($G$1=DEBUTMU!$Y$21,HLOOKUP($G$2,DEBUTMU!$AE$1:$DV$37,12,FALSE),HLOOKUP($G$2,DEBUTMU!$FF$1:$HT$37,12,FALSE)) -> 0 | F26: =D27 -> 0 | G26: =IF($G$1=DEBUTMU!$Y$21,HLOOKUP($K$2,DEBUTMU!$AE$1:$DV$37,12,FALSE),HLOOKUP($K$2,DEBUTMU!$FF$1:$HT$37,12,FALSE)) -> 4 | H26: x | I26: =IF($G$1=DEBUTMU!$Y$21,HLOOKUP($L$2,DEBUTMU!$AE$1:$DV$37,12,FALSE),HLOOKUP($L$2,DEBUTMU!$FF$1:$HT$37,12,FALSE)) -> 20 | J26: - | K26: =IF($G$1=DEBUTMU!$Y$21,HLOOKUP($M$2,DEBUTMU!$AE$1:$DV$37,12,FALSE),HLOOKUP($M$2,DEBUTMU!$FF$1:$HT$37,12,FALSE)) -> 10 | L26: "
D27: =IF($G$1=DEBUTMU!$Y$21,HLOOKUP($G$2,DEBUTMU!$AE$1:$DV$37,13,FALSE),HLOOKUP($G$2,DEBUTMU!$FF$1:$HT$37,13,FALSE)) -> 0 | F27: =D26 -> 0 | G27: Charge idéale | I27: =IF($G$1=DEBUTMU!$Y$21,HLOOKUP($L$2,DEBUTMU!$AE$1:$DV$37,13,FALSE),HLOOKUP($L$2,DEBUTMU!$FF$1:$HT$37,13,FALSE)) -> 10 | J27: Kg | K27: =100*I27/(VLOOKUP(I26,DEBUTMU!$O$39:$P$68,2,FALSE)) -> 18.51851852 | L27: =TIME(,,(G26*I26*2)+(K26*(G26-1))) -> 00:03:10
B29: =IF($G$1=DEBUTMU!$Y$21,HLOOKUP($M$2,DEBUTMU!$AE$1:$DV$37,15,FALSE),HLOOKUP($M$2,DEBUTMU!$FF$1:$HT$37,15,FALSE)) -> CIRCUIT TRAINING
K30: Récup' | M30: =VLOOKUP(D32,EX!$B$6:$L$528,8,FALSE) -> 
A31: 5 | D31: =IF($G$1=DEBUTMU!$Y$21,HLOOKUP($G$2,DEBUTMU!$AE$1:$DV$37,14,FALSE),HLOOKUP($G$2,DEBUTMU!$FF$1:$HT$37,14,FALSE)) -> 0 | F31: =D32 -> 0 | G31: =IF($G$1=DEBUTMU!$Y$21,HLOOKUP($K$2,DEBUTMU!$AE$1:$DV$37,14,FALSE),HLOOKUP($K$2,DEBUTMU!$FF$1:$HT$37,14,FALSE)) -> 4 | H31: x | I31: =IF($G$1=DEBUTMU!$Y$21,HLOOKUP($L$2,DEBUTMU!$AE$1:$DV$37,14,FALSE),HLOOKUP($L$2,DEBUTMU!$FF$1:$HT$37,14,FALSE)) -> 20 | J31: - | K31: =IF($G$1=DEBUTMU!$Y$21,HLOOKUP($M$2,DEBUTMU!$AE$1:$DV$37,14,FALSE),HLOOKUP($M$2,DEBUTMU!$FF$1:$HT$37,14,FALSE)) -> 10 | L31: "
D32: =IF($G$1=DEBUTMU!$Y$21,HLOOKUP($G$2,DEBUTMU!$AE$1:$DV$37,15,FALSE),HLOOKUP($G$2,DEBUTMU!$FF$1:$HT$37,15,FALSE)) -> 0 | F32: =D31 -> 0 | G32: Charge idéale | I32: =IF($G$1=DEBUTMU!$Y$21,HLOOKUP($L$2,DEBUTMU!$AE$1:$DV$37,15,FALSE),HLOOKUP($L$2,DEBUTMU!$FF$1:$HT$37,15,FALSE)) -> 10 | J32: Kg | K32: =100*I32/(VLOOKUP(I31,DEBUTMU!$O$39:$P$68,2,FALSE)) -> 18.51851852 | L32: =TIME(,,(G31*I31*2)+(K31*(G31-1))) -> 00:03:10
B34: =IF($G$1=DEBUTMU!$Y$21,HLOOKUP($M$2,DEBUTMU!$AE$1:$DV$37,17,FALSE),HLOOKUP($M$2,DEBUTMU!$FF$1:$HT$37,17,FALSE)) -> CIRCUIT TRAINING
K35: Récup' | M35: =VLOOKUP(D37,EX!$B$6:$L$528,8,FALSE) -> 
A36: 6 | D36: =IF($G$1=DEBUTMU!$Y$21,HLOOKUP($G$2,DEBUTMU!$AE$1:$DV$37,16,FALSE),HLOOKUP($G$2,DEBUTMU!$FF$1:$HT$37,16,FALSE)) -> 0 | F36: =D37 -> 0 | G36: =IF($G$1=DEBUTMU!$Y$21,HLOOKUP($K$2,DEBUTMU!$AE$1:$DV$37,16,FALSE),HLOOKUP($K$2,DEBUTMU!$FF$1:$HT$37,16,FALSE)) -> 4 | H36: x | I36: =IF($G$1=DEBUTMU!$Y$21,HLOOKUP($L$2,DEBUTMU!$AE$1:$DV$37,16,FALSE),HLOOKUP($L$2,DEBUTMU!$FF$1:$HT$37,16,FALSE)) -> 20 | J36: - | K36: =IF($G$1=DEBUTMU!$Y$21,HLOOKUP($M$2,DEBUTMU!$AE$1:$DV$37,16,FALSE),HLOOKUP($M$2,DEBUTMU!$FF$1:$HT$37,16,FALSE)) -> 10 | L36: "
D37: =IF($G$1=DEBUTMU!$Y$21,HLOOKUP($G$2,DEBUTMU!$AE$1:$DV$37,17,FALSE),HLOOKUP($G$2,DEBUTMU!$FF$1:$HT$37,17,FALSE)) -> 0 | F37: =D36 -> 0 | G37: Charge idéale | I37: =IF($G$1=DEBUTMU!$Y$21,HLOOKUP($L$2,DEBUTMU!$AE$1:$DV$37,17,FALSE),HLOOKUP($L$2,DEBUTMU!$FF$1:$HT$37,17,FALSE)) -> 10 | J37: Kg | K37: =100*I37/(VLOOKUP(I36,DEBUTMU!$O$39:$P$68,2,FALSE)) -> 18.51851852 | L37: =TIME(,,(G36*I36*2)+(K36*(G36-1))) -> 00:03:10
B39: =IF($G$1=DEBUTMU!$Y$21,HLOOKUP($M$2,DEBUTMU!$AE$1:$DV$37,19,FALSE),HLOOKUP($M$2,DEBUTMU!$FF$1:$HT$37,19,FALSE)) -> CIRCUIT TRAINING
K40: Récup' | M40: =VLOOKUP(D42,EX!$B$6:$L$528,8,FALSE) -> 
A41: 7 | D41: =IF($G$1=DEBUTMU!$Y$21,HLOOKUP($G$2,DEBUTMU!$AE$1:$DV$37,18,FALSE),HLOOKUP($G$2,DEBUTMU!$FF$1:$HT$37,18,FALSE)) -> 0 | F41: =D42 -> 0 | G41: =IF($G$1=DEBUTMU!$Y$21,HLOOKUP($K$2,DEBUTMU!$AE$1:$DV$37,18,FALSE),HLOOKUP($K$2,DEBUTMU!$FF$1:$HT$37,18,FALSE)) -> 4 | H41: x | I41: =IF($G$1=DEBUTMU!$Y$21,HLOOKUP($L$2,DEBUTMU!$AE$1:$DV$37,18,FALSE),HLOOKUP($L$2,DEBUTMU!$FF$1:$HT$37,18,FALSE)) -> 20 | J41: - | K41: =IF($G$1=DEBUTMU!$Y$21,HLOOKUP($M$2,DEBUTMU!$AE$1:$DV$37,18,FALSE),HLOOKUP($M$2,DEBUTMU!$FF$1:$HT$37,18,FALSE)) -> 10 | L41: "
D42: =IF($G$1=DEBUTMU!$Y$21,HLOOKUP($G$2,DEBUTMU!$AE$1:$DV$37,19,FALSE),HLOOKUP($G$2,DEBUTMU!$FF$1:$HT$37,19,FALSE)) -> 0 | F42: =D41 -> 0 | G42: Charge idéale | I42: =IF($G$1=DEBUTMU!$Y$21,HLOOKUP($L$2,DEBUTMU!$AE$1:$DV$37,19,FALSE),HLOOKUP($L$2,DEBUTMU!$FF$1:$HT$37,19,FALSE)) -> 10 | J42: Kg | K42: =100*I42/(VLOOKUP(I41,DEBUTMU!$O$39:$P$68,2,FALSE)) -> 18.51851852 | L42: =TIME(,,(G41*I41*2)+(K41*(G41-1))) -> 00:03:10
B44: =IF($G$1=DEBUTMU!$Y$21,HLOOKUP($M$2,DEBUTMU!$AE$1:$DV$37,21,FALSE),HLOOKUP($M$2,DEBUTMU!$FF$1:$HT$37,21,FALSE)) -> CIRCUIT TRAINING
K45: Récup' | M45: =VLOOKUP(D47,EX!$B$6:$L$528,8,FALSE) -> 
A46: 8 | D46: =IF($G$1=DEBUTMU!$Y$21,HLOOKUP($G$2,DEBUTMU!$AE$1:$DV$37,20,FALSE),HLOOKUP($G$2,DEBUTMU!$FF$1:$HT$37,20,FALSE)) -> 0 | F46: =D47 -> 0 | G46: =IF($G$1=DEBUTMU!$Y$21,HLOOKUP($K$2,DEBUTMU!$AE$1:$DV$37,20,FALSE),HLOOKUP($K$2,DEBUTMU!$FF$1:$HT$37,20,FALSE)) -> 4 | H46: x | I46: =IF($G$1=DEBUTMU!$Y$21,HLOOKUP($L$2,DEBUTMU!$AE$1:$DV$37,20,FALSE),HLOOKUP($L$2,DEBUTMU!$FF$1:$HT$37,20,FALSE)) -> 20 | J46: - | K46: =IF($G$1=DEBUTMU!$Y$21,HLOOKUP($M$2,DEBUTMU!$AE$1:$DV$37,20,FALSE),HLOOKUP($M$2,DEBUTMU!$FF$1:$HT$37,20,FALSE)) -> 10 | L46: "
D47: =IF($G$1=DEBUTMU!$Y$21,HLOOKUP($G$2,DEBUTMU!$AE$1:$DV$37,21,FALSE),HLOOKUP($G$2,DEBUTMU!$FF$1:$HT$37,21,FALSE)) -> 0 | F47: =D46 -> 0 | G47: Charge idéale | I47: =IF($G$1=DEBUTMU!$Y$21,HLOOKUP($L$2,DEBUTMU!$AE$1:$DV$37,21,FALSE),HLOOKUP($L$2,DEBUTMU!$FF$1:$HT$37,21,FALSE)) -> 10 | J47: Kg | K47: =100*I47/(VLOOKUP(I46,DEBUTMU!$O$39:$P$68,2,FALSE)) -> 18.51851852 | L47: =TIME(,,(G46*I46*2)+(K46*(G46-1))) -> 00:03:10
B49: =IF($G$1=DEBUTMU!$Y$21,HLOOKUP($M$2,DEBUTMU!$AE$1:$DV$37,23,FALSE),HLOOKUP($M$2,DEBUTMU!$FF$1:$HT$37,23,FALSE)) -> CIRCUIT TRAINING
K50: Récup' | M50: =VLOOKUP(D52,EX!$B$6:$L$528,8,FALSE) -> 
A51: 9 | D51: =IF($G$1=DEBUTMU!$Y$21,HLOOKUP($G$2,DEBUTMU!$AE$1:$DV$37,22,FALSE),HLOOKUP($G$2,DEBUTMU!$FF$1:$HT$37,22,FALSE)) -> 0 | F51: =D52 -> 0 | G51: =IF($G$1=DEBUTMU!$Y$21,HLOOKUP($K$2,DEBUTMU!$AE$1:$DV$37,22,FALSE),HLOOKUP($K$2,DEBUTMU!$FF$1:$HT$37,22,FALSE)) -> 4 | H51: x | I51: =IF($G$1=DEBUTMU!$Y$21,HLOOKUP($L$2,DEBUTMU!$AE$1:$DV$37,22,FALSE),HLOOKUP($L$2,DEBUTMU!$FF$1:$HT$37,22,FALSE)) -> 20 | J51: - | K51: =IF($G$1=DEBUTMU!$Y$21,HLOOKUP($M$2,DEBUTMU!$AE$1:$DV$37,22,FALSE),HLOOKUP($M$2,DEBUTMU!$FF$1:$HT$37,22,FALSE)) -> 10 | L51: "
D52: =IF($G$1=DEBUTMU!$Y$21,HLOOKUP($G$2,DEBUTMU!$AE$1:$DV$37,23,FALSE),HLOOKUP($G$2,DEBUTMU!$FF$1:$HT$37,23,FALSE)) -> 0 | F52: =D51 -> 0 | G52: Charge idéale | I52: =IF($G$1=DEBUTMU!$Y$21,HLOOKUP($L$2,DEBUTMU!$AE$1:$DV$37,23,FALSE),HLOOKUP($L$2,DEBUTMU!$FF$1:$HT$37,23,FALSE)) -> 10 | J52: Kg | K52: =100*I52/(VLOOKUP(I51,DEBUTMU!$O$39:$P$68,2,FALSE)) -> 18.51851852 | L52: =TIME(,,(G51*I51*2)+(K51*(G51-1))) -> 00:03:10
B54: =IF($G$1=DEBUTMU!$Y$21,HLOOKUP($M$2,DEBUTMU!$AE$1:$DV$37,25,FALSE),HLOOKUP($M$2,DEBUTMU!$FF$1:$HT$37,25,FALSE)) -> CIRCUIT TRAINING
K55: Récup' | M55: =VLOOKUP(D57,EX!$B$6:$L$528,8,FALSE) -> 
A56: 10 | D56: =IF($G$1=DEBUTMU!$Y$21,HLOOKUP($G$2,DEBUTMU!$AE$1:$DV$37,24,FALSE),HLOOKUP($G$2,DEBUTMU!$FF$1:$HT$37,24,FALSE)) -> 0 | F56: =D57 -> 0 | G56: =IF($G$1=DEBUTMU!$Y$21,HLOOKUP($K$2,DEBUTMU!$AE$1:$DV$37,24,FALSE),HLOOKUP($K$2,DEBUTMU!$FF$1:$HT$37,24,FALSE)) -> 4 | H56: x | I56: =IF($G$1=DEBUTMU!$Y$21,HLOOKUP($L$2,DEBUTMU!$AE$1:$DV$37,24,FALSE),HLOOKUP($L$2,DEBUTMU!$FF$1:$HT$37,24,FALSE)) -> 20 | J56: - | K56: =IF($G$1=DEBUTMU!$Y$21,HLOOKUP($M$2,DEBUTMU!$AE$1:$DV$37,24,FALSE),HLOOKUP($M$2,DEBUTMU!$FF$1:$HT$37,24,FALSE)) -> 10 | L56: "
D57: =IF($G$1=DEBUTMU!$Y$21,HLOOKUP($G$2,DEBUTMU!$AE$1:$DV$37,25,FALSE),HLOOKUP($G$2,DEBUTMU!$FF$1:$HT$37,25,FALSE)) -> 0 | F57: =D56 -> 0 | G57: Charge idéale | I57: =IF($G$1=DEBUTMU!$Y$21,HLOOKUP($L$2,DEBUTMU!$AE$1:$DV$37,25,FALSE),HLOOKUP($L$2,DEBUTMU!$FF$1:$HT$37,25,FALSE)) -> 10 | J57: Kg | K57: =100*I57/(VLOOKUP(I56,DEBUTMU!$O$39:$P$68,2,FALSE)) -> 18.51851852 | L57: =TIME(,,(G56*I56*2)+(K56*(G56-1))) -> 00:03:10
B59: =IF($G$1=DEBUTMU!$Y$21,HLOOKUP($M$2,DEBUTMU!$AE$1:$DV$37,27,FALSE),HLOOKUP($M$2,DEBUTMU!$FF$1:$HT$37,27,FALSE)) -> CIRCUIT TRAINING
K60: Récup' | M60: =VLOOKUP(D62,EX!$B$6:$L$528,8,FALSE) -> 
A61: 11 | D61: =IF($G$1=DEBUTMU!$Y$21,HLOOKUP($G$2,DEBUTMU!$AE$1:$DV$37,26,FALSE),HLOOKUP($G$2,DEBUTMU!$FF$1:$HT$37,26,FALSE)) -> 0 | F61: =D62 -> 0 | G61: =IF($G$1=DEBUTMU!$Y$21,HLOOKUP($K$2,DEBUTMU!$AE$1:$DV$37,26,FALSE),HLOOKUP($K$2,DEBUTMU!$FF$1:$HT$37,26,FALSE)) -> 4 | H61: x | I61: =IF($G$1=DEBUTMU!$Y$21,HLOOKUP($L$2,DEBUTMU!$AE$1:$DV$37,26,FALSE),HLOOKUP($L$2,DEBUTMU!$FF$1:$HT$37,26,FALSE)) -> 20 | J61: - | K61: =IF($G$1=DEBUTMU!$Y$21,HLOOKUP($M$2,DEBUTMU!$AE$1:$DV$37,26,FALSE),HLOOKUP($M$2,DEBUTMU!$FF$1:$HT$37,26,FALSE)) -> 10 | L61: "
D62: =IF($G$1=DEBUTMU!$Y$21,HLOOKUP($G$2,DEBUTMU!$AE$1:$DV$37,27,FALSE),HLOOKUP($G$2,DEBUTMU!$FF$1:$HT$37,27,FALSE)) -> 0 | F62: =D61 -> 0 | G62: Charge idéale | I62: =IF($G$1=DEBUTMU!$Y$21,HLOOKUP($L$2,DEBUTMU!$AE$1:$DV$37,27,FALSE),HLOOKUP($L$2,DEBUTMU!$FF$1:$HT$37,27,FALSE)) -> 10 | J62: Kg | K62: =100*I62/(VLOOKUP(I61,DEBUTMU!$O$39:$P$68,2,FALSE)) -> 18.51851852 | L62: =TIME(,,(G61*I61*2)+(K61*(G61-1))) -> 00:03:10
B64: =IF($G$1=DEBUTMU!$Y$21,HLOOKUP($M$2,DEBUTMU!$AE$1:$DV$37,29,FALSE),HLOOKUP($M$2,DEBUTMU!$FF$1:$HT$37,29,FALSE)) -> CIRCUIT TRAINING
K65: Récup' | M65: =VLOOKUP(D67,EX!$B$6:$L$528,8,FALSE) -> 
A66: 12 | D66: =IF($G$1=DEBUTMU!$Y$21,HLOOKUP($G$2,DEBUTMU!$AE$1:$DV$37,28,FALSE),HLOOKUP($G$2,DEBUTMU!$FF$1:$HT$37,28,FALSE)) -> 0 | F66: =D67 -> 0 | G66: =IF($G$1=DEBUTMU!$Y$21,HLOOKUP($K$2,DEBUTMU!$AE$1:$DV$37,28,FALSE),HLOOKUP($K$2,DEBUTMU!$FF$1:$HT$37,28,FALSE)) -> 4 | H66: x | I66: =IF($G$1=DEBUTMU!$Y$21,HLOOKUP($L$2,DEBUTMU!$AE$1:$DV$37,28,FALSE),HLOOKUP($L$2,DEBUTMU!$FF$1:$HT$37,28,FALSE)) -> 20 | J66: - | K66: =IF($G$1=DEBUTMU!$Y$21,HLOOKUP($M$2,DEBUTMU!$AE$1:$DV$37,28,FALSE),HLOOKUP($M$2,DEBUTMU!$FF$1:$HT$37,28,FALSE)) -> 10 | L66: "
D67: =IF($G$1=DEBUTMU!$Y$21,HLOOKUP($G$2,DEBUTMU!$AE$1:$DV$37,29,FALSE),HLOOKUP($G$2,DEBUTMU!$FF$1:$HT$37,29,FALSE)) -> 0 | F67: =D66 -> 0 | G67: Charge idéale | I67: =IF($G$1=DEBUTMU!$Y$21,HLOOKUP($L$2,DEBUTMU!$AE$1:$DV$37,29,FALSE),HLOOKUP($L$2,DEBUTMU!$FF$1:$HT$37,29,FALSE)) -> 10 | J67: Kg | K67: =100*I67/(VLOOKUP(I66,DEBUTMU!$O$39:$P$68,2,FALSE)) -> 18.51851852 | L67: =TIME(,,(G66*I66*2)+(K66*(G66-1))) -> 00:03:10
B69: =IF($G$1=DEBUTMU!$Y$21,HLOOKUP($M$2,DEBUTMU!$AE$1:$DV$37,31,FALSE),HLOOKUP($M$2,DEBUTMU!$FF$1:$HT$37,31,FALSE)) -> CIRCUIT TRAINING
K70: Récup' | M70: =VLOOKUP(D72,EX!$B$6:$L$528,8,FALSE) -> 
A71: 13 | D71: =IF($G$1=DEBUTMU!$Y$21,HLOOKUP($G$2,DEBUTMU!$AE$1:$DV$37,30,FALSE),HLOOKUP($G$2,DEBUTMU!$FF$1:$HT$37,30,FALSE)) -> 0 | F71: =D72 -> 0 | G71: =IF($G$1=DEBUTMU!$Y$21,HLOOKUP($K$2,DEBUTMU!$AE$1:$DV$37,30,FALSE),HLOOKUP($K$2,DEBUTMU!$FF$1:$HT$37,30,FALSE)) -> 4 | H71: x | I71: =IF($G$1=DEBUTMU!$Y$21,HLOOKUP($L$2,DEBUTMU!$AE$1:$DV$37,30,FALSE),HLOOKUP($L$2,DEBUTMU!$FF$1:$HT$37,30,FALSE)) -> 20 | J71: - | K71: =IF($G$1=DEBUTMU!$Y$21,HLOOKUP($M$2,DEBUTMU!$AE$1:$DV$37,30,FALSE),HLOOKUP($M$2,DEBUTMU!$FF$1:$HT$37,30,FALSE)) -> 10 | L71: "
D72: =IF($G$1=DEBUTMU!$Y$21,HLOOKUP($G$2,DEBUTMU!$AE$1:$DV$37,31,FALSE),HLOOKUP($G$2,DEBUTMU!$FF$1:$HT$37,31,FALSE)) -> 0 | F72: =D71 -> 0 | G72: Charge idéale | I72: =IF($G$1=DEBUTMU!$Y$21,HLOOKUP($L$2,DEBUTMU!$AE$1:$DV$37,31,FALSE),HLOOKUP($L$2,DEBUTMU!$FF$1:$HT$37,31,FALSE)) -> 10 | J72: Kg | K72: =100*I72/(VLOOKUP(I71,DEBUTMU!$O$39:$P$68,2,FALSE)) -> 18.51851852 | L72: =TIME(,,(G71*I71*2)+(K71*(G71-1))) -> 00:03:10
B74: =IF($G$1=DEBUTMU!$Y$21,HLOOKUP($M$2,DEBUTMU!$AE$1:$DV$37,33,FALSE),HLOOKUP($M$2,DEBUTMU!$FF$1:$HT$37,33,FALSE)) -> CIRCUIT TRAINING
K75: Récup' | M75: =VLOOKUP(D77,EX!$B$6:$L$528,8,FALSE) -> 
A76: 14 | D76: =IF($G$1=DEBUTMU!$Y$21,HLOOKUP($G$2,DEBUTMU!$AE$1:$DV$37,32,FALSE),HLOOKUP($G$2,DEBUTMU!$FF$1:$HT$37,32,FALSE)) -> 0 | F76: =D77 -> 0 | G76: =IF($G$1=DEBUTMU!$Y$21,HLOOKUP($K$2,DEBUTMU!$AE$1:$DV$37,32,FALSE),HLOOKUP($K$2,DEBUTMU!$FF$1:$HT$37,32,FALSE)) -> 4 | H76: x | I76: =IF($G$1=DEBUTMU!$Y$21,HLOOKUP($L$2,DEBUTMU!$AE$1:$DV$37,32,FALSE),HLOOKUP($L$2,DEBUTMU!$FF$1:$HT$37,32,FALSE)) -> 20 | J76: - | K76: =IF($G$1=DEBUTMU!$Y$21,HLOOKUP($M$2,DEBUTMU!$AE$1:$DV$37,32,FALSE),HLOOKUP($M$2,DEBUTMU!$FF$1:$HT$37,32,FALSE)) -> 10 | L76: "
D77: =IF($G$1=DEBUTMU!$Y$21,HLOOKUP($G$2,DEBUTMU!$AE$1:$DV$37,33,FALSE),HLOOKUP($G$2,DEBUTMU!$FF$1:$HT$37,33,FALSE)) -> 0 | F77: =D76 -> 0 | G77: Charge idéale | I77: =IF($G$1=DEBUTMU!$Y$21,HLOOKUP($L$2,DEBUTMU!$AE$1:$DV$37,33,FALSE),HLOOKUP($L$2,DEBUTMU!$FF$1:$HT$37,33,FALSE)) -> 10 | J77: Kg | K77: =100*I77/(VLOOKUP(I76,DEBUTMU!$O$39:$P$68,2,FALSE)) -> 18.51851852 | L77: =TIME(,,(G76*I76*2)+(K76*(G76-1))) -> 00:03:10
B79: =IF($G$1=DEBUTMU!$Y$21,HLOOKUP($M$2,DEBUTMU!$AE$1:$DV$37,35,FALSE),HLOOKUP($M$2,DEBUTMU!$FF$1:$HT$37,35,FALSE)) -> CIRCUIT TRAINING
K80: Récup' | M80: =VLOOKUP(D82,EX!$B$6:$L$528,8,FALSE) -> 
A81: 15 | D81: =IF($G$1=DEBUTMU!$Y$21,HLOOKUP($G$2,DEBUTMU!$AE$1:$DV$37,34,FALSE),HLOOKUP($G$2,DEBUTMU!$FF$1:$HT$37,34,FALSE)) -> 0 | F81: =D82 -> 0 | G81: =IF($G$1=DEBUTMU!$Y$21,HLOOKUP($K$2,DEBUTMU!$AE$1:$DV$37,34,FALSE),HLOOKUP($K$2,DEBUTMU!$FF$1:$HT$37,34,FALSE)) -> 4 | H81: x | I81: =IF($G$1=DEBUTMU!$Y$21,HLOOKUP($L$2,DEBUTMU!$AE$1:$DV$37,34,FALSE),HLOOKUP($L$2,DEBUTMU!$FF$1:$HT$37,34,FALSE)) -> 20 | J81: - | K81: =IF($G$1=DEBUTMU!$Y$21,HLOOKUP($M$2,DEBUTMU!$AE$1:$DV$37,34,FALSE),HLOOKUP($M$2,DEBUTMU!$FF$1:$HT$37,34,FALSE)) -> 10 | L81: "
D82: =IF($G$1=DEBUTMU!$Y$21,HLOOKUP($G$2,DEBUTMU!$AE$1:$DV$37,35,FALSE),HLOOKUP($G$2,DEBUTMU!$FF$1:$HT$37,35,FALSE)) -> 0 | F82: =D81 -> 0 | G82: Charge idéale | I82: =IF($G$1=DEBUTMU!$Y$21,HLOOKUP($L$2,DEBUTMU!$AE$1:$DV$37,35,FALSE),HLOOKUP($L$2,DEBUTMU!$FF$1:$HT$37,35,FALSE)) -> 10 | J82: Kg | K82: =100*I82/(VLOOKUP(I81,DEBUTMU!$O$39:$P$68,2,FALSE)) -> 18.51851852 | L82: =TIME(,,(G81*I81*2)+(K81*(G81-1))) -> 00:03:10
B84: =IF($G$1=DEBUTMU!$Y$21,HLOOKUP($M$2,DEBUTMU!$AE$1:$DV$37,37,FALSE),HLOOKUP($M$2,DEBUTMU!$FF$1:$HT$37,37,FALSE)) -> CIRCUIT TRAINING
K85: Récup' | M85: =VLOOKUP(D87,EX!$B$6:$L$528,8,FALSE) -> 
A86: 16 | D86: =IF($G$1=DEBUTMU!$Y$21,HLOOKUP($G$2,DEBUTMU!$AE$1:$DV$37,36,FALSE),HLOOKUP($G$2,DEBUTMU!$FF$1:$HT$37,36,FALSE)) -> 0 | F86: =D87 -> 0 | G86: =IF($G$1=DEBUTMU!$Y$21,HLOOKUP($K$2,DEBUTMU!$AE$1:$DV$37,36,FALSE),HLOOKUP($K$2,DEBUTMU!$FF$1:$HT$37,36,FALSE)) -> 4 | H86: x | I86: =IF($G$1=DEBUTMU!$Y$21,HLOOKUP($L$2,DEBUTMU!$AE$1:$DV$37,36,FALSE),HLOOKUP($L$2,DEBUTMU!$FF$1:$HT$37,36,FALSE)) -> 20 | J86: - | K86: =IF($G$1=DEBUTMU!$Y$21,HLOOKUP($M$2,DEBUTMU!$AE$1:$DV$37,36,FALSE),HLOOKUP($M$2,DEBUTMU!$FF$1:$HT$37,36,FALSE)) -> 10 | L86: "
D87: =IF($G$1=DEBUTMU!$Y$21,HLOOKUP($G$2,DEBUTMU!$AE$1:$DV$37,37,FALSE),HLOOKUP($G$2,DEBUTMU!$FF$1:$HT$37,37,FALSE)) -> 0 | F87: =D86 -> 0 | G87: Charge idéale | I87: =IF($G$1=DEBUTMU!$Y$21,HLOOKUP($L$2,DEBUTMU!$AE$1:$DV$37,37,FALSE),HLOOKUP($L$2,DEBUTMU!$FF$1:$HT$37,37,FALSE)) -> 10 | J87: Kg | K87: =100*I87/(VLOOKUP(I86,DEBUTMU!$O$39:$P$68,2,FALSE)) -> 18.51851852 | L87: =TIME(,,(G86*I86*2)+(K86*(G86-1))) -> 00:03:10
G91: Tonnage | I91: =V21 -> 0 | J91: Kg

Sheet S7
B1: ='S1'!B1 -> 1META | C1: Séance | E1: 7 | G1: Programme perso | N1: Méthode d'entrainement
B2: ='S1'!B2 -> Abdel Nour | D2: =VLOOKUP(E1,DEBUTMU!$A$6:$C$35,2,FALSE) -> 0 | E2: =VLOOKUP(E1,DEBUTMU!$A$6:$C$35,3,FALSE) -> 0 | G2: MA SEANCE 6 | K2: =VLOOKUP($G$2,DEBUTMU!$Z$6:$AC$37,2,FALSE) -> SERIE-CHARGE-MA SEANCE 6 | L2: =VLOOKUP($G$2,DEBUTMU!$Z$6:$AC$37,3,FALSE) -> REPS-POURCENT-MA SEANCE 6 | M2: =VLOOKUP($G$2,DEBUTMU!$Z$6:$AC$37,4,FALSE) -> RECUP-METH-MA SEANCE 6 | N2: =IF($G$1=DEBUTMU!$Y$21,HLOOKUP($M$2,DEBUTMU!$AE$1:$DV$37,5,FALSE),HLOOKUP($M$2,DEBUTMU!$FL$1:$HZ$37,5,FALSE)) -> CIRCUIT TRAINING
D4: Objectif séance | G4: Séries | I4: Réps | M4: Conseils d'entrainement
D5: =IF($G$1=DEBUTMU!$Y$21,HLOOKUP($G$2,DEBUTMU!$AE$1:$DV$37,4,FALSE),HLOOKUP($G$2,DEBUTMU!$FL$1:$HZ$37,4,FALSE)) -> 0 | G5: =IF($G$1=DEBUTMU!$Y$21,HLOOKUP($K$2,DEBUTMU!$AE$1:$DV$37,4,FALSE),HLOOKUP($K$2,DEBUTMU!$FL$1:$HZ$37,4,FALSE)) -> 4 | H5: x | I5: =IF($G$1=DEBUTMU!$Y$21,HLOOKUP($L$2,DEBUTMU!$AE$1:$DV$37,4,FALSE),HLOOKUP($L$2,DEBUTMU!$FL$1:$HZ$37,4,FALSE)) -> 20 | M5: =VLOOKUP(G2,DEBUTMU!Z6:AD37,5,FALSE) -> Choisir des exos maitrisés avec charges assez lourdes | P5: Durée estimée de la séance | U5: MUSCLES | V5: TONNAGE/MUSCLE | W5: EXO 1 | X5: EXO 2 | Y5: EXO 3 | Z5: EXO 4 | AA5: EXO 5 | AB5: EXO 6 | AC5: EXO 7 | AD5: EXO 8 | AE5: EXO 9 | AF5: EXO 10 | AG5: EXO 11 | AH5: EXO 12 | AI5: EXO 13 | AJ5: EXO 14 | AK5: EXO 15 | AL5: EXO 16
K6: Récup'/séries | U6: =DEBUTMU!X6 -> PECTORAUX | V6: =SUM(W6:AL6) -> 0 | W6: =IFERROR(VLOOKUP(U6,$D$11:$I$11,4,FALSE)*VLOOKUP(U6,$D$11:$I$11,6,FALSE)*VLOOKUP(U6,$F$12:$I$12,4,FALSE),0) -> 0 | X6: =IFERROR(VLOOKUP(U6,$D$16:$I$16,4,FALSE)*VLOOKUP(U6,$D$16:$I$16,6,FALSE)*VLOOKUP(U6,$F$17:$I$17,4,FALSE),0) -> 0 | Y6: =IFERROR(VLOOKUP(U6,$D$21:$I$21,4,FALSE)*VLOOKUP(U6,$D$21:$I$21,6,FALSE)*VLOOKUP(U6,F22:I22,4,FALSE),0) -> 0 | Z6: =IFERROR(VLOOKUP(U6,$D$26:$I$26,4,FALSE)*VLOOKUP(U6,$D$26:$I$26,6,FALSE)*VLOOKUP(U6,$F$27:$I$27,4,FALSE),0) -> 0 | AA6: =IFERROR(VLOOKUP(U6,$D$31:$I$31,4,FALSE)*VLOOKUP(U6,$D$31:$I$31,6,FALSE)*VLOOKUP(U6,$F$32:$I$32,4,FALSE),0) -> 0 | AB6: =IFERROR(VLOOKUP(U6,$D$36:$I$36,4,FALSE)*VLOOKUP(U6,$D$36:$I$36,6,FALSE)*VLOOKUP(U6,$F$37:$I$37,4,FALSE),0) -> 0 | AC6: =IFERROR(VLOOKUP(U6,$D$41:$I$41,4,FALSE)*VLOOKUP(U6,$D$41:$I$41,6,FALSE)*VLOOKUP(U6,$F$42:$I$42,4,FALSE),0) -> 0 | AD6: =IFERROR(VLOOKUP(U6,$D$46:$I$46,4,FALSE)*VLOOKUP(U6,$D$46:$I$46,6,FALSE)*VLOOKUP(U6,$F$47:$I$47,4,FALSE),0) -> 0 | AE6: =IFERROR(VLOOKUP(U6,$D$51:$I$51,4,FALSE)*VLOOKUP(U6,$D$51:$I$51,6,FALSE)*VLOOKUP(U6,$F$52:$I$52,4,FALSE),0) -> 0 | AF6: =IFERROR(VLOOKUP(U6,$D$56:$I$56,4,FALSE)*VLOOKUP(U6,$D$56:$I$56,6,FALSE)*VLOOKUP(U6,$F$57:$I$57,4,FALSE),0) -> 0 | AG6: =IFERROR(VLOOKUP(U6,$D$61:$I$61,4,FALSE)*VLOOKUP(U6,$D$61:$I$61,6,FALSE)*VLOOKUP(U6,$F$62:$I$62,4,FALSE),0) -> 0 | AH6: =IFERROR(VLOOKUP(U6,$D$66:$I$66,4,FALSE)*VLOOKUP(U6,$D$66:$I$66,6,FALSE)*VLOOKUP(U6,$F$67:$I$67,4,FALSE),0) -> 0 | AI6: =IFERROR(VLOOKUP(U6,$D$71:$I$71,4,FALSE)*VLOOKUP(U6,$D$71:$I$71,6,FALSE)*VLOOKUP(U6,$F$72:$I$72,4,FALSE),0) -> 0 | AJ6: =IFERROR(VLOOKUP(U6,$D$76:$I$76,4,FALSE)*VLOOKUP(U6,$D$76:$I$76,6,FALSE)*VLOOKUP(U6,$F$77:$I$77,4,FALSE),0) -> 0 | AK6: =IFERROR(VLOOKUP(U6,$D$81:$I$81,4,FALSE)*VLOOKUP(U6,$D$81:$I$81,6,FALSE)*VLOOKUP(U6,$F$82:$I$82,4,FALSE),0) -> 0 | AL6: =IFERROR(VLOOKUP(U6,$D$86:$I$86,4,FALSE)*VLOOKUP(U6,$D$86:$I$86,6,FALSE)*VLOOKUP(U6,$F$87:$I$87,4,FALSE),0) -> 0
G7: Pourcentage Charge idéale | I7: =IF($G$1=DEBUTMU!$Y$21,HLOOKUP($K$2,DEBUTMU!$AE$1:$DV$37,5,FALSE),HLOOKUP($K$2,DEBUTMU!$FL$1:$HZ$37,5,FALSE)) -> 60 | J7: % | K7: =IF($G$1=DEBUTMU!$Y$21,HLOOKUP($M$2,DEBUTMU!$AE$1:$DV$37,4,FALSE),HLOOKUP($M$2,DEBUTMU!$FL$1:$HZ$37,4,FALSE)) -> 10 | L7: " | P7: =(L12+L17+L22+L27+L32+L37+L42+L47+L52+L57+L62+L67+L72+L77+L82+L87)+(L12+L17+L22+L27+L32+L37+L42+L47+L52+L57+L62+L67+L72+L77+L82+L87)*10/100 ->  | U7: =DEBUTMU!X7 -> GRAND DROIT | V7: =SUM(W7:AL7) -> 0 | W7: =IFERROR(VLOOKUP(U7,$D$11:$I$11,4,FALSE)*VLOOKUP(U7,$D$11:$I$11,6,FALSE)*VLOOKUP(U7,$F$12:$I$12,4,FALSE),0) -> 0 | X7: =IFERROR(VLOOKUP(U7,$D$16:$I$16,4,FALSE)*VLOOKUP(U7,$D$16:$I$16,6,FALSE)*VLOOKUP(U7,$F$17:$I$17,4,FALSE),0) -> 0 | Y7: =IFERROR(VLOOKUP(U7,$D$21:$I$21,4,FALSE)*VLOOKUP(U7,$D$21:$I$21,6,FALSE)*VLOOKUP(U7,F23:I23,4,FALSE),0) -> 0 | Z7: =IFERROR(VLOOKUP(U7,$D$26:$I$26,4,FALSE)*VLOOKUP(U7,$D$26:$I$26,6,FALSE)*VLOOKUP(U7,$F$27:$I$27,4,FALSE),0) -> 0 | AA7: =IFERROR(VLOOKUP(U7,$D$31:$I$31,4,FALSE)*VLOOKUP(U7,$D$31:$I$31,6,FALSE)*VLOOKUP(U7,$F$32:$I$32,4,FALSE),0) -> 0 | AB7: =IFERROR(VLOOKUP(U7,$D$36:$I$36,4,FALSE)*VLOOKUP(U7,$D$36:$I$36,6,FALSE)*VLOOKUP(U7,$F$37:$I$37,4,FALSE),0) -> 0 | AC7: =IFERROR(VLOOKUP(U7,$D$41:$I$41,4,FALSE)*VLOOKUP(U7,$D$41:$I$41,6,FALSE)*VLOOKUP(U7,$F$42:$I$42,4,FALSE),0) -> 0 | AD7: =IFERROR(VLOOKUP(U7,$D$46:$I$46,4,FALSE)*VLOOKUP(U7,$D$46:$I$46,6,FALSE)*VLOOKUP(U7,$F$47:$I$47,4,FALSE),0) -> 0 | AE7: =IFERROR(VLOOKUP(U7,$D$51:$I$51,4,FALSE)*VLOOKUP(U7,$D$51:$I$51,6,FALSE)*VLOOKUP(U7,$F$52:$I$52,4,FALSE),0) -> 0 | AF7: =IFERROR(VLOOKUP(U7,$D$56:$I$56,4,FALSE)*VLOOKUP(U7,$D$56:$I$56,6,FALSE)*VLOOKUP(U7,$F$57:$I$57,4,FALSE),0) -> 0 | AG7: =IFERROR(VLOOKUP(U7,$D$61:$I$61,4,FALSE)*VLOOKUP(U7,$D$61:$I$61,6,FALSE)*VLOOKUP(U7,$F$62:$I$62,4,FALSE),0) -> 0 | AH7: =IFERROR(VLOOKUP(U7,$D$66:$I$66,4,FALSE)*VLOOKUP(U7,$D$66:$I$66,6,FALSE)*VLOOKUP(U7,$F$67:$I$67,4,FALSE),0) -> 0 | AI7: =IFERROR(VLOOKUP(U7,$D$71:$I$71,4,FALSE)*VLOOKUP(U7,$D$71:$I$71,6,FALSE)*VLOOKUP(U7,$F$72:$I$72,4,FALSE),0) -> 0 | AJ7: =IFERROR(VLOOKUP(U7,$D$76:$I$76,4,FALSE)*VLOOKUP(U7,$D$76:$I$76,6,FALSE)*VLOOKUP(U7,$F$77:$I$77,4,FALSE),0) -> 0 | AK7: =IFERROR(VLOOKUP(U7,$D$81:$I$81,4,FALSE)*VLOOKUP(U7,$D$81:$I$81,6,FALSE)*VLOOKUP(U7,$F$82:$I$82,4,FALSE),0) -> 0 | AL7: =IFERROR(VLOOKUP(U7,$D$86:$I$86,4,FALSE)*VLOOKUP(U7,$D$86:$I$86,6,FALSE)*VLOOKUP(U7,$F$87:$I$87,4,FALSE),0) -> 0
U8: =DEBUTMU!X8 -> OBLIQUES | V8: 0 | W8: 0 | X8: 0 | Y8: 0 | Z8: 0 | AA8: 0 | AB8: 0 | AC8: 0 | AD8: 0 | AE8: 0 | AF8: 0 | AG8: 0 | AH8: 0 | AI8: 0 | AJ8: 0 | AK8: 0 | AL8: 0
B9: =IF($G$1=DEBUTMU!$Y$21,HLOOKUP($M$2,DEBUTMU!$AE$1:$DV$37,7,FALSE),HLOOKUP($M$2,DEBUTMU!$FL$1:$HZ$37,7,FALSE)) -> CIRCUIT TRAINING | U9: =DEBUTMU!X9 -> TRAPEZES | V9: 0 | W9: 0 | X9: 0 | Y9: 0 | Z9: 0 | AA9: 0 | AB9: 0 | AC9: 0 | AD9: 0 | AE9: 0 | AF9: 0 | AG9: 0 | AH9: 0 | AI9: 0 | AJ9: 0 | AK9: 0 | AL9: 0
K10: Récup' | M10: =VLOOKUP(D12,EX!$B$6:$L$528,8,FALSE) ->  | U10: =DEBUTMU!X10 -> DORSAUX | V10: 0 | W10: 0 | X10: 0 | Y10: 0 | Z10: 0 | AA10: 0 | AB10: 0 | AC10: 0 | AD10: 0 | AE10: 0 | AF10: 0 | AG10: 0 | AH10: 0 | AI10: 0 | AJ10: 0 | AK10: 0 | AL10: 0
A11: 1 | D11: =IF($G$1=DEBUTMU!$Y$21,HLOOKUP($G$2,DEBUTMU!$AE$1:$DV$37,6,FALSE),HLOOKUP($G$2,DEBUTMU!$FL$1:$HZ$37,6,FALSE)) -> 0 | F11: =D12 -> 0 | G11: =IF($G$1=DEBUTMU!$Y$21,HLOOKUP($K$2,DEBUTMU!$AE$1:$DV$37,6,FALSE),HLOOKUP($K$2,DEBUTMU!$FL$1:$HZ$37,6,FALSE)) -> 4 | H11: x | I11: =IF($G$1=DEBUTMU!$Y$21,HLOOKUP($L$2,DEBUTMU!$AE$1:$DV$37,6,FALSE),HLOOKUP($L$2,DEBUTMU!$FL$1:$HZ$37,6,FALSE)) -> 20 | J11: - | K11: =IF($G$1=DEBUTMU!$Y$21,HLOOKUP($M$2,DEBUTMU!$AE$1:$DV$37,6,FALSE),HLOOKUP($M$2,DEBUTMU!$FL$1:$HZ$37,6,FALSE)) -> 10 | L11: " | Q11: bilan | U11: =DEBUTMU!X11 -> LOMBAIRES | V11: 0 | W11: 0 | X11: 0 | Y11: 0 | Z11: 0 | AA11: 0 | AB11: 0 | AC11: 0 | AD11: 0 | AE11: 0 | AF11: 0 | AG11: 0 | AH11: 0 | AI11: 0 | AJ11: 0 | AK11: 0 | AL11: 0
D12: =IF($G$1=DEBUTMU!$Y$21,HLOOKUP($G$2,DEBUTMU!$AE$1:$DV$37,7,FALSE),HLOOKUP($G$2,DEBUTMU!$FL$1:$HZ$37,7,FALSE)) -> 0 | F12: =D11 -> 0 | G12: Charge idéale | I12: =IF($G$1=DEBUTMU!$Y$21,HLOOKUP($L$2,DEBUTMU!$AE$1:$DV$37,7,FALSE),HLOOKUP($L$2,DEBUTMU!$FL$1:$HZ$37,7,FALSE)) -> 10 | J12: Kg | K12: =100*I12/(VLOOKUP(I11,DEBUTMU!$O$39:$P$68,2,FALSE)) -> 18.51851852 | L12: =TIME(,,(G11*I11*2)+(K11*(G11-1))) -> 00:03:10 | U12: =DEBUTMU!X12 -> DELTOIDES | V12: 0 | W12: 0 | X12: 0 | Y12: 0 | Z12: 0 | AA12: 0 | AB12: 0 | AC12: 0 | AD12: 0 | AE12: 0 | AF12: 0 | AG12: 0 | AH12: 0 | AI12: 0 | AJ12: 0 | AK12: 0 | AL12: 0
U13: =DEBUTMU!X13 -> BICEPS | V13: 0 | W13: 0 | X13: 0 | Y13: 0 | Z13: 0 | AA13: 0 | AB13: 0 | AC13: 0 | AD13: 0 | AE13: 0 | AF13: 0 | AG13: 0 | AH13: 0 | AI13: 0 | AJ13: 0 | AK13: 0 | AL13: 0
B14: =IF($G$1=DEBUTMU!$Y$21,HLOOKUP($M$2,DEBUTMU!$AE$1:$DV$37,9,FALSE),HLOOKUP($M$2,DEBUTMU!$FL$1:$HZ$37,9,FALSE)) -> CIRCUIT TRAINING | U14: =DEBUTMU!X14 -> TRICEPS | V14: 0 | W14: 0 | X14: 0 | Y14: 0 | Z14: 0 | AA14: 0 | AB14: 0 | AC14: 0 | AD14: 0 | AE14: 0 | AF14: 0 | AG14: 0 | AH14: 0 | AI14: 0 | AJ14: 0 | AK14: 0 | AL14: 0
K15: Récup' | M15: =VLOOKUP(D17,EX!$B$6:$L$528,8,FALSE) ->  | U15: =DEBUTMU!X15 -> QUADRICEPS | V15: 0 | W15: 0 | X15: 0 | Y15: 0 | Z15: 0 | AA15: 0 | AB15: 0 | AC15: 0 | AD15: 0 | AE15: 0 | AF15: 0 | AG15: 0 | AH15: 0 | AI15: 0 | AJ15: 0 | AK15: 0 | AL15: 0
A16: 2 | D16: =IF($G$1=DEBUTMU!$Y$21,HLOOKUP($G$2,DEBUTMU!$AE$1:$DV$37,8,FALSE),HLOOKUP($G$2,DEBUTMU!$FL$1:$HZ$37,8,FALSE)) -> 0 | F16: =D17 -> 0 | G16: =IF($G$1=DEBUTMU!$Y$21,HLOOKUP($K$2,DEBUTMU!$AE$1:$DV$37,8,FALSE),HLOOKUP($K$2,DEBUTMU!$FL$1:$HZ$37,8,FALSE)) -> 4 | H16: x | I16: =IF($G$1=DEBUTMU!$Y$21,HLOOKUP($L$2,DEBUTMU!$AE$1:$DV$37,8,FALSE),HLOOKUP($L$2,DEBUTMU!$FL$1:$HZ$37,8,FALSE)) -> 20 | J16: - | K16: =IF($G$1=DEBUTMU!$Y$21,HLOOKUP($M$2,DEBUTMU!$AE$1:$DV$37,8,FALSE),HLOOKUP($M$2,DEBUTMU!$FL$1:$HZ$37,8,FALSE)) -> 10 | L16: " | U16: =DEBUTMU!X16 -> ISCHIOS | V16: 0 | W16: 0 | X16: 0 | Y16: 0 | Z16: 0 | AA16: 0 | AB16: 0 | AC16: 0 | AD16: 0 | AE16: 0 | AF16: 0 | AG16: 0 | AH16: 0 | AI16: 0 | AJ16: 0 | AK16: 0 | AL16: 0
D17: =IF($G$1=DEBUTMU!$Y$21,HLOOKUP($G$2,DEBUTMU!$AE$1:$DV$37,9,FALSE),HLOOKUP($G$2,DEBUTMU!$FL$1:$HZ$37,9,FALSE)) -> 0 | F17: =D16 -> 0 | G17: Charge idéale | I17: =IF($G$1=DEBUTMU!$Y$21,HLOOKUP($L$2,DEBUTMU!$AE$1:$DV$37,9,FALSE),HLOOKUP($L$2,DEBUTMU!$FL$1:$HZ$37,9,FALSE)) -> 0 | J17: Kg | K17: =100*I17/(VLOOKUP(I16,DEBUTMU!$O$39:$P$68,2,FALSE)) -> 0 | L17: =TIME(,,(G16*I16*2)+(K16*(G16-1))) -> 00:03:10 | U17: =DEBUTMU!X17 -> MOLLETS | V17: 0 | W17: 0 | X17: 0 | Y17: 0 | Z17: 0 | AA17: 0 | AB17: 0 | AC17: 0 | AD17: 0 | AE17: 0 | AF17: 0 | AG17: 0 | AH17: 0 | AI17: 0 | AJ17: 0 | AK17: 0 | AL17: 0
U18: =DEBUTMU!X18 -> AVANT-BRAS | V18: 0 | W18: 0 | X18: 0 | Y18: 0 | Z18: 0 | AA18: 0 | AB18: 0 | AC18: 0 | AD18: 0 | AE18: 0 | AF18: 0 | AG18: 0 | AH18: 0 | AI18: 0 | AJ18: 0 | AK18: 0 | AL18: 0
B19: =IF($G$1=DEBUTMU!$Y$21,HLOOKUP($M$2,DEBUTMU!$AE$1:$DV$37,11,FALSE),HLOOKUP($M$2,DEBUTMU!$FL$1:$HZ$37,11,FALSE)) -> CIRCUIT TRAINING | U19: =DEBUTMU!X19 -> FESSIERS | V19: 0 | W19: 0 | X19: 0 | Y19: 0 | Z19: 0 | AA19: 0 | AB19: 0 | AC19: 0 | AD19: 0 | AE19: 0 | AF19: 0 | AG19: 0 | AH19: 0 | AI19: 0 | AJ19: 0 | AK19: 0 | AL19: 0
K20: Récup' | M20: =VLOOKUP(D22,EX!$B$6:$L$528,8,FALSE) ->  | W20: 800 | X20: 0 | Y20: 1600 | Z20: 0 | AA20: 0 | AB20: 0 | AC20: 0 | AD20: 0 | AE20: 0 | AF20: 0 | AG20: 0 | AH20: 0 | AI20: 0 | AJ20: 0 | AK20: 0 | AL20: 0
A21: 3 | D21: =IF($G$1=DEBUTMU!$Y$21,HLOOKUP($G$2,DEBUTMU!$AE$1:$DV$37,10,FALSE),HLOOKUP($G$2,DEBUTMU!$FL$1:$HZ$37,10,FALSE)) -> 0 | F21: =D22 -> 0 | G21: =IF($G$1=DEBUTMU!$Y$21,HLOOKUP($K$2,DEBUTMU!$AE$1:$DV$37,10,FALSE),HLOOKUP($K$2,DEBUTMU!$FL$1:$HZ$37,10,FALSE)) -> 4 | H21: x | I21: =IF($G$1=DEBUTMU!$Y$21,HLOOKUP($L$2,DEBUTMU!$AE$1:$DV$37,10,FALSE),HLOOKUP($L$2,DEBUTMU!$FL$1:$HZ$37,10,FALSE)) -> 20 | J21: - | K21: =IF($G$1=DEBUTMU!$Y$21,HLOOKUP($M$2,DEBUTMU!$AE$1:$DV$37,10,FALSE),HLOOKUP($M$2,DEBUTMU!$FL$1:$HZ$37,10,FALSE)) -> 10 | L21: " | U21: TONNAGE TOTAL | V21: =SUM(V6:V19) -> 0 | Y21: haut | Z21: 0
D22: =IF($G$1=DEBUTMU!$Y$21,HLOOKUP($G$2,DEBUTMU!$AE$1:$DV$37,11,FALSE),HLOOKUP($G$2,DEBUTMU!$FL$1:$HZ$37,11,FALSE)) -> 0 | F22: =D21 -> 0 | G22: Charge idéale | I22: =IF($G$1=DEBUTMU!$Y$21,HLOOKUP($L$2,DEBUTMU!$AE$1:$DV$37,11,FALSE),HLOOKUP($L$2,DEBUTMU!$FL$1:$HZ$37,11,FALSE)) -> 0 | J22: Kg | K22: =100*I22/(VLOOKUP(I21,DEBUTMU!$O$39:$P$68,2,FALSE)) -> 0 | L22: =TIME(,,(G21*I21*2)+(K21*(G21-1))) -> 00:03:10 | Y22: bas | Z22: 0
Y23: gauche | Z23: 0
B24: =IF($G$1=DEBUTMU!$Y$21,HLOOKUP($M$2,DEBUTMU!$AE$1:$DV$37,13,FALSE),HLOOKUP($M$2,DEBUTMU!$FL$1:$HZ$37,13,FALSE)) -> CIRCUIT TRAINING | Y24: droite | Z24: 0
K25: Récup' | M25: =VLOOKUP(D27,EX!$B$6:$L$528,8,FALSE) -> 
A26: 4 | D26: =IF($G$1=DEBUTMU!$Y$21,HLOOKUP($G$2,DEBUTMU!$AE$1:$DV$37,12,FALSE),HLOOKUP($G$2,DEBUTMU!$FL$1:$HZ$37,12,FALSE)) -> 0 | F26: =D27 -> 0 | G26: =IF($G$1=DEBUTMU!$Y$21,HLOOKUP($K$2,DEBUTMU!$AE$1:$DV$37,12,FALSE),HLOOKUP($K$2,DEBUTMU!$FL$1:$HZ$37,12,FALSE)) -> 4 | H26: x | I26: =IF($G$1=DEBUTMU!$Y$21,HLOOKUP($L$2,DEBUTMU!$AE$1:$DV$37,12,FALSE),HLOOKUP($L$2,DEBUTMU!$FL$1:$HZ$37,12,FALSE)) -> 20 | J26: - | K26: =IF($G$1=DEBUTMU!$Y$21,HLOOKUP($M$2,DEBUTMU!$AE$1:$DV$37,12,FALSE),HLOOKUP($M$2,DEBUTMU!$FL$1:$HZ$37,12,FALSE)) -> 10 | L26: "
D27: =IF($G$1=DEBUTMU!$Y$21,HLOOKUP($G$2,DEBUTMU!$AE$1:$DV$37,13,FALSE),HLOOKUP($G$2,DEBUTMU!$FL$1:$HZ$37,13,FALSE)) -> 0 | F27: =D26 -> 0 | G27: Charge idéale | I27: =IF($G$1=DEBUTMU!$Y$21,HLOOKUP($L$2,DEBUTMU!$AE$1:$DV$37,13,FALSE),HLOOKUP($L$2,DEBUTMU!$FL$1:$HZ$37,13,FALSE)) -> 0 | J27: Kg | K27: =100*I27/(VLOOKUP(I26,DEBUTMU!$O$39:$P$68,2,FALSE)) -> 0 | L27: =TIME(,,(G26*I26*2)+(K26*(G26-1))) -> 00:03:10
B29: =IF($G$1=DEBUTMU!$Y$21,HLOOKUP($M$2,DEBUTMU!$AE$1:$DV$37,15,FALSE),HLOOKUP($M$2,DEBUTMU!$FL$1:$HZ$37,15,FALSE)) -> CIRCUIT TRAINING
K30: Récup' | M30: =VLOOKUP(D32,EX!$B$6:$L$528,8,FALSE) -> 
A31: 5 | D31: =IF($G$1=DEBUTMU!$Y$21,HLOOKUP($G$2,DEBUTMU!$AE$1:$DV$37,14,FALSE),HLOOKUP($G$2,DEBUTMU!$FL$1:$HZ$37,14,FALSE)) -> 0 | F31: =D32 -> 0 | G31: =IF($G$1=DEBUTMU!$Y$21,HLOOKUP($K$2,DEBUTMU!$AE$1:$DV$37,14,FALSE),HLOOKUP($K$2,DEBUTMU!$FL$1:$HZ$37,14,FALSE)) -> 4 | H31: x | I31: =IF($G$1=DEBUTMU!$Y$21,HLOOKUP($L$2,DEBUTMU!$AE$1:$DV$37,14,FALSE),HLOOKUP($L$2,DEBUTMU!$FL$1:$HZ$37,14,FALSE)) -> 20 | J31: - | K31: =IF($G$1=DEBUTMU!$Y$21,HLOOKUP($M$2,DEBUTMU!$AE$1:$DV$37,14,FALSE),HLOOKUP($M$2,DEBUTMU!$FL$1:$HZ$37,14,FALSE)) -> 10 | L31: "
D32: =IF($G$1=DEBUTMU!$Y$21,HLOOKUP($G$2,DEBUTMU!$AE$1:$DV$37,15,FALSE),HLOOKUP($G$2,DEBUTMU!$FL$1:$HZ$37,15,FALSE)) -> 0 | F32: =D31 -> 0 | G32: Charge idéale | I32: =IF($G$1=DEBUTMU!$Y$21,HLOOKUP($L$2,DEBUTMU!$AE$1:$DV$37,15,FALSE),HLOOKUP($L$2,DEBUTMU!$FL$1:$HZ$37,15,FALSE)) -> 0 | J32: Kg | K32: =100*I32/(VLOOKUP(I31,DEBUTMU!$O$39:$P$68,2,FALSE)) -> 0 | L32: =TIME(,,(G31*I31*2)+(K31*(G31-1))) -> 00:03:10
B34: =IF($G$1=DEBUTMU!$Y$21,HLOOKUP($M$2,DEBUTMU!$AE$1:$DV$37,17,FALSE),HLOOKUP($M$2,DEBUTMU!$FL$1:$HZ$37,17,FALSE)) -> CIRCUIT TRAINING
K35: Récup' | M35: =VLOOKUP(D37,EX!$B$6:$L$528,8,FALSE) -> 
A36: 6 | D36: =IF($G$1=DEBUTMU!$Y$21,HLOOKUP($G$2,DEBUTMU!$AE$1:$DV$37,16,FALSE),HLOOKUP($G$2,DEBUTMU!$FL$1:$HZ$37,16,FALSE)) -> 0 | F36: =D37 -> 0 | G36: =IF($G$1=DEBUTMU!$Y$21,HLOOKUP($K$2,DEBUTMU!$AE$1:$DV$37,16,FALSE),HLOOKUP($K$2,DEBUTMU!$FL$1:$HZ$37,16,FALSE)) -> 4 | H36: x | I36: =IF($G$1=DEBUTMU!$Y$21,HLOOKUP($L$2,DEBUTMU!$AE$1:$DV$37,16,FALSE),HLOOKUP($L$2,DEBUTMU!$FL$1:$HZ$37,16,FALSE)) -> 20 | J36: - | K36: =IF($G$1=DEBUTMU!$Y$21,HLOOKUP($M$2,DEBUTMU!$AE$1:$DV$37,16,FALSE),HLOOKUP($LM$2,DEBUTMU!$FL$1:$HZ$37,16,FALSE)) ->  | L36: "
D37: =IF($G$1=DEBUTMU!$Y$21,HLOOKUP($G$2,DEBUTMU!$AE$1:$DV$37,17,FALSE),HLOOKUP($G$2,DEBUTMU!$FL$1:$HZ$37,17,FALSE)) -> 0 | F37: =D36 -> 0 | G37: Charge idéale | I37: =IF($G$1=DEBUTMU!$Y$21,HLOOKUP($L$2,DEBUTMU!$AE$1:$DV$37,17,FALSE),HLOOKUP($L$2,DEBUTMU!$FL$1:$HZ$37,17,FALSE)) -> 0 | J37: Kg | K37: =100*I37/(VLOOKUP(I36,DEBUTMU!$O$39:$P$68,2,FALSE)) -> 0 | L37: =TIME(,,(G36*I36*2)+(K36*(G36-1))) -> 
B39: =IF($G$1=DEBUTMU!$Y$21,HLOOKUP($M$2,DEBUTMU!$AE$1:$DV$37,19,FALSE),HLOOKUP($M$2,DEBUTMU!$FL$1:$HZ$37,19,FALSE)) -> CIRCUIT TRAINING
K40: Récup' | M40: =VLOOKUP(D42,EX!$B$6:$L$528,8,FALSE) -> 
